Workbook

Sheet Por Provincias
D2: GERENCIA REGIONAL DE SALUD LA LIBERTAD | I2: POBLACIÓN ESTIMADA POR EDADES, SEGÚN PROVINCIA, DISTRITO Y ESTABLECIMIENTOS DE SALUD 2022
D3: Oficina de Estadística e Informática
AT4: GRUPOS ESPECIALES
C5: N° | D5: Ubigeo | E5: Provincia / Distrito | F5: Cód RENIPRESS | G5: Clasificación | H5: Establecimiento de Salud | I5: POBLACION | K5: POBLACIÓN EDADES SIMPLES | AE5: EDADES EN QUINQUENEOS | AT5: NACIMIENTO | AU5: Grupos Especiales | AX5: GESTANTES ESPERADAS
C6: N° | I6: TOTAL | J6: 0 - 5a | K6: 0a | L6: 1a | M6: 2a | N6: 3a | O6: 4a | P6: 5a | Q6: 6a | R6: 7a | S6: 8a | T6: 9a | U6: 10a | V6: 11a | W6: 12a | X6: 13a | Y6: 14a | Z6: 15a | AA6: 16a | AB6: 17a | AC6: 18a | AD6: 19a | AE6: 20a-24a | AF6: 25a -29a | AG6: 30a -34a | AH6: 35a -39a | AI6: 40a -44a | AJ6: 45a -49a | AK6: 50a -54a | AL6: 55a -59a | AM6: 60a -64a | AN6: 65a -69a | AO6: 70a -74a | AP6: 75a -79a | AQ6: 80a - 84a | AR6: 85a / + | AU6: 28 d | AV6: 0m - 5m | AW6: 6m - 11m
D7: 130000 | E7: LA LIBERTAD | I7: =SUM(K7:AR7) -> 2101667.131 | J7: =+SUM(K7:P7) -> 200835.5467 | K7: =+K8+K80+K103+K118+K129+K156+K215+K232+K282+K334+K372+K393 -> 31875.07598 | L7: 32379.28042 | M7: 34149.24344 | N7: 34793.34375 | O7: 33068.22335 | P7: 34570.37977 | Q7: 37335.06624 | R7: 38299.58209 | S7: 38129.0936 | T7: 37461.13175 | U7: 37910.48898 | V7: 37371.98745 | W7: 38992.21184 | X7: 38258.37474 | Y7: 36175.8499 | Z7: 36101.05876 | AA7: 37135.56179 | AB7: 35890.48258 | AC7: 33778.0854 | AD7: 32586.24277 | AE7: 163401.339 | AF7: 180207.5902 | AG7: 161423.2852 | AH7: 147647.446 | AI7: 133972.067 | AJ7: 123396.5612 | AK7: 108101.7884 | AL7: 95145.46557 | AM7: 78432.00078 | AN7: 63132.22317 | AO7: 47150.74514 | AP7: 35928.16561 | AQ7: 24379.75295 | AR7: 23087.93658 | AT7: =+AT8+AT80+AT103+AT118+AT129+AT156+AT215+AT232+AT282+AT334+AT372+AT393 -> 36722.36086 | AU7: 2320.927515 | AV7: 15833.86402 | AW7: 14359.0454 | AX7: 47033.49443
D8: 130100 | E8: TRUJILLO (1) | I8: =SUM(K8:AR8) -> 1120138.308 | J8: =+SUM(K8:P8) -> 100858.3081 | K8: =+K9+K23+K35+K40+K48+K56+K60+K67+K69+K72+K74 -> 14918.42874 | L8: 15576.01033 | M8: 17055.51282 | N8: 18082.26 | O8: 17304.96499 | P8: 17921.13124 | Q8: 19180 | R8: 19709 | S8: 19804 | T8: 19440 | U8: 19650 | V8: 18762 | W8: 19534 | X8: 18925 | Y8: 17233 | Z8: 17387 | AA8: 17634 | AB8: 16795 | AC8: 16308 | AD8: 16282 | AE8: 83687 | AF8: 98864 | AG8: 92026 | AH8: 83237 | AI8: 76594 | AJ8: 69246 | AK8: 59528 | AL8: 52171 | AM8: 43289 | AN8: 35108 | AO8: 26128 | AP8: 19326 | AQ8: 12401 | AR8: 11032 | AT8: =+AT9+AT23+AT35+AT40+AT48+AT56+AT60+AT67+AT69+AT72+AT74 -> 17041 | AU8: 1151 | AV8: 7519 | AW8: 6625 | AX8: 23185
D9: 130101 | E9: TRUJILLO (1) | I9: =SUM(K9:AR9) -> 397804.8968 | J9: =+SUM(K9:P9) -> 27792.89679 | K9: =SUM(K12:K22) -> 4121.282954 | L9: =SUM(L12:L22) -> 4288.826095 | M9: 4691.117563 | N9: 4977.123398 | O9: 4762.089344 | P9: 4952.457433 | Q9: 6024 | R9: 6247 | S9: 6185 | T9: 5948 | U9: 6148 | V9: 5891 | W9: 6148 | X9: 5966 | Y9: 5534 | Z9: 5505 | AA9: 5545 | AB9: 5187 | AC9: 5184 | AD9: 5245 | AE9: 27420 | AF9: 32699 | AG9: 32696 | AH9: 29658 | AI9: 28963 | AJ9: 26565 | AK9: 22960 | AL9: 21313 | AM9: 18598 | AN9: 15575 | AO9: 12090 | AP9: 9255 | AQ9: 5912 | AR9: 5551 | AT9: 4315 | AU9: 326 | AV9: 2009 | AW9: 1647 | AX9: 6650
C10: 1 | D10: 130101 | E10: TRUJILLO | F10: 00005195 | G10: Hospital | H10: BELEN DE TRUJILLO
C11: 2 | D11: 130101 | E11: TRUJILLO | F11: 00005196 | G11: Hospital | H11: REGIONAL DOCENTE DE TRUJILLO
C12: 3 | D12: 130101 | E12: TRUJILLO | F12: 00005204 | G12: Hospital de especialidades basicas | H12: LA NORIA | I12: =SUM(K12:AR12) -> 27876.97106 | J12: =+SUM(K12:P12) -> 1478.286302 | K12: 218.134494 | L12: 227.4731203 | M12: 249.8462789 | N12: 265.7401951 | O12: 253.7855366 | P12: 263.3066769 | Q12: 429.7851881 | R12: 445.6952307 | S12: 441.2718108 | T12: 424.3629314 | U12: 438.6320279 | V12: 420.2962389 | W12: 438.6320279 | X12: 425.6471501 | Y12: 394.8259015 | Z12: 392.7568825 | AA12: 395.6107018 | AB12: 370.069019 | AC12: 369.8549826 | AD12: 374.207057 | AE12: 1956.293137 | AF12: 2332.92594 | AG12: 2332.711904 | AH12: 2115.964327 | AI12: 2066.379217 | AJ12: 1895.292749 | AK12: 1638.092284 | AL12: 1520.586274 | AM12: 1326.883288 | AN12: 1111.205894 | AO12: 862.5668864 | AP12: 660.3024428 | AQ12: 421.794494 | AR12: 396.0387747 | AT12: 307.855758 | AU12: 23.25862737 | AV12: 143.3330748 | AW12: 117.5060101 | AX12: 474.4474603
C13: 4 | D13: 130101 | E13: TRUJILLO | F13: 00005202 | G13: Centro de salud con camas de internamiento | H13: EL BOSQUE | I13: 38533.39845 | J13: =+SUM(K13:P13) -> 3096.033576 | K13: 456.8477138 | L13: 476.405969 | M13: 523.2629615 | N13: 556.55022 | O13: 531.513105 | P13: 551.4536063 | Q13: 576.9398992 | R13: 598.2974021 | S13: 592.3594416 | T13: 569.661109 | U13: 588.8158201 | V13: 564.2020163 | W13: 588.8158201 | X13: 571.385033 | Y13: 530.0108569 | Z13: 527.2334238 | AA13: 531.064366 | AB13: 496.7774331 | AC13: 496.4901124 | AD13: 502.3322993 | AE13: 2626.110896 | AF13: 3131.699496 | AG13: 3131.412175 | AH13: 2840.452113 | AI13: 2773.889492 | AJ13: 2544.224506 | AK13: 2198.960838 | AL13: 2041.221791 | AM13: 1781.196588 | AN13: 1491.673129 | AO13: 1157.902288 | AP13: 886.3842575 | AQ13: 566.213261 | AR13: 531.6390074 | AT13: 413.2628926 | AU13: 31.22217914 | AV13: 192.4090733 | AW13: 157.7390461 | AX13: 636.894145
C14: 5 | D14: 130101 | E14: TRUJILLO | F14: 00005201 | G14: Centro de salud | H14: ARANJUEZ | I14: 23829.15468 | J14: 1878.074421 | K14: 277.1268414 | L14: 288.9910082 | M14: 317.4147695 | N14: 337.6070404 | O14: 322.419361 | P14: 334.5154008 | Q14: 357.375727 | R14: 370.6052734 | S14: 366.9271035 | T14: 352.8670027 | U14: 364.7320667 | V14: 349.4854595 | W14: 364.7320667 | X14: 353.9348585 | Y14: 328.3063203 | Z14: 326.585886 | AA14: 328.9588988 | AB14: 307.7204343 | AC14: 307.5424583 | AD14: 311.1613028 | AE14: 1626.700271 | AF14: 1939.878635 | AG14: 1939.700659 | AH14: 1759.470337 | AI14: 1718.23924 | AJ14: 1575.977123 | AK14: 1362.109345 | AL14: 1264.400543 | AM14: 1103.332299 | AN14: 923.9918573 | AO14: 717.2431175 | AP14: 549.0558356 | AQ14: 350.7312912 | AR14: 329.3148507 | AT14: 255.9887553 | AU14: 19.34005428 | AV14: 119.1845677 | AW14: 97.70880186 | AX14: 394.5133773
C15: 6 | D15: 130101 | E15: TRUJILLO | F15: 00005203 | G15: Centro de salud | H15: LOS GRANADOS "SAGRADO CORAZON" | I15: 55219.8909 | J15: 3068.141381 | K15: 452.7319686 | L15: 472.1140233 | M15: 518.5488808 | N15: 551.5362541 | O15: 526.7246987 | P15: 546.4855558 | Q15: 849.0593253 | R15: 880.4903063 | S15: 871.7516479 | T15: 838.3474215 | U15: 866.5366421 | V15: 830.3134936 | W15: 866.5366421 | X15: 840.8844513 | Y15: 779.9957348 | Z15: 775.9082978 | AA15: 781.5461419 | AB15: 731.087437 | AC15: 730.6645987 | AD15: 739.262311 | AE15: 3864.742148 | AF15: 4608.796627 | AG15: 4608.373788 | AH15: 4180.179527 | AI15: 4082.221985 | AJ15: 3744.23323 | AK15: 3236.122528 | AL15: 3003.984296 | AM15: 2621.315626 | AN15: 2195.235556 | AO15: 1704.038387 | AP15: 1304.456185 | AQ15: 833.2733618 | AR15: 782.3918185 | AT15: 608.1824351 | AU15: 45.94842962 | AV15: 283.1607212 | AW15: 232.1382319 | AX15: 937.2915859
C16: 7 | D16: 130101 | E16: TRUJILLO | F16: 00005199 | G16: Centro de salud | H16: LA UNION | I16: 16799.15955 | J16: 1376.014923 | K16: 203.0434284 | L16: 211.7359862 | M16: 232.5613162 | N16: 247.3556533 | O16: 236.2280467 | P16: 245.0904917 | Q16: 251.0973245 | R16: 260.392594 | S16: 257.808259 | T16: 247.92943 | U16: 256.2659946 | V16: 245.5535091 | W16: 256.2659946 | X16: 248.6797208 | Y16: 230.6727414 | Z16: 229.4639395 | AA16: 231.1312524 | AB16: 216.2088019 | AC16: 216.0837534 | AD16: 218.6264056 | AE16: 1142.943001 | AF16: 1362.986623 | AG16: 1362.861574 | AH16: 1236.229159 | AI16: 1207.259597 | AJ16: 1107.304188 | AK16: 957.0376115 | AL16: 888.3860023 | AM16: 775.2171384 | AN16: 649.2099651 | AO16: 503.9453276 | AP16: 385.774525 | AQ16: 246.4288484 | AR16: 231.3813494 | AT16: 179.8613804 | AU16: 13.58860023 | AV16: 83.740791 | AW16: 68.65160915 | AX16: 277.1907716
B17: | | C17: 8 | D17: 130101 | E17: TRUJILLO | F17: 00005200 | G17: Centro de salud | H17: LOS JARDINES | I17: 64165.06065 | J17: 5987.524393 | K17: 883.5132963 | L17: 921.3376698 | M17: 1011.955998 | N17: 1076.331356 | O17: 1027.91123 | P17: 1066.474842 | Q17: 947.1624661 | R17: 982.2250872 | S17: 972.4767352 | T17: 935.2128732 | U17: 966.6591702 | V17: 926.2506786 | W17: 966.6591702 | X17: 938.0430399 | Y17: 870.1190384 | Z17: 865.5593253 | AA17: 871.8485847 | AB17: 815.5597131 | AC17: 815.0880186 | AD17: 824.6791392 | AE17: 4311.287321 | AF17: 5141.31233 | AG17: 5140.840636 | AH17: 4663.171384 | AI17: 4553.895502 | AJ17: 4176.854401 | AK17: 3610.034897 | AL17: 3351.074641 | AM17: 2924.191159 | AN17: 2448.88038 | AO17: 1900.928655 | AP17: 1455.177394 | AQ17: 929.5525397 | AR17: 872.7919736 | AT17: 678.4538581 | AU17: 51.25746413 | AV17: 315.8780535 | AW17: 258.9602559 | AX17: 1045.589376
C18: 9 | D18: 130101 | E18: TRUJILLO | F18: 00005198 | G18: Centro de salud | H18: SAN MARTIN PORRES | I18: 101252.8523 | J18: 4912 | K18: 745 | L18: 768 | M18: 824 | N18: 864 | O18: 834 | P18: 877 | Q18: 1568.482358 | R18: 1626.545366 | S18: 1610.402288 | T18: 1548.694067 | U18: 1600.768515 | V18: 1533.85285 | W18: 1600.768515 | X18: 1553.380768 | Y18: 1440.899961 | Z18: 1433.349166 | AA18: 1443.764056 | AB18: 1350.550795 | AC18: 1349.769678 | AD18: 1365.652385 | AE18: 7139.406747 | AF18: 8513.911788 | AG18: 8513.130671 | AH18: 7722.119814 | AI18: 7541.161109 | AJ18: 6916.788484 | AK18: 5978.146568 | AL18: 5549.313494 | AM18: 4842.402869 | AN18: 4055.297596 | AO18: 3147.900349 | AP18: 2409.745056 | AQ18: 1539.320667 | AR18: 1445.326289 | AT18: 1123.506204 | AU18: 84.88134936 | AV18: 523.0878247 | AW18: 428.8330748 | AX18: 1731.475378
C19: 10 | D19: 130101 | E19: TRUJILLO | F19: 00005208 | G19: Puesto de salud | H19: CLUB DE LEONES | I19: 43940.00146 | J19: 3839.825426 | K19: 566.6009183 | L19: 590.8578535 | M19: 648.9717811 | N19: 690.2559786 | O19: 659.2039411 | P19: 683.9349531 | Q19: 652.8530438 | R19: 677.0207445 | S19: 670.3014734 | T19: 644.616518 | U19: 666.2915859 | V19: 638.4391237 | W19: 666.2915859 | X19: 646.5672741 | Y19: 599.7491276 | Z19: 596.6062427 | AA19: 600.9412563 | AB19: 562.1428848 | AC19: 561.8177588 | AD19: 568.4286545 | AE19: 2971.651803 | AF19: 3543.765219 | AG19: 3543.440093 | AH19: 3214.195812 | AI19: 3138.874952 | AJ19: 2878.990888 | AK19: 2488.29779 | AL19: 2309.803606 | AM19: 2015.56456 | AN19: 1687.945909 | AO19: 1310.257852 | AP19: 1003.013765 | AQ19: 640.7150058 | AR19: 601.5915083 | AT19: 467.639589 | AU19: 35.3303606 | AV19: 217.7260566 | AW19: 178.4941838 | AX19: 720.6960062
C20: 11 | D20: 130101 | E20: TRUJILLO | F20: 00005206 | G20: Puesto de salud | H20: LIBERTAD | I20: 7088.42315 | J20: 632.2230725 | K20: 93.29022384 | L20: 97.28410178 | M20: 106.8524967 | N20: 113.6498948 | O20: 108.5372106 | P20: 112.6091448 | Q20: 105.1105079 | R20: 109.001551 | S20: 107.9197363 | T20: 103.7844126 | U20: 107.2741373 | V20: 102.789841 | W20: 107.2741373 | X20: 104.0984878 | Y20: 96.56068244 | Z20: 96.05467235 | AA20: 96.75261729 | AB20: 90.50601008 | AC20: 90.45366421 | AD20: 91.51803024 | AE20: 478.4412563 | AF20: 570.5525397 | AG20: 570.5001939 | AH20: 517.4912757 | AI20: 505.3644824 | AJ20: 463.5226832 | AK20: 400.6203955 | AL20: 371.8825126 | AM20: 324.5094998 | AN20: 271.762311 | AO20: 210.9538581 | AP20: 161.4870105 | AQ20: 103.1562621 | AR20: 96.85730903 | AT20: 75.29081039 | AU20: 5.68825126 | AV20: 35.05428461 | AW20: 28.7378829 | AX20: 116.0333463
C21: 12 | D21: 130101 | E21: TRUJILLO | F21: 00005205 | G21: Puesto de salud | H21: PESQUEDA II | I21: 8015.60873 | J21: 985.5242013 | K21: 145.422996 | L21: 151.6487469 | M21: 166.564186 | N21: 177.1601301 | O21: 169.1903578 | P21: 175.5377846 | Q21: 114.4536642 | R21: 118.6905777 | S21: 117.5126018 | T21: 113.0096937 | U21: 116.8096161 | V21: 111.9267158 | W21: 116.8096161 | X21: 113.3516867 | Y21: 105.1438542 | Z21: 104.5928655 | AA21: 105.3528499 | AB21: 98.55098876 | AC21: 98.49398992 | AD21: 99.65296627 | AE21: 520.969368 | AF21: 621.2683211 | AG21: 621.2113222 | AH21: 563.4905002 | AI21: 550.2857697 | AJ21: 504.7246995 | AK21: 436.2310973 | AL21: 404.9387359 | AM21: 353.3547887 | AN21: 295.9189608 | AO21: 229.7053121 | AP21: 175.8414114 | AQ21: 112.3257076 | AR21: 105.4668476 | AT21: 81.98332687 | AU21: 6.193873594 | AV21: 38.17022102 | AW21: 31.29236138 | AX21: 126.3474215
C22: 13 | D22: 130101 | E22: TRUJILLO | F22: 00005207 | G22: Puesto de salud | H22: PESQUEDA III | I22: 11084.37588 | J22: 539.2490913 | K22: 79.57107327 | L22: 82.97761622 | M22: 91.1388942 | N22: 96.93667496 | O22: 92.57585613 | P22: 96.04897647 | Q22: 171.6804963 | R22: 178.0358666 | S22: 176.2689027 | T22: 169.5145405 | U22: 175.2144242 | V22: 167.8900737 | W22: 175.2144242 | X22: 170.0275301 | Y22: 157.7157813 | Z22: 156.8892982 | AA22: 158.0292749 | AB22: 147.8264831 | AC22: 147.7409849 | AD22: 149.4794494 | AE22: 781.454052 | AF22: 931.9024816 | AG22: 931.8169833 | AH22: 845.2357503 | AI22: 825.4286545 | AJ22: 757.0870492 | AK22: 654.346646 | AL22: 607.4081039 | AM22: 530.032183 | AN22: 443.8784413 | AO22: 344.5579682 | AP22: 263.7621171 | AQ22: 168.4885615 | AR22: 158.2002714 | AT22: 122.9749903 | AU22: 9.290810392 | AV22: 57.25533152 | AW22: 46.93854207 | AX22: 189.5211322
D23: 130102 | E23: EL PORVENIR (2) | I23: =SUM(K23:AR23) -> 183845.116 | J23: 21299.11603 | K23: =SUM(K24:K34) -> 3146.76717 | L23: =SUM(L24:L34) -> 3280.331739 | M23: 3601.133824 | N23: 3829.348766 | O23: 3657.209107 | P23: 3784.325426 | Q23: 3614 | R23: 3707 | S23: 3644 | T23: 3624 | U23: 3650 | V23: 3521 | W23: 3606 | X23: 3505 | Y23: 3125 | Z23: 3274 | AA23: 3205 | AB23: 3059 | AC23: 3002 | AD23: 2958 | AE23: 14946 | AF23: 16700 | AG23: 15079 | AH23: 13131 | AI23: 11490 | AJ23: 10363 | AK23: 8698 | AL23: 7133 | AM23: 5418 | AN23: 4335 | AO23: 2970 | AP23: 2104 | AQ23: 1399 | AR23: 1286 | AT23: 3858 | AU23: 221 | AV23: 1611 | AW23: 1501 | AX23: 3807
B24: 1 | C24: 14 | D24: 130102 | E24: EL PORVENIR | F24: 00005209 | G24: Hospital distrital de el Porvenir | H24: SANTA ISABEL | I24: 22028.61878 | J24: 2110.509374 | K24: 311.4247178 | L24: 324.7572221 | M24: 356.6987756 | N24: 379.3900899 | O24: 362.3227473 | P24: 375.9158217 | Q24: 442.8533917 | R24: 454.249453 | S24: 446.5295405 | T24: 444.0787746 | U24: 447.2647702 | V24: 431.4573304 | W24: 441.8730853 | X24: 429.4967177 | Y24: 382.9321663 | Z24: 401.190372 | AA24: 392.7352298 | AB24: 374.8446389 | AC24: 367.8599562 | AD24: 362.4682713 | AE24: 1831.45733 | AF24: 2046.389497 | AG24: 1847.754923 | AH24: 1609.050328 | AI24: 1407.964989 | AJ24: 1269.864333 | AK24: 1065.838074 | AL24: 874.0656455 | AM24: 663.9124726 | AN24: 531.2035011 | AO24: 363.9387309 | AP24: 257.8205689 | AQ24: 171.4310722 | AR24: 157.5842451 | AT24: 472.7527352 | AU24: 27.0809628 | AV24: 197.4091904 | AW24: 183.9299781 | AX24: 466.5032823
B25: 2 | C25: 15 | D25: 130102 | E25: EL PORVENIR | F25: 00005220 | G25: Centro de salud con camas de internamiento | H25: ALTO TRUJILLO | I25: 54172.71797 | J25: 7400.728908 | K25: 1092.044385 | L25: 1138.79625 | M25: 1250.802755 | N25: 1330.372298 | O25: 1270.523819 | P25: 1318.189401 | Q25: 1039.914661 | R25: 1066.675055 | S25: 1048.547046 | T25: 1042.792123 | U25: 1050.273523 | V25: 1013.154267 | W25: 1037.612691 | X25: 1008.550328 | Y25: 899.2067834 | Z25: 942.0809628 | AA25: 922.226477 | AB25: 880.2155361 | AC25: 863.8140044 | AD25: 851.1531729 | AE25: 4300.654267 | AF25: 4805.36105 | AG25: 4338.924508 | AH25: 3778.394967 | AI25: 3306.203501 | AJ25: 2981.913567 | AK25: 2502.816193 | AL25: 2052.493435 | AM25: 1559.008753 | AN25: 1247.37965 | AO25: 854.6061269 | AP25: 605.4179431 | AQ25: 402.5568928 | AR25: 370.0415755 | AT25: 1110.124726 | AU25: 63.59190372 | AV25: 463.559081 | AW25: 431.9070022 | AX25: 1095.449672
B26: 3 | C26: 16 | D26: 130102 | E26: EL PORVENIR | F26: 00005210 | G26: Puesto de salud | H26: BUEN PASTOR | I26: 10995.11975 | J26: 1124.985173 | K26: 166.0017218 | L26: 173.1084752 | M26: 190.1345896 | N26: 202.2299598 | O26: 193.1323895 | P26: 200.3780371 | Q26: 219.4496718 | R26: 225.0968271 | S26: 221.2713348 | T26: 220.0568928 | U26: 221.6356674 | V26: 213.8025164 | W26: 218.963895 | X26: 212.8309628 | Y26: 189.7565646 | Z26: 198.8041575 | AA26: 194.6143326 | AB26: 185.7489059 | AC26: 182.2877462 | AD26: 179.6159737 | AE26: 907.5525164 | AF26: 1014.059081 | AG26: 915.6285558 | AH26: 797.3419037 | AI26: 697.6969365 | AJ26: 629.2631291 | AK26: 528.1608315 | AL26: 433.130744 | AM26: 328.9923414 | AN26: 263.2303063 | AO26: 180.3446389 | AP26: 127.7592998 | AQ26: 84.95021882 | AR26: 78.08862144 | AT26: 234.2658643 | AU26: 13.41958425 | AV26: 97.82330416 | AW26: 91.14387309 | AX26: 231.1690372
B27: 4 | C27: 17 | D27: 130102 | E27: EL PORVENIR | F27: 00005211 | G27: Puesto de salud | H27: GRAN CHIMU | I27: 15792.04804 | J27: 1831.587431 | K27: 270.2672661 | L27: 281.8377654 | M27: 309.5579682 | N27: 329.2504305 | O27: 314.4386838 | P27: 326.2353166 | Q27: 310.392779 | R27: 318.3801969 | S27: 312.9693654 | T27: 311.2516411 | U27: 313.4846827 | V27: 302.4053611 | W27: 309.7056893 | X27: 301.0311816 | Y27: 268.3944201 | Z27: 281.1914661 | AA27: 275.2653173 | AB27: 262.72593 | AC27: 257.8304158 | AD27: 254.0514223 | AE27: 1283.655361 | AF27: 1434.299781 | AG27: 1295.078228 | AH27: 1127.771882 | AI27: 986.8326039 | AJ27: 890.0388403 | AK27: 747.0382932 | AL27: 612.6263676 | AM27: 465.3315098 | AN27: 372.3167396 | AO27: 255.0820569 | AP27: 180.7045952 | AQ27: 120.154814 | AR27: 110.4496718 | AT27: 331.3490153 | AU27: 18.98085339 | AV27: 138.3626915 | AW27: 128.9152079 | AX27: 326.9688184
B28: 5 | C28: 18 | D28: 130102 | E28: EL PORVENIR | F28: 00005212 | G28: Puesto de salud | H28: MIGUEL GRAU | I28: 14794.49458 | J28: 1589.855079 | K28: 234.5974747 | L28: 244.640903 | M28: 268.7026019 | N28: 285.7960589 | O28: 272.939162 | P28: 283.1788789 | Q28: 293.5880744 | R28: 301.1430525 | S28: 296.0251641 | T28: 294.4004376 | U28: 296.5125821 | V28: 286.0330963 | W28: 292.9381838 | X28: 284.7333151 | Y28: 253.863512 | Z28: 265.9677243 | AA28: 260.3624179 | AB28: 248.5019147 | AC28: 243.8714442 | AD28: 240.297046 | AE28: 1214.158096 | AF28: 1356.646608 | AG28: 1224.962527 | AH28: 1066.714168 | AI28: 933.4053611 | AJ28: 841.8520241 | AK28: 706.5935449 | AL28: 579.458698 | AM28: 440.1384026 | AN28: 352.1594639 | AO28: 241.2718818 | AP28: 170.9212254 | AQ28: 113.6496171 | AR28: 104.4699125 | AT28: 313.4097374 | AU28: 17.95322757 | AV28: 130.8717177 | AW28: 121.9357221 | AX28: 309.2666849
B29: 6 | C29: 19 | D29: 130102 | E29: EL PORVENIR | F29: 00005213 | G29: Centro de salud | H29: RIO SECO - "SANTA. ROSA" | I29: 28021.43025 | J29: 2101.211976 | K29: 310.0528028 | L29: 323.3265736 | M29: 355.1274153 | N29: 377.7187679 | O29: 360.7266118 | P29: 374.2598049 | Q29: 576.3025164 | R29: 591.1326586 | S29: 581.0864333 | T29: 577.8971554 | U29: 582.0432166 | V29: 561.4723742 | W29: 575.0268053 | X29: 558.9209519 | Y29: 498.3246718 | Z29: 522.0847921 | AA29: 511.0817834 | AB29: 487.8000547 | AC29: 478.7106127 | AD29: 471.6942013 | AE29: 2383.347374 | AF29: 2663.047046 | AG29: 2404.556072 | AH29: 2093.920405 | AI29: 1832.240153 | AJ29: 1652.524344 | AK29: 1387.016958 | AL29: 1137.455963 | AM29: 863.9753829 | AN29: 691.2759847 | AO29: 473.6077681 | AP29: 335.512035 | AQ29: 223.0899891 | AR29: 205.0705689 | AT29: 615.2117068 | AU29: 35.24152079 | AV29: 256.8963348 | AW29: 239.3553063 | AX29: 607.0790481
B30: 7 | C30: 20 | D30: 130102 | E30: EL PORVENIR | F30: 00005214 | G30: Puesto de salud | H30: VICTOR RAUL HAYA DE LA TORRE | I30: 5011.120925 | J30: 520.654295 | K30: 76.82724316 | L30: 80.11631911 | M30: 87.99617371 | N30: 93.59403099 | O30: 89.38358523 | P30: 92.7369428 | Q30: 99.83971554 | R30: 102.4089168 | S30: 100.6684902 | T30: 100.1159737 | U30: 100.8342451 | V30: 97.27051422 | W30: 99.61870897 | X30: 96.82850109 | Y30: 86.33068928 | Z30: 90.44693654 | AA30: 88.54075492 | AB30: 84.50738512 | AC30: 82.93271335 | AD30: 81.71717724 | AE30: 412.8955142 | AF30: 461.3512035 | AG30: 416.5697484 | AH30: 362.7546499 | AI30: 317.4206783 | AJ30: 286.2863786 | AK30: 240.2893873 | AL30: 197.0549781 | AM30: 149.6766958 | AN30: 119.7579322 | AO30: 82.04868709 | AP30: 58.12472648 | AQ30: 38.64852298 | AR30: 35.52680525 | AT30: 106.5804158 | AU30: 6.105306346 | AV30: 44.50519694 | AW30: 41.46635667 | AX30: 105.1714989
B31: 8 | C31: 21 | D31: 130102 | E31: EL PORVENIR | F31: 00005215 | G31: Puesto de salud | H31: INDOAMERICA | I31: 5966.207877 | J31: 631 | K31: 97 | L31: 100 | M31: 108 | N31: 114 | O31: 109 | P31: 103 | Q31: 118.6214442 | R31: 121.6739606 | S31: 119.6061269 | T31: 118.9496718 | U31: 119.8030635 | V31: 115.5689278 | W31: 118.3588621 | X31: 115.0437637 | Y31: 102.571116 | Z31: 107.4617068 | AA31: 105.1969365 | AB31: 100.404814 | AC31: 98.53391685 | AD31: 97.08971554 | AE31: 490.5689278 | AF31: 548.1400438 | AG31: 494.9343545 | AH31: 430.9956236 | AI31: 377.1334792 | AJ31: 340.1422319 | AK31: 285.4923414 | AL31: 234.1247265 | AM31: 177.833698 | AN31: 142.2866521 | AO31: 97.48358862 | AP31: 69.05908096 | AQ31: 45.9190372 | AR31: 42.21006565 | AT31: 126.6301969 | AU31: 7.253829322 | AV31: 52.87746171 | AW31: 49.26695842 | AX31: 124.9562363
B32: 9 | C32: 22 | D32: 130102 | E32: EL PORVENIR | F32: 00005216 | G32: Puesto de salud | H32: VIRGEN DEL CARMEN | I32: 8792.385714 | J32: 1589.855079 | K32: 234.5974747 | L32: 244.640903 | M32: 268.7026019 | N32: 285.7960589 | O32: 272.939162 | P32: 283.1788789 | Q32: 160.1389497 | R32: 164.2598468 | S32: 161.4682713 | T32: 160.5820569 | U32: 161.7341357 | V32: 156.0180525 | W32: 159.7844639 | X32: 155.309081 | Y32: 138.4710066 | Z32: 145.0733042 | AA32: 142.0158643 | AB32: 135.5464989 | AC32: 133.0207877 | AD32: 131.071116 | AE32: 662.2680525 | AF32: 739.9890591 | AG32: 668.1613786 | AH32: 581.8440919 | AI32: 509.1301969 | AJ32: 459.1920131 | AK32: 385.4146608 | AL32: 316.0683807 | AM32: 240.0754923 | AN32: 192.0869803 | AO32: 131.6028446 | AP32: 93.2297593 | AQ32: 61.99070022 | AR32: 56.98358862 | AT32: 170.9507659 | AU32: 9.792669584 | AV32: 71.3845733 | AW32: 66.51039387 | AX32: 168.690919
B33: 10 | C33: 23 | D33: 130102 | E33: EL PORVENIR | F33: 00012229 | G33: Puesto de salud | H33: BARRIO 1 | I33: 9968.616671 | J33: 2054.724986 | K33: 303.1932275 | L33: 316.1733308 | M33: 347.2706141 | N33: 369.362158 | O33: 352.7459346 | P33: 365.9797207 | Q33: 175.9551422 | R33: 180.4830416 | S33: 177.4157549 | T33: 176.4420131 | U33: 177.7078775 | V33: 171.4272429 | W33: 175.5656455 | X33: 170.6482495 | Y33: 152.1471554 | Z33: 159.4015317 | AA33: 156.0421225 | AB33: 148.9338074 | AC33: 146.1586433 | AD33: 144.0164114 | AE33: 727.6772429 | AF33: 813.0743982 | AG33: 734.1526258 | AH33: 639.3101751 | AI33: 559.4146608 | AJ33: 504.5443107 | AK33: 423.4803063 | AL33: 347.2850109 | AM33: 263.7866521 | AN33: 211.0585339 | AO33: 144.6006565 | AP33: 102.4376368 | AQ33: 68.11323851 | AR33: 62.61159737 | AT33: 187.8347921 | AU33: 10.75984683 | AV33: 78.43490153 | AW33: 73.07932166 | AX33: 185.3517505
B34: 11 | C34: 24 | D34: 130102 | E34: EL PORVENIR | F34: 00013242 | G34: Puesto de salud | H34: SUPERVIVENCIA | I34: 8302.355481 | J34: 344.0037306 | K34: 50.76085709 | L34: 52.93399656 | M34: 58.14032906 | N34: 61.83891333 | O34: 59.05701167 | P34: 61.27262292 | Q34: 176.9436543 | R34: 181.4969912 | S34: 178.4124726 | T34: 177.4332604 | U34: 178.7062363 | V34: 172.3903173 | W34: 176.5519694 | X34: 171.6069475 | Y34: 153.0019147 | Z34: 160.297046 | AA34: 156.9187637 | AB34: 149.7705142 | AC34: 146.9797593 | AD34: 144.8254923 | AE34: 731.7653173 | AF34: 817.6422319 | AG34: 738.2770788 | AH34: 642.9018053 | AI34: 562.5574398 | AJ34: 507.3788293 | AK34: 425.8594092 | AL34: 349.2360503 | AM34: 265.2685996 | AN34: 212.244256 | AO34: 145.4130197 | AP34: 103.0131291 | AQ34: 68.49589716 | AR34: 62.96334792 | AT34: 188.8900438 | AU34: 10.8202954 | AV34: 78.87554705 | AW34: 73.48987965 | AX34: 186.3930525
D35: 130103 | E35: FLORENCIA DE MORA (3) | I35: =SUM(K35:AR35) -> 73265.98173 | J35: 8283.981729 | K35: =SUM(K36:K39) -> 1222.376315 | L35: =SUM(L36:L39) -> 1274.707863 | M35: 1400.081978 | N35: 1489.147886 | O35: 1422.156686 | P35: 1475.511001 | Q35: 1311 | R35: 1374 | S35: 1395 | T35: 1340 | U35: 1373 | V35: 1302 | W35: 1336 | X35: 1324 | Y35: 1180 | Z35: 1173 | AA35: 1202 | AB35: 1168 | AC35: 1054 | AD35: 997 | AE35: 5509 | AF35: 6784 | AG35: 5798 | AH35: 5658 | AI35: 4795 | AJ35: 4559 | AK35: 3950 | AL35: 2979 | AM35: 2188 | AN35: 1773 | AO35: 1328 | AP35: 1005 | AQ35: 646 | AR35: 481 | AT35: 1136 | AU35: 66 | AV35: 480 | AW35: 420 | AX35: 2462
B36: 1 | C36: 25 | D36: 130103 | E36: FLORENCIA DE MORA | F36: 00005217 | G36: Hospital distrital DE FLORENCIA DE MORA | H36: EL ESFUERZO | I36: 41776.89136 | J36: 3635.282667 | K36: 536.4187871 | L36: 559.3835852 | M36: 614.4018557 | N36: 653.486895 | O36: 624.0889612 | P36: 647.5025827 | Q36: 769.5 | R36: 806.4782609 | S36: 818.8043478 | T36: 786.5217391 | U36: 805.8913043 | V36: 764.2173913 | W36: 784.173913 | X36: 777.1304348 | Y36: 692.6086957 | Z36: 688.5 | AA36: 705.5217391 | AB36: 685.5652174 | AC36: 618.6521739 | AD36: 585.1956522 | AE36: 3233.543478 | AF36: 3981.913043 | AG36: 3403.173913 | AH36: 3321 | AI36: 2814.456522 | AJ36: 2675.934783 | AK36: 2318.478261 | AL36: 1748.543478 | AM36: 1284.26087 | AN36: 1040.673913 | AO36: 779.4782609 | AP36: 589.8913043 | AQ36: 379.173913 | AR36: 282.326087 | AT36: 666.7826087 | AU36: 38.73913043 | AV36: 281.7391304 | AW36: 246.5217391 | AX36: 1445.086957
B37: 2 | C37: 26 | D37: 130103 | E37: FLORENCIA DE MORA | F37: 00017752 | G37: Puesto de salud | H37: LA CABAÑA | I37: 5362.941695 | J37: 1124.985173 | K37: 166.0017218 | L37: 173.1084752 | M37: 190.1345896 | N37: 202.2299598 | O37: 193.1323895 | P37: 200.3780371 | Q37: 85.5 | R37: 89.60869565 | S37: 90.97826087 | T37: 87.39130435 | U37: 89.54347826 | V37: 84.91304348 | W37: 87.13043478 | X37: 86.34782609 | Y37: 76.95652174 | Z37: 76.5 | AA37: 78.39130435 | AB37: 76.17391304 | AC37: 68.73913043 | AD37: 65.02173913 | AE37: 359.2826087 | AF37: 442.4347826 | AG37: 378.1304348 | AH37: 369 | AI37: 312.7173913 | AJ37: 297.326087 | AK37: 257.6086957 | AL37: 194.2826087 | AM37: 142.6956522 | AN37: 115.6304348 | AO37: 86.60869565 | AP37: 65.54347826 | AQ37: 42.13043478 | AR37: 31.36956522 | AT37: 74.08695652 | AU37: 4.304347826 | AV37: 31.30434783 | AW37: 27.39130435 | AX37: 160.5652174
B38: 3 | C38: 27 | D38: 130103 | E38: FLORENCIA DE MORA | F38: 00005218 | G38: Puesto de salud | H38: FLORENCIA DE MORA PARTE ALTA | I38: 11029.59497 | J38: 1664.234264 | K38: 245.5727951 | L38: 256.0860914 | M38: 281.2734838 | N38: 299.1666348 | O38: 285.7082456 | P38: 296.4270136 | Q38: 188.9444444 | R38: 198.0241546 | S38: 201.0507246 | T38: 193.1239936 | U38: 197.8800322 | V38: 187.647343 | W38: 192.547504 | X38: 190.8180354 | Y38: 170.0644122 | Z38: 169.0555556 | AA38: 173.2351047 | AB38: 168.3349436 | AC38: 151.9049919 | AD38: 143.6900161 | AE38: 793.9702093 | AF38: 977.726248 | AG38: 835.6215781 | AH38: 815.4444444 | AI38: 691.0668277 | AJ38: 657.0539452 | AK38: 569.2834138 | AL38: 429.3405797 | AM38: 315.3397746 | AN38: 255.5289855 | AO38: 191.394525 | AP38: 144.8429952 | AQ38: 93.10305958 | AR38: 69.32286634 | AT38: 163.7230274 | AU38: 9.512077295 | AV38: 69.17874396 | AW38: 60.53140097 | AX38: 354.8293076
B39: 4 | C39: 28 | D39: 130103 | E39: FLORENCIA DE MORA | F39: 00005219 | G39: Puesto de salud | H39: SANTO TORIBIO DE MOGROVEJO | I39: 15096.5537 | J39: 1859.479625 | K39: 274.3830113 | L39: 286.1297111 | M39: 314.272049 | N39: 334.2643964 | O39: 319.2270901 | P39: 331.2033671 | Q39: 267.0555556 | R39: 279.8888889 | S39: 284.1666667 | T39: 272.962963 | U39: 279.6851852 | V39: 265.2222222 | W39: 272.1481481 | X39: 269.7037037 | Y39: 240.3703704 | Z39: 238.9444444 | AA39: 244.8518519 | AB39: 237.9259259 | AC39: 214.7037037 | AD39: 203.0925926 | AE39: 1122.203704 | AF39: 1381.925926 | AG39: 1181.074074 | AH39: 1152.555556 | AI39: 976.7592593 | AJ39: 928.6851852 | AK39: 804.6296296 | AL39: 606.8333333 | AM39: 445.7037037 | AN39: 361.1666667 | AO39: 270.5185185 | AP39: 204.7222222 | AQ39: 131.5925926 | AR39: 97.98148148 | AT39: 231.4074074 | AU39: 13.44444444 | AV39: 97.77777778 | AW39: 85.55555556 | AX39: 501.5185185
D40: 130104 | E40: HUANCHACO (4) | I40: =SUM(K40:AR40) -> 74830.02258 | J40: 7771.022575 | K40: =SUM(K41:K47) -> 1148.655443 | L40: =SUM(L41:L47) -> 1197.292902 | M40: =SUM(M41:M47) -> 1313.233786 | N40: 1395.204706 | O40: 1334.062942 | P40: 1382.572795 | Q40: 1447 | R40: 1480 | S40: 1454 | T40: 1475 | U40: 1490 | V40: 1357 | W40: 1489 | X40: 1441 | Y40: 1295 | Z40: 1317 | AA40: 1416 | AB40: 1291 | AC40: 1284 | AD40: 1273 | AE40: 6333 | AF40: 7279 | AG40: 6316 | AH40: 5476 | AI40: 4920 | AJ40: 4183 | AK40: 3458 | AL40: 2772 | AM40: 2232 | AN40: 1640 | AO40: 1176 | AP40: 808 | AQ40: 526 | AR40: 431 | AT40: 1369 | AU40: 100 | AV40: 624 | AW40: 534 | AX40: 2242
B41: 1 | C41: 29 | D41: 130104 | E41: HUANCHACO | F41: 00005221 | G41: Centro de salud con camas de internamiento | H41: HUANCHACO | I41: 13771.59142 | J41: 1422.501913 | K41: 209.9030036 | L41: 218.889229 | M41: 240.4181175 | N41: 255.7122632 | O41: 244.2087239 | P41: 253.3705759 | Q41: 266.4688188 | R41: 272.5458547 | S41: 267.757887 | T41: 271.6250917 | U41: 274.3873808 | V41: 249.8950844 | W41: 274.2032282 | X41: 265.3639032 | Y41: 238.4776229 | Z41: 242.5289802 | AA41: 260.760088 | AB41: 237.7410125 | AC41: 236.4519442 | AD41: 234.4262656 | AE41: 1166.238445 | AF41: 1340.446809 | AG41: 1163.10785 | AH41: 1008.419663 | AI41: 906.0308144 | AJ41: 770.3103448 | AK41: 636.7997065 | AL41: 510.4710198 | AM41: 411.0286134 | AN41: 302.0102715 | AO41: 216.5634629 | AP41: 148.7953045 | AQ41: 96.86426999 | AR41: 79.36977256 | AT41: 252.1049156 | AU41: 18.41526045 | AV41: 114.9112252 | AW41: 98.33749083 | AX41: 412.8701394
B42: 2 | C42: 30 | D42: 130104 | E42: HUANCHACO | F42: 00005222 | G42: Centro de salud | H42: EL MILAGRO | I42: 22233.10946 | J42: 3291.278936 | K42: 485.65793 | L42: 506.4495887 | M42: 556.2615267 | N42: 591.6479816 | O42: 565.0319495 | P42: 586.2299598 | Q42: 408.7270726 | R42: 418.0484226 | S42: 410.7043287 | T42: 416.6360968 | U42: 420.8730741 | V42: 383.3052091 | W42: 420.590609 | X42: 407.0322817 | Y42: 365.7923698 | Z42: 372.0066031 | AA42: 399.970653 | AB42: 364.6625092 | AC42: 362.6852531 | AD42: 359.5781365 | AE42: 1788.851798 | AF42: 2056.06383 | AG42: 1784.04989 | AH42: 1546.779164 | AI42: 1389.72854 | AJ42: 1181.551724 | AK42: 976.7644901 | AL42: 782.9933969 | AM42: 630.4622157 | AN42: 463.2428467 | AO42: 332.1790169 | AP42: 228.2318415 | AQ42: 148.5766691 | AR42: 121.7424798 | AT42: 386.6947909 | AU42: 28.24651504 | AV42: 176.2582539 | AW42: 150.8363903 | AX42: 633.2868672
B43: 3 | C43: 31 | D43: 130104 | E43: HUANCHACO | F43: 00020157 | G43: Puesto de salud | H43: 1° DE MAYO- SECTOR 10 EL MILAGRO | I43: 11528.90315 | J43: 705 | K43: 106 | L43: 110 | M43: 119 | N43: 125 | O43: 121 | P43: 124 | Q43: 233.5583272 | R43: 238.8848129 | S43: 234.6881878 | T43: 238.0777696 | U43: 240.4988995 | V43: 219.0315481 | W43: 240.3374908 | X43: 232.5898753 | Y43: 209.0242113 | Z43: 212.5752018 | AA43: 228.5546588 | AB43: 208.3785767 | AC43: 207.2487161 | AD43: 205.4732208 | AE43: 1022.201027 | AF43: 1174.893617 | AG43: 1019.45708 | AH43: 883.8738078 | AI43: 794.1305943 | AJ43: 675.1724138 | AK43: 558.1511372 | AL43: 447.4247982 | AM43: 360.2641233 | AN43: 264.7101981 | AO43: 189.8165811 | AP43: 130.4181952 | AQ43: 84.90095378 | AR43: 69.56713133 | AT43: 220.9684519 | AU43: 16.14086574 | AV43: 100.7190022 | AW43: 86.19222304 | AX43: 361.8782098
B44: 4 | C44: 32 | D44: 130104 | E44: HUANCHACO | F44: 00011629 | G44: Puesto de salud | H44: HUANCHAQUITO | I44: 4544.561109 | J44: 362.5985269 | K44: 53.5046872 | L44: 55.79529367 | M44: 61.28304955 | N44: 65.1815573 | O44: 62.24928257 | P44: 64.58465659 | Q44: 90.23844461 | R44: 92.29640499 | S44: 90.67498166 | T44: 91.98459281 | U44: 92.92002935 | V44: 84.62582539 | W44: 92.85766691 | X44: 89.86426999 | Y44: 80.75935437 | Z44: 82.13132795 | AA44: 88.3052091 | AB44: 80.50990462 | AC44: 80.07336757 | AD44: 79.38738078 | AE44: 394.9413059 | AF44: 453.9361702 | AG44: 393.8811445 | AH44: 341.4966985 | AI44: 306.8231842 | AJ44: 260.862069 | AK44: 215.649303 | AL44: 172.868672 | AM44: 139.1929567 | AN44: 102.2743947 | AO44: 73.3382245 | AP44: 50.38884813 | AQ44: 32.80264123 | AR44: 26.87820983 | AT44: 85.37417461 | AU44: 6.23624358 | AV44: 38.91415994 | AW44: 33.30154072 | AX44: 139.8165811
B45: 5 | C45: 33 | D45: 130104 | E45: HUANCHACO | F45: 00011007 | G45: Puesto de salud | H45: EL TROPICO | I45: 6160.008875 | J45: 502.0594988 | K45: 74.08341305 | L45: 77.255022 | M45: 84.85345322 | N45: 90.25138703 | O45: 86.19131433 | P45: 89.42490913 | Q45: 122.0873074 | R45: 124.8716067 | S45: 122.6779164 | T45: 124.4497432 | U45: 125.7153338 | V45: 114.4937638 | W45: 125.6309611 | X45: 121.5810712 | Y45: 109.2626559 | Z45: 111.1188555 | AA45: 119.4717535 | AB45: 108.9251651 | AC45: 108.3345561 | AD45: 107.4064563 | AE45: 534.3323551 | AF45: 614.1489362 | AG45: 532.8980191 | AH45: 462.024945 | AI45: 415.1137197 | AJ45: 352.9310345 | AK45: 291.7608217 | AL45: 233.8811445 | AM45: 188.3198826 | AN45: 138.3712399 | AO45: 99.22230374 | AP45: 68.17314747 | AQ45: 44.38004402 | AR45: 36.36463683 | AT45: 115.5062362 | AU45: 8.437270726 | AV45: 52.64856933 | AW45: 45.05502568 | AX45: 189.1636097
B46: 6 | C46: 34 | D46: 130104 | E46: HUANCHACO | F46: 00012228 | G46: Puesto de salud | H46: VICTOR RAUL HAYA DE LA TORRE | I46: 11027.26635 | J46: 1236.553951 | K46: 182.4647025 | L46: 190.2762579 | M46: 208.9909126 | N46: 222.2858236 | O46: 212.2860149 | P46: 220.2502391 | Q46: 211.2641233 | R46: 216.0821717 | S46: 212.2861335 | T46: 215.3521643 | U46: 217.5421864 | V46: 198.1239912 | W46: 217.3961849 | X46: 210.3881145 | Y46: 189.0719002 | Z46: 192.2839325 | AA46: 206.7380778 | AB46: 188.4878944 | AC46: 187.4658841 | AD46: 185.8598679 | AE46: 924.6272927 | AF46: 1062.744681 | AG46: 922.1452678 | AH46: 799.5040352 | AI46: 718.3272194 | AJ46: 610.7241379 | AK46: 504.8730741 | AL46: 404.7160675 | AM46: 325.8752751 | AN46: 239.4424065 | AO46: 171.6977256 | AP46: 117.9691856 | AQ46: 76.79677183 | AR46: 62.92663243 | AT46: 199.8760088 | AU46: 14.60014674 | AV46: 91.10491563 | AW46: 77.96478357 | AX46: 327.3352898
B47: 7 | C47: 35 | D47: 130104 | E47: HUANCHACO | F47: 00005223 | G47: Puesto de salud | H47: VILLA DEL MAR | I47: 5564.582207 | J47: 251.0297494 | K47: 37.04170652 | L47: 38.627511 | M47: 42.42672661 | N47: 45.12569351 | O47: 43.09565716 | P47: 44.71245456 | Q47: 114.6559061 | R47: 117.2707263 | S47: 115.2105649 | T47: 116.8745415 | U47: 118.0630961 | V47: 107.5245781 | W47: 117.9838591 | X47: 114.1804842 | Y47: 102.6118855 | Z47: 104.355099 | AA47: 112.1995598 | AB47: 102.2949376 | AC47: 101.7402788 | AD47: 100.868672 | AE47: 501.807777 | AF47: 576.7659574 | AG47: 500.4607483 | AH47: 433.9016875 | AI47: 389.8459281 | AJ47: 331.4482759 | AK47: 274.0014674 | AL47: 219.644901 | AM47: 176.8569332 | AN47: 129.9486427 | AO47: 93.18268525 | AP47: 64.02347762 | AQ47: 41.67865004 | AR47: 34.1511372 | AT47: 108.4754219 | AU47: 7.923697726 | AV47: 49.44387381 | AW47: 42.31254585 | AX47: 177.649303
D48: 130105 | E48: LA ESPERANZA (5) | I48: =SUM(K48:AR48) -> 194846.8853 | J48: 19125.88531 | K48: =SUM(K49:K55) -> 2844.864932 | L48: =SUM(L49:L55) -> 2958.490721 | M48: 3229.608858 | N48: 3421.849818 | O48: 3277.837 | P48: 3393.233977 | Q48: 3515 | R48: 3485 | S48: 3640 | T48: 3634 | U48: 3543 | V48: 3462 | W48: 3578 | X48: 3444 | Y48: 3043 | Z48: 3038 | AA48: 3184 | AB48: 2995 | AC48: 2810 | AD48: 2840 | AE48: 14797 | AF48: 18287 | AG48: 16455 | AH48: 14674 | AI48: 12788 | AJ48: 11438 | AK48: 9923 | AL48: 8788 | AM48: 7063 | AN48: 5515 | AO48: 3907 | AP48: 2779 | AQ48: 1689 | AR48: 1407 | AT48: 3197 | AU48: 204 | AV48: 1449 | AW48: 1260 | AX48: 3780
B49: 1 | C49: 36 | D49: 130105 | E49: LA ESPERANZA | F49: 00005226 | G49: Hospital distrital DE LA ESPERANZA | H49: JERUSALEN | I49: 70034.75195 | J49: 4780 | K49: 728 | L49: 751 | M49: 805 | N49: 843 | O49: 815 | P49: 838 | Q49: 1305.310424 | R49: 1294.169795 | S49: 1351.729714 | T49: 1349.501588 | U49: 1315.708345 | V49: 1285.628646 | W49: 1328.705746 | X49: 1278.944268 | Y49: 1130.031187 | Z49: 1128.174415 | AA49: 1182.392146 | AB49: 1112.20618 | AC49: 1043.505631 | AD49: 1054.64626 | AE49: 5494.92983 | AF49: 6790.956396 | AG49: 6110.635287 | AH49: 5449.253249 | AI49: 4748.879007 | AJ49: 4247.550679 | AK49: 3684.948888 | AL49: 3263.461738 | AM49: 2622.875541 | AN49: 2048.019059 | AO49: 1450.881317 | AP49: 1031.993647 | AQ49: 627.2174415 | AR49: 522.4955241 | AT49: 1187.219752 | AU49: 75.75628068 | AV49: 538.0924054 | AW49: 467.9064395 | AX49: 1403.719319
B50: 2 | C50: 37 | D50: 130105 | E50: LA ESPERANZA | F50: 00005230 | G50: Centro de salud con camas de internamiento | H50: WICHANZAO | I50: 40570.0769 | J50: 4695.186053 | K50: 692.8171035 | L50: 722.4775206 | M50: 793.5369237 | N50: 844.0176009 | O50: 806.0484025 | P50: 836.288502 | Q50: 717.6162287 | R50: 711.4914814 | S50: 743.1360092 | T50: 741.9110598 | U50: 723.3326595 | V50: 706.7958418 | W50: 730.4781981 | X50: 703.1209934 | Y50: 621.2535374 | Z50: 620.2327462 | AA50: 650.0398498 | AB50: 611.4539417 | AC50: 573.6846665 | AD50: 579.8094138 | AE50: 3020.929541 | AF50: 3733.441813 | AG50: 3359.42391 | AH50: 2995.818077 | AI50: 2610.775628 | AJ50: 2335.161998 | AK50: 2025.862258 | AL50: 1794.142651 | AM50: 1441.969679 | AN50: 1125.932717 | AO50: 797.6462605 | AP50: 567.3557609 | AQ50: 344.8232746 | AR50: 287.2506497 | AT50: 652.693907 | AU50: 41.64828184 | AV50: 295.825296 | AW50: 257.2393878 | AX50: 771.7181634
B51: 3 | C51: 38 | D51: 130105 | E51: LA ESPERANZA | F51: 00005229 | G51: Centro de salud | H51: BELLAVISTA | I51: 19447.39525 | J51: 2296.457337 | K51: 338.8630189 | L51: 353.3701932 | M51: 388.1259805 | N51: 412.8165296 | O51: 394.2454563 | P51: 409.0361584 | Q51: 343.0753682 | R51: 340.1472712 | S51: 355.2757725 | T51: 354.690153 | U51: 345.8082587 | V51: 337.9023968 | W51: 349.2243719 | X51: 336.1455386 | Y51: 297.0066416 | Z51: 296.5186255 | AA51: 310.7686977 | AB51: 292.3216864 | AC51: 274.2650881 | AD51: 277.1931851 | AE51: 1444.235056 | AF51: 1784.870344 | AG51: 1606.061219 | AH51: 1432.229859 | AI51: 1248.150159 | AJ51: 1116.385793 | AK51: 968.5168929 | AL51: 857.7372221 | AM51: 689.3716431 | AN51: 538.2818366 | AO51: 381.335836 | AP51: 271.2393878 | AQ51: 164.8518625 | AR51: 137.3277505 | AT51: 312.0375397 | AU51: 19.91105977 | AV51: 141.4270863 | AW51: 122.9800751 | AX51: 368.9402252
B52: 4 | C52: 39 | D52: 130105 | E52: LA ESPERANZA | F52: 00005227 | G52: Puesto de salud | H52: SAN MARTIN | I52: 13554.98223 | J52: 1478.286302 | K52: 218.134494 | L52: 227.4731203 | M52: 249.8462789 | N52: 265.7401951 | O52: 253.7855366 | P52: 263.3066769 | Q52: 241.57378 | R52: 239.5119838 | S52: 250.1645972 | T52: 249.7522379 | U52: 243.498123 | V52: 237.9312735 | W52: 245.9035518 | X52: 236.6941958 | Y52: 209.1348542 | Z52: 208.7912215 | AA52: 218.825296 | AB52: 205.8359804 | AC52: 193.1215709 | AD52: 195.183367 | AE52: 1016.946578 | AF52: 1256.802195 | AG52: 1130.895178 | AH52: 1008.493214 | AI52: 878.8749639 | AJ52: 786.094138 | AK52: 681.9734334 | AL52: 603.9688132 | AM52: 485.4155357 | AN52: 379.0268553 | AO52: 268.5145827 | AP52: 190.9910482 | AQ52: 116.0791221 | AR52: 96.69823852 | AT52: 219.718741 | AU52: 14.02021369 | AV52: 99.5847531 | AW52: 86.59543748 | AX52: 259.7863124
B53: 5 | C53: 40 | D53: 130105 | E53: LA ESPERANZA | F53: 00005228 | G53: Puesto de salud | H53: PUEBLO LIBRE | I53: 14556.74161 | J53: 2175.591161 | K53: 321.0281232 | L53: 334.771762 | M53: 367.6982973 | N53: 391.0893438 | O53: 373.4956954 | P53: 387.5079395 | Q53: 247.6638753 | R53: 245.5501011 | S53: 256.4712677 | T53: 256.0485129 | U53: 249.6367312 | V53: 243.9295409 | W53: 252.102801 | X53: 242.6612763 | Y53: 214.4071614 | Z53: 214.0548657 | AA53: 224.3419001 | AB53: 211.0251227 | AC53: 197.9901819 | AD53: 200.1039561 | AE53: 1042.583887 | AF53: 1288.486284 | AG53: 1159.40514 | AH53: 1033.917413 | AI53: 901.0314756 | AJ53: 805.9116373 | AK53: 699.166041 | AL53: 619.1949177 | AM53: 497.6529021 | AN53: 388.5821542 | AO53: 275.2838579 | AP53: 195.8059486 | AQ53: 119.0054866 | AR53: 99.13600924 | AT53: 225.2578689 | AU53: 14.37366445 | AV53: 102.0952931 | AW53: 88.77851574 | AX53: 266.3355472
B54: 6 | C54: 41 | D54: 130105 | E54: LA ESPERANZA | F54: 00007115 | G54: Puesto de salud | H54: MANUEL AREVALO | I54: 19383.88654 | J54: 2435.918309 | K54: 359.4417448 | L54: 374.8299216 | M54: 411.6963842 | N54: 437.8863593 | O54: 418.187488 | P54: 433.8764109 | Q54: 339.0153046 | R54: 336.1218597 | S54: 351.0713254 | T54: 350.4926364 | U54: 341.7158533 | V54: 333.9035518 | W54: 345.0915391 | X54: 332.1674848 | Y54: 293.4917701 | Z54: 293.0095293 | AA54: 307.0909616 | AB54: 288.8622582 | AC54: 271.0193474 | AD54: 273.9127924 | AE54: 1427.143517 | AF54: 1763.747618 | AG54: 1587.054577 | AH54: 1415.280393 | AI54: 1233.379151 | AJ54: 1103.174126 | AK54: 957.0551545 | AL54: 847.5864857 | AM54: 681.2133988 | AN54: 531.9116373 | AO54: 376.8229859 | AP54: 268.0294542 | AQ54: 162.9009529 | AR54: 135.70257 | AT54: 308.3447878 | AU54: 19.67542593 | AV54: 139.753393 | AW54: 121.5246896 | AX54: 364.5740687
B55: 7 | C55: 42 | D55: 130105 | E55: LA ESPERANZA | F55: 00005225 | G55: Centro de salud | H55: SANTISIMO SACRAMENTO | I55: 17299.05082 | J55: 1264.446145 | K55: 186.5804477 | L55: 194.5682036 | M55: 213.7049933 | N55: 227.2997896 | O55: 217.0744213 | P55: 225.2182896 | Q55: 320.7450188 | R55: 318.0075079 | S55: 332.1513139 | T55: 331.6038117 | U55: 323.3000289 | V55: 315.9087496 | W55: 326.4937915 | X55: 314.2662431 | Y55: 277.6748484 | Z55: 277.2185966 | AA55: 290.5411493 | AB55: 273.2948311 | AC55: 256.4135143 | AD55: 259.1510251 | AE55: 1350.231591 | AF55: 1668.695351 | AG55: 1501.52469 | AH55: 1339.007797 | AI55: 1166.909616 | AJ55: 1043.721629 | AK55: 905.4773318 | AL55: 801.9081721 | AM55: 644.5012995 | AN55: 503.2457407 | AO55: 356.5151603 | AP55: 253.5847531 | AQ55: 154.1218597 | AR55: 128.3892579 | AT55: 291.727404 | AU55: 18.61507364 | AV55: 132.221773 | AW55: 114.9754548 | AX55: 344.9263644
D56: 130106 | E56: LAREDO (6) | I56: =SUM(K56:AR56) -> 42776.50201 | J56: 4199.502009 | K56: =SUM(K57:K59) -> 619.9481538 | L56: =SUM(L57:L59) -> 644.7336905 | M56: =SUM(M57:M59) -> 712.1140233 | N56: 753.2978764 | O56: 722.5691601 | P56: 746.8391046 | Q56: 693 | R56: 729 | S56: 727 | T56: 700 | U56: 774 | V56: 719 | W56: 750 | X56: 724 | Y56: 695 | Z56: 688 | AA56: 683 | AB56: 628 | AC56: 612 | AD56: 565 | AE56: 3199 | AF56: 3583 | AG56: 3336 | AH56: 3231 | AI56: 2779 | AJ56: 2446 | AK56: 2214 | AL56: 2135 | AM56: 1841 | AN56: 1436 | AO56: 986 | AP56: 729 | AQ56: 516 | AR56: 459 | AT56: 665 | AU56: 47 | AV56: 300 | AW56: 274 | AX56: 907
B57: 1 | C57: 43 | D57: 130106 | E57: LAREDO | F57: 00005231 | G57: Hospital distrital DE LAREDO | H57: LAREDO | I57: 36916.98885 | J57: 3923.502009 | K57: 578.9481538 | L57: 603.7336905 | M57: 663.1140233 | N57: 705.2978764 | O57: 673.5691601 | P57: 698.8391046 | Q57: 592.6973684 | R57: 623.4868421 | S57: 621.7763158 | T57: 598.6842105 | U57: 661.9736842 | V57: 614.9342105 | W57: 641.4473684 | X57: 619.2105263 | Y57: 594.4078947 | Z57: 588.4210526 | AA57: 584.1447368 | AB57: 537.1052632 | AC57: 523.4210526 | AD57: 483.2236842 | AE57: 2735.986842 | AF57: 3064.407895 | AG57: 2853.157895 | AH57: 2763.355263 | AI57: 2376.776316 | AJ57: 2091.973684 | AK57: 1893.552632 | AL57: 1825.986842 | AM57: 1574.539474 | AN57: 1228.157895 | AO57: 843.2894737 | AP57: 623.4868421 | AQ57: 441.3157895 | AR57: 392.5657895 | AT57: 568.75 | AU57: 40.19736842 | AV57: 256.5789474 | AW57: 234.3421053 | AX57: 775.7236842
B58: 2 | C58: 44 | D58: 130106 | E58: LAREDO | F58: 00005232 | G58: Puesto de salud | H58: MENOCUCHO | I58: 4619.131579 | J58: 220 | K58: 33 | L58: 33 | M58: 39 | N58: 38 | O58: 39 | P58: 38 | Q58: 79.02631579 | R58: 83.13157895 | S58: 82.90350877 | T58: 79.8245614 | U58: 88.26315789 | V58: 81.99122807 | W58: 85.52631579 | X58: 82.56140351 | Y58: 79.25438596 | Z58: 78.45614035 | AA58: 77.88596491 | AB58: 71.61403509 | AC58: 69.78947368 | AD58: 64.42982456 | AE58: 364.7982456 | AF58: 408.5877193 | AG58: 380.4210526 | AH58: 368.4473684 | AI58: 316.9035088 | AJ58: 278.9298246 | AK58: 252.4736842 | AL58: 243.4649123 | AM58: 209.9385965 | AN58: 163.754386 | AO58: 112.4385965 | AP58: 83.13157895 | AQ58: 58.84210526 | AR58: 52.34210526 | AT58: 75.83333333 | AU58: 5.359649123 | AV58: 34.21052632 | AW58: 31.24561404 | AX58: 103.4298246
B59: 3 | C59: 45 | D59: 130106 | E59: LAREDO | F59: 00005233 | G59: Puesto de salud | H59: SANTO DOMINGO | I59: 1240.381579 | J59: 56 | K59: 8 | L59: 8 | M59: 10 | N59: 10 | O59: 10 | P59: 10 | Q59: 21.27631579 | R59: 22.38157895 | S59: 22.32017544 | T59: 21.49122807 | U59: 23.76315789 | V59: 22.0745614 | W59: 23.02631579 | X59: 22.22807018 | Y59: 21.3377193 | Z59: 21.12280702 | AA59: 20.96929825 | AB59: 19.28070175 | AC59: 18.78947368 | AD59: 17.34649123 | AE59: 98.21491228 | AF59: 110.004386 | AG59: 102.4210526 | AH59: 99.19736842 | AI59: 85.32017544 | AJ59: 75.09649123 | AK59: 67.97368421 | AL59: 65.54824561 | AM59: 56.52192982 | AN59: 44.0877193 | AO59: 30.27192982 | AP59: 22.38157895 | AQ59: 15.84210526 | AR59: 14.09210526 | AT59: 20.41666667 | AU59: 1.442982456 | AV59: 9.210526316 | AW59: 8.412280702 | AX59: 27.84649123
D60: 130107 | E60: MOCHE (7) | I60: =SUM(K60:AR60) -> 44011.49455 | J60: 3960.494548 | K60: =SUM(K61:K66) -> 586.4264396 | L60: =SUM(L61:L66) -> 610.8656973 | M60: =SUM(M61:M66) -> 668.8333652 | N60: 710.6200497 | O60: 679.4551368 | P60: 704.2938588 | Q60: 790 | R60: 870 | S60: 866 | T60: 851 | U60: 846 | V60: 784 | W60: 819 | X60: 748 | Y60: 735 | Z60: 711 | AA60: 688 | AB60: 749 | AC60: 660 | AD60: 656 | AE60: 3325 | AF60: 4098 | AG60: 3621 | AH60: 3441 | AI60: 3113 | AJ60: 2612 | AK60: 2189 | AL60: 1926 | AM60: 1548 | AN60: 1150 | AO60: 887 | AP60: 618 | AQ60: 395 | AR60: 355 | AT60: 809 | AU60: 65 | AV60: 359 | AW60: 307 | AX60: 1130
B61: 1 | C61: 46 | D61: 130107 | E61: MOCHE | F61: 00007152 | G61: Hospital | H61: ALTO MOCHE-WALTER CRUZ VILCA | I61: 12094.31613 | J61: 725 | K61: 109 | L61: 113 | M61: 122 | N61: 129 | O61: 124 | P61: 128 | Q61: 224.2580645 | R61: 246.9677419 | S61: 245.8322581 | T61: 241.5741935 | U61: 240.1548387 | V61: 222.5548387 | W61: 232.4903226 | X61: 212.3354839 | Y61: 208.6451613 | Z61: 201.8322581 | AA61: 195.3032258 | AB61: 212.6193548 | AC61: 187.3548387 | AD61: 186.2193548 | AE61: 943.8709677 | AF61: 1163.303226 | AG61: 1027.896774 | AH61: 976.8 | AI61: 883.6903226 | AJ61: 741.4709677 | AK61: 621.3935484 | AL61: 546.7354839 | AM61: 439.4322581 | AN61: 326.4516129 | AO61: 251.7935484 | AP61: 175.4322581 | AQ61: 112.1290323 | AR61: 100.7741935 | AT61: 229.6516129 | AU61: 18.4516129 | AV61: 101.9096774 | AW61: 87.1483871 | AX61: 320.7741935
B62: 2 | C62: 47 | D62: 130107 | E62: MOCHE | F62: 00005234 | G62: Centro de salud con camas de internamiento | H62: SANTA LUCIA DE MOCHE | I62: 14028.0014 | J62: 1366.717524 | K62: 201.6715133 | L62: 210.3053377 | M62: 230.989956 | N62: 245.6843314 | O62: 234.6319112 | P62: 243.4344748 | Q62: 249.7419355 | R62: 275.0322581 | S62: 273.7677419 | T62: 269.0258065 | U62: 267.4451613 | V62: 247.8451613 | W62: 258.9096774 | X62: 236.4645161 | Y62: 232.3548387 | Z62: 224.7677419 | AA62: 217.4967742 | AB62: 236.7806452 | AC62: 208.6451613 | AD62: 207.3806452 | AE62: 1051.129032 | AF62: 1295.496774 | AG62: 1144.703226 | AH62: 1087.8 | AI62: 984.1096774 | AJ62: 825.7290323 | AK62: 692.0064516 | AL62: 608.8645161 | AM62: 489.3677419 | AN62: 363.5483871 | AO62: 280.4064516 | AP62: 195.3677419 | AQ62: 124.8709677 | AR62: 112.2258065 | AT62: 255.7483871 | AU62: 20.5483871 | AV62: 113.4903226 | AW62: 97.0516129 | AX62: 357.2258065
B63: 3 | C63: 48 | D63: 130107 | E63: MOCHE | F63: 00005235 | G63: Centro de salud | H63: ALTO MOCHE | I63: 8468.792147 | J63: 613.6282763 | K63: 90.54639372 | L63: 94.42280467 | M63: 103.7097762 | N63: 110.3072508 | O63: 105.3449397 | P63: 109.2971112 | Q63: 154.9419355 | R63: 170.6322581 | S63: 169.8477419 | T63: 166.9058065 | U63: 165.9251613 | V63: 153.7651613 | W63: 160.6296774 | X63: 146.7045161 | Y63: 144.1548387 | Z63: 139.4477419 | AA63: 134.9367742 | AB63: 146.9006452 | AC63: 129.4451613 | AD63: 128.6606452 | AE63: 652.1290323 | AF63: 803.7367742 | AG63: 710.1832258 | AH63: 674.88 | AI63: 610.5496774 | AJ63: 512.2890323 | AK63: 429.3264516 | AL63: 377.7445161 | AM63: 303.6077419 | AN63: 225.5483871 | AO63: 173.9664516 | AP63: 121.2077419 | AQ63: 77.47096774 | AR63: 69.62580645 | AT63: 158.6683871 | AU63: 12.7483871 | AV63: 70.41032258 | AW63: 60.2116129 | AX63: 221.6258065
B64: 4 | C64: 49 | D64: 130107 | E64: MOCHE | F64: 00005236 | G64: Puesto de salud | H64: ELIO JACOBO CAFFO | I64: 2913.450097 | J64: 381.1933231 | K64: 56.24851731 | L64: 58.65659078 | M64: 64.42577004 | N64: 68.52420126 | O64: 65.44155347 | P64: 67.89669026 | Q64: 49.9483871 | R64: 55.00645161 | S64: 54.75354839 | T64: 53.80516129 | U64: 53.48903226 | V64: 49.56903226 | W64: 51.78193548 | X64: 47.29290323 | Y64: 46.47096774 | Z64: 44.95354839 | AA64: 43.49935484 | AB64: 47.35612903 | AC64: 41.72903226 | AD64: 41.47612903 | AE64: 210.2258065 | AF64: 259.0993548 | AG64: 228.9406452 | AH64: 217.56 | AI64: 196.8219355 | AJ64: 165.1458065 | AK64: 138.4012903 | AL64: 121.7729032 | AM64: 97.87354839 | AN64: 72.70967742 | AO64: 56.08129032 | AP64: 39.07354839 | AQ64: 24.97419355 | AR64: 22.44516129 | AT64: 51.14967742 | AU64: 4.109677419 | AV64: 22.69806452 | AW64: 19.41032258 | AX64: 71.44516129
B65: 5 | C65: 50 | D65: 130107 | E65: MOCHE | F65: 00005237 | G65: Puesto de salud | H65: SAN PEDRO - DELICIAS | I65: 5100.37862 | J65: 604.3308781 | K65: 89.17447867 | L65: 92.99215611 | M65: 102.1384159 | N65: 108.6359288 | O65: 103.7488043 | P65: 107.6410943 | Q65: 88.68387097 | R65: 97.66451613 | S65: 97.21548387 | T65: 95.5316129 | U65: 94.97032258 | V65: 88.01032258 | W65: 91.93935484 | X65: 83.96903226 | Y65: 82.50967742 | Z65: 79.81548387 | AA65: 77.23354839 | AB65: 84.08129032 | AC65: 74.09032258 | AD65: 73.64129032 | AE65: 373.2580645 | AF65: 460.0335484 | AG65: 406.4864516 | AH65: 386.28 | AI65: 349.4593548 | AJ65: 293.2180645 | AK65: 245.7329032 | AL65: 216.2090323 | AM65: 173.7754839 | AN65: 129.0967742 | AO65: 99.57290323 | AP65: 69.37548387 | AQ65: 44.34193548 | AR65: 39.8516129 | AT65: 90.81677419 | AU65: 7.296774194 | AV65: 40.30064516 | AW65: 34.46322581 | AX65: 126.8516129
B66: 6 | C66: 51 | D66: 130107 | E66: MOCHE | F66: 00007151 | G66: Puesto de salud | H66: CURVA DE SUN | I66: 1406.556159 | J66: 269.6245456 | K66: 39.78553664 | L66: 41.48880811 | M66: 45.5694471 | N66: 48.46833748 | O66: 46.28792807 | P66: 48.02448823 | Q66: 22.42580645 | R66: 24.69677419 | S66: 24.58322581 | T66: 24.15741935 | U66: 24.01548387 | V66: 22.25548387 | W66: 23.24903226 | X66: 21.23354839 | Y66: 20.86451613 | Z66: 20.18322581 | AA66: 19.53032258 | AB66: 21.26193548 | AC66: 18.73548387 | AD66: 18.62193548 | AE66: 94.38709677 | AF66: 116.3303226 | AG66: 102.7896774 | AH66: 97.68 | AI66: 88.36903226 | AJ66: 74.14709677 | AK66: 62.13935484 | AL66: 54.67354839 | AM66: 43.94322581 | AN66: 32.64516129 | AO66: 25.17935484 | AP66: 17.54322581 | AQ66: 11.21290323 | AR66: 10.07741935 | AT66: 22.96516129 | AU66: 1.84516129 | AV66: 10.19096774 | AW66: 8.71483871 | AX66: 32.07741935
D67: 130108 | E67: POROTO (8) | I67: =SUM(K67:AR67) -> 4713.680314 | J67: 427.6803138 | K67: =+K68 -> 63.1080926 | L67: =+L68 -> 65.80983356 | M67: =+M68 -> 72.28257126 | N67: =+N68 -> 76.88081117 | O67: 73.42223073 | P67: 76.17677444 | Q67: 85 | R67: 71 | S67: 80 | T67: 78 | U67: 79 | V67: 91 | W67: 84 | X67: 83 | Y67: 69 | Z67: 77 | AA67: 87 | AB67: 75 | AC67: 74 | AD67: 89 | AE67: 347 | AF67: 377 | AG67: 363 | AH67: 334 | AI67: 327 | AJ67: 300 | AK67: 276 | AL67: 212 | AM67: 159 | AN67: 161 | AO67: 105 | AP67: 76 | AQ67: 66 | AR67: 61 | AT67: 60 | AU67: 6 | AV67: 24 | AW67: 21 | AX67: 124
B68: 1 | C68: 52 | D68: 130108 | E68: POROTO | F68: 00005238 | G68: Centro de salud | H68: POROTO | I68: 4713.680314 | J68: 427.6803138 | K68: 63.1080926 | L68: 65.80983356 | M68: 72.28257126 | N68: 76.88081117 | O68: 73.42223073 | P68: 76.17677444 | Q68: 85 | R68: 71 | S68: 80 | T68: 78 | U68: 79 | V68: 91 | W68: 84 | X68: 83 | Y68: 69 | Z68: 77 | AA68: 87 | AB68: 75 | AC68: 74 | AD68: 89 | AE68: 347 | AF68: 377 | AG68: 363 | AH68: 334 | AI68: 327 | AJ68: 300 | AK68: 276 | AL68: 212 | AM68: 159 | AN68: 161 | AO68: 105 | AP68: 76 | AQ68: 66 | AR68: 61 | AT68: 60 | AU68: 6 | AV68: 24 | AW68: 21 | AX68: 124
D69: 130109 | E69: SALAVERRY (9) | I69: =SUM(K69:AR69) -> 19681.59853 | J69: 1574.598527 | K69: =SUM(K70:K71) -> 235.5046872 | L69: =SUM(L70:L71) -> 244.7952937 | M69: =SUM(M70:M71) -> 265.2830496 | N69: 281.1815573 | O69: 269.2492826 | P69: 278.5846566 | Q69: 356 | R69: 363 | S69: 381 | T69: 337 | U69: 350 | V69: 354 | W69: 367 | X69: 388 | Y69: 308 | Z69: 354 | AA69: 326 | AB69: 349 | AC69: 335 | AD69: 372 | AE69: 1638 | AF69: 1935 | AG69: 1633 | AH69: 1512 | AI69: 1321 | AJ69: 1151 | AK69: 982 | AL69: 793 | AM69: 692 | AN69: 485 | AO69: 395 | AP69: 293 | AQ69: 204 | AR69: 133 | AT69: 457 | AU69: 31 | AV69: 181 | AW69: 181 | AX69: 532
B70: 1 | C70: 53 | D70: 130109 | E70: LA ESPERANZA | F70: 00005239 | G70: Centro de salud CON INTERNAMIENTO | H70: SALAVERRY | I70: 15113.8224 | J70: 1212 | K70: 182 | L70: 189 | M70: 204 | N70: 216 | O70: 207 | P70: 214 | Q70: 273.3224044 | R70: 278.6967213 | S70: 292.5163934 | T70: 258.7349727 | U70: 268.715847 | V70: 271.7868852 | W70: 281.7677596 | X70: 297.8907104 | Y70: 236.4699454 | Z70: 271.7868852 | AA70: 250.2896175 | AB70: 267.9480874 | AC70: 257.1994536 | AD70: 285.6065574 | AE70: 1257.590164 | AF70: 1485.614754 | AG70: 1253.751366 | AH70: 1160.852459 | AI70: 1014.210383 | AJ70: 883.6912568 | AK70: 753.9398907 | AL70: 608.8333333 | AM70: 531.2896175 | AN70: 372.363388 | AO70: 303.2650273 | AP70: 224.9535519 | AQ70: 156.6229508 | AR70: 102.1120219 | AT70: 350.8661202 | AU70: 23.80054645 | AV70: 138.9644809 | AW70: 138.9644809 | AX70: 408.4480874
B71: 2 | C71: 54 | D71: 130109 | E71: LA ESPERANZA | F71: 00005240 | G71: Puesto de salud | H71: AURORA DIAZ | I71: 4567.776123 | J71: 362.5985269 | K71: 53.5046872 | L71: 55.79529367 | M71: 61.28304955 | N71: 65.1815573 | O71: 62.24928257 | P71: 64.58465659 | Q71: 82.67759563 | R71: 84.30327869 | S71: 88.48360656 | T71: 78.26502732 | U71: 81.28415301 | V71: 82.21311475 | W71: 85.23224044 | X71: 90.10928962 | Y71: 71.53005464 | Z71: 82.21311475 | AA71: 75.71038251 | AB71: 81.05191257 | AC71: 77.80054645 | AD71: 86.39344262 | AE71: 380.4098361 | AF71: 449.3852459 | AG71: 379.2486339 | AH71: 351.147541 | AI71: 306.7896175 | AJ71: 267.3087432 | AK71: 228.0601093 | AL71: 184.1666667 | AM71: 160.7103825 | AN71: 112.636612 | AO71: 91.73497268 | AP71: 68.04644809 | AQ71: 47.37704918 | AR71: 30.88797814 | AT71: 106.1338798 | AU71: 7.199453552 | AV71: 42.03551913 | AW71: 42.03551913 | AX71: 123.5519126
D72: 130110 | E72: SIMBAL (10) | I72: =SUM(K72:AR72) -> 5458.464703 | J72: 483.4647025 | K72: =+K73 -> 71.33958293 | L72: =+L73 -> 74.39372489 | M72: =+M73 -> 81.71073273 | N72: =+N73 -> 86.90874306 | O72: 82.99904343 | P72: 86.11287545 | Q72: 80 | R72: 98 | S72: 83 | T72: 89 | U72: 91 | V72: 93 | W72: 83 | X72: 68 | Y72: 105 | Z72: 71 | AA72: 92 | AB72: 78 | AC72: 78 | AD72: 76 | AE72: 400 | AF72: 465 | AG72: 397 | AH72: 411 | AI72: 343 | AJ72: 324 | AK72: 323 | AL72: 261 | AM72: 215 | AN72: 235 | AO72: 133 | AP72: 105 | AQ72: 90 | AR72: 88 | AT72: 125 | AU72: 7 | AV72: 53 | AW72: 42 | AX72: 85
B73: 1 | C73: 55 | D73: 130110 | E73: SIMBAL | F73: 00005241 | G73: Puesto de salud | H73: SIMBAL | I73: 5458.464703 | J73: 483.4647025 | K73: 71.33958293 | L73: 74.39372489 | M73: 81.71073273 | N73: 86.90874306 | O73: 82.99904343 | P73: 86.11287545 | Q73: 80 | R73: 98 | S73: 83 | T73: 89 | U73: 91 | V73: 93 | W73: 83 | X73: 68 | Y73: 105 | Z73: 71 | AA73: 92 | AB73: 78 | AC73: 78 | AD73: 76 | AE73: 400 | AF73: 465 | AG73: 397 | AH73: 411 | AI73: 343 | AJ73: 324 | AK73: 323 | AL73: 261 | AM73: 215 | AN73: 235 | AO73: 133 | AP73: 105 | AQ73: 90 | AR73: 88 | AT73: 125 | AU73: 7 | AV73: 53 | AW73: 42 | AX73: 85
D74: 130111 | E74: VICTOR LARCO HERRERA (11) | I74: =SUM(K74:AR74) -> 78903.66558 | J74: 5939.665583 | K74: =SUM(K75:K79) -> 858.1549646 | L74: =SUM(L75:L79) -> 935.7627702 | M74: =SUM(M75:M79) -> 1020.113067 | N74: 1060.696384 | O74: 1023.915056 | P74: 1041.02334 | Q74: 1265 | R74: 1285 | S74: 1349 | T74: 1364 | U74: 1306 | V74: 1188 | W74: 1274 | X74: 1234 | Y74: 1144 | Z74: 1179 | AA74: 1206 | AB74: 1216 | AC74: 1215 | AD74: 1211 | AE74: 5773 | AF74: 6657 | AG74: 6332 | AH74: 5711 | AI74: 5755 | AJ74: 5305 | AK74: 4555 | AL74: 3859 | AM74: 3335 | AN74: 2803 | AO74: 2151 | AP74: 1554 | AQ74: 958 | AR74: 780 | AT74: 1050 | AU74: 78 | AV74: 429 | AW74: 438 | AX74: 1466
B75: 1 | C75: 56 | D75: 130111 | E75: VICTOR LARCO HERRERA | F75: 00005243 | G75: Hospital | H75: VISTA ALEGRE | I75: 27985.20858 | J75: 1886 | K75: 260 | L75: 312 | M75: 335 | N75: 332 | O75: 328 | P75: 319 | Q75: 452.4902534 | R75: 459.6442495 | S75: 482.537037 | T75: 487.9025341 | U75: 467.1559454 | V75: 424.9473684 | W75: 455.7095517 | X75: 441.4015595 | Y75: 409.208577 | Z75: 421.7280702 | AA75: 431.3859649 | AB75: 434.962963 | AC75: 434.6052632 | AD75: 433.1744639 | AE75: 2065.000975 | AF75: 2381.207602 | AG75: 2264.955166 | AH75: 2042.823587 | AI75: 2058.562378 | AJ75: 1897.597466 | AK75: 1629.322612 | AL75: 1380.363548 | AM75: 1192.92885 | AN75: 1002.632554 | AO75: 769.4122807 | AP75: 555.8654971 | AQ75: 342.6764133 | AR75: 279.005848 | AT75: 375.5847953 | AU75: 27.9005848 | AV75: 153.4532164 | AW75: 156.6725146 | AX75: 524.3879142
B76: 2 | C76: 57 | D76: 130111 | E76: VICTOR LARCO HERRERA | F76: 00005242 | G76: Centro de salud | H76: VICTOR LARCO HERRERA | I76: 18711.75642 | J76: 1004.118998 | K76: 148.1668261 | L76: 154.510044 | M76: 169.7069064 | N76: 180.5027741 | O76: 172.3826287 | P76: 178.8498183 | Q76: 307.002924 | R76: 311.8567251 | S76: 327.3888889 | T76: 331.0292398 | U76: 316.9532164 | V76: 288.3157895 | W76: 309.1871345 | X76: 299.4795322 | Y76: 277.6374269 | Z76: 286.1315789 | AA76: 292.6842105 | AB76: 295.1111111 | AC76: 294.8684211 | AD76: 293.8976608 | AE76: 1401.049708 | AF76: 1615.587719 | AG76: 1536.71345 | AH76: 1386.002924 | AI76: 1396.681287 | AJ76: 1287.47076 | AK76: 1105.453216 | AL76: 936.5409357 | AM76: 809.371345 | AN76: 680.2602339 | AO76: 522.0263158 | AP76: 377.1403509 | AQ76: 232.497076 | AR76: 189.2982456 | AT76: 254.8245614 | AU76: 18.92982456 | AV76: 104.1140351 | AW76: 106.2982456 | AX76: 355.7836257
B77: 3 | C77: 58 | D77: 130111 | E77: VICTOR LARCO HERRERA | F77: 00005245 | G77: Centro de salud | H77: LIBERACION SOCIAL | I77: =SUM(K77:AR77) -> 16214.42394 | J77: =+SUM(K77:P77) -> 1422.501913 | K77: 209.9030036 | L77: 218.889229 | M77: 240.4181175 | N77: 255.7122632 | O77: 244.2087239 | P77: 253.3705759 | Q77: 256.4522417 | R77: 260.5068226 | S77: 273.4814815 | T77: 276.5224172 | U77: 264.7641326 | V77: 240.8421053 | W77: 258.2768031 | X77: 250.1676413 | Y77: 231.9220273 | Z77: 239.0175439 | AA77: 244.4912281 | AB77: 246.5185185 | AC77: 246.3157895 | AD77: 245.5048733 | AE77: 1170.354776 | AF77: 1349.567251 | AG77: 1283.680312 | AH77: 1157.785575 | AI77: 1166.705653 | AJ77: 1075.477583 | AK77: 923.4307992 | AL77: 782.331384 | AM77: 676.1013645 | AN77: 568.2495127 | AO77: 436.0701754 | AP77: 315.0409357 | AQ77: 194.214425 | AR77: 158.128655 | AT77: 212.8654971 | AU77: 15.8128655 | AV77: 86.97076023 | AW77: 88.79532164 | AX77: 297.2007797
B78: 4 | C78: 59 | D78: 130111 | E78: VICTOR LARCO HERRERA | F78: 00005244 | G78: Puesto de salud | H78: BUENOS AIRES SUR | I78: 9346.434109 | J78: 1097.092979 | K78: 161.8859767 | L78: 168.8165296 | M78: 185.4205089 | N78: 197.2159939 | O78: 188.3439832 | P78: 195.4099866 | Q78: 143.0214425 | R78: 145.2826511 | S78: 152.5185185 | T78: 154.214425 | U78: 147.6569201 | V78: 134.3157895 | W78: 144.0389864 | X78: 139.5165692 | Y78: 129.3411306 | Z78: 133.2982456 | AA78: 136.3508772 | AB78: 137.4814815 | AC78: 137.3684211 | AD78: 136.9161793 | AE78: 652.6978558 | AF78: 752.6432749 | AG78: 715.8986355 | AH78: 645.6881092 | AI78: 650.662768 | AJ78: 599.785575 | AK78: 514.9902534 | AL78: 436.3001949 | AM78: 377.0565302 | AN78: 316.9083821 | AO78: 243.1929825 | AP78: 175.6959064 | AQ78: 108.3118908 | AR78: 88.1871345 | AT78: 118.7134503 | AU78: 8.81871345 | AV78: 48.50292398 | AW78: 49.52046784 | AX78: 165.7465887
B79: 5 | C79: 60 | D79: 130111 | E79: VICTOR LARCO HERRERA | F79: 00005246 | G79: Puesto de salud | H79: HUAMAN | I79: 6645.842531 | J79: 529.9516931 | K79: 78.19915822 | L79: 81.54696767 | M79: 89.56753396 | N79: 95.26535297 | O79: 90.97972068 | P79: 94.39295963 | Q79: 106.0331384 | R79: 107.7095517 | S79: 113.0740741 | T79: 114.331384 | U79: 109.4697856 | V79: 99.57894737 | W79: 106.7875244 | X79: 103.4346979 | Y79: 95.89083821 | Z79: 98.8245614 | AA79: 101.0877193 | AB79: 101.9259259 | AC79: 101.8421053 | AD79: 101.5068226 | AE79: 483.8966862 | AF79: 557.994152 | AG79: 530.7524366 | AH79: 478.6998051 | AI79: 482.3879142 | AJ79: 444.668616 | AK79: 381.8031189 | AL79: 323.4639376 | AM79: 279.5419103 | AN79: 234.9493177 | AO79: 180.2982456 | AP79: 130.2573099 | AQ79: 80.30019493 | AR79: 65.38011696 | AT79: 88.01169591 | AU79: 6.538011696 | AV79: 35.95906433 | AW79: 36.71345029 | AX79: 122.8810916
D80: 130200 | E80: ASCOPE (2) | I80: =SUM(K80:AR80) -> 132362.2391 | J80: 11147.23907 | K80: =+K81+K83+K86+K89+K91+K94+K96+K99 -> 1721.011184 | L80: 1679.255359 | M80: 1872.744641 | N80: 1982.349487 | O80: 1889.323392 | P80: 2002.555003 | Q80: 2069 | R80: 2121 | S80: 2247 | T80: 2110 | U80: 2117 | V80: 2089 | W80: 2179 | X80: 2238 | Y80: 2041 | Z80: 2109 | AA80: 2112 | AB80: 2065 | AC80: 1921 | AD80: 1917 | AE80: 9477 | AF80: 10032 | AG80: 8887 | AH80: 8893 | AI80: 8551 | AJ80: 8170 | AK80: 7769 | AL80: 7805 | AM80: 6688 | AN80: 5149 | AO80: 3737 | AP80: 2771 | AQ80: 2018 | AR80: 1933 | AT80: =+AT81+AT83+AT86+AT89+AT91+AT94+AT96+AT99 -> 1939 | AU80: 127 | AV80: 857 | AW80: 708 | AX80: 2287
D81: 130201 | E81: ASCOPE (1) | I81: =SUM(K81:AR81) -> 9102.035415 | J81: 826.0354147 | K81: =+K82 -> 130.0726934 | L81: =+L82 -> 124.6598322 | M81: =+M82 -> 139.3401678 | N81: 148.7716682 | O81: 138.6020503 | P81: 144.5890028 | Q81: 137 | R81: 125 | S81: 134 | T81: 156 | U81: 134 | V81: 146 | W81: 143 | X81: 145 | Y81: 122 | Z81: 139 | AA81: 134 | AB81: 115 | AC81: 138 | AD81: 138 | AE81: 546 | AF81: 611 | AG81: 596 | AH81: 603 | AI81: 609 | AJ81: 596 | AK81: 517 | AL81: 562 | AM81: 498 | AN81: 409 | AO81: 322 | AP81: 211 | AQ81: 133 | AR81: 157 | AT81: 112 | AU81: 11 | AV81: 52 | AW81: 33 | AX81: 168
B82: 1 | C82: 61 | D82: 130201 | E82: ASCOPE | F82: 00005263 | G82: Hospital | H82: ASCOPE "ROSA SANCHEZ DE SANTILLAN" | I82: =SUM(K82:AR82) -> 9102.035415 | J82: 826.0354147 | K82: 130.0726934 | L82: 124.6598322 | M82: 139.3401678 | N82: 148.7716682 | O82: 138.6020503 | P82: 144.5890028 | Q82: 137 | R82: 125 | S82: 134 | T82: 156 | U82: 134 | V82: 146 | W82: 143 | X82: 145 | Y82: 122 | Z82: 139 | AA82: 134 | AB82: 115 | AC82: 138 | AD82: 138 | AE82: 546 | AF82: 611 | AG82: 596 | AH82: 603 | AI82: 609 | AJ82: 596 | AK82: 517 | AL82: 562 | AM82: 498 | AN82: 409 | AO82: 322 | AP82: 211 | AQ82: 133 | AR82: 157 | AT82: 112 | AU82: 11 | AV82: 52 | AW82: 33 | AX82: 168
D83: 130202 | E83: CHICAMA (2) | I83: =SUM(K83:AR83) -> 17358.26188 | J83: 1068.261883 | K83: =SUM(K84:K85) -> 170.1164958 | L83: =SUM(L84:L85) -> 175.8266542 | M83: 177.1733458 | N83: 192.3904939 | O83: 169.4520037 | P83: 183.3028891 | Q83: 274 | R83: 285 | S83: 304 | T83: 297 | U83: 270 | V83: 255 | W83: 295 | X83: 250 | Y83: 284 | Z83: 294 | AA83: 292 | AB83: 277 | AC83: 265 | AD83: 262 | AE83: 1366 | AF83: 1403 | AG83: 1228 | AH83: 1185 | AI83: 1122 | AJ83: 1052 | AK83: 1076 | AL83: 1051 | AM83: 904 | AN83: 686 | AO83: 451 | AP83: 357 | AQ83: 256 | AR83: 249 | AT83: 289 | AU83: 24 | AV83: 112 | AW83: 114 | AX83: 386
B84: 1 | C84: 62 | D84: 130202 | E84: CHICAMA | F84: 00005264 | G84: Centro de salud con camas de internamiento | H84: MATERNO CHICAMA | I84: =SUM(K84:AR84) -> 11840.32961 | J84: 807.2618826 | K84: 127.1164958 | L84: 121.8266542 | M84: 136.1733458 | N84: 145.3904939 | O84: 135.4520037 | P84: 141.3028891 | Q84: 185.5776892 | R84: 193.0278884 | S84: 205.8964143 | T84: 201.1553785 | U84: 182.8685259 | V84: 172.7091633 | W84: 199.8007968 | X84: 169.3227092 | Y84: 192.3505976 | Z84: 199.123506 | AA84: 197.7689243 | AB84: 187.6095618 | AC84: 179.4820717 | AD84: 177.4501992 | AE84: 925.1792829 | AF84: 950.2390438 | AG84: 831.7131474 | AH84: 802.5896414 | AI84: 759.9203187 | AJ84: 712.5099602 | AK84: 728.7649402 | AL84: 711.8326693 | AM84: 612.2709163 | AN84: 464.6215139 | AO84: 305.4581673 | AP84: 241.7928287 | AQ84: 173.3864542 | AR84: 168.6454183 | AT84: 195.7370518 | AU84: 16.25498008 | AV84: 75.85657371 | AW84: 77.21115538 | AX84: 261.4342629
B85: 2 | C85: 63 | D85: 130202 | E85: CHICAMA | F85: 00005265 | G85: Centro de salud | H85: ALTO PERU | I85: 5517.932271 | J85: 261 | K85: 43 | L85: 54 | M85: 41 | N85: 47 | O85: 34 | P85: 42 | Q85: 88.42231076 | R85: 91.97211155 | S85: 98.10358566 | T85: 95.84462151 | U85: 87.1314741 | V85: 82.29083665 | W85: 95.19920319 | X85: 80.67729084 | Y85: 91.64940239 | Z85: 94.87649402 | AA85: 94.2310757 | AB85: 89.39043825 | AC85: 85.51792829 | AD85: 84.5498008 | AE85: 440.8207171 | AF85: 452.7609562 | AG85: 396.2868526 | AH85: 382.4103586 | AI85: 362.0796813 | AJ85: 339.4900398 | AK85: 347.2350598 | AL85: 339.1673307 | AM85: 291.7290837 | AN85: 221.3784861 | AO85: 145.5418327 | AP85: 115.2071713 | AQ85: 82.61354582 | AR85: 80.35458167 | AT85: 93.26294821 | AU85: 7.74501992 | AV85: 36.14342629 | AW85: 36.78884462 | AX85: 124.5657371
D86: 130203 | E86: CHOCOPE (3) | I86: =SUM(K86:AR86) -> 12468.92593 | J86: 596.9259259 | K86: =SUM(K87:K88) -> 68 | L86: =SUM(L87:L88) -> 83 | M86: 99 | N86: 85 | O86: 113 | P86: 148.9259259 | Q86: 197 | R86: 212 | S86: 210 | T86: 218 | U86: 200 | V86: 180 | W86: 172 | X86: 198 | Y86: 198 | Z86: 185 | AA86: 178 | AB86: 174 | AC86: 179 | AD86: 172 | AE86: 803 | AF86: 911 | AG86: 827 | AH86: 853 | AI86: 864 | AJ86: 851 | AK86: 862 | AL86: 859 | AM86: 721 | AN86: 555 | AO86: 396 | AP86: 294 | AQ86: 193 | AR86: 210 | AT86: 145 | AU86: 12 | AV86: 59 | AW86: 44 | AX86: 179
B87: 1 | C87: 64 | D87: 130203 | E87: CHOCOPE | F87: 00005266 | G87: Centro de salud | H87: CHOCOPE | I87: =SUM(K87:AR87) -> 10154.40741 | J87: 480.9259259 | K87: 54 | L87: 65 | M87: 74 | N87: 70 | O87: 90 | P87: 127.9259259 | Q87: 160.5185185 | R87: 172.7407407 | S87: 171.1111111 | T87: 177.6296296 | U87: 162.962963 | V87: 146.6666667 | W87: 140.1481481 | X87: 161.3333333 | Y87: 161.3333333 | Z87: 150.7407407 | AA87: 145.037037 | AB87: 141.7777778 | AC87: 145.8518519 | AD87: 140.1481481 | AE87: 654.2962963 | AF87: 742.2962963 | AG87: 673.8518519 | AH87: 695.037037 | AI87: 704 | AJ87: 693.4074074 | AK87: 702.3703704 | AL87: 699.9259259 | AM87: 587.4814815 | AN87: 452.2222222 | AO87: 322.6666667 | AP87: 239.5555556 | AQ87: 157.2592593 | AR87: 171.1111111 | AT87: 118.1481481 | AU87: 9.777777778 | AV87: 48.07407407 | AW87: 35.85185185 | AX87: 145.8518519
B88: 2 | C88: 65 | D88: 130203 | E88: CHOCOPE | F88: 00005267 | G88: Puesto de salud | H88: MOLINOS DE CAJANLEQUE | I88: 2314.518519 | J88: 116 | K88: 14 | L88: 18 | M88: 25 | N88: 15 | O88: 23 | P88: 21 | Q88: 36.48148148 | R88: 39.25925926 | S88: 38.88888889 | T88: 40.37037037 | U88: 37.03703704 | V88: 33.33333333 | W88: 31.85185185 | X88: 36.66666667 | Y88: 36.66666667 | Z88: 34.25925926 | AA88: 32.96296296 | AB88: 32.22222222 | AC88: 33.14814815 | AD88: 31.85185185 | AE88: 148.7037037 | AF88: 168.7037037 | AG88: 153.1481481 | AH88: 157.962963 | AI88: 160 | AJ88: 157.5925926 | AK88: 159.6296296 | AL88: 159.0740741 | AM88: 133.5185185 | AN88: 102.7777778 | AO88: 73.33333333 | AP88: 54.44444444 | AQ88: 35.74074074 | AR88: 38.88888889 | AT88: 26.85185185 | AU88: 2.222222222 | AV88: 10.92592593 | AW88: 8.148148148 | AX88: 33.14814815
D89: 130204 | E89: MAGDALENA DE CAO (4) | I89: =SUM(K89:AR89) -> 2978.575023 | J89: 159.5750233 | K89: =+K90 -> 25.1276794 | L89: =+L90 -> 24.08201305 | M89: 26.91798695 | N89: 28.73998136 | O89: 26.77539609 | P89: 27.93196645 | Q89: 37 | R89: 59 | S89: 49 | T89: 42 | U89: 50 | V89: 54 | W89: 52 | X89: 40 | Y89: 42 | Z89: 36 | AA89: 41 | AB89: 50 | AC89: 48 | AD89: 47 | AE89: 193 | AF89: 225 | AG89: 206 | AH89: 214 | AI89: 206 | AJ89: 182 | AK89: 185 | AL89: 183 | AM89: 175 | AN89: 143 | AO89: 108 | AP89: 62 | AQ89: 54 | AR89: 36 | AT89: 61 | AU89: 4 | AV89: 23 | AW89: 12 | AX89: 28
B90: 1 | C90: 66 | D90: 130204 | E90: MAGDALENA DE CAO | F90: 00005268 | G90: Centro de salud | H90: MAGDALENA DE CAO | I90: =SUM(K90:AR90) -> 2978.575023 | J90: 159.5750233 | K90: 25.1276794 | L90: 24.08201305 | M90: 26.91798695 | N90: 28.73998136 | O90: 26.77539609 | P90: 27.93196645 | Q90: 37 | R90: 59 | S90: 49 | T90: 42 | U90: 50 | V90: 54 | W90: 52 | X90: 40 | Y90: 42 | Z90: 36 | AA90: 41 | AB90: 50 | AC90: 48 | AD90: 47 | AE90: 193 | AF90: 225 | AG90: 206 | AH90: 214 | AI90: 206 | AJ90: 182 | AK90: 185 | AL90: 183 | AM90: 175 | AN90: 143 | AO90: 108 | AP90: 62 | AQ90: 54 | AR90: 36 | AT90: 61 | AU90: 4 | AV90: 23 | AW90: 12 | AX90: 28
D91: 130205 | E91: PAIJAN (5) | I91: =SUM(K91:AR91) -> 30005.05499 | J91: 3933.054986 | K91: =SUM(K92:K93) -> 619.3233924 | L91: =SUM(L92:L93) -> 593.5507922 | M91: 663.4492078 | N91: 708.3560112 | O91: 659.9347623 | P91: 688.4408201 | Q91: 502 | R91: 505 | S91: 534 | T91: 468 | U91: 545 | V91: 532 | W91: 538 | X91: 616 | Y91: 514 | Z91: 519 | AA91: 553 | AB91: 538 | AC91: 431 | AD91: 462 | AE91: 2211 | AF91: 2274 | AG91: 2030 | AH91: 2061 | AI91: 1870 | AJ91: 1728 | AK91: 1365 | AL91: 1325 | AM91: 1154 | AN91: 882 | AO91: 704 | AP91: 499 | AQ91: 362 | AR91: 350 | AT91: 554 | AU91: 26 | AV91: 244 | AW91: 218 | AX91: 764
B92: 1 | C92: 67 | D92: 130205 | E92: PAIJAN | F92: 00005269 | G92: Centro de salud con camas de internamiento | H92: PAIJAN | I92: =SUM(K92:AR92) -> 26655.23601 | J92: 3491.87698 | K92: 549.8527493 | L92: 526.971109 | M92: 589.028891 | N92: 628.8984157 | O92: 585.9086673 | P92: 611.2171482 | Q92: 445.9959432 | R92: 448.6612576 | S92: 474.4259635 | T92: 415.7890467 | U92: 484.198783 | V92: 472.6490872 | W92: 477.979716 | X92: 547.2778905 | Y92: 456.6572008 | Z92: 461.0993915 | AA92: 491.306288 | AB92: 477.979716 | AC92: 382.9168357 | AD92: 410.4584178 | AE92: 1964.336714 | AF92: 2020.308316 | AG92: 1803.529412 | AH92: 1831.070994 | AI92: 1661.37931 | AJ92: 1535.221095 | AK92: 1212.718053 | AL92: 1177.180527 | AM92: 1025.257606 | AN92: 783.6024341 | AO92: 625.4604462 | AP92: 443.3306288 | AQ92: 321.6146045 | AR92: 310.9533469 | AT92: 492.1947262 | AU92: 23.09939148 | AV92: 216.7789047 | AW92: 193.6795132 | AX92: 678.7667343
B93: 2 | C93: 68 | D93: 130205 | E93: PAIJAN | F93: 00005270 | G93: Puesto de salud | H93: MACABI BAJO | I93: 3349.818979 | J93: 441.1780056 | K93: 69.47064306 | L93: 66.57968313 | M93: 74.42031687 | N93: 79.45759553 | O93: 74.02609506 | P93: 77.22367195 | Q93: 56.0040568 | R93: 56.33874239 | S93: 59.57403651 | T93: 52.21095335 | U93: 60.80121704 | V93: 59.35091278 | W93: 60.02028398 | X93: 68.72210953 | Y93: 57.34279919 | Z93: 57.90060852 | AA93: 61.69371197 | AB93: 60.02028398 | AC93: 48.0831643 | AD93: 51.54158215 | AE93: 246.663286 | AF93: 253.6916836 | AG93: 226.4705882 | AH93: 229.9290061 | AI93: 208.6206897 | AJ93: 192.7789047 | AK93: 152.2819473 | AL93: 147.8194726 | AM93: 128.7423935 | AN93: 98.39756592 | AO93: 78.53955375 | AP93: 55.6693712 | AQ93: 40.38539554 | AR93: 39.04665314 | AT93: 61.80527383 | AU93: 2.900608519 | AV93: 27.22109533 | AW93: 24.32048682 | AX93: 85.23326572
D94: 130206 | E94: RAZURI (6) | I94: =SUM(K94:AR94) -> 8710.770736 | J94: 1013.770736 | K94: =+K95 -> 159.6346692 | L94: =+L95 -> 152.9916123 | M94: 171.0083877 | N94: 182.583411 | O94: 170.1025163 | P94: 177.4501398 | Q94: 152 | R94: 137 | S94: 173 | T94: 152 | U94: 135 | V94: 154 | W94: 181 | X94: 161 | Y94: 138 | Z94: 141 | AA94: 175 | AB94: 134 | AC94: 128 | AD94: 119 | AE94: 650 | AF94: 684 | AG94: 586 | AH94: 581 | AI94: 608 | AJ94: 523 | AK94: 467 | AL94: 406 | AM94: 282 | AN94: 253 | AO94: 212 | AP94: 168 | AQ94: 110 | AR94: 87 | AT94: 127 | AU94: 6 | AV94: 71 | AW94: 55 | AX94: 163
B95: 1 | C95: 69 | D95: 130206 | E95: RAZURI | F95: 00005271 | G95: Centro de salud con camas de internamiento | H95: RAZURI | I95: =SUM(K95:AR95) -> 8710.770736 | J95: 1013.770736 | K95: 159.6346692 | L95: 152.9916123 | M95: 171.0083877 | N95: 182.583411 | O95: 170.1025163 | P95: 177.4501398 | Q95: 152 | R95: 137 | S95: 173 | T95: 152 | U95: 135 | V95: 154 | W95: 181 | X95: 161 | Y95: 138 | Z95: 141 | AA95: 175 | AB95: 134 | AC95: 128 | AD95: 119 | AE95: 650 | AF95: 684 | AG95: 586 | AH95: 581 | AI95: 608 | AJ95: 523 | AK95: 467 | AL95: 406 | AM95: 282 | AN95: 253 | AO95: 212 | AP95: 168 | AQ95: 110 | AR95: 87 | AT95: 127 | AU95: 6 | AV95: 71 | AW95: 55 | AX95: 163
D96: 130207 | E96: SANTIAGO DE CAO (7) | I96: =SUM(K96:AR96) -> 20352 | J96: 865 | K96: =SUM(K97:K98) -> 126 | L96: =SUM(L97:L98) -> 120 | M96: 143 | N96: 153 | O96: 161 | P96: 162 | Q96: 280 | R96: 317 | S96: 342 | T96: 320 | U96: 317 | V96: 298 | W96: 319 | X96: 320 | Y96: 284 | Z96: 300 | AA96: 296 | AB96: 283 | AC96: 296 | AD96: 280 | AE96: 1482 | AF96: 1591 | AG96: 1403 | AH96: 1358 | AI96: 1339 | AJ96: 1284 | AK96: 1359 | AL96: 1381 | AM96: 1254 | AN96: 976 | AO96: 619 | AP96: 471 | AQ96: 334 | AR96: 384 | AT96: 262 | AU96: 16 | AV96: 110 | AW96: 89 | AX96: 239
B97: 1 | C97: 70 | D97: 130207 | E97: SANTIAGO DE CAO | F97: 00005272 | G97: Centro de salud | H97: SANTIAGO DE CAO | I97: =SUM(K97:AR97) -> 5395.505338 | J97: 125 | K97: 21 | L97: 19 | M97: 21 | N97: 22 | O97: 21 | P97: 21 | Q97: 75.72953737 | R97: 85.7366548 | S97: 92.49822064 | T97: 86.5480427 | U97: 85.7366548 | V97: 80.59786477 | W97: 86.27758007 | X97: 86.5480427 | Y97: 76.8113879 | Z97: 81.13879004 | AA97: 80.0569395 | AB97: 76.54092527 | AC97: 80.0569395 | AD97: 75.72953737 | AE97: 400.8256228 | AF97: 430.3060498 | AG97: 379.4590747 | AH97: 367.2882562 | AI97: 362.1494662 | AJ97: 347.2740214 | AK97: 367.5587189 | AL97: 373.5088968 | AM97: 339.1601423 | AN97: 263.9715302 | AO97: 167.4163701 | AP97: 127.3879004 | AQ97: 90.33451957 | AR97: 103.8576512 | AT97: 70.86120996 | AU97: 4.327402135 | AV97: 29.75088968 | AW97: 24.07117438 | AX97: 64.6405694
B98: 2 | C98: 71 | D98: 130207 | E98: SANTIAGO DE CAO | F98: 00005273 | G98: Puesto de salud | H98: SANTA ROSA DE CARTAVIO | I98: 14956.49466 | J98: 740 | K98: 105 | L98: 101 | M98: 122 | N98: 131 | O98: 140 | P98: 141 | Q98: 204.2704626 | R98: 231.2633452 | S98: 249.5017794 | T98: 233.4519573 | U98: 231.2633452 | V98: 217.4021352 | W98: 232.7224199 | X98: 233.4519573 | Y98: 207.1886121 | Z98: 218.86121 | AA98: 215.9430605 | AB98: 206.4590747 | AC98: 215.9430605 | AD98: 204.2704626 | AE98: 1081.174377 | AF98: 1160.69395 | AG98: 1023.540925 | AH98: 990.7117438 | AI98: 976.8505338 | AJ98: 936.7259786 | AK98: 991.4412811 | AL98: 1007.491103 | AM98: 914.8398577 | AN98: 712.0284698 | AO98: 451.5836299 | AP98: 343.6120996 | AQ98: 243.6654804 | AR98: 280.1423488 | AT98: 191.13879 | AU98: 11.67259786 | AV98: 80.24911032 | AW98: 64.92882562 | AX98: 174.3594306
D99: 130208 | E99: CASA GRANDE (8) | I99: =SUM(K99:AR99) -> 31386.6151 | J99: 2684.615098 | K99: =SUM(K100:K102) -> 422.7362535 | L99: =SUM(L100:L102) -> 405.1444548 | M99: 452.8555452 | N99: 483.5079217 | O99: 450.4566636 | P99: 469.9142591 | Q99: 490 | R99: 481 | S99: 501 | T99: 457 | U99: 466 | V99: 470 | W99: 479 | X99: 508 | Y99: 459 | Z99: 495 | AA99: 443 | AB99: 494 | AC99: 436 | AD99: 437 | AE99: 2226 | AF99: 2333 | AG99: 2011 | AH99: 2038 | AI99: 1933 | AJ99: 1954 | AK99: 1938 | AL99: 2038 | AM99: 1700 | AN99: 1245 | AO99: 925 | AP99: 709 | AQ99: 576 | AR99: 460 | AT99: 389 | AU99: 28 | AV99: 186 | AW99: 143 | AX99: 360
B100: 1 | C100: 72 | D100: 130208 | E100: CASA GRANDE | F100: 00007631 | G100: Centro de salud | H100: CASA GRANDE | I100: =SUM(K100:AR100) -> 22306.28911 | J100: 1839.806151 | K100: 289.7073625 | L100: 277.6514445 | M100: 310.3485555 | N100: 331.3550792 | O100: 308.7045666 | P100: 322.0391426 | Q100: 349.4034091 | R100: 342.9857955 | S100: 357.2471591 | T100: 325.8721591 | U100: 332.2897727 | V100: 335.1420455 | W100: 341.5596591 | X100: 362.2386364 | Y100: 327.2982955 | Z100: 352.96875 | AA100: 315.8892045 | AB100: 352.2556818 | AC100: 310.8977273 | AD100: 311.6107955 | AE100: 1587.289773 | AF100: 1663.588068 | AG100: 1433.980114 | AH100: 1453.232955 | AI100: 1378.360795 | AJ100: 1393.335227 | AK100: 1381.926136 | AL100: 1453.232955 | AM100: 1212.215909 | AN100: 887.7698864 | AO100: 659.5880682 | AP100: 505.5653409 | AQ100: 410.7272727 | AR100: 328.0113636 | AT100: 277.3835227 | AU100: 19.96590909 | AV100: 132.6306818 | AW100: 101.96875 | AX100: 256.7045455
B101: 2 | C101: 73 | D101: 130208 | E101: CASA GRANDE | F101: 00005275 | G101: Centro de salud | H101: ROMA "3 DE OCTUBRE" | I101: 6926.249359 | J101: 647.6868593 | K101: 101.9888164 | L101: 97.74464119 | M101: 109.2553588 | N101: 116.6505126 | O101: 108.6766076 | P101: 113.3709226 | Q101: 107.1875 | R101: 105.21875 | S101: 109.59375 | T101: 99.96875 | U101: 101.9375 | V101: 102.8125 | W101: 104.78125 | X101: 111.125 | Y101: 100.40625 | Z101: 108.28125 | AA101: 96.90625 | AB101: 108.0625 | AC101: 95.375 | AD101: 95.59375 | AE101: 486.9375 | AF101: 510.34375 | AG101: 439.90625 | AH101: 445.8125 | AI101: 422.84375 | AJ101: 427.4375 | AK101: 423.9375 | AL101: 445.8125 | AM101: 371.875 | AN101: 272.34375 | AO101: 202.34375 | AP101: 155.09375 | AQ101: 126 | AR101: 100.625 | AT101: 85.09375 | AU101: 6.125 | AV101: 40.6875 | AW101: 31.28125 | AX101: 78.75
B102: 3 | C102: 74 | D102: 130208 | E102: CASA GRANDE | F102: 00005274 | G102: Puesto de salud | H102: MOCAN | I102: 2154.076633 | J102: 197.1220876 | K102: 31.04007456 | L102: 29.74836906 | M102: 33.25163094 | N102: 35.50232992 | O102: 33.07548928 | P102: 34.50419385 | Q102: 33.40909091 | R102: 32.79545455 | S102: 34.15909091 | T102: 31.15909091 | U102: 31.77272727 | V102: 32.04545455 | W102: 32.65909091 | X102: 34.63636364 | Y102: 31.29545455 | Z102: 33.75 | AA102: 30.20454545 | AB102: 33.68181818 | AC102: 29.72727273 | AD102: 29.79545455 | AE102: 151.7727273 | AF102: 159.0681818 | AG102: 137.1136364 | AH102: 138.9545455 | AI102: 131.7954545 | AJ102: 133.2272727 | AK102: 132.1363636 | AL102: 138.9545455 | AM102: 115.9090909 | AN102: 84.88636364 | AO102: 63.06818182 | AP102: 48.34090909 | AQ102: 39.27272727 | AR102: 31.36363636 | AT102: 26.52272727 | AU102: 1.909090909 | AV102: 12.68181818 | AW102: 9.75 | AX102: 24.54545455
D103: 130300 | E103: BOLIVAR (3) | I103: =SUM(K103:AR103) -> 18948.82332 | J103: 2371.82332 | K103: =+K104+K106+K109+K111+K114+K116 -> 380.3533592 | L103: 391.9439599 | M103: 385.8969638 | N103: 391.939115 | O103: 383.2950581 | P103: 438.3948643 | Q103: 327 | R103: 354 | S103: 345 | T103: 383 | U103: 364 | V103: 416 | W103: 421 | X103: 410 | Y103: 397 | Z103: 418 | AA103: 431 | AB103: 505 | AC103: 433 | AD103: 356 | AE103: 1601 | AF103: 1354 | AG103: 1045 | AH103: 1076 | AI103: 936 | AJ103: 910 | AK103: 904 | AL103: 836 | AM103: 680 | AN103: 491 | AO103: 420 | AP103: 326 | AQ103: 225 | AR103: 213 | AT103: =+AT104+AT106+AT109+AT111+AT114+AT116 -> 429 | AU103: 30 | AV103: 175 | AW103: 159 | AX103: 510
D104: 130301 | E104: BOLIVAR (1) | I104: =SUM(K104:AR104) -> 5213.0625 | J104: 635.0625 | K104: =+K105 -> 106.875 | L104: =+L105 -> 106.03125 | M104: 101.8125 | N104: 104.34375 | O104: 98.71875 | P104: 117.28125 | Q104: 95 | R104: 87 | S104: 83 | T104: 110 | U104: 113 | V104: 127 | W104: 125 | X104: 132 | Y104: 116 | Z104: 115 | AA104: 115 | AB104: 144 | AC104: 119 | AD104: 111 | AE104: 476 | AF104: 368 | AG104: 265 | AH104: 290 | AI104: 245 | AJ104: 220 | AK104: 256 | AL104: 227 | AM104: 188 | AN104: 118 | AO104: 123 | AP104: 85 | AQ104: 61 | AR104: 64 | AT104: 114 | AU104: 5 | AV104: 46 | AW104: 47 | AX104: 158
B105: 1 | C105: 75 | D105: 130301 | E105: BOLIVAR | F105: 00005366 | G105: Hospital | H105: BOLIVAR | I105: =SUM(K105:AR105) -> 5213.0625 | J105: 635.0625 | K105: 106.875 | L105: 106.03125 | M105: 101.8125 | N105: 104.34375 | O105: 98.71875 | P105: 117.28125 | Q105: 95 | R105: 87 | S105: 83 | T105: 110 | U105: 113 | V105: 127 | W105: 125 | X105: 132 | Y105: 116 | Z105: 115 | AA105: 115 | AB105: 144 | AC105: 119 | AD105: 111 | AE105: 476 | AF105: 368 | AG105: 265 | AH105: 290 | AI105: 245 | AJ105: 220 | AK105: 256 | AL105: 227 | AM105: 188 | AN105: 118 | AO105: 123 | AP105: 85 | AQ105: 61 | AR105: 64 | AT105: 114 | AU105: 5 | AV105: 46 | AW105: 47 | AX105: 158
D106: 130302 | E106: BAMBAMARCA (2) | I106: =SUM(K106:AR106) -> 4674.1875 | J106: 776.1875 | K106: =SUM(K107:K108) -> 130.625 | L106: =SUM(L107:L108) -> 129.59375 | M106: 124.4375 | N106: 127.53125 | O106: 120.65625 | P106: 143.34375 | Q106: 91 | R106: 99 | S106: 101 | T106: 99 | U106: 93 | V106: 81 | W106: 99 | X106: 108 | Y106: 99 | Z106: 109 | AA106: 115 | AB106: 120 | AC106: 103 | AD106: 83 | AE106: 449 | AF106: 380 | AG106: 247 | AH106: 242 | AI106: 196 | AJ106: 197 | AK106: 185 | AL106: 163 | AM106: 123 | AN106: 95 | AO106: 80 | AP106: 53 | AQ106: 44 | AR106: 44 | AT106: 139 | AU106: 11 | AV106: 52 | AW106: 52 | AX106: 171
B107: 1 | C107: 76 | D107: 130302 | E107: BAMBAMARCA | F107: 00005368 | G107: Centro de salud | H107: CALEMAR | I107: =SUM(K107:AR107) -> 1946.564607 | J107: 282.25 | K107: 47.5 | L107: 47.125 | M107: 45.25 | N107: 46.375 | O107: 43.875 | P107: 52.125 | Q107: 38.85393258 | R107: 42.26966292 | S107: 43.12359551 | T107: 42.26966292 | U107: 39.70786517 | V107: 34.58426966 | W107: 42.26966292 | X107: 46.11235955 | Y107: 42.26966292 | Z107: 46.53932584 | AA107: 49.1011236 | AB107: 51.23595506 | AC107: 43.97752809 | AD107: 35.43820225 | AE107: 191.7078652 | AF107: 162.247191 | AG107: 105.4606742 | AH107: 103.3258427 | AI107: 83.68539326 | AJ107: 84.11235955 | AK107: 78.98876404 | AL107: 69.59550562 | AM107: 52.51685393 | AN107: 40.56179775 | AO107: 34.15730337 | AP107: 22.62921348 | AQ107: 18.78651685 | AR107: 18.78651685 | AT107: 59.34831461 | AU107: 4.696629213 | AV107: 22.20224719 | AW107: 22.20224719 | AX107: 73.01123596
B108: 2 | C108: 77 | D108: 130302 | E108: BAMBAMARCA | F108: 00005367 | G108: Puesto de salud | H108: BAMBAMARCA | I108: 2727.622893 | J108: 493.9375 | K108: 83.125 | L108: 82.46875 | M108: 79.1875 | N108: 81.15625 | O108: 76.78125 | P108: 91.21875 | Q108: 52.14606742 | R108: 56.73033708 | S108: 57.87640449 | T108: 56.73033708 | U108: 53.29213483 | V108: 46.41573034 | W108: 56.73033708 | X108: 61.88764045 | Y108: 56.73033708 | Z108: 62.46067416 | AA108: 65.8988764 | AB108: 68.76404494 | AC108: 59.02247191 | AD108: 47.56179775 | AE108: 257.2921348 | AF108: 217.752809 | AG108: 141.5393258 | AH108: 138.6741573 | AI108: 112.3146067 | AJ108: 112.8876404 | AK108: 106.011236 | AL108: 93.40449438 | AM108: 70.48314607 | AN108: 54.43820225 | AO108: 45.84269663 | AP108: 30.37078652 | AQ108: 25.21348315 | AR108: 25.21348315 | AT108: 79.65168539 | AU108: 6.303370787 | AV108: 29.79775281 | AW108: 29.79775281 | AX108: 97.98876404
D109: 130303 | E109: CONDORMARCA (3) | I109: =SUM(K109:AR109) -> 2578.770833 | J109: 305.7708333 | K109: =+K110 -> 51.45833333 | L109: =+L110 -> 51.05208333 | M109: 49.02083333 | N109: 50.23958333 | O109: 47.53125 | P109: 56.46875 | Q109: 43 | R109: 47 | S109: 46 | T109: 51 | U109: 43 | V109: 79 | W109: 53 | X109: 45 | Y109: 46 | Z109: 60 | AA109: 62 | AB109: 59 | AC109: 52 | AD109: 55 | AE109: 207 | AF109: 179 | AG109: 162 | AH109: 128 | AI109: 133 | AJ109: 128 | AK109: 100 | AL109: 129 | AM109: 106 | AN109: 69 | AO109: 54 | AP109: 59 | AQ109: 42 | AR109: 36 | AT109: 65 | AU109: 5 | AV109: 26 | AW109: 23 | AX109: 54
B110: 1 | C110: 78 | D110: 130303 | E110: CONDORMARCA | F110: 00005369 | G110: Puesto de salud | H110: CONDORMARCA | I110: =SUM(K110:AR110) -> 2578.770833 | J110: 305.7708333 | K110: 51.45833333 | L110: 51.05208333 | M110: 49.02083333 | N110: 50.23958333 | O110: 47.53125 | P110: 56.46875 | Q110: 43 | R110: 47 | S110: 46 | T110: 51 | U110: 43 | V110: 79 | W110: 53 | X110: 45 | Y110: 46 | Z110: 60 | AA110: 62 | AB110: 59 | AC110: 52 | AD110: 55 | AE110: 207 | AF110: 179 | AG110: 162 | AH110: 128 | AI110: 133 | AJ110: 128 | AK110: 100 | AL110: 129 | AM110: 106 | AN110: 69 | AO110: 54 | AP110: 59 | AQ110: 42 | AR110: 36 | AT110: 65 | AU110: 5 | AV110: 26 | AW110: 23 | AX110: 54
D111: 130304 | E111: LONGOTEA (4) | I111: =SUM(K111:AR111) -> 2423.837209 | J111: 384.8372093 | K111: =SUM(K112:K113) -> 47.3255814 | L111: =SUM(L112:L113) -> 58.39534884 | M111: 69.74418605 | N111: 65.34883721 | O111: 71.23255814 | P111: 72.79069767 | Q111: 29 | R111: 46 | S111: 40 | T111: 43 | U111: 39 | V111: 45 | W111: 50 | X111: 46 | Y111: 39 | Z111: 37 | AA111: 45 | AB111: 54 | AC111: 42 | AD111: 35 | AE111: 152 | AF111: 149 | AG111: 126 | AH111: 142 | AI111: 134 | AJ111: 136 | AK111: 136 | AL111: 113 | AM111: 106 | AN111: 83 | AO111: 61 | AP111: 53 | AQ111: 28 | AR111: 30 | AT111: 45 | AU111: 4 | AV111: 18 | AW111: 19 | AX111: 40
B112: 1 | C112: 79 | D112: 130304 | E112: LONGOTEA | F112: 00005371 | G112: Puesto de salud | H112: LONGOTEA | I112: =SUM(K112:AR112) -> 653.8604651 | J112: 84.8372093 | K112: 10.3255814 | L112: 13.39534884 | M112: 16.74418605 | N112: 15.34883721 | O112: 14.23255814 | P112: 14.79069767 | Q112: 8.093023256 | R112: 12.8372093 | S112: 11.1627907 | T112: 12 | U112: 10.88372093 | V112: 12.55813953 | W112: 13.95348837 | X112: 12.8372093 | Y112: 10.88372093 | Z112: 10.3255814 | AA112: 12.55813953 | AB112: 15.06976744 | AC112: 11.72093023 | AD112: 9.76744186 | AE112: 42.41860465 | AF112: 41.58139535 | AG112: 35.1627907 | AH112: 39.62790698 | AI112: 37.39534884 | AJ112: 37.95348837 | AK112: 37.95348837 | AL112: 31.53488372 | AM112: 29.58139535 | AN112: 23.1627907 | AO112: 17.02325581 | AP112: 14.79069767 | AQ112: 7.813953488 | AR112: 8.372093023 | AT112: 12.55813953 | AU112: 1.11627907 | AV112: 5.023255814 | AW112: 5.302325581 | AX112: 11.1627907
B113: 2 | C113: 80 | D113: 130304 | E113: LONGOTEA | F113: 00005372 | G113: Centro de salud | H113: PUSAC | I113: 1769.976744 | J113: 300 | K113: 37 | L113: 45 | M113: 53 | N113: 50 | O113: 57 | P113: 58 | Q113: 20.90697674 | R113: 33.1627907 | S113: 28.8372093 | T113: 31 | U113: 28.11627907 | V113: 32.44186047 | W113: 36.04651163 | X113: 33.1627907 | Y113: 28.11627907 | Z113: 26.6744186 | AA113: 32.44186047 | AB113: 38.93023256 | AC113: 30.27906977 | AD113: 25.23255814 | AE113: 109.5813953 | AF113: 107.4186047 | AG113: 90.8372093 | AH113: 102.372093 | AI113: 96.60465116 | AJ113: 98.04651163 | AK113: 98.04651163 | AL113: 81.46511628 | AM113: 76.41860465 | AN113: 59.8372093 | AO113: 43.97674419 | AP113: 38.20930233 | AQ113: 20.18604651 | AR113: 21.62790698 | AT113: 32.44186047 | AU113: 2.88372093 | AV113: 12.97674419 | AW113: 13.69767442 | AX113: 28.8372093
D114: 130305 | E114: UCHUMARCA (5) | I114: =SUM(K114:AR114) -> 2642 | J114: 121 | K114: =+K115 -> 19 | L114: =+L115 -> 22 | M114: 17 | N114: 20 | O114: 22 | P114: 21 | Q114: 43 | R114: 51 | S114: 47 | T114: 49 | U114: 64 | V114: 53 | W114: 62 | X114: 62 | Y114: 63 | Z114: 61 | AA114: 64 | AB114: 88 | AC114: 84 | AD114: 48 | AE114: 203 | AF114: 198 | AG114: 149 | AH114: 168 | AI114: 150 | AJ114: 147 | AK114: 158 | AL114: 134 | AM114: 102 | AN114: 82 | AO114: 68 | AP114: 56 | AQ114: 37 | AR114: 30 | AT114: 37 | AU114: 2 | AV114: 20 | AW114: 9 | AX114: 42
B115: 1 | C115: 81 | D115: 130305 | E115: UCHUMARCA | F115: 00005373 | G115: Puesto de salud | H115: UCHUMARCA | I115: =SUM(K115:AR115) -> 2642 | J115: 121 | K115: 19 | L115: 22 | M115: 17 | N115: 20 | O115: 22 | P115: 21 | Q115: 43 | R115: 51 | S115: 47 | T115: 49 | U115: 64 | V115: 53 | W115: 62 | X115: 62 | Y115: 63 | Z115: 61 | AA115: 64 | AB115: 88 | AC115: 84 | AD115: 48 | AE115: 203 | AF115: 198 | AG115: 149 | AH115: 168 | AI115: 150 | AJ115: 147 | AK115: 158 | AL115: 134 | AM115: 102 | AN115: 82 | AO115: 68 | AP115: 56 | AQ115: 37 | AR115: 30 | AT115: 37 | AU115: 2 | AV115: 20 | AW115: 9 | AX115: 42
D116: 130306 | E116: UCUNCHA (6) | I116: =SUM(K116:AR116) -> 1416.965278 | J116: 148.9652778 | K116: =+K117 -> 25.06944444 | L116: =+L117 -> 24.87152778 | M116: 23.88194444 | N116: 24.47569444 | O116: 23.15625 | P116: 27.51041667 | Q116: 26 | R116: 24 | S116: 28 | T116: 31 | U116: 12 | V116: 31 | W116: 32 | X116: 17 | Y116: 34 | Z116: 36 | AA116: 30 | AB116: 40 | AC116: 33 | AD116: 24 | AE116: 114 | AF116: 80 | AG116: 96 | AH116: 106 | AI116: 78 | AJ116: 82 | AK116: 69 | AL116: 70 | AM116: 55 | AN116: 44 | AO116: 34 | AP116: 20 | AQ116: 13 | AR116: 9 | AT116: 29 | AU116: 3 | AV116: 13 | AW116: 9 | AX116: 45
B117: 1 | C117: 82 | D117: 130306 | E117: UCUNCHA | F117: 00005374 | G117: Puesto de salud | H117: UCUNCHA | I117: =SUM(K117:AR117) -> 1416.965278 | J117: 148.9652778 | K117: 25.06944444 | L117: 24.87152778 | M117: 23.88194444 | N117: 24.47569444 | O117: 23.15625 | P117: 27.51041667 | Q117: 26 | R117: 24 | S117: 28 | T117: 31 | U117: 12 | V117: 31 | W117: 32 | X117: 17 | Y117: 34 | Z117: 36 | AA117: 30 | AB117: 40 | AC117: 33 | AD117: 24 | AE117: 114 | AF117: 80 | AG117: 96 | AH117: 106 | AI117: 78 | AJ117: 82 | AK117: 69 | AL117: 70 | AM117: 55 | AN117: 44 | AO117: 34 | AP117: 20 | AQ117: 13 | AR117: 9 | AT117: 29 | AU117: 3 | AV117: 13 | AW117: 9 | AX117: 45
D118: 130400 | E118: CHEPÉN (4) | I118: =SUM(K118:AR118) -> 95098.10157 | J118: 8762.10157 | K118: =+K119+K122+K125 -> 1428.499538 | L118: 1380.716528 | M118: 1441.43952 | N118: 1535.00554 | O118: 1425.508772 | P118: 1550.931671 | Q118: 1426 | R118: 1457 | S118: 1515 | T118: 1531 | U118: 1532 | V118: 1557 | W118: 1562 | X118: 1541 | Y118: 1541 | Z118: 1628 | AA118: 1601 | AB118: 1712 | AC118: 1469 | AD118: 1365 | AE118: 7043 | AF118: 7656 | AG118: 6703 | AH118: 6429 | AI118: 6208 | AJ118: 6149 | AK118: 5557 | AL118: 5007 | AM118: 4175 | AN118: 3234 | AO118: 2359 | AP118: 1830 | AQ118: 1280 | AR118: 1269 | AT118: =+AT119+AT122+AT125 -> 1697 | AU118: 99 | AV118: 732 | AW118: 638 | AX118: 1789
D119: 130401 | E119: CHEPÉN (1) | I119: =SUM(K119:AR119) -> 60810.23638 | J119: 6192.23638 | K119: =SUM(K120:K121) -> 1008.871653 | L119: =SUM(L120:L121) -> 975.1948292 | M119: 1018.186519 | N119: 1085.540166 | O119: 1007.438596 | P119: 1097.004617 | Q119: 864 | R119: 910 | S119: 946 | T119: 922 | U119: 920 | V119: 960 | W119: 930 | X119: 938 | Y119: 933 | Z119: 973 | AA119: 985 | AB119: 1039 | AC119: 881 | AD119: 827 | AE119: 4354 | AF119: 4724 | AG119: 4160 | AH119: 4009 | AI119: 3838 | AJ119: 3933 | AK119: 3649 | AL119: 3341 | AM119: 2824 | AN119: 2179 | AO119: 1562 | AP119: 1220 | AQ119: 877 | AR119: 920 | AT119: 999 | AU119: 57 | AV119: 397 | AW119: 389 | AX119: 1210
B120: 1 | C120: 83 | D120: 130401 | E120: CHEPÉN | F120: 00005299 | G120: Hospital DE APOYO | H120: CHEPEN | I120: =SUM(K120:AR120) -> 50850.02666 | J120: 4899.527239 | K120: 798.2566944 | L120: 771.6103416 | M120: 805.6269621 | N120: 858.9196676 | O120: 797.122807 | P120: 867.9907664 | Q120: 726.8891482 | R120: 765.5892649 | S120: 795.8763127 | T120: 775.6849475 | U120: 774.0023337 | V120: 807.6546091 | W120: 782.4154026 | X120: 789.1458576 | Y120: 784.9393232 | Z120: 818.5915986 | AA120: 828.6872812 | AB120: 874.117853 | AC120: 741.1913652 | AD120: 695.7607935 | AE120: 3663.050175 | AF120: 3974.333722 | AG120: 3499.836639 | AH120: 3372.7993 | AI120: 3228.935823 | AJ120: 3308.859977 | AK120: 3069.928821 | AL120: 2810.806301 | AM120: 2375.850642 | AN120: 1833.207701 | AO120: 1314.121354 | AP120: 1026.394399 | AQ120: 737.8261377 | AR120: 774.0023337 | AT120: 840.4655776 | AU120: 47.95449242 | AV120: 333.9988331 | AW120: 327.2683781 | AX120: 1017.98133
B121: 2 | C121: 84 | D121: 130401 | E121: CHEPÉN | F121: 00005300 | G121: Puesto de salud | H121: CHEQUEN | I121: 9960.209725 | J121: 1292.709141 | K121: 210.6149584 | L121: 203.5844875 | M121: 212.5595568 | N121: 226.6204986 | O121: 210.3157895 | P121: 229.0138504 | Q121: 137.1108518 | R121: 144.4107351 | S121: 150.1236873 | T121: 146.3150525 | U121: 145.9976663 | V121: 152.3453909 | W121: 147.5845974 | X121: 148.8541424 | Y121: 148.0606768 | Z121: 154.4084014 | AA121: 156.3127188 | AB121: 164.882147 | AC121: 139.8086348 | AD121: 131.2392065 | AE121: 690.949825 | AF121: 749.6662777 | AG121: 660.1633606 | AH121: 636.2007001 | AI121: 609.0641774 | AJ121: 624.1400233 | AK121: 579.0711785 | AL121: 530.1936989 | AM121: 448.1493582 | AN121: 345.7922987 | AO121: 247.8786464 | AP121: 193.6056009 | AQ121: 139.1738623 | AR121: 145.9976663 | AT121: 158.5344224 | AU121: 9.045507585 | AV121: 63.00116686 | AW121: 61.73162194 | AX121: 192.0186698
D122: 130402 | E122: PACANGA (2) | I122: =SUM(K122:AR122) -> 20155.6325 | J122: 1715.632502 | K122: =SUM(K123:K124) -> 279.5198523 | L122: =SUM(L123:L124) -> 270.189289 | M122: 282.1006464 | N122: 300.7617729 | O122: 279.122807 | P122: 303.9381348 | Q122: 359 | R122: 335 | S122: 345 | T122: 379 | U122: 384 | V122: 372 | W122: 360 | X122: 358 | Y122: 360 | Z122: 377 | AA122: 347 | AB122: 376 | AC122: 357 | AD122: 321 | AE122: 1626 | AF122: 1797 | AG122: 1519 | AH122: 1423 | AI122: 1316 | AJ122: 1261 | AK122: 1096 | AL122: 940 | AM122: 721 | AN122: 562 | AO122: 406 | AP122: 317 | AQ122: 225 | AR122: 201 | AT122: 509 | AU122: 34 | AV122: 248 | AW122: 163 | AX122: 364
B123: 1 | C123: 85 | D123: 130402 | E123: PACANGA | F123: 00005301 | G123: Centro de salud | H123: PACANGA | I123: =SUM(K123:AR123) -> 4794.991181 | J123: 414.943675 | K123: 67.60480148 | L123: 65.34810711 | M123: 68.22899354 | N123: 72.74238227 | O123: 67.50877193 | P123: 73.51061865 | Q123: 85.27315914 | R123: 79.57244656 | S123: 81.94774347 | T123: 90.02375297 | U123: 91.21140143 | V123: 88.36104513 | W123: 85.51068884 | X123: 85.03562945 | Y123: 85.51068884 | Z123: 89.54869359 | AA123: 82.42280285 | AB123: 89.3111639 | AC123: 84.79809976 | AD123: 76.24703088 | AE123: 386.2232779 | AF123: 426.8408551 | AG123: 360.807601 | AH123: 338.0047506 | AI123: 312.5890736 | AJ123: 299.5249406 | AK123: 260.3325416 | AL123: 223.2779097 | AM123: 171.2589074 | AN123: 133.4916865 | AO123: 96.43705463 | AP123: 75.29691211 | AQ123: 53.44418052 | AR123: 47.74346793 | AT123: 120.9026128 | AU123: 8.076009501 | AV123: 58.90736342 | AW123: 38.71733967 | AX123: 86.4608076
B124: 2 | C124: 86 | D124: 130402 | E124: PACANGA | F124: 00005302 | G124: Centro de salud | H124: PACANGUILLA | I124: 15360.64132 | J124: 1300.688827 | K124: 211.9150508 | L124: 204.8411819 | M124: 213.8716528 | N124: 228.0193906 | O124: 211.6140351 | P124: 230.4275162 | Q124: 273.7268409 | R124: 255.4275534 | S124: 263.0522565 | T124: 288.976247 | U124: 292.7885986 | V124: 283.6389549 | W124: 274.4893112 | X124: 272.9643705 | Y124: 274.4893112 | Z124: 287.4513064 | AA124: 264.5771971 | AB124: 286.6888361 | AC124: 272.2019002 | AD124: 244.7529691 | AE124: 1239.776722 | AF124: 1370.159145 | AG124: 1158.192399 | AH124: 1084.995249 | AI124: 1003.410926 | AJ124: 961.4750594 | AK124: 835.6674584 | AL124: 716.7220903 | AM124: 549.7410926 | AN124: 428.5083135 | AO124: 309.5629454 | AP124: 241.7030879 | AQ124: 171.5558195 | AR124: 153.2565321 | AT124: 388.0973872 | AU124: 25.9239905 | AV124: 189.0926366 | AW124: 124.2826603 | AX124: 277.5391924
D125: 130403 | E125: PUEBLO NUEVO (3) | I125: =SUM(K125:AR125) -> 14132.23269 | J125: 854.232687 | K125: =SUM(K126:K128) -> 140.1080332 | L125: =SUM(L126:L128) -> 135.33241 | M125: 141.1523546 | N125: 148.7036011 | O125: 138.9473684 | P125: 149.9889197 | Q125: 203 | R125: 212 | S125: 224 | T125: 230 | U125: 228 | V125: 225 | W125: 272 | X125: 245 | Y125: 248 | Z125: 278 | AA125: 269 | AB125: 297 | AC125: 231 | AD125: 217 | AE125: 1063 | AF125: 1135 | AG125: 1024 | AH125: 997 | AI125: 1054 | AJ125: 955 | AK125: 812 | AL125: 726 | AM125: 630 | AN125: 493 | AO125: 391 | AP125: 293 | AQ125: 178 | AR125: 148 | AT125: 189 | AU125: 8 | AV125: 87 | AW125: 86 | AX125: 215
B126: 1 | C126: 87 | D126: 130403 | E126: PUEBLO NUEVO | F126: 00005303 | G126: Centro de salud | H126: PUEBLO NUEVO | I126: =SUM(K126:AR126) -> 8098.128479 | J126: 510.6999077 | K126: 83.20590951 | L126: 80.42843952 | M126: 83.97414589 | N126: 89.52908587 | O126: 83.0877193 | P126: 90.47460757 | Q126: 116 | R126: 121.1428571 | S126: 128 | T126: 131.4285714 | U126: 130.2857143 | V126: 128.5714286 | W126: 155.4285714 | X126: 140 | Y126: 141.7142857 | Z126: 158.8571429 | AA126: 153.7142857 | AB126: 169.7142857 | AC126: 132 | AD126: 124 | AE126: 607.4285714 | AF126: 648.5714286 | AG126: 585.1428571 | AH126: 569.7142857 | AI126: 602.2857143 | AJ126: 545.7142857 | AK126: 464 | AL126: 414.8571429 | AM126: 360 | AN126: 281.7142857 | AO126: 223.4285714 | AP126: 167.4285714 | AQ126: 101.7142857 | AR126: 84.57142857 | AT126: 108 | AU126: 4.571428571 | AV126: 49.71428571 | AW126: 49.14285714 | AX126: 122.8571429
B127: 2 | C127: 88 | D127: 130403 | E127: PUEBLO NUEVO | F127: 00005305 | G127: Puesto de salud | H127: SANTA ROSA | I127: 3757.487685 | J127: 160 | K127: 27 | L127: 26 | M127: 27 | N127: 27 | O127: 26 | P127: 27 | Q127: 55 | R127: 57.43842365 | S127: 60.68965517 | T127: 62.31527094 | U127: 61.77339901 | V127: 60.96059113 | W127: 73.69458128 | X127: 66.37931034 | Y127: 67.19211823 | Z127: 75.32019704 | AA127: 72.8817734 | AB127: 80.4679803 | AC127: 62.5862069 | AD127: 58.79310345 | AE127: 288.0049261 | AF127: 307.5123153 | AG127: 277.4384236 | AH127: 270.1231527 | AI127: 285.5665025 | AJ127: 258.7438424 | AK127: 220 | AL127: 196.6995074 | AM127: 170.6896552 | AN127: 133.5714286 | AO127: 105.9359606 | AP127: 79.38423645 | AQ127: 48.22660099 | AR127: 40.09852217 | AT127: 51.20689655 | AU127: 2.167487685 | AV127: 23.57142857 | AW127: 23.30049261 | AX127: 58.25123153
B128: 3 | C128: 89 | D128: 130403 | E128: PUEBLO NUEVO | F128: 00005304 | G128: Puesto de salud | H128: SAN IDELFONSO | I128: 2276.616523 | J128: 183.5327793 | K128: 29.90212373 | L128: 28.90397045 | M128: 30.17820868 | N128: 32.17451524 | O128: 29.85964912 | P128: 32.5143121 | Q128: 32 | R128: 33.41871921 | S128: 35.31034483 | T128: 36.25615764 | U128: 35.9408867 | V128: 35.4679803 | W128: 42.87684729 | X128: 38.62068966 | Y128: 39.09359606 | Z128: 43.8226601 | AA128: 42.40394089 | AB128: 46.81773399 | AC128: 36.4137931 | AD128: 34.20689655 | AE128: 167.5665025 | AF128: 178.9162562 | AG128: 161.4187192 | AH128: 157.1625616 | AI128: 166.1477833 | AJ128: 150.5418719 | AK128: 128 | AL128: 114.4433498 | AM128: 99.31034483 | AN128: 77.71428571 | AO128: 61.63546798 | AP128: 46.18719212 | AQ128: 28.0591133 | AR128: 23.33004926 | AT128: 29.79310345 | AU128: 1.261083744 | AV128: 13.71428571 | AW128: 13.55665025 | AX128: 33.89162562
D129: 130500 | E129: JULCÁN (5) | G129: JULCÁN (5) | I129: =SUM(K129:AR129) -> 37954.92105 | J129: 3515.921053 | K129: =+K130+K138+K144+K148 -> 660 | L129: 605.5 | M129: 556.7631579 | N129: 561.6052632 | O129: 549 | P129: 583.0526316 | Q129: 626 | R129: 708 | S129: 679 | T129: 624 | U129: 649 | V129: 678 | W129: 790 | X129: 785 | Y129: 733 | Z129: 808 | AA129: 889 | AB129: 785 | AC129: 756 | AD129: 660 | AE129: 3296 | AF129: 3341 | AG129: 2536 | AH129: 2460 | AI129: 2133 | AJ129: 2133 | AK129: 1931 | AL129: 1643 | AM129: 1203 | AN129: 1029 | AO129: 867 | AP129: 699 | AQ129: 532 | AR129: 466 | AT129: =+AT130+AT138+AT144+AT148 -> 773 | AU129: 35 | AV129: 329 | AW129: 305 | AX129: 1030
D130: 130501 | E130: JULCÁN (1) | I130: =SUM(K130:AR130) -> 15204.88158 | J130: 1394.881579 | K130: =SUM(K131:K137) -> 261.3571429 | L130: =SUM(L131:L137) -> 240.1785714 | M130: 221.5018797 | N130: 222.8364662 | O130: 218 | P130: 231.0075188 | Q130: 218 | R130: 261 | S130: 265 | T130: 232 | U130: 220 | V130: 262 | W130: 287 | X130: 274 | Y130: 250 | Z130: 290 | AA130: 352 | AB130: 274 | AC130: 264 | AD130: 230 | AE130: 1191 | AF130: 1317 | AG130: 1030 | AH130: 976 | AI130: 886 | AJ130: 902 | AK130: 879 | AL130: 689 | AM130: 537 | AN130: 507 | AO130: 413 | AP130: 348 | AQ130: 235 | AR130: 221 | AT130: 279 | AU130: 16 | AV130: 130 | AW130: 113 | AX130: 380
B131: 1 | C131: 90 | D131: 130501 | E131: JULCÁN | F131: 00005306 | G131: Hospital | H131: JULCAN | I131: =SUM(K131:AR131) -> 7294.529588 | J131: 791.4078947 | K131: 149.3571429 | L131: 136.1785714 | M131: 125.0808271 | N131: 126.4680451 | O131: 123 | P131: 131.3233083 | Q131: 102.6560847 | R131: 122.9047619 | S131: 124.7883598 | T131: 109.2486772 | U131: 103.5978836 | V131: 123.3756614 | W131: 135.1481481 | X131: 129.026455 | Y131: 117.7248677 | Z131: 136.5608466 | AA131: 165.7566138 | AB131: 129.026455 | AC131: 124.3174603 | AD131: 108.3068783 | AE131: 560.8412698 | AF131: 620.1746032 | AG131: 485.026455 | AH131: 459.5978836 | AI131: 417.2169312 | AJ131: 424.7513228 | AK131: 413.9206349 | AL131: 324.4497354 | AM131: 252.8730159 | AN131: 238.7460317 | AO131: 194.4814815 | AP131: 163.8730159 | AQ131: 110.6613757 | AR131: 104.0687831 | AT131: 131.3809524 | AU131: 7.534391534 | AV131: 61.21693122 | AW131: 53.21164021 | AX131: 178.9417989
B132: 2 | C132: 91 | D132: 130501 | E132: JULCÁN | F132: 00006775 | G132: Centro de salud | H132: AYANGAY | I132: 2359.352966 | J132: 167.2894737 | K132: 31.57142857 | L132: 28.78571429 | M132: 26.43984962 | N132: 26.73308271 | O132: 26 | P132: 27.7593985 | Q132: 34.6031746 | R132: 41.42857143 | S132: 42.06349206 | T132: 36.82539683 | U132: 34.92063492 | V132: 41.58730159 | W132: 45.55555556 | X132: 43.49206349 | Y132: 39.68253968 | Z132: 46.03174603 | AA132: 55.87301587 | AB132: 43.49206349 | AC132: 41.9047619 | AD132: 36.50793651 | AE132: 189.047619 | AF132: 209.047619 | AG132: 163.4920635 | AH132: 154.9206349 | AI132: 140.6349206 | AJ132: 143.1746032 | AK132: 139.5238095 | AL132: 109.3650794 | AM132: 85.23809524 | AN132: 80.47619048 | AO132: 65.55555556 | AP132: 55.23809524 | AQ132: 37.3015873 | AR132: 35.07936508 | AT132: 44.28571429 | AU132: 2.53968254 | AV132: 20.63492063 | AW132: 17.93650794 | AX132: 60.31746032
B133: 3 | C133: 92 | D133: 130501 | E133: JULCÁN | F133: 00007249 | G133: Puesto de salud | H133: SAN AGUSTIN | I133: 868.098719 | J133: 64.34210526 | K133: 12.14285714 | L133: 11.07142857 | M133: 10.16917293 | N133: 10.28195489 | O133: 10 | P133: 10.67669173 | Q133: 12.68783069 | R133: 15.19047619 | S133: 15.42328042 | T133: 13.5026455 | U133: 12.8042328 | V133: 15.24867725 | W133: 16.7037037 | X133: 15.94708995 | Y133: 14.55026455 | Z133: 16.87830688 | AA133: 20.48677249 | AB133: 15.94708995 | AC133: 15.36507937 | AD133: 13.38624339 | AE133: 69.31746032 | AF133: 76.65079365 | AG133: 59.94708995 | AH133: 56.8042328 | AI133: 51.56613757 | AJ133: 52.4973545 | AK133: 51.15873016 | AL133: 40.1005291 | AM133: 31.25396825 | AN133: 29.50793651 | AO133: 24.03703704 | AP133: 20.25396825 | AQ133: 13.67724868 | AR133: 12.86243386 | AT133: 16.23809524 | AU133: 0.9312169312 | AV133: 7.566137566 | AW133: 6.576719577 | AX133: 22.11640212
B134: 4 | C134: 93 | D134: 130501 | E134: JULCÁN | F134: 00006963 | G134: Puesto de salud | H134: CHUGURPAMPA | I134: 887.4013506 | J134: 83.64473684 | K134: 15.78571429 | L134: 14.39285714 | M134: 13.21992481 | N134: 13.36654135 | O134: 13 | P134: 13.87969925 | Q134: 12.68783069 | R134: 15.19047619 | S134: 15.42328042 | T134: 13.5026455 | U134: 12.8042328 | V134: 15.24867725 | W134: 16.7037037 | X134: 15.94708995 | Y134: 14.55026455 | Z134: 16.87830688 | AA134: 20.48677249 | AB134: 15.94708995 | AC134: 15.36507937 | AD134: 13.38624339 | AE134: 69.31746032 | AF134: 76.65079365 | AG134: 59.94708995 | AH134: 56.8042328 | AI134: 51.56613757 | AJ134: 52.4973545 | AK134: 51.15873016 | AL134: 40.1005291 | AM134: 31.25396825 | AN134: 29.50793651 | AO134: 24.03703704 | AP134: 20.25396825 | AQ134: 13.67724868 | AR134: 12.86243386 | AT134: 16.23809524 | AU134: 0.9312169312 | AV134: 7.566137566 | AW134: 6.576719577 | AX134: 22.11640212
B135: 5 | C135: 94 | D135: 130501 | E135: JULCÁN | F135: 00006774 | G135: Puesto de salud | H135: PARUQUE BAJO | I135: 1305.169312 | J135: 63 | K135: 10 | L135: 11 | M135: 11 | N135: 10 | O135: 11 | P135: 10 | Q135: 19.60846561 | R135: 23.47619048 | S135: 23.83597884 | T135: 20.86772487 | U135: 19.78835979 | V135: 23.56613757 | W135: 25.81481481 | X135: 24.64550265 | Y135: 22.48677249 | Z135: 26.08465608 | AA135: 31.66137566 | AB135: 24.64550265 | AC135: 23.74603175 | AD135: 20.68783069 | AE135: 107.1269841 | AF135: 118.4603175 | AG135: 92.64550265 | AH135: 87.78835979 | AI135: 79.69312169 | AJ135: 81.13227513 | AK135: 79.06349206 | AL135: 61.97354497 | AM135: 48.3015873 | AN135: 45.6031746 | AO135: 37.14814815 | AP135: 31.3015873 | AQ135: 21.13756614 | AR135: 19.87830688 | AT135: 25.0952381 | AU135: 1.439153439 | AV135: 11.69312169 | AW135: 10.16402116 | AX135: 34.17989418
B136: 6 | C136: 95 | D136: 130501 | E136: JULCÁN | F136: 00005307 | G136: Puesto de salud | H136: SANTA TERESA | I136: 1001.367864 | J136: 51.47368421 | K136: 9.714285714 | L136: 8.857142857 | M136: 8.135338346 | N136: 8.22556391 | O136: 8 | P136: 8.541353383 | Q136: 14.99470899 | R136: 17.95238095 | S136: 18.22751323 | T136: 15.95767196 | U136: 15.13227513 | V136: 18.02116402 | W136: 19.74074074 | X136: 18.84656085 | Y136: 17.1957672 | Z136: 19.94708995 | AA136: 24.21164021 | AB136: 18.84656085 | AC136: 18.15873016 | AD136: 15.82010582 | AE136: 81.92063492 | AF136: 90.58730159 | AG136: 70.84656085 | AH136: 67.13227513 | AI136: 60.94179894 | AJ136: 62.04232804 | AK136: 60.46031746 | AL136: 47.39153439 | AM136: 36.93650794 | AN136: 34.87301587 | AO136: 28.40740741 | AP136: 23.93650794 | AQ136: 16.16402116 | AR136: 15.2010582 | AT136: 19.19047619 | AU136: 1.100529101 | AV136: 8.941798942 | AW136: 7.772486772 | AX136: 26.13756614
B137: 7 | C137: 96 | D137: 130501 | E137: JULCÁN | F137: 00016423 | G137: Puesto de salud | H137: SAN ANTONIO DE JULCAN | I137: 1488.961779 | J137: 173.7236842 | K137: 32.78571429 | L137: 29.89285714 | M137: 27.45676692 | N137: 27.7612782 | O137: 27 | P137: 28.82706767 | Q137: 20.76190476 | R137: 24.85714286 | S137: 25.23809524 | T137: 22.0952381 | U137: 20.95238095 | V137: 24.95238095 | W137: 27.33333333 | X137: 26.0952381 | Y137: 23.80952381 | Z137: 27.61904762 | AA137: 33.52380952 | AB137: 26.0952381 | AC137: 25.14285714 | AD137: 21.9047619 | AE137: 113.4285714 | AF137: 125.4285714 | AG137: 98.0952381 | AH137: 92.95238095 | AI137: 84.38095238 | AJ137: 85.9047619 | AK137: 83.71428571 | AL137: 65.61904762 | AM137: 51.14285714 | AN137: 48.28571429 | AO137: 39.33333333 | AP137: 33.14285714 | AQ137: 22.38095238 | AR137: 21.04761905 | AT137: 26.57142857 | AU137: 1.523809524 | AV137: 12.38095238 | AW137: 10.76190476 | AX137: 36.19047619
D138: 130502 | E138: CALAMARCA (2) | I138: =SUM(K138:AR138) -> 7478.25 | J138: 661.25 | K138: =SUM(K139:K143) -> 124.3571429 | L138: =SUM(L139:L143) -> 114.1785714 | M138: 104.6071429 | N138: 105.6785714 | O138: 103 | P138: 109.4285714 | Q138: 103 | R138: 114 | S138: 106 | T138: 110 | U138: 126 | V138: 124 | W138: 149 | X138: 171 | Y138: 146 | Z138: 148 | AA138: 173 | AB138: 150 | AC138: 148 | AD138: 131 | AE138: 622 | AF138: 731 | AG138: 525 | AH138: 500 | AI138: 464 | AJ138: 416 | AK138: 372 | AL138: 361 | AM138: 228 | AN138: 173 | AO138: 168 | AP138: 137 | AQ138: 112 | AR138: 109 | AT138: 164 | AU138: 5 | AV138: 62 | AW138: 63 | AX138: 225
B139: 1 | C139: 97 | D139: 130502 | E139: CALAMARCA | F139: 00005308 | G139: Centro de salud con camas de internamiento | H139: CALAMARCA | I139: =SUM(K139:AR139) -> 2752.992105 | J139: 186.5921053 | K139: 35.21428571 | L139: 32.10714286 | M139: 29.4906015 | N139: 29.81766917 | O139: 29 | P139: 30.96240602 | Q139: 38.77647059 | R139: 42.91764706 | S139: 39.90588235 | T139: 41.41176471 | U139: 47.43529412 | V139: 46.68235294 | W139: 56.09411765 | X139: 64.37647059 | Y139: 54.96470588 | Z139: 55.71764706 | AA139: 65.12941176 | AB139: 56.47058824 | AC139: 55.71764706 | AD139: 49.31764706 | AE139: 234.1647059 | AF139: 275.2 | AG139: 197.6470588 | AH139: 188.2352941 | AI139: 174.6823529 | AJ139: 156.6117647 | AK139: 140.0470588 | AL139: 135.9058824 | AM139: 85.83529412 | AN139: 65.12941176 | AO139: 63.24705882 | AP139: 51.57647059 | AQ139: 42.16470588 | AR139: 41.03529412 | AT139: 61.74117647 | AU139: 1.882352941 | AV139: 23.34117647 | AW139: 23.71764706 | AX139: 84.70588235
B140: 2 | C140: 98 | D140: 130502 | E140: CALAMARCA | F140: 00005309 | G140: Centro de salud | H140: SICCHAL | I140: 2409.9 | J140: 244.5 | K140: 46.14285714 | L140: 42.07142857 | M140: 38.64285714 | N140: 39.07142857 | O140: 38 | P140: 40.57142857 | Q140: 32.71764706 | R140: 36.21176471 | S140: 33.67058824 | T140: 34.94117647 | U140: 40.02352941 | V140: 39.38823529 | W140: 47.32941176 | X140: 54.31764706 | Y140: 46.37647059 | Z140: 47.01176471 | AA140: 54.95294118 | AB140: 47.64705882 | AC140: 47.01176471 | AD140: 41.61176471 | AE140: 197.5764706 | AF140: 232.2 | AG140: 166.7647059 | AH140: 158.8235294 | AI140: 147.3882353 | AJ140: 132.1411765 | AK140: 118.1647059 | AL140: 114.6705882 | AM140: 72.42352941 | AN140: 54.95294118 | AO140: 53.36470588 | AP140: 43.51764706 | AQ140: 35.57647059 | AR140: 34.62352941 | AT140: 52.09411765 | AU140: 1.588235294 | AV140: 19.69411765 | AW140: 20.01176471 | AX140: 71.47058824
B141: 3 | C141: 99 | D141: 130502 | E141: CALAMARCA | F141: 00007247 | G141: Puesto de salud | H141: BARRO NEGRO | I141: 677.2157895 | J141: =+SUM(K141:P141) -> 115.8157895 | K141: 21.85714286 | L141: 19.92857143 | M141: 18.30451128 | N141: 18.5075188 | O141: 18 | P141: 19.21804511 | Q141: 8.482352941 | R141: 9.388235294 | S141: 8.729411765 | T141: 9.058823529 | U141: 10.37647059 | V141: 10.21176471 | W141: 12.27058824 | X141: 14.08235294 | Y141: 12.02352941 | Z141: 12.18823529 | AA141: 14.24705882 | AB141: 12.35294118 | AC141: 12.18823529 | AD141: 10.78823529 | AE141: 51.22352941 | AF141: 60.2 | AG141: 43.23529412 | AH141: 41.17647059 | AI141: 38.21176471 | AJ141: 34.25882353 | AK141: 30.63529412 | AL141: 29.72941176 | AM141: 18.77647059 | AN141: 14.24705882 | AO141: 13.83529412 | AP141: 11.28235294 | AQ141: 9.223529412 | AR141: 8.976470588 | AT141: 13.50588235 | AU141: 0.4117647059 | AV141: 5.105882353 | AW141: 5.188235294 | AX141: 18.52941176
B142: 4 | C142: 100 | D142: 130502 | E142: CALAMARCA | F142: 00007248 | G142: Puesto de salud | H142: CHAZKA | I142: 771.8 | J142: 50 | K142: 9 | L142: 9 | M142: 8 | N142: 8 | O142: 8 | P142: 8 | Q142: 10.90588235 | R142: 12.07058824 | S142: 11.22352941 | T142: 11.64705882 | U142: 13.34117647 | V142: 13.12941176 | W142: 15.77647059 | X142: 18.10588235 | Y142: 15.45882353 | Z142: 15.67058824 | AA142: 18.31764706 | AB142: 15.88235294 | AC142: 15.67058824 | AD142: 13.87058824 | AE142: 65.85882353 | AF142: 77.4 | AG142: 55.58823529 | AH142: 52.94117647 | AI142: 49.12941176 | AJ142: 44.04705882 | AK142: 39.38823529 | AL142: 38.22352941 | AM142: 24.14117647 | AN142: 18.31764706 | AO142: 17.78823529 | AP142: 14.50588235 | AQ142: 11.85882353 | AR142: 11.54117647 | AT142: 17.36470588 | AU142: 0.5294117647 | AV142: 6.564705882 | AW142: 6.670588235 | AX142: 23.82352941
B143: 5 | C143: 101 | D143: 130502 | E143: CALAMARCA | F143: 00016424 | G143: Puesto de salud | H143: HUAGAL | I143: 866.3421053 | J143: 64.34210526 | K143: 12.14285714 | L143: 11.07142857 | M143: 10.16917293 | N143: 10.28195489 | O143: 10 | P143: 10.67669173 | Q143: 12.11764706 | R143: 13.41176471 | S143: 12.47058824 | T143: 12.94117647 | U143: 14.82352941 | V143: 14.58823529 | W143: 17.52941176 | X143: 20.11764706 | Y143: 17.17647059 | Z143: 17.41176471 | AA143: 20.35294118 | AB143: 17.64705882 | AC143: 17.41176471 | AD143: 15.41176471 | AE143: 73.17647059 | AF143: 86 | AG143: 61.76470588 | AH143: 58.82352941 | AI143: 54.58823529 | AJ143: 48.94117647 | AK143: 43.76470588 | AL143: 42.47058824 | AM143: 26.82352941 | AN143: 20.35294118 | AO143: 19.76470588 | AP143: 16.11764706 | AQ143: 13.17647059 | AR143: 12.82352941 | AT143: 19.29411765 | AU143: 0.5882352941 | AV143: 7.294117647 | AW143: 7.411764706 | AX143: 26.47058824
D144: 130503 | E144: CARABAMBA (3) | I144: =SUM(K144:AR144) -> 8102.328947 | J144: 771.3289474 | K144: =SUM(K145:K147) -> 144.3571429 | L144: =SUM(L145:L147) -> 132.6785714 | M144: 121.843985 | N144: 123.0733083 | O144: 121 | P144: 128.3759398 | Q144: 170 | R144: 192 | S144: 161 | T144: 125 | U144: 140 | V144: 137 | W144: 185 | X144: 168 | Y144: 171 | Z144: 184 | AA144: 182 | AB144: 192 | AC144: 172 | AD144: 152 | AE144: 787 | AF144: 704 | AG144: 543 | AH144: 538 | AI144: 413 | AJ144: 449 | AK144: 362 | AL144: 333 | AM144: 241 | AN144: 189 | AO144: 150 | AP144: 119 | AQ144: 105 | AR144: 67 | AT144: 200 | AU144: 10 | AV144: 82 | AW144: 70 | AX144: 252
B145: 1 | C145: 102 | D145: 130503 | E145: CARABAMBA | F145: 00005310 | G145: Centro de salud | H145: CARABAMBA | I145: =SUM(K145:AR145) -> 6405.340351 | J145: 662.7236842 | K145: 125.0714286 | L145: 114.0357143 | M145: 104.7424812 | N145: 105.9041353 | O145: 103 | P145: 109.9699248 | Q145: 133.1666667 | R145: 150.4 | S145: 126.1166667 | T145: 97.91666667 | U145: 109.6666667 | V145: 107.3166667 | W145: 144.9166667 | X145: 131.6 | Y145: 133.95 | Z145: 144.1333333 | AA145: 142.5666667 | AB145: 150.4 | AC145: 134.7333333 | AD145: 119.0666667 | AE145: 616.4833333 | AF145: 551.4666667 | AG145: 425.35 | AH145: 421.4333333 | AI145: 323.5166667 | AJ145: 351.7166667 | AK145: 283.5666667 | AL145: 260.85 | AM145: 188.7833333 | AN145: 148.05 | AO145: 117.5 | AP145: 93.21666667 | AQ145: 82.25 | AR145: 52.48333333 | AT145: 156.6666667 | AU145: 7.833333333 | AV145: 64.23333333 | AW145: 54.83333333 | AX145: 197.4
B146: 2 | C146: 103 | D146: 130503 | E146: CARABAMBA | F146: 00005311 | G146: Puesto de salud | H146: SAN JOSE DE SALO BAJO | I146: 588.4302632 | J146: 38.60526316 | K146: 7.285714286 | L146: 6.642857143 | M146: 6.101503759 | N146: 6.169172932 | O146: 6 | P146: 6.406015038 | Q146: 12.75 | R146: 14.4 | S146: 12.075 | T146: 9.375 | U146: 10.5 | V146: 10.275 | W146: 13.875 | X146: 12.6 | Y146: 12.825 | Z146: 13.8 | AA146: 13.65 | AB146: 14.4 | AC146: 12.9 | AD146: 11.4 | AE146: 59.025 | AF146: 52.8 | AG146: 40.725 | AH146: 40.35 | AI146: 30.975 | AJ146: 33.675 | AK146: 27.15 | AL146: 24.975 | AM146: 18.075 | AN146: 14.175 | AO146: 11.25 | AP146: 8.925 | AQ146: 7.875 | AR146: 5.025 | AT146: 15 | AU146: 0.75 | AV146: 6.15 | AW146: 5.25 | AX146: 18.9
B147: 3 | C147: 104 | D147: 130501 | E147: CARABAMBA | F147: 00006773 | G147: Puesto de salud | H147: VILLA MARIA | I147: 1108.558333 | J147: 70 | K147: 12 | L147: 12 | M147: 11 | N147: 11 | O147: 12 | P147: 12 | Q147: 24.08333333 | R147: 27.2 | S147: 22.80833333 | T147: 17.70833333 | U147: 19.83333333 | V147: 19.40833333 | W147: 26.20833333 | X147: 23.8 | Y147: 24.225 | Z147: 26.06666667 | AA147: 25.78333333 | AB147: 27.2 | AC147: 24.36666667 | AD147: 21.53333333 | AE147: 111.4916667 | AF147: 99.73333333 | AG147: 76.925 | AH147: 76.21666667 | AI147: 58.50833333 | AJ147: 63.60833333 | AK147: 51.28333333 | AL147: 47.175 | AM147: 34.14166667 | AN147: 26.775 | AO147: 21.25 | AP147: 16.85833333 | AQ147: 14.875 | AR147: 9.491666667 | AT147: 28.33333333 | AU147: 1.416666667 | AV147: 11.61666667 | AW147: 9.916666667 | AX147: 35.7
D148: 130504 | E148: HUASO (4) | I148: =SUM(K148:AR148) -> 7169.460526 | J148: 688.4605263 | K148: =SUM(K149:K155) -> 129.9285714 | L148: =SUM(L149:L155) -> 118.4642857 | M148: 108.8101504 | N148: 110.0169173 | O148: 107 | P148: 114.2406015 | Q148: 135 | R148: 141 | S148: 147 | T148: 157 | U148: 163 | V148: 155 | W148: 169 | X148: 172 | Y148: 166 | Z148: 186 | AA148: 182 | AB148: 169 | AC148: 172 | AD148: 147 | AE148: 696 | AF148: 589 | AG148: 438 | AH148: 446 | AI148: 370 | AJ148: 366 | AK148: 318 | AL148: 260 | AM148: 197 | AN148: 160 | AO148: 136 | AP148: 95 | AQ148: 80 | AR148: 69 | AT148: 130 | AU148: 4 | AV148: 55 | AW148: 59 | AX148: 173
B149: 1 | C149: 105 | D149: 130504 | E149: HUASO | F149: 00005312 | G149: Centro de salud con camas de internamiento | H149: HUASO | I149: =SUM(K149:AR149) -> 1295.297433 | J149: 135.1184211 | K149: 25.5 | L149: 23.25 | M149: 21.35526316 | N149: 21.59210526 | O149: 21 | P149: 22.42105263 | Q149: 24.16666667 | R149: 25.24074074 | S149: 26.31481481 | T149: 28.10493827 | U149: 29.17901235 | V149: 27.74691358 | W149: 30.25308642 | X149: 30.79012346 | Y149: 29.71604938 | Z149: 33.2962963 | AA149: 32.58024691 | AB149: 30.25308642 | AC149: 30.79012346 | AD149: 26.31481481 | AE149: 124.5925926 | AF149: 105.4382716 | AG149: 78.40740741 | AH149: 79.83950617 | AI149: 66.2345679 | AJ149: 65.51851852 | AK149: 56.92592593 | AL149: 46.54320988 | AM149: 35.2654321 | AN149: 28.64197531 | AO149: 24.34567901 | AP149: 17.00617284 | AQ149: 14.32098765 | AR149: 12.35185185 | AT149: 23.27160494 | AU149: 0.7160493827 | AV149: 9.845679012 | AW149: 10.5617284 | AX149: 30.9691358
B150: 2 | C150: 106 | D150: 130504 | E150: HUASO | F150: 00006771 | G150: Centro de salud | H150: CANRAZ | I150: 1437.420403 | J150: 77.21052632 | K150: 14.57142857 | L150: 13.28571429 | M150: 12.20300752 | N150: 12.33834586 | O150: 12 | P150: 12.81203008 | Q150: 28.33333333 | R150: 29.59259259 | S150: 30.85185185 | T150: 32.95061728 | U150: 34.20987654 | V150: 32.5308642 | W150: 35.4691358 | X150: 36.09876543 | Y150: 34.83950617 | Z150: 39.03703704 | AA150: 38.19753086 | AB150: 35.4691358 | AC150: 36.09876543 | AD150: 30.85185185 | AE150: 146.0740741 | AF150: 123.617284 | AG150: 91.92592593 | AH150: 93.60493827 | AI150: 77.65432099 | AJ150: 76.81481481 | AK150: 66.74074074 | AL150: 54.56790123 | AM150: 41.34567901 | AN150: 33.58024691 | AO150: 28.54320988 | AP150: 19.9382716 | AQ150: 16.79012346 | AR150: 14.48148148 | AT150: 27.28395062 | AU150: 0.8395061728 | AV150: 11.54320988 | AW150: 12.38271605 | AX150: 36.30864198
B151: 3 | C151: 107 | D151: 130504 | E151: HUASO | F151: 00006772 | G151: Puesto de salud | H151: LA VEGA | I151: 715.9083821 | J151: 115.8157895 | K151: 21.85714286 | L151: 19.92857143 | M151: 18.30451128 | N151: 18.5075188 | O151: 18 | P151: 19.21804511 | Q151: 12.5 | R151: 13.05555556 | S151: 13.61111111 | T151: 14.53703704 | U151: 15.09259259 | V151: 14.35185185 | W151: 15.64814815 | X151: 15.92592593 | Y151: 15.37037037 | Z151: 17.22222222 | AA151: 16.85185185 | AB151: 15.64814815 | AC151: 15.92592593 | AD151: 13.61111111 | AE151: 64.44444444 | AF151: 54.53703704 | AG151: 40.55555556 | AH151: 41.2962963 | AI151: 34.25925926 | AJ151: 33.88888889 | AK151: 29.44444444 | AL151: 24.07407407 | AM151: 18.24074074 | AN151: 14.81481481 | AO151: 12.59259259 | AP151: 8.796296296 | AQ151: 7.407407407 | AR151: 6.388888889 | AT151: 12.03703704 | AU151: 0.3703703704 | AV151: 5.092592593 | AW151: 5.462962963 | AX151: 16.01851852
B152: 4 | C152: 108 | D152: 130504 | E152: HUASO | F152: 00006770 | G152: Puesto de salud | H152: CHINCHINVARA | I152: 943.0769981 | J152: 102.9473684 | K152: 19.42857143 | L152: 17.71428571 | M152: 16.27067669 | N152: 16.45112782 | O152: 16 | P152: 17.08270677 | Q152: 17.5 | R152: 18.27777778 | S152: 19.05555556 | T152: 20.35185185 | U152: 21.12962963 | V152: 20.09259259 | W152: 21.90740741 | X152: 22.2962963 | Y152: 21.51851852 | Z152: 24.11111111 | AA152: 23.59259259 | AB152: 21.90740741 | AC152: 22.2962963 | AD152: 19.05555556 | AE152: 90.22222222 | AF152: 76.35185185 | AG152: 56.77777778 | AH152: 57.81481481 | AI152: 47.96296296 | AJ152: 47.44444444 | AK152: 41.22222222 | AL152: 33.7037037 | AM152: 25.53703704 | AN152: 20.74074074 | AO152: 17.62962963 | AP152: 12.31481481 | AQ152: 10.37037037 | AR152: 8.944444444 | AT152: 16.85185185 | AU152: 0.5185185185 | AV152: 7.12962963 | AW152: 7.648148148 | AX152: 22.42592593
B153: 5 | C153: 109 | D153: 130504 | E153: HUASO | F153: 00005313 | G153: Puesto de salud | H153: PARASIVE | I153: 915.9392463 | J153: 115.8157895 | K153: 21.85714286 | L153: 19.92857143 | M153: 18.30451128 | N153: 18.5075188 | O153: 18 | P153: 19.21804511 | Q153: 16.66666667 | R153: 17.40740741 | S153: 18.14814815 | T153: 19.38271605 | U153: 20.12345679 | V153: 19.13580247 | W153: 20.86419753 | X153: 21.2345679 | Y153: 20.49382716 | Z153: 22.96296296 | AA153: 22.4691358 | AB153: 20.86419753 | AC153: 21.2345679 | AD153: 18.14814815 | AE153: 85.92592593 | AF153: 72.71604938 | AG153: 54.07407407 | AH153: 55.0617284 | AI153: 45.67901235 | AJ153: 45.18518519 | AK153: 39.25925926 | AL153: 32.09876543 | AM153: 24.32098765 | AN153: 19.75308642 | AO153: 16.79012346 | AP153: 11.72839506 | AQ153: 9.87654321 | AR153: 8.518518519 | AT153: 16.04938272 | AU153: 0.4938271605 | AV153: 6.790123457 | AW153: 7.283950617 | AX153: 21.35802469
B154: 6 | C154: 110 | D154: 130504 | E154: HUASO | F154: 00016422 | G154: Puesto de salud | H154: LA UNION | I154: 571.5539311 | J154: 51.47368421 | K154: 9.714285714 | L154: 8.857142857 | M154: 8.135338346 | N154: 8.22556391 | O154: 8 | P154: 8.541353383 | Q154: 10.83333333 | R154: 11.31481481 | S154: 11.7962963 | T154: 12.59876543 | U154: 13.08024691 | V154: 12.4382716 | W154: 13.5617284 | X154: 13.80246914 | Y154: 13.32098765 | Z154: 14.92592593 | AA154: 14.60493827 | AB154: 13.5617284 | AC154: 13.80246914 | AD154: 11.7962963 | AE154: 55.85185185 | AF154: 47.2654321 | AG154: 35.14814815 | AH154: 35.79012346 | AI154: 29.69135802 | AJ154: 29.37037037 | AK154: 25.51851852 | AL154: 20.86419753 | AM154: 15.80864198 | AN154: 12.83950617 | AO154: 10.91358025 | AP154: 7.62345679 | AQ154: 6.419753086 | AR154: 5.537037037 | AT154: 10.43209877 | AU154: 0.3209876543 | AV154: 4.413580247 | AW154: 4.734567901 | AX154: 13.88271605
B155: 7 | C155: 111 | D155: 131001 | E155: HUASO | F155: 00005335 | G155: Puesto de salud | H155: UNINGAMBAL | I155: 1290.264133 | J155: 90.07894737 | K155: 17 | L155: 15.5 | M155: 14.23684211 | N155: 14.39473684 | O155: 14 | P155: 14.94736842 | Q155: 25 | R155: 26.11111111 | S155: 27.22222222 | T155: 29.07407407 | U155: 30.18518519 | V155: 28.7037037 | W155: 31.2962963 | X155: 31.85185185 | Y155: 30.74074074 | Z155: 34.44444444 | AA155: 33.7037037 | AB155: 31.2962963 | AC155: 31.85185185 | AD155: 27.22222222 | AE155: 128.8888889 | AF155: 109.0740741 | AG155: 81.11111111 | AH155: 82.59259259 | AI155: 68.51851852 | AJ155: 67.77777778 | AK155: 58.88888889 | AL155: 48.14814815 | AM155: 36.48148148 | AN155: 29.62962963 | AO155: 25.18518519 | AP155: 17.59259259 | AQ155: 14.81481481 | AR155: 12.77777778 | AT155: 24.07407407 | AU155: 0.7407407407 | AV155: 10.18518519 | AW155: 10.92592593 | AX155: 32.03703704
D156: 130600 | E156: OTUZCO (6) | I156: =SUM(K156:AR156) -> 104314.3482 | J156: 9492.348217 | K156: =+K157+K167+K179+K184+K187+K189+K193+K195+K200+K204 -> 1483.986815 | L156: 1568.615305 | M156: 1508.317212 | N156: 1612.303999 | O156: 1637.690196 | P156: 1681.43469 | Q156: 1817 | R156: 1926 | S156: 1874 | T156: 1905 | U156: 1980 | V156: 1998 | W156: 2097 | X156: 2110 | Y156: 2086 | Z156: 2001 | AA156: 2122 | AB156: 1968 | AC156: 1832 | AD156: 1734 | AE156: 8587 | AF156: 8523 | AG156: 7359 | AH156: 6885 | AI156: 6236 | AJ156: 6126 | AK156: 5345 | AL156: 4533 | AM156: 3626 | AN156: 3098 | AO156: 2352 | AP156: 1950 | AQ156: 1375 | AR156: 1377 | AT156: =+AT157+AT167+AT179+AT184+AT187+AT189+AT193+AT195+AT200+AT204 -> 1701 | AU156: 82 | AV156: 731 | AW156: 666 | AX156: 2333
D157: 130601 | E157: OTUZCO (1) | I157: =SUM(K157:AR157) -> 32879.71806 | J157: 2446.718062 | K157: =SUM(K158:K166) -> 384.4537445 | L157: =SUM(L158:L166) -> 404.4867841 | M157: 391.1101322 | N157: 413.5638767 | O157: 421.7488987 | P157: 431.3546256 | Q157: 576 | R157: 602 | S157: 534 | T157: 582 | U157: 651 | V157: 646 | W157: 636 | X157: 623 | Y157: 620 | Z157: 586 | AA157: 586 | AB157: 562 | AC157: 533 | AD157: 512 | AE157: 2586 | AF157: 2600 | AG157: 2508 | AH157: 2339 | AI157: 2103 | AJ157: 2038 | AK157: 1824 | AL157: 1595 | AM157: 1243 | AN157: 1022 | AO157: 740 | AP157: 639 | AQ157: 462 | AR157: 485 | AT157: 426 | AU157: 26 | AV157: 215 | AW157: 153 | AX157: 695
B158: 1 | C158: 112 | D158: 130601 | E158: OTUZCO | F158: 00005314 | G158: Hospital DE APOYO | H158: OTUZCO | I158: =SUM(K158:AR158) -> 7124.226118 | J158: 967.6651982 | K158: 151.1013216 | L158: 159.8384728 | M158: 153.5682819 | N158: 164.6696035 | O158: 166.9309838 | P158: 171.5565345 | Q158: 116.5241379 | R158: 121.783908 | S158: 108.0275862 | T158: 117.737931 | U158: 131.6965517 | V158: 130.6850575 | W158: 128.662069 | X158: 126.0321839 | Y158: 125.4252874 | Z158: 118.5471264 | AA158: 118.5471264 | AB158: 113.691954 | AC158: 107.8252874 | AD158: 103.5770115 | AE158: 523.1448276 | AF158: 525.9770115 | AG158: 507.3655172 | AH158: 473.1770115 | AI158: 425.4344828 | AJ158: 412.2850575 | AK158: 368.9931034 | AL158: 322.6666667 | AM158: 251.4574713 | AN158: 206.7494253 | AO158: 149.7011494 | AP158: 129.2689655 | AQ158: 93.46206897 | AR158: 98.11494253 | AT158: 86.17931034 | AU158: 5.259770115 | AV158: 43.49425287 | AW158: 30.95172414 | AX158: 140.5977011
B159: 2 | C159: 113 | D159: 130601 | E159: OTUZCO | F159: 00005317 | G159: Centro de salud | H159: RAMON CASTILLA | I159: 8018.03425 | J159: 532.215859 | K159: 83.10572687 | L159: 87.91116006 | M159: 84.46255507 | N159: 90.56828194 | O159: 91.81204112 | P159: 94.35609398 | Q159: 141.6827586 | R159: 148.0781609 | S159: 131.3517241 | T159: 143.1586207 | U159: 160.1310345 | V159: 158.9011494 | W159: 156.4413793 | X159: 153.2436782 | Y159: 152.5057471 | Z159: 144.1425287 | AA159: 144.1425287 | AB159: 138.2390805 | AC159: 131.1057471 | AD159: 125.9402299 | AE159: 636.0965517 | AF159: 639.5402299 | AG159: 616.9103448 | AH159: 575.3402299 | AI159: 517.2896552 | AJ159: 501.3011494 | AK159: 448.662069 | AL159: 392.3333333 | AM159: 305.7494253 | AN159: 251.3885057 | AO159: 182.0229885 | AP159: 157.1793103 | AQ159: 113.6413793 | AR159: 119.2988506 | AT159: 104.7862069 | AU159: 6.395402299 | AV159: 52.88505747 | AW159: 37.63448276 | AX159: 170.954023
B160: 3 | C160: 114 | D160: 130601 | E160: OTUZCO | F160: 00005315 | G160: Puesto de salud | H160: PANGO | I160: 3488.608152 | J160: 200.4449339 | K160: 31.29955947 | L160: 33.10939794 | M160: 31.81057269 | N160: 34.11013216 | O160: 34.57856094 | P160: 35.53671072 | Q160: 62.23448276 | R160: 65.04367816 | S160: 57.69655172 | T160: 62.88275862 | U160: 70.33793103 | V160: 69.79770115 | W160: 68.71724138 | X160: 67.31264368 | Y160: 66.98850575 | Z160: 63.31494253 | AA160: 63.31494253 | AB160: 60.72183908 | AC160: 57.58850575 | AD160: 55.31954023 | AE160: 279.4068966 | AF160: 280.9195402 | AG160: 270.9793103 | AH160: 252.7195402 | AI160: 227.2206897 | AJ160: 220.1977011 | AK160: 197.0758621 | AL160: 172.3333333 | AM160: 134.3011494 | AN160: 110.4229885 | AO160: 79.95402299 | AP160: 69.04137931 | AQ160: 49.91724138 | AR160: 52.40229885 | AT160: 46.02758621 | AU160: 2.809195402 | AV160: 23.22988506 | AW160: 16.53103448 | AX160: 75.09195402
B161: 4 | C161: 115 | D161: 130601 | E161: OTUZCO | F161: 00005316 | G161: Puesto de salud | H161: SAMNE | I161: 1610.14023 | J161: 71 | K161: 12 | L161: 11 | M161: 13 | N161: 11 | O161: 12 | P161: 12 | Q161: 29.13103448 | R161: 30.44597701 | S161: 27.00689655 | T161: 29.43448276 | U161: 32.92413793 | V161: 32.67126437 | W161: 32.16551724 | X161: 31.50804598 | Y161: 31.35632184 | Z161: 29.63678161 | AA161: 29.63678161 | AB161: 28.42298851 | AC161: 26.95632184 | AD161: 25.89425287 | AE161: 130.7862069 | AF161: 131.4942529 | AG161: 126.8413793 | AH161: 118.2942529 | AI161: 106.3586207 | AJ161: 103.0712644 | AK161: 92.24827586 | AL161: 80.66666667 | AM161: 62.86436782 | AN161: 51.68735632 | AO161: 37.42528736 | AP161: 32.31724138 | AQ161: 23.36551724 | AR161: 24.52873563 | AT161: 21.54482759 | AU161: 1.314942529 | AV161: 10.87356322 | AW161: 7.737931034 | AX161: 35.14942529
B162: 5 | C162: 116 | D162: 130601 | E162: OTUZCO | F162: 00011008 | G162: Puesto de salud | H162: LLAUGUEDA | I162: 3184.28046 | J162: 106 | K162: 18 | L162: 18 | M162: 17 | N162: 17 | O162: 18 | P162: 18 | Q162: 58.26206897 | R162: 60.89195402 | S162: 54.0137931 | T162: 58.86896552 | U162: 65.84827586 | V162: 65.34252874 | W162: 64.33103448 | X162: 63.01609195 | Y162: 62.71264368 | Z162: 59.27356322 | AA162: 59.27356322 | AB162: 56.84597701 | AC162: 53.91264368 | AD162: 51.78850575 | AE162: 261.5724138 | AF162: 262.9885057 | AG162: 253.6827586 | AH162: 236.5885057 | AI162: 212.7172414 | AJ162: 206.1425287 | AK162: 184.4965517 | AL162: 161.3333333 | AM162: 125.7287356 | AN162: 103.3747126 | AO162: 74.85057471 | AP162: 64.63448276 | AQ162: 46.73103448 | AR162: 49.05747126 | AT162: 43.08965517 | AU162: 2.629885057 | AV162: 21.74712644 | AW162: 15.47586207 | AX162: 70.29885057
B163: 6 | C163: 117 | D163: 130601 | E163: OTUZCO | F163: 00006932 | G163: Puesto de salud | H163: PACHIN ALTO | I163: 1985.711347 | J163: 96.76651982 | K163: 15.11013216 | L163: 15.98384728 | M163: 15.35682819 | N163: 16.46696035 | O163: 16.69309838 | P163: 17.15565345 | Q163: 35.75172414 | R163: 37.36551724 | S163: 33.14482759 | T163: 36.12413793 | U163: 40.40689655 | V163: 40.09655172 | W163: 39.47586207 | X163: 38.66896552 | Y163: 38.48275862 | Z163: 36.37241379 | AA163: 36.37241379 | AB163: 34.88275862 | AC163: 33.08275862 | AD163: 31.77931034 | AE163: 160.5103448 | AF163: 161.3793103 | AG163: 155.6689655 | AH163: 145.1793103 | AI163: 130.5310345 | AJ163: 126.4965517 | AK163: 113.2137931 | AL163: 99 | AM163: 77.15172414 | AN163: 63.43448276 | AO163: 45.93103448 | AP163: 39.66206897 | AQ163: 28.67586207 | AR163: 30.10344828 | AT163: 26.44137931 | AU163: 1.613793103 | AV163: 13.34482759 | AW163: 9.496551724 | AX163: 43.13793103
B164: 7 | C164: 118 | D164: 130601 | E164: OTUZCO | F164: 00006931 | G164: Puesto de salud | H164: SAN ISIDRO | I164: 4913.790167 | J164: 366.3303965 | K164: 57.20264317 | L164: 60.510279 | M164: 58.13656388 | N164: 62.33920705 | O164: 63.19530103 | P164: 64.94640235 | Q164: 86.06896552 | R164: 89.95402299 | S164: 79.79310345 | T164: 86.96551724 | U164: 97.27586207 | V164: 96.52873563 | W164: 95.03448276 | X164: 93.09195402 | Y164: 92.64367816 | Z164: 87.56321839 | AA164: 87.56321839 | AB164: 83.97701149 | AC164: 79.64367816 | AD164: 76.50574713 | AE164: 386.4137931 | AF164: 388.5057471 | AG164: 374.7586207 | AH164: 349.5057471 | AI164: 314.2413793 | AJ164: 304.5287356 | AK164: 272.5517241 | AL164: 238.3333333 | AM164: 185.7356322 | AN164: 152.7126437 | AO164: 110.5747126 | AP164: 95.48275862 | AQ164: 69.03448276 | AR164: 72.47126437 | AT164: 63.65517241 | AU164: 3.885057471 | AV164: 32.12643678 | AW164: 22.86206897 | AX164: 103.8505747
B165: 8 | C165: 119 | D165: 130601 | E165: OTUZCO | F165: 00018298 | G165: Puesto de salud | H165: ALLACDAY | I165: 1244.630786 | J165: 55.29515419 | K165: 8.634361233 | L165: 9.133627019 | M165: 8.775330396 | N165: 9.40969163 | O165: 9.538913363 | P165: 9.803230543 | Q165: 22.51034483 | R165: 23.52643678 | S165: 20.86896552 | T165: 22.74482759 | U165: 25.44137931 | V165: 25.24597701 | W165: 24.85517241 | X165: 24.34712644 | Y165: 24.22988506 | Z165: 22.90114943 | AA165: 22.90114943 | AB165: 21.96321839 | AC165: 20.82988506 | AD165: 20.0091954 | AE165: 101.062069 | AF165: 101.6091954 | AG165: 98.0137931 | AH165: 91.4091954 | AI165: 82.1862069 | AJ165: 79.64597701 | AK165: 71.28275862 | AL165: 62.33333333 | AM165: 48.57701149 | AN165: 39.94022989 | AO165: 28.91954023 | AP165: 24.97241379 | AQ165: 18.05517241 | AR165: 18.95402299 | AT165: 16.64827586 | AU165: 1.016091954 | AV165: 8.402298851 | AW165: 5.979310345 | AX165: 27.16091954
B166: 9 | C166: 120 | D166: 130601 | E166: OTUZCO | F166: 00018299 | G166: Puesto de salud | H166: PAMPA GRANDE | I166: 1310.296552 | J166: 51 | K166: 8 | L166: 9 | M166: 9 | N166: 8 | O166: 9 | P166: 8 | Q166: 23.83448276 | R166: 24.91034483 | S166: 22.09655172 | T166: 24.08275862 | U166: 26.93793103 | V166: 26.73103448 | W166: 26.31724138 | X166: 25.77931034 | Y166: 25.65517241 | Z166: 24.24827586 | AA166: 24.24827586 | AB166: 23.25517241 | AC166: 22.05517241 | AD166: 21.1862069 | AE166: 107.0068966 | AF166: 107.5862069 | AG166: 103.7793103 | AH166: 96.7862069 | AI166: 87.02068966 | AJ166: 84.33103448 | AK166: 75.47586207 | AL166: 66 | AM166: 51.43448276 | AN166: 42.28965517 | AO166: 30.62068966 | AP166: 26.44137931 | AQ166: 19.11724138 | AR166: 20.06896552 | AT166: 17.62758621 | AU166: 1.075862069 | AV166: 8.896551724 | AW166: 6.331034483 | AX166: 28.75862069
D167: 130602 | E167: AGALLPAMPA (2) | I167: =SUM(K167:AR167) -> 9971.290749 | J167: 1389.290749 | K167: =SUM(K168:K178) -> 216.938326 | L167: =SUM(L168:L178) -> 229.4823789 | M167: 220.4801762 | N167: 236.4185022 | O167: 239.6651982 | P167: 246.3061674 | Q167: 208 | R167: 217 | S167: 203 | T167: 210 | U167: 186 | V167: 211 | W167: 249 | X167: 236 | Y167: 226 | Z167: 207 | AA167: 240 | AB167: 210 | AC167: 198 | AD167: 182 | AE167: 956 | AF167: 974 | AG167: 713 | AH167: 537 | AI167: 487 | AJ167: 469 | AK167: 373 | AL167: 263 | AM167: 198 | AN167: 196 | AO167: 158 | AP167: 118 | AQ167: 82 | AR167: 75 | AT167: 206 | AU167: 8 | AV167: 75 | AW167: 88 | AX167: 273
B168: 1 | C168: 121 | D168: 130602 | E168: AGALLPAMPA | F168: 00005318 | G168: Centro de salud con camas de internamiento | H168: AGALLPAMPA | I168: =SUM(K168:AR168) -> 1168.620627 | J168: 158.9735683 | K168: 24.82378855 | L168: 26.25917768 | M168: 25.22907489 | N168: 27.05286344 | O168: 27.42437592 | P168: 28.18428781 | Q168: 24.47058824 | R168: 25.52941176 | S168: 23.88235294 | T168: 24.70588235 | U168: 21.88235294 | V168: 24.82352941 | W168: 29.29411765 | X168: 27.76470588 | Y168: 26.58823529 | Z168: 24.35294118 | AA168: 28.23529412 | AB168: 24.70588235 | AC168: 23.29411765 | AD168: 21.41176471 | AE168: 112.4705882 | AF168: 114.5882353 | AG168: 83.88235294 | AH168: 63.17647059 | AI168: 57.29411765 | AJ168: 55.17647059 | AK168: 43.88235294 | AL168: 30.94117647 | AM168: 23.29411765 | AN168: 23.05882353 | AO168: 18.58823529 | AP168: 13.88235294 | AQ168: 9.647058824 | AR168: 8.823529412 | AT168: 24.23529412 | AU168: 0.9411764706 | AV168: 8.823529412 | AW168: 10.35294118 | AX168: 32.11764706
B169: 2 | C169: 122 | D169: 130602 | E169: AGALLPAMPA | F169: 00005319 | G169: Puesto de salud | H169: CHOTA | I169: 2334.751042 | J169: 269.5638767 | K169: 42.09251101 | L169: 44.52643172 | M169: 42.77973568 | N169: 45.8722467 | O169: 46.50220264 | P169: 47.7907489 | Q169: 50.05347594 | R169: 52.21925134 | S169: 48.85026738 | T169: 50.53475936 | U169: 44.75935829 | V169: 50.77540107 | W169: 59.9197861 | X169: 56.79144385 | Y169: 54.38502674 | Z169: 49.81283422 | AA169: 57.7540107 | AB169: 50.53475936 | AC169: 47.64705882 | AD169: 43.79679144 | AE169: 230.0534759 | AF169: 234.3850267 | AG169: 171.5775401 | AH169: 129.2245989 | AI169: 117.1925134 | AJ169: 112.8609626 | AK169: 89.75935829 | AL169: 63.28877005 | AM169: 47.64705882 | AN169: 47.1657754 | AO169: 38.02139037 | AP169: 28.39572193 | AQ169: 19.73262032 | AR169: 18.04812834 | AT169: 49.57219251 | AU169: 1.92513369 | AV169: 18.04812834 | AW169: 21.17647059 | AX169: 65.69518717
B170: 3 | C170: 123 | D170: 130602 | E170: AGALLPAMPA | F170: 00006933 | G170: Puesto de salud | H170: PARAISO | I170: 794.5643478 | J170: 152.061674 | K170: 23.74449339 | L170: 25.1174743 | M170: 24.13215859 | N170: 25.87665198 | O170: 26.23201175 | P170: 26.95888399 | Q170: 15.57219251 | R170: 16.2459893 | S170: 15.19786096 | T170: 15.72192513 | U170: 13.92513369 | V170: 15.79679144 | W170: 18.64171123 | X170: 17.6684492 | Y170: 16.9197861 | Z170: 15.4973262 | AA170: 17.96791444 | AB170: 15.72192513 | AC170: 14.82352941 | AD170: 13.62566845 | AE170: 71.57219251 | AF170: 72.9197861 | AG170: 53.37967914 | AH170: 40.20320856 | AI170: 36.45989305 | AJ170: 35.11229947 | AK170: 27.92513369 | AL170: 19.68983957 | AM170: 14.82352941 | AN170: 14.67379679 | AO170: 11.82887701 | AP170: 8.834224599 | AQ170: 6.139037433 | AR170: 5.614973262 | AT170: 15.42245989 | AU170: 0.5989304813 | AV170: 5.614973262 | AW170: 6.588235294 | AX170: 20.43850267
B171: 4 | C171: 124 | D171: 130602 | E171: AGALLPAMPA | F171: 00006934 | G171: Puesto de salud | H171: CARATA | I171: 1161.708733 | J171: 152.061674 | K171: 23.74449339 | L171: 25.1174743 | M171: 24.13215859 | N171: 25.87665198 | O171: 26.23201175 | P171: 26.95888399 | Q171: 24.47058824 | R171: 25.52941176 | S171: 23.88235294 | T171: 24.70588235 | U171: 21.88235294 | V171: 24.82352941 | W171: 29.29411765 | X171: 27.76470588 | Y171: 26.58823529 | Z171: 24.35294118 | AA171: 28.23529412 | AB171: 24.70588235 | AC171: 23.29411765 | AD171: 21.41176471 | AE171: 112.4705882 | AF171: 114.5882353 | AG171: 83.88235294 | AH171: 63.17647059 | AI171: 57.29411765 | AJ171: 55.17647059 | AK171: 43.88235294 | AL171: 30.94117647 | AM171: 23.29411765 | AN171: 23.05882353 | AO171: 18.58823529 | AP171: 13.88235294 | AQ171: 9.647058824 | AR171: 8.823529412 | AT171: 24.23529412 | AU171: 0.9411764706 | AV171: 8.823529412 | AW171: 10.35294118 | AX171: 32.11764706
B172: 5 | C172: 125 | D172: 130602 | E172: AGALLPAMPA | F172: 00008336 | G172: Puesto de salud | H172: CUSHCANDAY | I172: 445.6654338 | J172: 124.4140969 | K172: 19.42731278 | L172: 20.55066079 | M172: 19.74449339 | N172: 21.17180617 | O172: 21.46255507 | P172: 22.05726872 | Q172: 7.786096257 | R172: 8.122994652 | S172: 7.598930481 | T172: 7.860962567 | U172: 6.962566845 | V172: 7.898395722 | W172: 9.320855615 | X172: 8.834224599 | Y172: 8.459893048 | Z172: 7.748663102 | AA172: 8.983957219 | AB172: 7.860962567 | AC172: 7.411764706 | AD172: 6.812834225 | AE172: 35.78609626 | AF172: 36.45989305 | AG172: 26.68983957 | AH172: 20.10160428 | AI172: 18.22994652 | AJ172: 17.55614973 | AK172: 13.96256684 | AL172: 9.844919786 | AM172: 7.411764706 | AN172: 7.336898396 | AO172: 5.914438503 | AP172: 4.417112299 | AQ172: 3.069518717 | AR172: 2.807486631 | AT172: 7.711229947 | AU172: 0.2994652406 | AV172: 2.807486631 | AW172: 3.294117647 | AX172: 10.21925134
B173: 6 | C173: 126 | D173: 130602 | E173: AGALLPAMPA | F173: 00013928 | G173: Puesto de salud | H173: PAIHUAL | I173: 555.6970011 | J173: 96.76651982 | K173: 15.11013216 | L173: 15.98384728 | M173: 15.35682819 | N173: 16.46696035 | O173: 16.69309838 | P173: 17.15565345 | Q173: 11.12299465 | R173: 11.60427807 | S173: 10.85561497 | T173: 11.22994652 | U173: 9.946524064 | V173: 11.28342246 | W173: 13.31550802 | X173: 12.62032086 | Y173: 12.0855615 | Z173: 11.06951872 | AA173: 12.8342246 | AB173: 11.22994652 | AC173: 10.58823529 | AD173: 9.732620321 | AE173: 51.12299465 | AF173: 52.0855615 | AG173: 38.12834225 | AH173: 28.71657754 | AI173: 26.04278075 | AJ173: 25.0802139 | AK173: 19.94652406 | AL173: 14.06417112 | AM173: 10.58823529 | AN173: 10.48128342 | AO173: 8.449197861 | AP173: 6.310160428 | AQ173: 4.385026738 | AR173: 4.010695187 | AT173: 11.01604278 | AU173: 0.4278074866 | AV173: 4.010695187 | AW173: 4.705882353 | AX173: 14.59893048
B174: 7 | C174: 127 | D174: 130602 | E174: AGALLPAMPA | F174: 00013929 | G174: Puesto de salud | H174: PUEBLO LIBRE | I174: 647.4830974 | J174: 96.76651982 | K174: 15.11013216 | L174: 15.98384728 | M174: 15.35682819 | N174: 16.46696035 | O174: 16.69309838 | P174: 17.15565345 | Q174: 13.34759358 | R174: 13.92513369 | S174: 13.02673797 | T174: 13.47593583 | U174: 11.93582888 | V174: 13.54010695 | W174: 15.97860963 | X174: 15.14438503 | Y174: 14.5026738 | Z174: 13.28342246 | AA174: 15.40106952 | AB174: 13.47593583 | AC174: 12.70588235 | AD174: 11.67914439 | AE174: 61.34759358 | AF174: 62.5026738 | AG174: 45.7540107 | AH174: 34.45989305 | AI174: 31.2513369 | AJ174: 30.09625668 | AK174: 23.93582888 | AL174: 16.87700535 | AM174: 12.70588235 | AN174: 12.57754011 | AO174: 10.13903743 | AP174: 7.572192513 | AQ174: 5.262032086 | AR174: 4.812834225 | AT174: 13.21925134 | AU174: 0.513368984 | AV174: 4.812834225 | AW174: 5.647058824 | AX174: 17.51871658
B175: 8 | C175: 128 | D175: 130602 | E175: AGALLPAMPA | F175: 00013930 | G175: Puesto de salud | H175: LA MORADA | I175: 831.0552899 | J175: 96.76651982 | K175: 15.11013216 | L175: 15.98384728 | M175: 15.35682819 | N175: 16.46696035 | O175: 16.69309838 | P175: 17.15565345 | Q175: 17.79679144 | R175: 18.56684492 | S175: 17.36898396 | T175: 17.96791444 | U175: 15.9144385 | V175: 18.05347594 | W175: 21.30481283 | X175: 20.19251337 | Y175: 19.3368984 | Z175: 17.71122995 | AA175: 20.53475936 | AB175: 17.96791444 | AC175: 16.94117647 | AD175: 15.57219251 | AE175: 81.79679144 | AF175: 83.3368984 | AG175: 61.00534759 | AH175: 45.94652406 | AI175: 41.6684492 | AJ175: 40.12834225 | AK175: 31.9144385 | AL175: 22.5026738 | AM175: 16.94117647 | AN175: 16.77005348 | AO175: 13.51871658 | AP175: 10.09625668 | AQ175: 7.016042781 | AR175: 6.417112299 | AT175: 17.62566845 | AU175: 0.6844919786 | AV175: 6.417112299 | AW175: 7.529411765 | AX175: 23.35828877
B176: 9 | C176: 129 | D176: 130602 | E176: AGALLPAMPA | F176: 00013931 | G176: Puesto de salud | H176: MOTIL | I176: 842.3888666 | J176: 62.20704846 | K176: 9.713656388 | L176: 10.2753304 | M176: 9.872246696 | N176: 10.58590308 | O176: 10.73127753 | P176: 11.02863436 | Q176: 18.90909091 | R176: 19.72727273 | S176: 18.45454545 | T176: 19.09090909 | U176: 16.90909091 | V176: 19.18181818 | W176: 22.63636364 | X176: 21.45454545 | Y176: 20.54545455 | Z176: 18.81818182 | AA176: 21.81818182 | AB176: 19.09090909 | AC176: 18 | AD176: 16.54545455 | AE176: 86.90909091 | AF176: 88.54545455 | AG176: 64.81818182 | AH176: 48.81818182 | AI176: 44.27272727 | AJ176: 42.63636364 | AK176: 33.90909091 | AL176: 23.90909091 | AM176: 18 | AN176: 17.81818182 | AO176: 14.36363636 | AP176: 10.72727273 | AQ176: 7.454545455 | AR176: 6.818181818 | AT176: 18.72727273 | AU176: 0.7272727273 | AV176: 6.818181818 | AW176: 8 | AX176: 24.81818182
B177: 10 | C177: 130 | D177: 130602 | E177: AGALLPAMPA | F177: 00013932 | G177: Puesto de salud | H177: SAN AGUSTIN | I177: 718.5335108 | J177: 76.030837 | K177: 11.8722467 | L177: 12.55873715 | M177: 12.0660793 | N177: 12.93832599 | O177: 13.11600587 | P177: 13.479442 | Q177: 15.57219251 | R177: 16.2459893 | S177: 15.19786096 | T177: 15.72192513 | U177: 13.92513369 | V177: 15.79679144 | W177: 18.64171123 | X177: 17.6684492 | Y177: 16.9197861 | Z177: 15.4973262 | AA177: 17.96791444 | AB177: 15.72192513 | AC177: 14.82352941 | AD177: 13.62566845 | AE177: 71.57219251 | AF177: 72.9197861 | AG177: 53.37967914 | AH177: 40.20320856 | AI177: 36.45989305 | AJ177: 35.11229947 | AK177: 27.92513369 | AL177: 19.68983957 | AM177: 14.82352941 | AN177: 14.67379679 | AO177: 11.82887701 | AP177: 8.834224599 | AQ177: 6.139037433 | AR177: 5.614973262 | AT177: 15.42245989 | AU177: 0.5989304813 | AV177: 5.614973262 | AW177: 6.588235294 | AX177: 20.43850267
B178: 11 | C178: 131 | D178: 130602 | E178: AGALLPAMPA | F178: 00024601 | G178: Puesto de salud | H178: LABUNDAY | I178: 470.8227991 | J178: 103.6784141 | K178: 16.18942731 | L178: 17.12555066 | M178: 16.45374449 | N178: 17.64317181 | O178: 17.88546256 | P178: 18.38105727 | Q178: 8.898395722 | R178: 9.28342246 | S178: 8.684491979 | T178: 8.983957219 | U178: 7.957219251 | V178: 9.026737968 | W178: 10.65240642 | X178: 10.09625668 | Y178: 9.668449198 | Z178: 8.855614973 | AA178: 10.26737968 | AB178: 8.983957219 | AC178: 8.470588235 | AD178: 7.786096257 | AE178: 40.89839572 | AF178: 41.6684492 | AG178: 30.5026738 | AH178: 22.97326203 | AI178: 20.8342246 | AJ178: 20.06417112 | AK178: 15.95721925 | AL178: 11.2513369 | AM178: 8.470588235 | AN178: 8.385026738 | AO178: 6.759358289 | AP178: 5.048128342 | AQ178: 3.50802139 | AR178: 3.20855615 | AT178: 8.812834225 | AU178: 0.3422459893 | AV178: 3.20855615 | AW178: 3.764705882 | AX178: 11.67914439
D179: 130604 | E179: CHARAT (3) | I179: =SUM(K179:AR179) -> 3058.414297 | J179: 191.4142967 | K179: =SUM(K180:K183) -> 29.42734397 | L179: =SUM(L180:L183) -> 31.55069379 | M179: 29.74452509 | N179: 32.17184016 | O179: 33.46258953 | P179: 35.05730414 | Q179: 41 | R179: 46 | S179: 52 | T179: 45 | U179: 49 | V179: 60 | W179: 62 | X179: 46 | Y179: 47 | Z179: 37 | AA179: 54 | AB179: 58 | AC179: 33 | AD179: 46 | AE179: 185 | AF179: 208 | AG179: 211 | AH179: 200 | AI179: 195 | AJ179: 198 | AK179: 192 | AL179: 173 | AM179: 147 | AN179: 147 | AO179: 110 | AP179: 101 | AQ179: 51 | AR179: 73 | AT179: 26 | AU179: 2 | AV179: 7 | AW179: 12 | AX179: 43
B180: 1 | C180: 132 | D180: 130604 | E180: CHARAT | F180: 00005321 | G180: Centro de salud | H180: CALLANCAS | I180: =SUM(K180:AR180) -> 1285.233054 | J180: 82.94273128 | K180: 12.95154185 | L180: 13.70044053 | M180: 13.16299559 | N180: 14.11453744 | O180: 14.30837004 | P180: 14.70484581 | Q180: 17.19354839 | R180: 19.29032258 | S180: 21.80645161 | T180: 18.87096774 | U180: 20.5483871 | V180: 25.16129032 | W180: 26 | X180: 19.29032258 | Y180: 19.70967742 | Z180: 15.51612903 | AA180: 22.64516129 | AB180: 24.32258065 | AC180: 13.83870968 | AD180: 19.29032258 | AE180: 77.58064516 | AF180: 87.22580645 | AG180: 88.48387097 | AH180: 83.87096774 | AI180: 81.77419355 | AJ180: 83.03225806 | AK180: 80.51612903 | AL180: 72.5483871 | AM180: 61.64516129 | AN180: 61.64516129 | AO180: 46.12903226 | AP180: 42.35483871 | AQ180: 21.38709677 | AR180: 30.61290323 | AT180: 10.90322581 | AU180: 0.8387096774 | AV180: 2.935483871 | AW180: 5.032258065 | AX180: 18.03225806
B181: 2 | C181: 133 | D181: 130604 | E181: CHARAT | F181: 00005322 | G181: Puesto de salud | H181: CHARAT | I181: 675.0346739 | J181: 27.64757709 | K181: 4.317180617 | L181: 4.56681351 | M181: 4.387665198 | N181: 4.704845815 | O181: 4.769456681 | P181: 4.901615272 | Q181: 9.258064516 | R181: 10.38709677 | S181: 11.74193548 | T181: 10.16129032 | U181: 11.06451613 | V181: 13.5483871 | W181: 14 | X181: 10.38709677 | Y181: 10.61290323 | Z181: 8.35483871 | AA181: 12.19354839 | AB181: 13.09677419 | AC181: 7.451612903 | AD181: 10.38709677 | AE181: 41.77419355 | AF181: 46.96774194 | AG181: 47.64516129 | AH181: 45.16129032 | AI181: 44.03225806 | AJ181: 44.70967742 | AK181: 43.35483871 | AL181: 39.06451613 | AM181: 33.19354839 | AN181: 33.19354839 | AO181: 24.83870968 | AP181: 22.80645161 | AQ181: 11.51612903 | AR181: 16.48387097 | AT181: 5.870967742 | AU181: 0.4516129032 | AV181: 1.580645161 | AW181: 2.709677419 | AX181: 9.709677419
B182: 3 | C182: 134 | D182: 130604 | E182: CHARAT | F182: 00016898 | G182: Puesto de salud | H182: LA RAMADA | I182: 383.7594722 | J182: 13.8239883 | K182: 2.1586215 | L182: 2.28343975 | M182: 2.1938643 | N182: 2.3524569 | O182: 2.3847628 | P182: 2.45084305 | Q182: 5.290322581 | R182: 5.935483871 | S182: 6.709677419 | T182: 5.806451613 | U182: 6.322580645 | V182: 7.741935484 | W182: 8 | X182: 5.935483871 | Y182: 6.064516129 | Z182: 4.774193548 | AA182: 6.967741935 | AB182: 7.483870968 | AC182: 4.258064516 | AD182: 5.935483871 | AE182: 23.87096774 | AF182: 26.83870968 | AG182: 27.22580645 | AH182: 25.80645161 | AI182: 25.16129032 | AJ182: 25.5483871 | AK182: 24.77419355 | AL182: 22.32258065 | AM182: 18.96774194 | AN182: 18.96774194 | AO182: 14.19354839 | AP182: 13.03225806 | AQ182: 6.580645161 | AR182: 9.419354839 | AT182: 3.35483871 | AU182: 0.2580645161 | AV182: 0.9032258065 | AW182: 1.548387097 | AX182: 5.548387097
B183: 4 | C183: 135 | D183: 130604 | E183: CHARAT | F183: 00016900 | G183: Puesto de salud | H183: CAYANCHAL | I183: 714.3870968 | J183: 67 | K183: 10 | L183: 11 | M183: 10 | N183: 11 | O183: 12 | P183: 13 | Q183: 9.258064516 | R183: 10.38709677 | S183: 11.74193548 | T183: 10.16129032 | U183: 11.06451613 | V183: 13.5483871 | W183: 14 | X183: 10.38709677 | Y183: 10.61290323 | Z183: 8.35483871 | AA183: 12.19354839 | AB183: 13.09677419 | AC183: 7.451612903 | AD183: 10.38709677 | AE183: 41.77419355 | AF183: 46.96774194 | AG183: 47.64516129 | AH183: 45.16129032 | AI183: 44.03225806 | AJ183: 44.70967742 | AK183: 43.35483871 | AL183: 39.06451613 | AM183: 33.19354839 | AN183: 33.19354839 | AO183: 24.83870968 | AP183: 22.80645161 | AQ183: 11.51612903 | AR183: 16.48387097 | AT183: 5.870967742 | AU183: 0.4516129032 | AV183: 1.580645161 | AW183: 2.709677419 | AX183: 9.709677419
D184: 130605 | E184: HUARANCHAL (4) | I184: =SUM(K184:AR184) -> 6447.718062 | J184: 649.7180617 | K184: =SUM(K185:K186) -> 101.4537445 | L184: =SUM(L185:L186) -> 107.3201175 | M184: 103.1101322 | N184: 110.5638767 | O184: 112.082232 | P184: 115.1879589 | Q184: 101 | R184: 112 | S184: 118 | T184: 122 | U184: 120 | V184: 131 | W184: 133 | X184: 134 | Y184: 118 | Z184: 115 | AA184: 118 | AB184: 91 | AC184: 79 | AD184: 93 | AE184: 471 | AF184: 482 | AG184: 418 | AH184: 444 | AI184: 437 | AJ184: 399 | AK184: 371 | AL184: 299 | AM184: 268 | AN184: 200 | AO184: 146 | AP184: 117 | AQ184: 84 | AR184: 77 | AT184: 122 | AU184: 9 | AV184: 47 | AW184: 46 | AX184: 175
B185: 1 | C185: 136 | D185: 130605 | E185: HUARANCHAL | F185: 00005323 | G185: Puesto de salud | H185: HUARANCHAL | I185: =SUM(K185:AR185) -> 4653.837431 | J185: 539.1277533 | K185: 84.18502203 | L185: 89.05286344 | M185: 85.55947137 | N185: 91.74449339 | O185: 93.00440529 | P185: 95.5814978 | Q185: 71.67741935 | R185: 79.48387097 | S185: 83.74193548 | T185: 86.58064516 | U185: 85.16129032 | V185: 92.96774194 | W185: 94.38709677 | X185: 95.09677419 | Y185: 83.74193548 | Z185: 81.61290323 | AA185: 83.74193548 | AB185: 64.58064516 | AC185: 56.06451613 | AD185: 66 | AE185: 334.2580645 | AF185: 342.0645161 | AG185: 296.6451613 | AH185: 315.0967742 | AI185: 310.1290323 | AJ185: 283.1612903 | AK185: 263.2903226 | AL185: 212.1935484 | AM185: 190.1935484 | AN185: 141.9354839 | AO185: 103.6129032 | AP185: 83.03225806 | AQ185: 59.61290323 | AR185: 54.64516129 | AT185: 86.58064516 | AU185: 6.387096774 | AV185: 33.35483871 | AW185: 32.64516129 | AX185: 124.1935484
B186: 2 | C186: 137 | D186: 130605 | E186: HUARANCHAL | F186: 00005324 | G186: Puesto de salud | H186: HUAYOBAMBA | I186: 1793.880631 | J186: 110.5903084 | K186: 17.26872247 | L186: 18.26725404 | M186: 17.55066079 | N186: 18.81938326 | O186: 19.07782673 | P186: 19.60646109 | Q186: 29.32258065 | R186: 32.51612903 | S186: 34.25806452 | T186: 35.41935484 | U186: 34.83870968 | V186: 38.03225806 | W186: 38.61290323 | X186: 38.90322581 | Y186: 34.25806452 | Z186: 33.38709677 | AA186: 34.25806452 | AB186: 26.41935484 | AC186: 22.93548387 | AD186: 27 | AE186: 136.7419355 | AF186: 139.9354839 | AG186: 121.3548387 | AH186: 128.9032258 | AI186: 126.8709677 | AJ186: 115.8387097 | AK186: 107.7096774 | AL186: 86.80645161 | AM186: 77.80645161 | AN186: 58.06451613 | AO186: 42.38709677 | AP186: 33.96774194 | AQ186: 24.38709677 | AR186: 22.35483871 | AT186: 35.41935484 | AU186: 2.612903226 | AV186: 13.64516129 | AW186: 13.35483871 | AX186: 50.80645161
D187: 130606 | E187: LA CUESTA (5) | I187: =SUM(K187:AR187) -> 943.4713656 | J187: 41.47136564 | K187: =+K188 -> 6.475770925 | L187: =+L188 -> 6.850220264 | M187: 6.581497797 | N187: 7.057268722 | O187: 7.154185022 | P187: 7.352422907 | Q187: 12 | R187: 15 | S187: 8 | T187: 11 | U187: 17 | V187: 12 | W187: 15 | X187: 17 | Y187: 19 | Z187: 14 | AA187: 14 | AB187: 11 | AC187: 16 | AD187: 15 | AE187: 58 | AF187: 78 | AG187: 83 | AH187: 84 | AI187: 63 | AJ187: 66 | AK187: 48 | AL187: 49 | AM187: 52 | AN187: 37 | AO187: 23 | AP187: 25 | AQ187: 21 | AR187: 19 | AT187: 4 | AU187: 0 | AV187: 2 | AW187: 1 | AX187: 17
B188: 1 | C188: 138 | D188: 130606 | E188: LA CUESTA | F188: 00005247 | G188: Puesto de salud | H188: LA CUESTA | I188: =SUM(K188:AR188) -> 943.4713656 | J188: 41.47136564 | K188: 6.475770925 | L188: 6.850220264 | M188: 6.581497797 | N188: 7.057268722 | O188: 7.154185022 | P188: 7.352422907 | Q188: 12 | R188: 15 | S188: 8 | T188: 11 | U188: 17 | V188: 12 | W188: 15 | X188: 17 | Y188: 19 | Z188: 14 | AA188: 14 | AB188: 11 | AC188: 16 | AD188: 15 | AE188: 58 | AF188: 78 | AG188: 83 | AH188: 84 | AI188: 63 | AJ188: 66 | AK188: 48 | AL188: 49 | AM188: 52 | AN188: 37 | AO188: 23 | AP188: 25 | AQ188: 21 | AR188: 19 | AT188: 4 | AU188: 0 | AV188: 2 | AW188: 1 | AX188: 17
D189: 130608 | E189: MACHE (6) | I189: =SUM(K189:AR189) -> 3969.621145 | J189: 232.6211454 | K189: =SUM(K190:K192) -> 36.14096916 | L189: =SUM(L190:L192) -> 38.82599119 | M189: 36.61674009 | N189: 39.75770925 | O189: 40.1938326 | P189: 41.08590308 | Q189: 48 | R189: 65 | S189: 64 | T189: 65 | U189: 71 | V189: 67 | W189: 50 | X189: 55 | Y189: 69 | Z189: 48 | AA189: 73 | AB189: 57 | AC189: 59 | AD189: 55 | AE189: 288 | AF189: 387 | AG189: 284 | AH189: 294 | AI189: 225 | AJ189: 247 | AK189: 251 | AL189: 224 | AM189: 153 | AN189: 158 | AO189: 131 | AP189: 108 | AQ189: 63 | AR189: 78 | AT189: 45 | AU189: 3 | AV189: 20 | AW189: 20 | AX189: 71
B190: 1 | C190: 139 | D190: 130608 | E190: MACHE | F190: 00005325 | G190: Centro de salud | H190: MACHE | I190: =SUM(K190:AR190) -> 1999.825991 | J190: 131.3259912 | K190: 20.50660793 | L190: 21.69236417 | M190: 20.84140969 | N190: 22.34801762 | O190: 22.65491924 | P190: 23.28267254 | Q190: 24 | R190: 32.5 | S190: 32 | T190: 32.5 | U190: 35.5 | V190: 33.5 | W190: 25 | X190: 27.5 | Y190: 34.5 | Z190: 24 | AA190: 36.5 | AB190: 28.5 | AC190: 29.5 | AD190: 27.5 | AE190: 144 | AF190: 193.5 | AG190: 142 | AH190: 147 | AI190: 112.5 | AJ190: 123.5 | AK190: 125.5 | AL190: 112 | AM190: 76.5 | AN190: 79 | AO190: 65.5 | AP190: 54 | AQ190: 31.5 | AR190: 39 | AT190: 22.5 | AU190: 1.5 | AV190: 10 | AW190: 10 | AX190: 35.5
B191: 2 | C191: 140 | D191: 130608 | E191: MACHE | F191: 00012823 | G191: Puesto de salud | H191: LLUIN | I191: 786.4473281 | J191: 55.29515419 | K191: 8.634361233 | L191: 9.133627019 | M191: 8.775330396 | N191: 9.40969163 | O191: 9.538913363 | P191: 9.803230543 | Q191: 9.391304348 | R191: 12.7173913 | S191: 12.52173913 | T191: 12.7173913 | U191: 13.89130435 | V191: 13.10869565 | W191: 9.782608696 | X191: 10.76086957 | Y191: 13.5 | Z191: 9.391304348 | AA191: 14.2826087 | AB191: 11.15217391 | AC191: 11.54347826 | AD191: 10.76086957 | AE191: 56.34782609 | AF191: 75.7173913 | AG191: 55.56521739 | AH191: 57.52173913 | AI191: 44.02173913 | AJ191: 48.32608696 | AK191: 49.10869565 | AL191: 43.82608696 | AM191: 29.93478261 | AN191: 30.91304348 | AO191: 25.63043478 | AP191: 21.13043478 | AQ191: 12.32608696 | AR191: 15.26086957 | AT191: 8.804347826 | AU191: 0.5869565217 | AV191: 3.913043478 | AW191: 3.913043478 | AX191: 13.89130435
B192: 3 | C192: 141 | D192: 130608 | E192: MACHE | F192: 00013974 | G192: Puesto de salud | H192: CRUZ DE MAYO | I192: 1183.347826 | J192: 46 | K192: 7 | L192: 8 | M192: 7 | N192: 8 | O192: 8 | P192: 8 | Q192: 14.60869565 | R192: 19.7826087 | S192: 19.47826087 | T192: 19.7826087 | U192: 21.60869565 | V192: 20.39130435 | W192: 15.2173913 | X192: 16.73913043 | Y192: 21 | Z192: 14.60869565 | AA192: 22.2173913 | AB192: 17.34782609 | AC192: 17.95652174 | AD192: 16.73913043 | AE192: 87.65217391 | AF192: 117.7826087 | AG192: 86.43478261 | AH192: 89.47826087 | AI192: 68.47826087 | AJ192: 75.17391304 | AK192: 76.39130435 | AL192: 68.17391304 | AM192: 46.56521739 | AN192: 48.08695652 | AO192: 39.86956522 | AP192: 32.86956522 | AQ192: 19.17391304 | AR192: 23.73913043 | AT192: 13.69565217 | AU192: 0.9130434783 | AV192: 6.086956522 | AW192: 6.086956522 | AX192: 21.60869565
D193: 130610 | E193: PARANDAY (7) | I193: =SUM(K193:AR193) -> 850.4713656 | J193: 41.47136564 | K193: =+K194 -> 6.475770925 | L193: =+L194 -> 6.850220264 | M193: 6.581497797 | N193: 7.057268722 | O193: 7.154185022 | P193: 7.352422907 | Q193: 7 | R193: 9 | S193: 9 | T193: 13 | U193: 4 | V193: 13 | W193: 14 | X193: 17 | Y193: 18 | Z193: 18 | AA193: 17 | AB193: 16 | AC193: 14 | AD193: 16 | AE193: 55 | AF193: 71 | AG193: 72 | AH193: 72 | AI193: 66 | AJ193: 58 | AK193: 50 | AL193: 32 | AM193: 33 | AN193: 35 | AO193: 37 | AP193: 18 | AQ193: 12 | AR193: 13 | AT193: 5 | AU193: 0 | AV193: 1 | AW193: 3 | AX193: 13
B194: 1 | C194: 142 | D194: 130610 | E194: PARANDAY | F194: 00005248 | G194: Puesto de salud | H194: PARANDAY | I194: =SUM(K194:AR194) -> 850.4713656 | J194: 41.47136564 | K194: 6.475770925 | L194: 6.850220264 | M194: 6.581497797 | N194: 7.057268722 | O194: 7.154185022 | P194: 7.352422907 | Q194: 7 | R194: 9 | S194: 9 | T194: 13 | U194: 4 | V194: 13 | W194: 14 | X194: 17 | Y194: 18 | Z194: 18 | AA194: 17 | AB194: 16 | AC194: 14 | AD194: 16 | AE194: 55 | AF194: 71 | AG194: 72 | AH194: 72 | AI194: 66 | AJ194: 58 | AK194: 50 | AL194: 32 | AM194: 33 | AN194: 35 | AO194: 37 | AP194: 18 | AQ194: 12 | AR194: 13 | AT194: 5 | AU194: 0 | AV194: 1 | AW194: 3 | AX194: 13
D195: 130611 | E195: SALPO (8) | I195: =SUM(K195:AR195) -> 6435.863436 | J195: 559.8634361 | K195: =SUM(K196:K199) -> 87.42290749 | L195: =SUM(L196:L199) -> 92.47797357 | M195: 88.85022026 | N195: 95.27312775 | O195: 96.5814978 | P195: 99.25770925 | Q195: 85 | R195: 106 | S195: 85 | T195: 103 | U195: 105 | V195: 106 | W195: 98 | X195: 112 | Y195: 111 | Z195: 110 | AA195: 149 | AB195: 140 | AC195: 105 | AD195: 107 | AE195: 441 | AF195: 542 | AG195: 459 | AH195: 439 | AI195: 360 | AJ195: 391 | AK195: 353 | AL195: 311 | AM195: 267 | AN195: 216 | AO195: 182 | AP195: 154 | AQ195: 123 | AR195: 116 | AT195: 102 | AU195: 7 | AV195: 45 | AW195: 41 | AX195: 106
B196: 1 | C196: 143 | D196: 130611 | E196: SALPO | F196: 00005326 | G196: Centro de salud | H196: SALPO | I196: =SUM(K196:AR196) -> 1562.301674 | J196: 152.061674 | K196: 23.74449339 | L196: 25.1174743 | M196: 24.13215859 | N196: 25.87665198 | O196: 26.23201175 | P196: 26.95888399 | Q196: 20.4 | R196: 25.44 | S196: 20.4 | T196: 24.72 | U196: 25.2 | V196: 25.44 | W196: 23.52 | X196: 26.88 | Y196: 26.64 | Z196: 26.4 | AA196: 35.76 | AB196: 33.6 | AC196: 25.2 | AD196: 25.68 | AE196: 105.84 | AF196: 130.08 | AG196: 110.16 | AH196: 105.36 | AI196: 86.4 | AJ196: 93.84 | AK196: 84.72 | AL196: 74.64 | AM196: 64.08 | AN196: 51.84 | AO196: 43.68 | AP196: 36.96 | AQ196: 29.52 | AR196: 27.84 | AT196: 24.48 | AU196: 1.68 | AV196: 10.8 | AW196: 9.84 | AX196: 25.44
B197: 2 | C197: 144 | D197: 130611 | E197: SALPO | F197: 00005327 | G197: Puesto de salud | H197: BELLAVISTA | I197: 2359.592129 | J197: 165.8854626 | K197: 25.9030837 | L197: 27.40088106 | M197: 26.32599119 | N197: 28.22907489 | O197: 28.61674009 | P197: 29.40969163 | Q197: 31.73333333 | R197: 39.57333333 | S197: 31.73333333 | T197: 38.45333333 | U197: 39.2 | V197: 39.57333333 | W197: 36.58666667 | X197: 41.81333333 | Y197: 41.44 | Z197: 41.06666667 | AA197: 55.62666667 | AB197: 52.26666667 | AC197: 39.2 | AD197: 39.94666667 | AE197: 164.64 | AF197: 202.3466667 | AG197: 171.36 | AH197: 163.8933333 | AI197: 134.4 | AJ197: 145.9733333 | AK197: 131.7866667 | AL197: 116.1066667 | AM197: 99.68 | AN197: 80.64 | AO197: 67.94666667 | AP197: 57.49333333 | AQ197: 45.92 | AR197: 43.30666667 | AT197: 38.08 | AU197: 2.613333333 | AV197: 16.8 | AW197: 15.30666667 | AX197: 39.57333333
B198: 3 | C198: 145 | D198: 130611 | E198: SALPO | F198: 00013043 | G198: Puesto de salud | H198: RAYAMPAMPA | I198: 1548.477885 | J198: 138.2378855 | K198: 21.58590308 | L198: 22.83406755 | M198: 21.93832599 | N198: 23.52422907 | O198: 23.84728341 | P198: 24.50807636 | Q198: 20.4 | R198: 25.44 | S198: 20.4 | T198: 24.72 | U198: 25.2 | V198: 25.44 | W198: 23.52 | X198: 26.88 | Y198: 26.64 | Z198: 26.4 | AA198: 35.76 | AB198: 33.6 | AC198: 25.2 | AD198: 25.68 | AE198: 105.84 | AF198: 130.08 | AG198: 110.16 | AH198: 105.36 | AI198: 86.4 | AJ198: 93.84 | AK198: 84.72 | AL198: 74.64 | AM198: 64.08 | AN198: 51.84 | AO198: 43.68 | AP198: 36.96 | AQ198: 29.52 | AR198: 27.84 | AT198: 24.48 | AU198: 1.68 | AV198: 10.8 | AW198: 9.84 | AX198: 25.44
B199: 4 | C199: 146 | D199: 130611 | E199: SALPO | F199: 00007042 | G199: Puesto de salud | H199: SHULGON | I199: 965.4917474 | J199: 103.6784141 | K199: 16.18942731 | L199: 17.12555066 | M199: 16.45374449 | N199: 17.64317181 | O199: 17.88546256 | P199: 18.38105727 | Q199: 12.46666667 | R199: 15.54666667 | S199: 12.46666667 | T199: 15.10666667 | U199: 15.4 | V199: 15.54666667 | W199: 14.37333333 | X199: 16.42666667 | Y199: 16.28 | Z199: 16.13333333 | AA199: 21.85333333 | AB199: 20.53333333 | AC199: 15.4 | AD199: 15.69333333 | AE199: 64.68 | AF199: 79.49333333 | AG199: 67.32 | AH199: 64.38666667 | AI199: 52.8 | AJ199: 57.34666667 | AK199: 51.77333333 | AL199: 45.61333333 | AM199: 39.16 | AN199: 31.68 | AO199: 26.69333333 | AP199: 22.58666667 | AQ199: 18.04 | AR199: 17.01333333 | AT199: 14.96 | AU199: 1.026666667 | AV199: 6.6 | AW199: 6.013333333 | AX199: 15.54666667
D200: 130613 | E200: SINSICAP (9) | I200: =SUM(K200:AR200) -> 9964.101322 | J200: 698.1013216 | K200: =SUM(K201:K203) -> 109.0088106 | L200: =SUM(L201:L203) -> 115.3120411 | M200: 110.7885463 | N200: 118.7973568 | O200: 120.4287812 | P200: 123.7657856 | Q200: 211 | R200: 181 | S200: 191 | T200: 166 | U200: 197 | V200: 168 | W200: 182 | X200: 202 | Y200: 222 | Z200: 245 | AA200: 224 | AB200: 210 | AC200: 213 | AD200: 204 | AE200: 969 | AF200: 834 | AG200: 663 | AH200: 672 | AI200: 597 | AJ200: 613 | AK200: 457 | AL200: 404 | AM200: 330 | AN200: 287 | AO200: 217 | AP200: 159 | AQ200: 138 | AR200: 110 | AT200: 168 | AU200: 9 | AV200: 78 | AW200: 57 | AX200: 130
B201: 1 | C201: 147 | D201: 130613 | E201: SINSICAP | F201: 00005249 | G201: Puesto de salud | H201: SINSICAP | I201: =SUM(K201:AR201) -> 949.5748082 | J201: 76.030837 | K201: 11.8722467 | L201: 12.55873715 | M201: 12.0660793 | N201: 12.93832599 | O201: 13.11600587 | P201: 13.479442 | Q201: 19.89183876 | R201: 17.06361524 | S201: 18.00635641 | T201: 15.64950348 | U201: 18.57200111 | V201: 15.83805171 | W201: 17.15788935 | X201: 19.0433717 | Y201: 20.92885405 | Z201: 23.09715875 | AA201: 21.11740228 | AB201: 19.79756464 | AC201: 20.08038699 | AD201: 19.23191994 | AE201: 91.3516197 | AF201: 78.62461386 | AG201: 62.50373979 | AH201: 63.35220685 | AI201: 56.28164805 | AJ201: 57.79003393 | AK201: 43.08327162 | AL201: 38.0867434 | AM201: 31.11045872 | AN201: 27.05667168 | AO201: 20.45748346 | AP201: 14.98958466 | AQ201: 13.00982819 | AR201: 10.37015291 | AT201: 15.83805171 | AU201: 0.848467056 | AV201: 7.353381152 | AW201: 5.373624688 | AX201: 12.25563525
... 222 more rows

Sheet Por Redes
C2: GERENCIA REGIONAL DE SALUD LA LIBERTAD
C3: Oficina de Estadística e Informática | O3: POBLACION ESTIMADA POR EDADES SIMPLES, GRUPOS DE EDAD y GÉNERO, MICROREDES Y ESTABLECIMIENTOS DE SALUD 2022
A5: N° EESS x RED | B5: N° EE SS | C5: Red | D5: N° MR | E5: Microrred | F5: CATEGORIA | G5: Código RENIPRESS | H5: Clasificación | I5: EESS | J5: Distrito | K5: POBLACION | M5: POBLACIÓN EDADES SIMPLES | AG5: EDADES EN QUINQUENEOS | AV5: NACIMIENTO | AW5: Grupos Especiales | AZ5: GESTANTES ESPERADAS
A6: N° | B6: N° | K6: TOTAL | L6: 0 - 5a | M6: 0a | N6: 1a | O6: 2a | P6: 3a | Q6: 4a | R6: 5a | S6: 6a | T6: 7a | U6: 8a | V6: 9a | W6: 10a | X6: 11a | Y6: 12a | Z6: 13a | AA6: 14a | AB6: 15a | AC6: 16a | AD6: 17a | AE6: 18a | AF6: 19a | AG6: 20a-24a | AH6: 25a -29a | AI6: 30a -34a | AJ6: 35a -39a | AK6: 40a -44a | AL6: 45a -49a | AM6: 50a -54a | AN6: 55a -59a | AO6: 60a -64a | AP6: 65a -69a | AQ6: 70a -74a | AR6: 75a -79a | AS6: 80a - 84a | AT6: 85a / + | AW6: 28 d | AX6: 0m - 5m | AY6: 6m - 11m
H7: LA LIBERTAD | K7: =SUM(M7:AT7) -> 2101667.131 | L7: =+SUM(M7:R7) -> 200835.5467 | M7: =+M8+M76+M96+M107+M118+M139+M166+M220+M236+M275+M329+M365 -> 31875.07598 | N7: 32379.28042 | O7: 34149.24344 | P7: 34793.34375 | Q7: 33068.22335 | R7: 34570.37977 | S7: 37335.06624 | T7: 38299.58209 | U7: 38129.0936 | V7: 37461.13175 | W7: 37910.48898 | X7: 37371.98745 | Y7: 38992.21184 | Z7: 38258.37474 | AA7: 36175.8499 | AB7: 36101.05876 | AC7: 37135.56179 | AD7: 35890.48258 | AE7: 33778.0854 | AF7: 32586.24277 | AG7: 163401.339 | AH7: 180207.5902 | AI7: 161423.2852 | AJ7: 147647.446 | AK7: 133972.067 | AL7: 123396.5612 | AM7: 108101.7884 | AN7: 95145.46557 | AO7: 78432.00078 | AP7: 63132.22317 | AQ7: 47150.74514 | AR7: 35928.16561 | AS7: 24379.75295 | AT7: =+AT8+AT76+AT96+AT107+AT118+AT139+AT166+AT220+AT236+AT275+AT329+AT365 -> 23087.93658 | AV7: =+AV8+AV76+AV96+AV107+AV118+AV139+AV166+AV220+AV236+AV275+AV329+AV365 -> 36722.36086 | AW7: 2320.927515 | AX7: 15833.86402 | AY7: 14359.0454 | AZ7: 47033.49443
C8: TRUJILLO | D8: 9 | K8: =SUM(M8:AT8) -> 1120138.308 | L8: =+SUM(M8:R8) -> 100858.3081 | M8: =+M9+M21+M33+M38+M43+M54+M60+M70+M67 -> 14918.42874 | N8: =+N9+N21+N33+N38+N43+N54+N60+N70+N67 -> 15576.01033 | O8: 17055.51282 | P8: 18082.26 | Q8: 17304.96499 | R8: 17921.13124 | S8: 19180 | T8: 19709 | U8: 19804 | V8: 19440 | W8: 19650 | X8: 18762 | Y8: 19534 | Z8: 18925 | AA8: 17233 | AB8: 17387 | AC8: 17634 | AD8: 16795 | AE8: 16308 | AF8: 16282 | AG8: 83687 | AH8: 98864 | AI8: 92026 | AJ8: 83237 | AK8: 76594 | AL8: 69246 | AM8: 59528 | AN8: 52171 | AO8: 43289 | AP8: 35108 | AQ8: 26128 | AR8: 19326 | AS8: 12401 | AT8: =+AT9+AT21+AT33+AT38+AT43+AT54+AT60+AT70+AT67 -> 11032 | AV8: 17041 | AW8: 1151 | AX8: 7519 | AY8: 6625 | AZ8: 23185
D9: 1 | K9: =SUM(M9:AT9) -> 397804.8968 | L9: 27792.89679 | M9: =+SUM(M10:M20) -> 4121.282954 | N9: =+SUM(N10:N20) -> 4288.826095 | O9: 4691.117563 | P9: 4977.123398 | Q9: 4762.089344 | R9: 4952.457433 | S9: 6024 | T9: 6247 | U9: 6185 | V9: 5948 | W9: 6148 | X9: 5891 | Y9: 6148 | Z9: 5966 | AA9: 5534 | AB9: 5505 | AC9: 5545 | AD9: 5187 | AE9: 5184 | AF9: 5245 | AG9: 27420 | AH9: 32699 | AI9: 32696 | AJ9: 29658 | AK9: 28963 | AL9: 26565 | AM9: 22960 | AN9: 21313 | AO9: 18598 | AP9: 15575 | AQ9: 12090 | AR9: 9255 | AS9: 5912 | AT9: =+SUM(AT10:AT20) -> 5551 | AV9: 4315 | AW9: 326 | AX9: 2009 | AY9: 1647 | AZ9: 6650
B10: 1 | C10: TRUJILLO | E10: TRUJILLO METROPOLITANO | F10: II-1 | G10: 00005204 | H10: HOSPITAL DE ESPECIALIDADES BÁSICAS | I10: LA NORIA | J10: TRUJILLO | K10: ='Por Provincias'!I12 -> 27876.97106 | L10: 1478.286302 | M10: 218.134494 | N10: 227.4731203 | O10: 249.8462789 | P10: 265.7401951 | Q10: 253.7855366 | R10: 263.3066769 | S10: 429.7851881 | T10: 445.6952307 | U10: 441.2718108 | V10: 424.3629314 | W10: 438.6320279 | X10: 420.2962389 | Y10: 438.6320279 | Z10: 425.6471501 | AA10: 394.8259015 | AB10: 392.7568825 | AC10: 395.6107018 | AD10: 370.069019 | AE10: 369.8549826 | AF10: 374.207057 | AG10: 1956.293137 | AH10: 2332.92594 | AI10: 2332.711904 | AJ10: 2115.964327 | AK10: 2066.379217 | AL10: 1895.292749 | AM10: 1638.092284 | AN10: 1520.586274 | AO10: 1326.883288 | AP10: 1111.205894 | AQ10: 862.5668864 | AR10: 660.3024428 | AS10: 421.794494 | AT10: 396.0387747 | AV10: 307.855758 | AW10: 23.25862737 | AX10: 143.3330748 | AY10: 117.5060101 | AZ10: 474.4474603
B11: =+B10+1 -> 2 | C11: TRUJILLO | E11: TRUJILLO METROPOLITANO | F11: I-4 | G11: 00005202 | H11: CENTRO DE SALUD CON CAMAS DE INTERNAMIENTO | I11: EL BOSQUE | J11: TRUJILLO | K11: ='Por Provincias'!I13 -> 38533.39845 | L11: 3096.033576 | M11: 456.8477138 | N11: 476.405969 | O11: 523.2629615 | P11: 556.55022 | Q11: 531.513105 | R11: 551.4536063 | S11: 576.9398992 | T11: 598.2974021 | U11: 592.3594416 | V11: 569.661109 | W11: 588.8158201 | X11: 564.2020163 | Y11: 588.8158201 | Z11: 571.385033 | AA11: 530.0108569 | AB11: 527.2334238 | AC11: 531.064366 | AD11: 496.7774331 | AE11: 496.4901124 | AF11: 502.3322993 | AG11: 2626.110896 | AH11: 3131.699496 | AI11: 3131.412175 | AJ11: 2840.452113 | AK11: 2773.889492 | AL11: 2544.224506 | AM11: 2198.960838 | AN11: 2041.221791 | AO11: 1781.196588 | AP11: 1491.673129 | AQ11: 1157.902288 | AR11: 886.3842575 | AS11: 566.213261 | AT11: 531.6390074 | AV11: 413.2628926 | AW11: 31.22217914 | AX11: 192.4090733 | AY11: 157.7390461 | AZ11: 636.894145
B12: =+B11+1 -> 3 | C12: TRUJILLO | E12: TRUJILLO METROPOLITANO | F12: I-3 | G12: 00005201 | H12: CENTRO DE SALUD | I12: ARANJUEZ | J12: TRUJILLO | K12: ='Por Provincias'!I14 -> 23829.15468 | L12: 1878.074421 | M12: 277.1268414 | N12: 288.9910082 | O12: 317.4147695 | P12: 337.6070404 | Q12: 322.419361 | R12: 334.5154008 | S12: 357.375727 | T12: 370.6052734 | U12: 366.9271035 | V12: 352.8670027 | W12: 364.7320667 | X12: 349.4854595 | Y12: 364.7320667 | Z12: 353.9348585 | AA12: 328.3063203 | AB12: 326.585886 | AC12: 328.9588988 | AD12: 307.7204343 | AE12: 307.5424583 | AF12: 311.1613028 | AG12: 1626.700271 | AH12: 1939.878635 | AI12: 1939.700659 | AJ12: 1759.470337 | AK12: 1718.23924 | AL12: 1575.977123 | AM12: 1362.109345 | AN12: 1264.400543 | AO12: 1103.332299 | AP12: 923.9918573 | AQ12: 717.2431175 | AR12: 549.0558356 | AS12: 350.7312912 | AT12: 329.3148507 | AV12: 255.9887553 | AW12: 19.34005428 | AX12: 119.1845677 | AY12: 97.70880186 | AZ12: 394.5133773
B13: 4 | C13: TRUJILLO | E13: TRUJILLO METROPOLITANO | F13: I-3 | G13: 00005203 | H13: CENTRO DE SALUD | I13: LOS GRANADOS "SAGRADO CORAZON" | J13: TRUJILLO | K13: ='Por Provincias'!I15 -> 55219.8909 | L13: 3068.141381 | M13: 452.7319686 | N13: 472.1140233 | O13: 518.5488808 | P13: 551.5362541 | Q13: 526.7246987 | R13: 546.4855558 | S13: 849.0593253 | T13: 880.4903063 | U13: 871.7516479 | V13: 838.3474215 | W13: 866.5366421 | X13: 830.3134936 | Y13: 866.5366421 | Z13: 840.8844513 | AA13: 779.9957348 | AB13: 775.9082978 | AC13: 781.5461419 | AD13: 731.087437 | AE13: 730.6645987 | AF13: 739.262311 | AG13: 3864.742148 | AH13: 4608.796627 | AI13: 4608.373788 | AJ13: 4180.179527 | AK13: 4082.221985 | AL13: 3744.23323 | AM13: 3236.122528 | AN13: 3003.984296 | AO13: 2621.315626 | AP13: 2195.235556 | AQ13: 1704.038387 | AR13: 1304.456185 | AS13: 833.2733618 | AT13: 782.3918185 | AV13: 608.1824351 | AW13: 45.94842962 | AX13: 283.1607212 | AY13: 232.1382319 | AZ13: 937.2915859
B14: 5 | C14: TRUJILLO | E14: TRUJILLO METROPOLITANO | F14: I-3 | G14: 00005199 | H14: CENTRO DE SALUD | I14: LA UNION | J14: TRUJILLO | K14: ='Por Provincias'!I16 -> 16799.15955 | L14: 1376.014923 | M14: 203.0434284 | N14: 211.7359862 | O14: 232.5613162 | P14: 247.3556533 | Q14: 236.2280467 | R14: 245.0904917 | S14: 251.0973245 | T14: 260.392594 | U14: 257.808259 | V14: 247.92943 | W14: 256.2659946 | X14: 245.5535091 | Y14: 256.2659946 | Z14: 248.6797208 | AA14: 230.6727414 | AB14: 229.4639395 | AC14: 231.1312524 | AD14: 216.2088019 | AE14: 216.0837534 | AF14: 218.6264056 | AG14: 1142.943001 | AH14: 1362.986623 | AI14: 1362.861574 | AJ14: 1236.229159 | AK14: 1207.259597 | AL14: 1107.304188 | AM14: 957.0376115 | AN14: 888.3860023 | AO14: 775.2171384 | AP14: 649.2099651 | AQ14: 503.9453276 | AR14: 385.774525 | AS14: 246.4288484 | AT14: 231.3813494 | AV14: 179.8613804 | AW14: 13.58860023 | AX14: 83.740791 | AY14: 68.65160915 | AZ14: 277.1907716
B15: 6 | C15: TRUJILLO | E15: TRUJILLO METROPOLITANO | F15: I-3 | G15: 00005200 | H15: CENTRO DE SALUD | I15: LOS JARDINES | J15: TRUJILLO | K15: ='Por Provincias'!I17 -> 64165.06065 | L15: 5987.524393 | M15: 883.5132963 | N15: 921.3376698 | O15: 1011.955998 | P15: 1076.331356 | Q15: 1027.91123 | R15: 1066.474842 | S15: 947.1624661 | T15: 982.2250872 | U15: 972.4767352 | V15: 935.2128732 | W15: 966.6591702 | X15: 926.2506786 | Y15: 966.6591702 | Z15: 938.0430399 | AA15: 870.1190384 | AB15: 865.5593253 | AC15: 871.8485847 | AD15: 815.5597131 | AE15: 815.0880186 | AF15: 824.6791392 | AG15: 4311.287321 | AH15: 5141.31233 | AI15: 5140.840636 | AJ15: 4663.171384 | AK15: 4553.895502 | AL15: 4176.854401 | AM15: 3610.034897 | AN15: 3351.074641 | AO15: 2924.191159 | AP15: 2448.88038 | AQ15: 1900.928655 | AR15: 1455.177394 | AS15: 929.5525397 | AT15: 872.7919736 | AV15: 678.4538581 | AW15: 51.25746413 | AX15: 315.8780535 | AY15: 258.9602559 | AZ15: 1045.589376
B16: 7 | C16: TRUJILLO | E16: TRUJILLO METROPOLITANO | F16: I-3 | G16: 00005198 | H16: CENTRO DE SALUD | I16: SAN MARTIN PORRES | J16: TRUJILLO | K16: ='Por Provincias'!I18 -> 101252.8523 | L16: 4912 | M16: 745 | N16: 768 | O16: 824 | P16: 864 | Q16: 834 | R16: 877 | S16: 1568.482358 | T16: 1626.545366 | U16: 1610.402288 | V16: 1548.694067 | W16: 1600.768515 | X16: 1533.85285 | Y16: 1600.768515 | Z16: 1553.380768 | AA16: 1440.899961 | AB16: 1433.349166 | AC16: 1443.764056 | AD16: 1350.550795 | AE16: 1349.769678 | AF16: 1365.652385 | AG16: 7139.406747 | AH16: 8513.911788 | AI16: 8513.130671 | AJ16: 7722.119814 | AK16: 7541.161109 | AL16: 6916.788484 | AM16: 5978.146568 | AN16: 5549.313494 | AO16: 4842.402869 | AP16: 4055.297596 | AQ16: 3147.900349 | AR16: 2409.745056 | AS16: 1539.320667 | AT16: 1445.326289 | AV16: 1123.506204 | AW16: 84.88134936 | AX16: 523.0878247 | AY16: 428.8330748 | AZ16: 1731.475378
B17: 8 | C17: TRUJILLO | E17: TRUJILLO METROPOLITANO | F17: I-2 | G17: 00005208 | H17: PUESTO DE SALUD | I17: CLUB DE LEONES | J17: TRUJILLO | K17: ='Por Provincias'!I19 -> 43940.00146 | L17: 3839.825426 | M17: 566.6009183 | N17: 590.8578535 | O17: 648.9717811 | P17: 690.2559786 | Q17: 659.2039411 | R17: 683.9349531 | S17: 652.8530438 | T17: 677.0207445 | U17: 670.3014734 | V17: 644.616518 | W17: 666.2915859 | X17: 638.4391237 | Y17: 666.2915859 | Z17: 646.5672741 | AA17: 599.7491276 | AB17: 596.6062427 | AC17: 600.9412563 | AD17: 562.1428848 | AE17: 561.8177588 | AF17: 568.4286545 | AG17: 2971.651803 | AH17: 3543.765219 | AI17: 3543.440093 | AJ17: 3214.195812 | AK17: 3138.874952 | AL17: 2878.990888 | AM17: 2488.29779 | AN17: 2309.803606 | AO17: 2015.56456 | AP17: 1687.945909 | AQ17: 1310.257852 | AR17: 1003.013765 | AS17: 640.7150058 | AT17: 601.5915083 | AV17: 467.639589 | AW17: 35.3303606 | AX17: 217.7260566 | AY17: 178.4941838 | AZ17: 720.6960062
B18: 9 | C18: TRUJILLO | E18: TRUJILLO METROPOLITANO | F18: I-2 | G18: 00005206 | H18: PUESTO DE SALUD | I18: LIBERTAD | J18: TRUJILLO | K18: ='Por Provincias'!I20 -> 7088.42315 | L18: 632.2230725 | M18: 93.29022384 | N18: 97.28410178 | O18: 106.8524967 | P18: 113.6498948 | Q18: 108.5372106 | R18: 112.6091448 | S18: 105.1105079 | T18: 109.001551 | U18: 107.9197363 | V18: 103.7844126 | W18: 107.2741373 | X18: 102.789841 | Y18: 107.2741373 | Z18: 104.0984878 | AA18: 96.56068244 | AB18: 96.05467235 | AC18: 96.75261729 | AD18: 90.50601008 | AE18: 90.45366421 | AF18: 91.51803024 | AG18: 478.4412563 | AH18: 570.5525397 | AI18: 570.5001939 | AJ18: 517.4912757 | AK18: 505.3644824 | AL18: 463.5226832 | AM18: 400.6203955 | AN18: 371.8825126 | AO18: 324.5094998 | AP18: 271.762311 | AQ18: 210.9538581 | AR18: 161.4870105 | AS18: 103.1562621 | AT18: 96.85730903 | AV18: 75.29081039 | AW18: 5.68825126 | AX18: 35.05428461 | AY18: 28.7378829 | AZ18: 116.0333463
B19: 10 | C19: TRUJILLO | E19: TRUJILLO METROPOLITANO | F19: I-2 | G19: 00005205 | H19: PUESTO DE SALUD | I19: PESQUEDA II | J19: TRUJILLO | K19: ='Por Provincias'!I21 -> 8015.60873 | L19: 985.5242013 | M19: 145.422996 | N19: 151.6487469 | O19: 166.564186 | P19: 177.1601301 | Q19: 169.1903578 | R19: 175.5377846 | S19: 114.4536642 | T19: 118.6905777 | U19: 117.5126018 | V19: 113.0096937 | W19: 116.8096161 | X19: 111.9267158 | Y19: 116.8096161 | Z19: 113.3516867 | AA19: 105.1438542 | AB19: 104.5928655 | AC19: 105.3528499 | AD19: 98.55098876 | AE19: 98.49398992 | AF19: 99.65296627 | AG19: 520.969368 | AH19: 621.2683211 | AI19: 621.2113222 | AJ19: 563.4905002 | AK19: 550.2857697 | AL19: 504.7246995 | AM19: 436.2310973 | AN19: 404.9387359 | AO19: 353.3547887 | AP19: 295.9189608 | AQ19: 229.7053121 | AR19: 175.8414114 | AS19: 112.3257076 | AT19: 105.4668476 | AV19: 81.98332687 | AW19: 6.193873594 | AX19: 38.17022102 | AY19: 31.29236138 | AZ19: 126.3474215
B20: 11 | C20: TRUJILLO | E20: TRUJILLO METROPOLITANO | F20: I-2 | G20: 00005207 | H20: PUESTO DE SALUD | I20: PESQUEDA III | J20: TRUJILLO | K20: ='Por Provincias'!I22 -> 11084.37588 | L20: 539.2490913 | M20: 79.57107327 | N20: 82.97761622 | O20: 91.1388942 | P20: 96.93667496 | Q20: 92.57585613 | R20: 96.04897647 | S20: 171.6804963 | T20: 178.0358666 | U20: 176.2689027 | V20: 169.5145405 | W20: 175.2144242 | X20: 167.8900737 | Y20: 175.2144242 | Z20: 170.0275301 | AA20: 157.7157813 | AB20: 156.8892982 | AC20: 158.0292749 | AD20: 147.8264831 | AE20: 147.7409849 | AF20: 149.4794494 | AG20: 781.454052 | AH20: 931.9024816 | AI20: 931.8169833 | AJ20: 845.2357503 | AK20: 825.4286545 | AL20: 757.0870492 | AM20: 654.346646 | AN20: 607.4081039 | AO20: 530.032183 | AP20: 443.8784413 | AQ20: 344.5579682 | AR20: 263.7621171 | AS20: 168.4885615 | AT20: 158.2002714 | AV20: 122.9749903 | AW20: 9.290810392 | AX20: 57.25533152 | AY20: 46.93854207 | AZ20: 189.5211322
D21: 2 | K21: =SUM(M21:AT21) -> 183845.116 | L21: 21299.11603 | M21: =SUM(M22:M32) -> 3146.76717 | N21: =SUM(N22:N32) -> 3280.331739 | O21: 3601.133824 | P21: 3829.348766 | Q21: 3657.209107 | R21: 3784.325426 | S21: 3614 | T21: 3707 | U21: 3644 | V21: 3624 | W21: 3650 | X21: 3521 | Y21: 3606 | Z21: 3505 | AA21: 3125 | AB21: 3274 | AC21: 3205 | AD21: 3059 | AE21: 3002 | AF21: 2958 | AG21: 14946 | AH21: 16700 | AI21: 15079 | AJ21: 13131 | AK21: 11490 | AL21: 10363 | AM21: 8698 | AN21: 7133 | AO21: 5418 | AP21: 4335 | AQ21: 2970 | AR21: 2104 | AS21: 1399 | AT21: 1286 | AV21: 3858 | AW21: 221 | AX21: 1611 | AY21: 1501 | AZ21: 3807
A22: 1 | B22: =+B20+1 -> 12 | C22: TRUJILLO | E22: EL PORVENIR | F22: II-1 | G22: 00005209 | H22: HOSPITAL DISTRITAL DE EL PORVENIR | I22: SANTA ISABEL | J22: EL PORVENIR | K22: ='Por Provincias'!I24 -> 22028.61878 | L22: 2110.509374 | M22: 311.4247178 | N22: 324.7572221 | O22: 356.6987756 | P22: 379.3900899 | Q22: 362.3227473 | R22: 375.9158217 | S22: 442.8533917 | T22: 454.249453 | U22: 446.5295405 | V22: 444.0787746 | W22: 447.2647702 | X22: 431.4573304 | Y22: 441.8730853 | Z22: 429.4967177 | AA22: 382.9321663 | AB22: 401.190372 | AC22: 392.7352298 | AD22: 374.8446389 | AE22: 367.8599562 | AF22: 362.4682713 | AG22: 1831.45733 | AH22: 2046.389497 | AI22: 1847.754923 | AJ22: 1609.050328 | AK22: 1407.964989 | AL22: 1269.864333 | AM22: 1065.838074 | AN22: 874.0656455 | AO22: 663.9124726 | AP22: 531.2035011 | AQ22: 363.9387309 | AR22: 257.8205689 | AS22: 171.4310722 | AT22: 157.5842451 | AV22: 472.7527352 | AW22: 27.0809628 | AX22: 197.4091904 | AY22: 183.9299781 | AZ22: 466.5032823
A23: =+A22+1 -> 2 | B23: =+B22+1 -> 13 | C23: TRUJILLO | E23: EL PORVENIR | F23: I-4 | G23: 00005220 | H23: CENTRO DE SALUD | I23: ALTO TRUJILLO | J23: EL PORVENIR | K23: ='Por Provincias'!I25 -> 54172.71797 | L23: 7400.728908 | M23: 1092.044385 | N23: 1138.79625 | O23: 1250.802755 | P23: 1330.372298 | Q23: 1270.523819 | R23: 1318.189401 | S23: 1039.914661 | T23: 1066.675055 | U23: 1048.547046 | V23: 1042.792123 | W23: 1050.273523 | X23: 1013.154267 | Y23: 1037.612691 | Z23: 1008.550328 | AA23: 899.2067834 | AB23: 942.0809628 | AC23: 922.226477 | AD23: 880.2155361 | AE23: 863.8140044 | AF23: 851.1531729 | AG23: 4300.654267 | AH23: 4805.36105 | AI23: 4338.924508 | AJ23: 3778.394967 | AK23: 3306.203501 | AL23: 2981.913567 | AM23: 2502.816193 | AN23: 2052.493435 | AO23: 1559.008753 | AP23: 1247.37965 | AQ23: 854.6061269 | AR23: 605.4179431 | AS23: 402.5568928 | AT23: 370.0415755 | AV23: 1110.124726 | AW23: 63.59190372 | AX23: 463.559081 | AY23: 431.9070022 | AZ23: 1095.449672
A24: =+A23+1 -> 3 | B24: 14 | C24: TRUJILLO | E24: EL PORVENIR | F24: I-2 | G24: 00005210 | H24: PUESTO DE SALUD | I24: BUEN PASTOR | J24: EL PORVENIR | K24: ='Por Provincias'!I26 -> 10995.11975 | L24: 1124.985173 | M24: 166.0017218 | N24: 173.1084752 | O24: 190.1345896 | P24: 202.2299598 | Q24: 193.1323895 | R24: 200.3780371 | S24: 219.4496718 | T24: 225.0968271 | U24: 221.2713348 | V24: 220.0568928 | W24: 221.6356674 | X24: 213.8025164 | Y24: 218.963895 | Z24: 212.8309628 | AA24: 189.7565646 | AB24: 198.8041575 | AC24: 194.6143326 | AD24: 185.7489059 | AE24: 182.2877462 | AF24: 179.6159737 | AG24: 907.5525164 | AH24: 1014.059081 | AI24: 915.6285558 | AJ24: 797.3419037 | AK24: 697.6969365 | AL24: 629.2631291 | AM24: 528.1608315 | AN24: 433.130744 | AO24: 328.9923414 | AP24: 263.2303063 | AQ24: 180.3446389 | AR24: 127.7592998 | AS24: 84.95021882 | AT24: 78.08862144 | AV24: 234.2658643 | AW24: 13.41958425 | AX24: 97.82330416 | AY24: 91.14387309 | AZ24: 231.1690372
A25: 4 | B25: 15 | C25: TRUJILLO | E25: EL PORVENIR | F25: I-2 | G25: 00005211 | H25: PUESTO DE SALUD | I25: GRAN CHIMU | J25: EL PORVENIR | K25: ='Por Provincias'!I27 -> 15792.04804 | L25: 1831.587431 | M25: 270.2672661 | N25: 281.8377654 | O25: 309.5579682 | P25: 329.2504305 | Q25: 314.4386838 | R25: 326.2353166 | S25: 310.392779 | T25: 318.3801969 | U25: 312.9693654 | V25: 311.2516411 | W25: 313.4846827 | X25: 302.4053611 | Y25: 309.7056893 | Z25: 301.0311816 | AA25: 268.3944201 | AB25: 281.1914661 | AC25: 275.2653173 | AD25: 262.72593 | AE25: 257.8304158 | AF25: 254.0514223 | AG25: 1283.655361 | AH25: 1434.299781 | AI25: 1295.078228 | AJ25: 1127.771882 | AK25: 986.8326039 | AL25: 890.0388403 | AM25: 747.0382932 | AN25: 612.6263676 | AO25: 465.3315098 | AP25: 372.3167396 | AQ25: 255.0820569 | AR25: 180.7045952 | AS25: 120.154814 | AT25: 110.4496718 | AV25: 331.3490153 | AW25: 18.98085339 | AX25: 138.3626915 | AY25: 128.9152079 | AZ25: 326.9688184
A26: 5 | B26: 16 | C26: TRUJILLO | E26: EL PORVENIR | F26: I-2 | G26: 00005212 | H26: PUESTO DE SALUD | I26: MIGUEL GRAU | J26: EL PORVENIR | K26: ='Por Provincias'!I28 -> 14794.49458 | L26: 1589.855079 | M26: 234.5974747 | N26: 244.640903 | O26: 268.7026019 | P26: 285.7960589 | Q26: 272.939162 | R26: 283.1788789 | S26: 293.5880744 | T26: 301.1430525 | U26: 296.0251641 | V26: 294.4004376 | W26: 296.5125821 | X26: 286.0330963 | Y26: 292.9381838 | Z26: 284.7333151 | AA26: 253.863512 | AB26: 265.9677243 | AC26: 260.3624179 | AD26: 248.5019147 | AE26: 243.8714442 | AF26: 240.297046 | AG26: 1214.158096 | AH26: 1356.646608 | AI26: 1224.962527 | AJ26: 1066.714168 | AK26: 933.4053611 | AL26: 841.8520241 | AM26: 706.5935449 | AN26: 579.458698 | AO26: 440.1384026 | AP26: 352.1594639 | AQ26: 241.2718818 | AR26: 170.9212254 | AS26: 113.6496171 | AT26: 104.4699125 | AV26: 313.4097374 | AW26: 17.95322757 | AX26: 130.8717177 | AY26: 121.9357221 | AZ26: 309.2666849
A27: 6 | B27: 17 | C27: TRUJILLO | E27: EL PORVENIR | F27: I-3 | G27: 00005213 | H27: CENTRO DE SALUD | I27: RIO SECO - "SANTA. ROSA" | J27: EL PORVENIR | K27: ='Por Provincias'!I29 -> 28021.43025 | L27: 2101.211976 | M27: 310.0528028 | N27: 323.3265736 | O27: 355.1274153 | P27: 377.7187679 | Q27: 360.7266118 | R27: 374.2598049 | S27: 576.3025164 | T27: 591.1326586 | U27: 581.0864333 | V27: 577.8971554 | W27: 582.0432166 | X27: 561.4723742 | Y27: 575.0268053 | Z27: 558.9209519 | AA27: 498.3246718 | AB27: 522.0847921 | AC27: 511.0817834 | AD27: 487.8000547 | AE27: 478.7106127 | AF27: 471.6942013 | AG27: 2383.347374 | AH27: 2663.047046 | AI27: 2404.556072 | AJ27: 2093.920405 | AK27: 1832.240153 | AL27: 1652.524344 | AM27: 1387.016958 | AN27: 1137.455963 | AO27: 863.9753829 | AP27: 691.2759847 | AQ27: 473.6077681 | AR27: 335.512035 | AS27: 223.0899891 | AT27: 205.0705689 | AV27: 615.2117068 | AW27: 35.24152079 | AX27: 256.8963348 | AY27: 239.3553063 | AZ27: 607.0790481
A28: 7 | B28: 18 | C28: TRUJILLO | E28: EL PORVENIR | F28: I-2 | G28: 00005214 | H28: PUESTO DE SALUD | I28: VICTOR RAUL HAYA DE LA TORRE | J28: EL PORVENIR | K28: ='Por Provincias'!I30 -> 5011.120925 | L28: 520.654295 | M28: 76.82724316 | N28: 80.11631911 | O28: 87.99617371 | P28: 93.59403099 | Q28: 89.38358523 | R28: 92.7369428 | S28: 99.83971554 | T28: 102.4089168 | U28: 100.6684902 | V28: 100.1159737 | W28: 100.8342451 | X28: 97.27051422 | Y28: 99.61870897 | Z28: 96.82850109 | AA28: 86.33068928 | AB28: 90.44693654 | AC28: 88.54075492 | AD28: 84.50738512 | AE28: 82.93271335 | AF28: 81.71717724 | AG28: 412.8955142 | AH28: 461.3512035 | AI28: 416.5697484 | AJ28: 362.7546499 | AK28: 317.4206783 | AL28: 286.2863786 | AM28: 240.2893873 | AN28: 197.0549781 | AO28: 149.6766958 | AP28: 119.7579322 | AQ28: 82.04868709 | AR28: 58.12472648 | AS28: 38.64852298 | AT28: 35.52680525 | AV28: 106.5804158 | AW28: 6.105306346 | AX28: 44.50519694 | AY28: 41.46635667 | AZ28: 105.1714989
A29: 8 | B29: 19 | C29: TRUJILLO | E29: EL PORVENIR | F29: I-2 | G29: 00005215 | H29: PUESTO DE SALUD | I29: INDOAMERICA | J29: EL PORVENIR | K29: ='Por Provincias'!I31 -> 5966.207877 | L29: 631 | M29: 97 | N29: 100 | O29: 108 | P29: 114 | Q29: 109 | R29: 103 | S29: 118.6214442 | T29: 121.6739606 | U29: 119.6061269 | V29: 118.9496718 | W29: 119.8030635 | X29: 115.5689278 | Y29: 118.3588621 | Z29: 115.0437637 | AA29: 102.571116 | AB29: 107.4617068 | AC29: 105.1969365 | AD29: 100.404814 | AE29: 98.53391685 | AF29: 97.08971554 | AG29: 490.5689278 | AH29: 548.1400438 | AI29: 494.9343545 | AJ29: 430.9956236 | AK29: 377.1334792 | AL29: 340.1422319 | AM29: 285.4923414 | AN29: 234.1247265 | AO29: 177.833698 | AP29: 142.2866521 | AQ29: 97.48358862 | AR29: 69.05908096 | AS29: 45.9190372 | AT29: 42.21006565 | AV29: 126.6301969 | AW29: 7.253829322 | AX29: 52.87746171 | AY29: 49.26695842 | AZ29: 124.9562363
A30: 9 | B30: 20 | C30: TRUJILLO | E30: EL PORVENIR | F30: I-2 | G30: 00005216 | H30: PUESTO DE SALUD | I30: VIRGEN DEL CARMEN | J30: EL PORVENIR | K30: ='Por Provincias'!I32 -> 8792.385714 | L30: 1589.855079 | M30: 234.5974747 | N30: 244.640903 | O30: 268.7026019 | P30: 285.7960589 | Q30: 272.939162 | R30: 283.1788789 | S30: 160.1389497 | T30: 164.2598468 | U30: 161.4682713 | V30: 160.5820569 | W30: 161.7341357 | X30: 156.0180525 | Y30: 159.7844639 | Z30: 155.309081 | AA30: 138.4710066 | AB30: 145.0733042 | AC30: 142.0158643 | AD30: 135.5464989 | AE30: 133.0207877 | AF30: 131.071116 | AG30: 662.2680525 | AH30: 739.9890591 | AI30: 668.1613786 | AJ30: 581.8440919 | AK30: 509.1301969 | AL30: 459.1920131 | AM30: 385.4146608 | AN30: 316.0683807 | AO30: 240.0754923 | AP30: 192.0869803 | AQ30: 131.6028446 | AR30: 93.2297593 | AS30: 61.99070022 | AT30: 56.98358862 | AV30: 170.9507659 | AW30: 9.792669584 | AX30: 71.3845733 | AY30: 66.51039387 | AZ30: 168.690919
A31: 10 | B31: 21 | C31: TRUJILLO | E31: EL PORVENIR | F31: I-2 | G31: 00012229 | H31: PUESTO DE SALUD | I31: BARRIO 1 | J31: EL PORVENIR | K31: ='Por Provincias'!I33 -> 9968.616671 | L31: 2054.724986 | M31: 303.1932275 | N31: 316.1733308 | O31: 347.2706141 | P31: 369.362158 | Q31: 352.7459346 | R31: 365.9797207 | S31: 175.9551422 | T31: 180.4830416 | U31: 177.4157549 | V31: 176.4420131 | W31: 177.7078775 | X31: 171.4272429 | Y31: 175.5656455 | Z31: 170.6482495 | AA31: 152.1471554 | AB31: 159.4015317 | AC31: 156.0421225 | AD31: 148.9338074 | AE31: 146.1586433 | AF31: 144.0164114 | AG31: 727.6772429 | AH31: 813.0743982 | AI31: 734.1526258 | AJ31: 639.3101751 | AK31: 559.4146608 | AL31: 504.5443107 | AM31: 423.4803063 | AN31: 347.2850109 | AO31: 263.7866521 | AP31: 211.0585339 | AQ31: 144.6006565 | AR31: 102.4376368 | AS31: 68.11323851 | AT31: 62.61159737 | AV31: 187.8347921 | AW31: 10.75984683 | AX31: 78.43490153 | AY31: 73.07932166 | AZ31: 185.3517505
A32: 11 | B32: 22 | C32: TRUJILLO | E32: EL PORVENIR | F32: I-2 | G32: 00013242 | H32: PUESTO DE SALUD | I32: SUPERVIVENCIA | J32: EL PORVENIR | K32: ='Por Provincias'!I34 -> 8302.355481 | L32: 344.0037306 | M32: 50.76085709 | N32: 52.93399656 | O32: 58.14032906 | P32: 61.83891333 | Q32: 59.05701167 | R32: 61.27262292 | S32: 176.9436543 | T32: 181.4969912 | U32: 178.4124726 | V32: 177.4332604 | W32: 178.7062363 | X32: 172.3903173 | Y32: 176.5519694 | Z32: 171.6069475 | AA32: 153.0019147 | AB32: 160.297046 | AC32: 156.9187637 | AD32: 149.7705142 | AE32: 146.9797593 | AF32: 144.8254923 | AG32: 731.7653173 | AH32: 817.6422319 | AI32: 738.2770788 | AJ32: 642.9018053 | AK32: 562.5574398 | AL32: 507.3788293 | AM32: 425.8594092 | AN32: 349.2360503 | AO32: 265.2685996 | AP32: 212.244256 | AQ32: 145.4130197 | AR32: 103.0131291 | AS32: 68.49589716 | AT32: 62.96334792 | AV32: 188.8900438 | AW32: 10.8202954 | AX32: 78.87554705 | AY32: 73.48987965 | AZ32: 186.3930525
D33: 3 | K33: =SUM(M33:AT33) -> 73265.98173 | L33: 8283.981729 | M33: =SUM(M34:M37) -> 1222.376315 | N33: =SUM(N34:N37) -> 1274.707863 | O33: 1400.081978 | P33: 1489.147886 | Q33: 1422.156686 | R33: 1475.511001 | S33: 1311 | T33: 1374 | U33: 1395 | V33: 1340 | W33: 1373 | X33: 1302 | Y33: 1336 | Z33: 1324 | AA33: 1180 | AB33: 1173 | AC33: 1202 | AD33: 1168 | AE33: 1054 | AF33: 997 | AG33: 5509 | AH33: 6784 | AI33: 5798 | AJ33: 5658 | AK33: 4795 | AL33: 4559 | AM33: 3950 | AN33: 2979 | AO33: 2188 | AP33: 1773 | AQ33: 1328 | AR33: 1005 | AS33: 646 | AT33: 481 | AV33: 1136 | AW33: 66 | AX33: 480 | AY33: 420 | AZ33: 2462
A34: 1 | B34: =+B32+1 -> 23 | C34: TRUJILLO | E34: FLORENCIA DE MORA | F34: II-1 | G34: 00005217 | H34: HOSPITAL DISTRITAL DE FLORENCIA DE MORA | I34: EL ESFUERZO | J34: FLORENCIA DE MORA | K34: ='Por Provincias'!I36 -> 41776.89136 | L34: 3635.282667 | M34: 536.4187871 | N34: 559.3835852 | O34: 614.4018557 | P34: 653.486895 | Q34: 624.0889612 | R34: 647.5025827 | S34: 769.5 | T34: 806.4782609 | U34: 818.8043478 | V34: 786.5217391 | W34: 805.8913043 | X34: 764.2173913 | Y34: 784.173913 | Z34: 777.1304348 | AA34: 692.6086957 | AB34: 688.5 | AC34: 705.5217391 | AD34: 685.5652174 | AE34: 618.6521739 | AF34: 585.1956522 | AG34: 3233.543478 | AH34: 3981.913043 | AI34: 3403.173913 | AJ34: 3321 | AK34: 2814.456522 | AL34: 2675.934783 | AM34: 2318.478261 | AN34: 1748.543478 | AO34: 1284.26087 | AP34: 1040.673913 | AQ34: 779.4782609 | AR34: 589.8913043 | AS34: 379.173913 | AT34: 282.326087 | AV34: 666.7826087 | AW34: 38.73913043 | AX34: 281.7391304 | AY34: 246.5217391 | AZ34: 1445.086957
A35: =+A34+1 -> 2 | B35: 24 | C35: TRUJILLO | E35: FLORENCIA DE MORA | F35: I-2 | G35: 00017752 | H35: PUESTO DE SALUD | I35: LA CABAÑA | J35: FLORENCIA DE MORA | K35: ='Por Provincias'!I37 -> 5362.941695 | L35: 1124.985173 | M35: 166.0017218 | N35: 173.1084752 | O35: 190.1345896 | P35: 202.2299598 | Q35: 193.1323895 | R35: 200.3780371 | S35: 85.5 | T35: 89.60869565 | U35: 90.97826087 | V35: 87.39130435 | W35: 89.54347826 | X35: 84.91304348 | Y35: 87.13043478 | Z35: 86.34782609 | AA35: 76.95652174 | AB35: 76.5 | AC35: 78.39130435 | AD35: 76.17391304 | AE35: 68.73913043 | AF35: 65.02173913 | AG35: 359.2826087 | AH35: 442.4347826 | AI35: 378.1304348 | AJ35: 369 | AK35: 312.7173913 | AL35: 297.326087 | AM35: 257.6086957 | AN35: 194.2826087 | AO35: 142.6956522 | AP35: 115.6304348 | AQ35: 86.60869565 | AR35: 65.54347826 | AS35: 42.13043478 | AT35: 31.36956522 | AV35: 74.08695652 | AW35: 4.304347826 | AX35: 31.30434783 | AY35: 27.39130435 | AZ35: 160.5652174
A36: 3 | B36: 25 | C36: TRUJILLO | E36: FLORENCIA DE MORA | F36: I-3 | G36: 00005218 | H36: CENTRO DE SALUD | I36: FLORENCIA DE MORA PARTE ALTA | J36: FLORENCIA DE MORA | K36: ='Por Provincias'!I38 -> 11029.59497 | L36: 1664.234264 | M36: 245.5727951 | N36: 256.0860914 | O36: 281.2734838 | P36: 299.1666348 | Q36: 285.7082456 | R36: 296.4270136 | S36: 188.9444444 | T36: 198.0241546 | U36: 201.0507246 | V36: 193.1239936 | W36: 197.8800322 | X36: 187.647343 | Y36: 192.547504 | Z36: 190.8180354 | AA36: 170.0644122 | AB36: 169.0555556 | AC36: 173.2351047 | AD36: 168.3349436 | AE36: 151.9049919 | AF36: 143.6900161 | AG36: 793.9702093 | AH36: 977.726248 | AI36: 835.6215781 | AJ36: 815.4444444 | AK36: 691.0668277 | AL36: 657.0539452 | AM36: 569.2834138 | AN36: 429.3405797 | AO36: 315.3397746 | AP36: 255.5289855 | AQ36: 191.394525 | AR36: 144.8429952 | AS36: 93.10305958 | AT36: 69.32286634 | AV36: 163.7230274 | AW36: 9.512077295 | AX36: 69.17874396 | AY36: 60.53140097 | AZ36: 354.8293076
A37: 4 | B37: 26 | C37: TRUJILLO | E37: FLORENCIA DE MORA | F37: I-2 | G37: 00005219 | H37: PUESTO DE SALUD | I37: SANTO TORIBIO DE MOGROVEJO | J37: FLORENCIA DE MORA | K37: ='Por Provincias'!I39 -> 15096.5537 | L37: 1859.479625 | M37: 274.3830113 | N37: 286.1297111 | O37: 314.272049 | P37: 334.2643964 | Q37: 319.2270901 | R37: 331.2033671 | S37: 267.0555556 | T37: 279.8888889 | U37: 284.1666667 | V37: 272.962963 | W37: 279.6851852 | X37: 265.2222222 | Y37: 272.1481481 | Z37: 269.7037037 | AA37: 240.3703704 | AB37: 238.9444444 | AC37: 244.8518519 | AD37: 237.9259259 | AE37: 214.7037037 | AF37: 203.0925926 | AG37: 1122.203704 | AH37: 1381.925926 | AI37: 1181.074074 | AJ37: 1152.555556 | AK37: 976.7592593 | AL37: 928.6851852 | AM37: 804.6296296 | AN37: 606.8333333 | AO37: 445.7037037 | AP37: 361.1666667 | AQ37: 270.5185185 | AR37: 204.7222222 | AS37: 131.5925926 | AT37: 97.98148148 | AV37: 231.4074074 | AW37: 13.44444444 | AX37: 97.77777778 | AY37: 85.55555556 | AZ37: 501.5185185
D38: 4 | K38: =SUM(M38:AT38) -> 30040.74361 | L38: 2538.189688 | M38: =SUM(M39:M42) -> 374.5328104 | N38: =SUM(N39:N42) -> 390.5670557 | O38: 428.9813469 | P38: 456.2709011 | Q38: 435.744978 | R38: 452.0925961 | S38: 593.4504769 | T38: 606.9845928 | U38: 596.32135 | V38: 604.9339692 | W38: 611.0858401 | X38: 556.5392517 | Y38: 610.6757153 | Z38: 590.9897285 | AA38: 531.1115187 | AB38: 540.1342627 | AC38: 580.7366104 | AD38: 529.4710198 | AE38: 526.6001467 | AF38: 522.0887748 | AG38: 2597.319883 | AH38: 2985.297872 | AI38: 2590.347762 | AJ38: 2245.842993 | AK38: 2017.813646 | AL38: 1715.551724 | AM38: 1418.211299 | AN38: 1136.865737 | AO38: 915.3983859 | AP38: 672.6045488 | AQ38: 482.3066764 | AR38: 331.3807777 | AS38: 215.7256053 | AT38: 176.7637564 | AV38: 561.4607483 | AW38: 41.01247249 | AX38: 255.9178283 | AY38: 219.0066031 | AZ38: 919.4996332
A39: 1 | B39: =+B37+1 -> 27 | C39: TRUJILLO | E39: HUANCHACO | F39: I-4 | G39: 00005221 | H39: CENTRO DE SALUD CON CAMAS DE INTERNAMIENTO | I39: HUANCHACO | J39: HUANCHACO | K39: ='Por Provincias'!I41 -> 13771.59142 | L39: 1422.501913 | M39: 209.9030036 | N39: 218.889229 | O39: 240.4181175 | P39: 255.7122632 | Q39: 244.2087239 | R39: 253.3705759 | S39: 266.4688188 | T39: 272.5458547 | U39: 267.757887 | V39: 271.6250917 | W39: 274.3873808 | X39: 249.8950844 | Y39: 274.2032282 | Z39: 265.3639032 | AA39: 238.4776229 | AB39: 242.5289802 | AC39: 260.760088 | AD39: 237.7410125 | AE39: 236.4519442 | AF39: 234.4262656 | AG39: 1166.238445 | AH39: 1340.446809 | AI39: 1163.10785 | AJ39: 1008.419663 | AK39: 906.0308144 | AL39: 770.3103448 | AM39: 636.7997065 | AN39: 510.4710198 | AO39: 411.0286134 | AP39: 302.0102715 | AQ39: 216.5634629 | AR39: 148.7953045 | AS39: 96.86426999 | AT39: 79.36977256 | AV39: 252.1049156 | AW39: 18.41526045 | AX39: 114.9112252 | AY39: 98.33749083 | AZ39: 412.8701394
A40: =+A39+1 -> 2 | B40: 28 | C40: TRUJILLO | E40: HUANCHACO | F40: I-1 | G40: 00011629 | H40: PUESTO DE SALUD | I40: HUANCHAQUITO | J40: HUANCHACO | K40: ='Por Provincias'!I44 -> 4544.561109 | L40: 362.5985269 | M40: 53.5046872 | N40: 55.79529367 | O40: 61.28304955 | P40: 65.1815573 | Q40: 62.24928257 | R40: 64.58465659 | S40: 90.23844461 | T40: 92.29640499 | U40: 90.67498166 | V40: 91.98459281 | W40: 92.92002935 | X40: 84.62582539 | Y40: 92.85766691 | Z40: 89.86426999 | AA40: 80.75935437 | AB40: 82.13132795 | AC40: 88.3052091 | AD40: 80.50990462 | AE40: 80.07336757 | AF40: 79.38738078 | AG40: 394.9413059 | AH40: 453.9361702 | AI40: 393.8811445 | AJ40: 341.4966985 | AK40: 306.8231842 | AL40: 260.862069 | AM40: 215.649303 | AN40: 172.868672 | AO40: 139.1929567 | AP40: 102.2743947 | AQ40: 73.3382245 | AR40: 50.38884813 | AS40: 32.80264123 | AT40: 26.87820983 | AV40: 85.37417461 | AW40: 6.23624358 | AX40: 38.91415994 | AY40: 33.30154072 | AZ40: 139.8165811
A41: 3 | B41: 29 | C41: TRUJILLO | E41: HUANCHACO | F41: I-2 | G41: 00011007 | H41: PUESTO DE SALUD | I41: EL TROPICO | J41: HUANCHACO | K41: ='Por Provincias'!I45 -> 6160.008875 | L41: 502.0594988 | M41: 74.08341305 | N41: 77.255022 | O41: 84.85345322 | P41: 90.25138703 | Q41: 86.19131433 | R41: 89.42490913 | S41: 122.0873074 | T41: 124.8716067 | U41: 122.6779164 | V41: 124.4497432 | W41: 125.7153338 | X41: 114.4937638 | Y41: 125.6309611 | Z41: 121.5810712 | AA41: 109.2626559 | AB41: 111.1188555 | AC41: 119.4717535 | AD41: 108.9251651 | AE41: 108.3345561 | AF41: 107.4064563 | AG41: 534.3323551 | AH41: 614.1489362 | AI41: 532.8980191 | AJ41: 462.024945 | AK41: 415.1137197 | AL41: 352.9310345 | AM41: 291.7608217 | AN41: 233.8811445 | AO41: 188.3198826 | AP41: 138.3712399 | AQ41: 99.22230374 | AR41: 68.17314747 | AS41: 44.38004402 | AT41: 36.36463683 | AV41: 115.5062362 | AW41: 8.437270726 | AX41: 52.64856933 | AY41: 45.05502568 | AZ41: 189.1636097
A42: 4 | B42: 30 | C42: TRUJILLO | E42: HUANCHACO | F42: I-2 | G42: 00005223 | H42: PUESTO DE SALUD | I42: VILLA DEL MAR | J42: HUANCHACO | K42: ='Por Provincias'!I47 -> 5564.582207 | L42: 251.0297494 | M42: 37.04170652 | N42: 38.627511 | O42: 42.42672661 | P42: 45.12569351 | Q42: 43.09565716 | R42: 44.71245456 | S42: 114.6559061 | T42: 117.2707263 | U42: 115.2105649 | V42: 116.8745415 | W42: 118.0630961 | X42: 107.5245781 | Y42: 117.9838591 | Z42: 114.1804842 | AA42: 102.6118855 | AB42: 104.355099 | AC42: 112.1995598 | AD42: 102.2949376 | AE42: 101.7402788 | AF42: 100.868672 | AG42: 501.807777 | AH42: 576.7659574 | AI42: 500.4607483 | AJ42: 433.9016875 | AK42: 389.8459281 | AL42: 331.4482759 | AM42: 274.0014674 | AN42: 219.644901 | AO42: 176.8569332 | AP42: 129.9486427 | AQ42: 93.18268525 | AR42: 64.02347762 | AS42: 41.67865004 | AT42: 34.1511372 | AV42: 108.4754219 | AW42: 7.923697726 | AX42: 49.44387381 | AY42: 42.31254585 | AZ42: 177.649303
D43: 5 | K43: =SUM(M43:AT43) -> 239636.1643 | L43: 24358.71819 | M43: =SUM(M44:M53) -> 3618.987565 | N43: =SUM(N44:N53) -> 3765.216568 | O43: 4113.861297 | P43: 4360.783623 | Q43: 4176.154965 | R43: 4323.714176 | S43: 4368.549523 | T43: 4358.015407 | U43: 4497.67865 | V43: 4504.066031 | W43: 4421.91416 | X43: 4262.460748 | Y43: 4456.324285 | Z43: 4294.010271 | AA43: 3806.888481 | AB43: 3814.865737 | AC43: 4019.26339 | AD43: 3756.52898 | AE43: 3567.399853 | AF43: 3590.911225 | AG43: 18532.68012 | AH43: 22580.70213 | AI43: 20180.65224 | AJ43: 17904.15701 | AK43: 15690.18635 | AL43: 13905.44828 | AM43: 11962.7887 | AN43: 10423.13426 | AO43: 8379.601614 | AP43: 6482.395451 | AQ43: 4600.693324 | AR43: 3255.619222 | AS43: 1999.274395 | AT43: 1661.236244 | AV43: 4004.539252 | AW43: 262.9875275 | AX43: 1817.082172 | AY43: 1574.993397 | AZ43: 5102.500367
A44: 1 | B44: =+B42+1 -> 31 | C44: TRUJILLO | E44: LA ESPERANZA | F44: I-4 | G44: 00005222 | H44: CENTRO DE SALUD CON CAMAS DE INTERNAMIENTO | I44: EL MILAGRO | J44: HUANCHACO | K44: ='Por Provincias'!I42 -> 22233.10946 | L44: 3291.278936 | M44: 485.65793 | N44: 506.4495887 | O44: 556.2615267 | P44: 591.6479816 | Q44: 565.0319495 | R44: 586.2299598 | S44: 408.7270726 | T44: 418.0484226 | U44: 410.7043287 | V44: 416.6360968 | W44: 420.8730741 | X44: 383.3052091 | Y44: 420.590609 | Z44: 407.0322817 | AA44: 365.7923698 | AB44: 372.0066031 | AC44: 399.970653 | AD44: 364.6625092 | AE44: 362.6852531 | AF44: 359.5781365 | AG44: 1788.851798 | AH44: 2056.06383 | AI44: 1784.04989 | AJ44: 1546.779164 | AK44: 1389.72854 | AL44: 1181.551724 | AM44: 976.7644901 | AN44: 782.9933969 | AO44: 630.4622157 | AP44: 463.2428467 | AQ44: 332.1790169 | AR44: 228.2318415 | AS44: 148.5766691 | AT44: 121.7424798 | AV44: 386.6947909 | AW44: 28.24651504 | AX44: 176.2582539 | AY44: 150.8363903 | AZ44: 633.2868672
A45: =+A44+1 -> 2 | B45: =+B44+1 -> 32 | C45: TRUJILLO | E45: LA ESPERANZA | F45: I-2 | G45: 00012228 | H45: PUESTO DE SALUD | I45: VICTOR RAUL HAYA DE LA TORRE | J45: HUANCHACO | K45: ='Por Provincias'!I43 -> 11528.90315 | L45: 1236.553951 | M45: 182.4647025 | N45: 190.2762579 | O45: 208.9909126 | P45: 222.2858236 | Q45: 212.2860149 | R45: 220.2502391 | S45: 211.2641233 | T45: 216.0821717 | U45: 212.2861335 | V45: 215.3521643 | W45: 217.5421864 | X45: 198.1239912 | Y45: 217.3961849 | Z45: 210.3881145 | AA45: 189.0719002 | AB45: 192.2839325 | AC45: 206.7380778 | AD45: 188.4878944 | AE45: 187.4658841 | AF45: 185.8598679 | AG45: 924.6272927 | AH45: 1062.744681 | AI45: 922.1452678 | AJ45: 799.5040352 | AK45: 718.3272194 | AL45: 610.7241379 | AM45: 504.8730741 | AN45: 404.7160675 | AO45: 325.8752751 | AP45: 239.4424065 | AQ45: 171.6977256 | AR45: 117.9691856 | AS45: 76.79677183 | AT45: 62.92663243 | AV45: 199.8760088 | AW45: 14.60014674 | AX45: 91.10491563 | AY45: 77.96478357 | AZ45: 327.3352898
A46: =+A45+1 -> 3 | B46: 33 | C46: TRUJILLO | E46: LA ESPERANZA | F46: I-2 | G46: 00020157 | H46: PUESTO DE SALUD | I46: 1° DE MAYO- SECTOR 10 EL MILAGRO | J46: HUANCHACO | K46: ='Por Provincias'!I46 -> 11027.26635 | L46: 705 | M46: 106 | N46: 110 | O46: 119 | P46: 125 | Q46: 121 | R46: 124 | S46: 233.5583272 | T46: 238.8848129 | U46: 234.6881878 | V46: 238.0777696 | W46: 240.4988995 | X46: 219.0315481 | Y46: 240.3374908 | Z46: 232.5898753 | AA46: 209.0242113 | AB46: 212.5752018 | AC46: 228.5546588 | AD46: 208.3785767 | AE46: 207.2487161 | AF46: 205.4732208 | AG46: 1022.201027 | AH46: 1174.893617 | AI46: 1019.45708 | AJ46: 883.8738078 | AK46: 794.1305943 | AL46: 675.1724138 | AM46: 558.1511372 | AN46: 447.4247982 | AO46: 360.2641233 | AP46: 264.7101981 | AQ46: 189.8165811 | AR46: 130.4181952 | AS46: 84.90095378 | AT46: 69.56713133 | AV46: 220.9684519 | AW46: 16.14086574 | AX46: 100.7190022 | AY46: 86.19222304 | AZ46: 361.8782098
A47: 4 | B47: 34 | C47: TRUJILLO | E47: LA ESPERANZA | F47: II-1 | G47: 00005226 | H47: HOSPITAL DISTRITAL DE LA ESPERANZA | I47: JERUSALEN | J47: LA ESPERANZA | K47: ='Por Provincias'!I49 -> 70034.75195 | L47: 4780 | M47: 728 | N47: 751 | O47: 805 | P47: 843 | Q47: 815 | R47: 838 | S47: 1305.310424 | T47: 1294.169795 | U47: 1351.729714 | V47: 1349.501588 | W47: 1315.708345 | X47: 1285.628646 | Y47: 1328.705746 | Z47: 1278.944268 | AA47: 1130.031187 | AB47: 1128.174415 | AC47: 1182.392146 | AD47: 1112.20618 | AE47: 1043.505631 | AF47: 1054.64626 | AG47: 5494.92983 | AH47: 6790.956396 | AI47: 6110.635287 | AJ47: 5449.253249 | AK47: 4748.879007 | AL47: 4247.550679 | AM47: 3684.948888 | AN47: 3263.461738 | AO47: 2622.875541 | AP47: 2048.019059 | AQ47: 1450.881317 | AR47: 1031.993647 | AS47: 627.2174415 | AT47: 522.4955241 | AV47: 1187.219752 | AW47: 75.75628068 | AX47: 538.0924054 | AY47: 467.9064395 | AZ47: 1403.719319
A48: 5 | B48: 35 | C48: TRUJILLO | E48: LA ESPERANZA | F48: I-4 | G48: 00005230 | H48: CENTRO DE SALUD CON CAMAS DE INTERNAMIENTO | I48: WICHANZAO | J48: LA ESPERANZA | K48: ='Por Provincias'!I50 -> 40570.0769 | L48: 4695.186053 | M48: 692.8171035 | N48: 722.4775206 | O48: 793.5369237 | P48: 844.0176009 | Q48: 806.0484025 | R48: 836.288502 | S48: 717.6162287 | T48: 711.4914814 | U48: 743.1360092 | V48: 741.9110598 | W48: 723.3326595 | X48: 706.7958418 | Y48: 730.4781981 | Z48: 703.1209934 | AA48: 621.2535374 | AB48: 620.2327462 | AC48: 650.0398498 | AD48: 611.4539417 | AE48: 573.6846665 | AF48: 579.8094138 | AG48: 3020.929541 | AH48: 3733.441813 | AI48: 3359.42391 | AJ48: 2995.818077 | AK48: 2610.775628 | AL48: 2335.161998 | AM48: 2025.862258 | AN48: 1794.142651 | AO48: 1441.969679 | AP48: 1125.932717 | AQ48: 797.6462605 | AR48: 567.3557609 | AS48: 344.8232746 | AT48: 287.2506497 | AV48: 652.693907 | AW48: 41.64828184 | AX48: 295.825296 | AY48: 257.2393878 | AZ48: 771.7181634
A49: 6 | B49: 36 | C49: TRUJILLO | E49: LA ESPERANZA | F49: I-3 | G49: 00005229 | H49: CENTRO DE SALUD CON CAMAS DE INTERNAMIENTO | I49: BELLAVISTA | J49: LA ESPERANZA | K49: ='Por Provincias'!I51 -> 19447.39525 | L49: 2296.457337 | M49: 338.8630189 | N49: 353.3701932 | O49: 388.1259805 | P49: 412.8165296 | Q49: 394.2454563 | R49: 409.0361584 | S49: 343.0753682 | T49: 340.1472712 | U49: 355.2757725 | V49: 354.690153 | W49: 345.8082587 | X49: 337.9023968 | Y49: 349.2243719 | Z49: 336.1455386 | AA49: 297.0066416 | AB49: 296.5186255 | AC49: 310.7686977 | AD49: 292.3216864 | AE49: 274.2650881 | AF49: 277.1931851 | AG49: 1444.235056 | AH49: 1784.870344 | AI49: 1606.061219 | AJ49: 1432.229859 | AK49: 1248.150159 | AL49: 1116.385793 | AM49: 968.5168929 | AN49: 857.7372221 | AO49: 689.3716431 | AP49: 538.2818366 | AQ49: 381.335836 | AR49: 271.2393878 | AS49: 164.8518625 | AT49: 137.3277505 | AV49: 312.0375397 | AW49: 19.91105977 | AX49: 141.4270863 | AY49: 122.9800751 | AZ49: 368.9402252
A50: 7 | B50: 37 | C50: TRUJILLO | E50: LA ESPERANZA | F50: I-2 | G50: 00005227 | H50: PUESTO DE SALUD | I50: SAN MARTIN | J50: LA ESPERANZA | K50: ='Por Provincias'!I52 -> 13554.98223 | L50: 1478.286302 | M50: 218.134494 | N50: 227.4731203 | O50: 249.8462789 | P50: 265.7401951 | Q50: 253.7855366 | R50: 263.3066769 | S50: 241.57378 | T50: 239.5119838 | U50: 250.1645972 | V50: 249.7522379 | W50: 243.498123 | X50: 237.9312735 | Y50: 245.9035518 | Z50: 236.6941958 | AA50: 209.1348542 | AB50: 208.7912215 | AC50: 218.825296 | AD50: 205.8359804 | AE50: 193.1215709 | AF50: 195.183367 | AG50: 1016.946578 | AH50: 1256.802195 | AI50: 1130.895178 | AJ50: 1008.493214 | AK50: 878.8749639 | AL50: 786.094138 | AM50: 681.9734334 | AN50: 603.9688132 | AO50: 485.4155357 | AP50: 379.0268553 | AQ50: 268.5145827 | AR50: 190.9910482 | AS50: 116.0791221 | AT50: 96.69823852 | AV50: 219.718741 | AW50: 14.02021369 | AX50: 99.5847531 | AY50: 86.59543748 | AZ50: 259.7863124
A51: 8 | B51: 38 | C51: TRUJILLO | E51: LA ESPERANZA | F51: I-2 | G51: 00005228 | H51: PUESTO DE SALUD | I51: PUEBLO LIBRE | J51: LA ESPERANZA | K51: ='Por Provincias'!I53 -> 14556.74161 | L51: 2175.591161 | M51: 321.0281232 | N51: 334.771762 | O51: 367.6982973 | P51: 391.0893438 | Q51: 373.4956954 | R51: 387.5079395 | S51: 247.6638753 | T51: 245.5501011 | U51: 256.4712677 | V51: 256.0485129 | W51: 249.6367312 | X51: 243.9295409 | Y51: 252.102801 | Z51: 242.6612763 | AA51: 214.4071614 | AB51: 214.0548657 | AC51: 224.3419001 | AD51: 211.0251227 | AE51: 197.9901819 | AF51: 200.1039561 | AG51: 1042.583887 | AH51: 1288.486284 | AI51: 1159.40514 | AJ51: 1033.917413 | AK51: 901.0314756 | AL51: 805.9116373 | AM51: 699.166041 | AN51: 619.1949177 | AO51: 497.6529021 | AP51: 388.5821542 | AQ51: 275.2838579 | AR51: 195.8059486 | AS51: 119.0054866 | AT51: 99.13600924 | AV51: 225.2578689 | AW51: 14.37366445 | AX51: 102.0952931 | AY51: 88.77851574 | AZ51: 266.3355472
A52: 9 | B52: 39 | C52: TRUJILLO | E52: LA ESPERANZA | F52: I-2 | G52: 00007115 | H52: PUESTO DE SALUD | I52: MANUEL AREVALO | J52: LA ESPERANZA | K52: ='Por Provincias'!I54 -> 19383.88654 | L52: 2435.918309 | M52: 359.4417448 | N52: 374.8299216 | O52: 411.6963842 | P52: 437.8863593 | Q52: 418.187488 | R52: 433.8764109 | S52: 339.0153046 | T52: 336.1218597 | U52: 351.0713254 | V52: 350.4926364 | W52: 341.7158533 | X52: 333.9035518 | Y52: 345.0915391 | Z52: 332.1674848 | AA52: 293.4917701 | AB52: 293.0095293 | AC52: 307.0909616 | AD52: 288.8622582 | AE52: 271.0193474 | AF52: 273.9127924 | AG52: 1427.143517 | AH52: 1763.747618 | AI52: 1587.054577 | AJ52: 1415.280393 | AK52: 1233.379151 | AL52: 1103.174126 | AM52: 957.0551545 | AN52: 847.5864857 | AO52: 681.2133988 | AP52: 531.9116373 | AQ52: 376.8229859 | AR52: 268.0294542 | AS52: 162.9009529 | AT52: 135.70257 | AV52: 308.3447878 | AW52: 19.67542593 | AX52: 139.753393 | AY52: 121.5246896 | AZ52: 364.5740687
A53: 10 | B53: 40 | C53: TRUJILLO | E53: LA ESPERANZA | F53: I-3 | G53: 00005225 | H53: CENTRO DE SALUD | I53: SANTISIMO SACRAMENTO | J53: LA ESPERANZA | K53: ='Por Provincias'!I55 -> 17299.05082 | L53: 1264.446145 | M53: 186.5804477 | N53: 194.5682036 | O53: 213.7049933 | P53: 227.2997896 | Q53: 217.0744213 | R53: 225.2182896 | S53: 320.7450188 | T53: 318.0075079 | U53: 332.1513139 | V53: 331.6038117 | W53: 323.3000289 | X53: 315.9087496 | Y53: 326.4937915 | Z53: 314.2662431 | AA53: 277.6748484 | AB53: 277.2185966 | AC53: 290.5411493 | AD53: 273.2948311 | AE53: 256.4135143 | AF53: 259.1510251 | AG53: 1350.231591 | AH53: 1668.695351 | AI53: 1501.52469 | AJ53: 1339.007797 | AK53: 1166.909616 | AL53: 1043.721629 | AM53: 905.4773318 | AN53: 801.9081721 | AO53: 644.5012995 | AP53: 503.2457407 | AQ53: 356.5151603 | AR53: 253.5847531 | AS53: 154.1218597 | AT53: 128.3892579 | AV53: 291.727404 | AW53: 18.61507364 | AX53: 132.221773 | AY53: 114.9754548 | AZ53: 344.9263644
D54: 6 | K54: =SUM(M54:AT54) -> 52948.64703 | L54: 5110.647025 | M54: =SUM(M55:M59) -> 754.3958293 | N54: =SUM(N55:N59) -> 784.9372489 | O54: 866.1073273 | P54: 917.0874306 | Q54: 878.9904343 | R54: 909.1287545 | S54: 858 | T54: 898 | U54: 890 | V54: 867 | W54: 944 | X54: 903 | Y54: 917 | Z54: 875 | AA54: 869 | AB54: 836 | AC54: 862 | AD54: 781 | AE54: 764 | AF54: 730 | AG54: 3946 | AH54: 4425 | AI54: 4096 | AJ54: 3976 | AK54: 3449 | AL54: 3070 | AM54: 2813 | AN54: 2608 | AO54: 2215 | AP54: 1832 | AQ54: 1224 | AR54: 910 | AS54: 672 | AT54: 608 | AV54: 850 | AW54: 60 | AX54: 377 | AY54: 337 | AZ54: 1116
A55: 1 | B55: =+B53+1 -> 41 | C55: TRUJILLO | E55: LAREDO | F55: II-1 | G55: 00005231 | H55: HOSPITAL DISTRITAL DE LAREDO | I55: LAREDO | J55: LAREDO | K55: ='Por Provincias'!I57 -> 36916.98885 | L55: 3923.502009 | M55: 578.9481538 | N55: 603.7336905 | O55: 663.1140233 | P55: 705.2978764 | Q55: 673.5691601 | R55: 698.8391046 | S55: 592.6973684 | T55: 623.4868421 | U55: 621.7763158 | V55: 598.6842105 | W55: 661.9736842 | X55: 614.9342105 | Y55: 641.4473684 | Z55: 619.2105263 | AA55: 594.4078947 | AB55: 588.4210526 | AC55: 584.1447368 | AD55: 537.1052632 | AE55: 523.4210526 | AF55: 483.2236842 | AG55: 2735.986842 | AH55: 3064.407895 | AI55: 2853.157895 | AJ55: 2763.355263 | AK55: 2376.776316 | AL55: 2091.973684 | AM55: 1893.552632 | AN55: 1825.986842 | AO55: 1574.539474 | AP55: 1228.157895 | AQ55: 843.2894737 | AR55: 623.4868421 | AS55: 441.3157895 | AT55: 392.5657895 | AV55: 568.75 | AW55: 40.19736842 | AX55: 256.5789474 | AY55: 234.3421053 | AZ55: 775.7236842
A56: =+A55+1 -> 2 | B56: 42 | C56: TRUJILLO | E56: LAREDO | F56: I-2 | G56: 00005232 | H56: PUESTO DE SALUD | I56: MENOCUCHO | J56: LAREDO | K56: ='Por Provincias'!I58 -> 4619.131579 | L56: 220 | M56: 33 | N56: 33 | O56: 39 | P56: 38 | Q56: 39 | R56: 38 | S56: 79.02631579 | T56: 83.13157895 | U56: 82.90350877 | V56: 79.8245614 | W56: 88.26315789 | X56: 81.99122807 | Y56: 85.52631579 | Z56: 82.56140351 | AA56: 79.25438596 | AB56: 78.45614035 | AC56: 77.88596491 | AD56: 71.61403509 | AE56: 69.78947368 | AF56: 64.42982456 | AG56: 364.7982456 | AH56: 408.5877193 | AI56: 380.4210526 | AJ56: 368.4473684 | AK56: 316.9035088 | AL56: 278.9298246 | AM56: 252.4736842 | AN56: 243.4649123 | AO56: 209.9385965 | AP56: 163.754386 | AQ56: 112.4385965 | AR56: 83.13157895 | AS56: 58.84210526 | AT56: 52.34210526 | AV56: 75.83333333 | AW56: 5.359649123 | AX56: 34.21052632 | AY56: 31.24561404 | AZ56: 103.4298246
A57: 3 | B57: 43 | C57: TRUJILLO | E57: LAREDO | F57: I-2 | G57: 00005233 | H57: PUESTO DE SALUD | I57: SANTO DOMINGO | J57: LAREDO | K57: ='Por Provincias'!I59 -> 1240.381579 | L57: 56 | M57: 8 | N57: 8 | O57: 10 | P57: 10 | Q57: 10 | R57: 10 | S57: 21.27631579 | T57: 22.38157895 | U57: 22.32017544 | V57: 21.49122807 | W57: 23.76315789 | X57: 22.0745614 | Y57: 23.02631579 | Z57: 22.22807018 | AA57: 21.3377193 | AB57: 21.12280702 | AC57: 20.96929825 | AD57: 19.28070175 | AE57: 18.78947368 | AF57: 17.34649123 | AG57: 98.21491228 | AH57: 110.004386 | AI57: 102.4210526 | AJ57: 99.19736842 | AK57: 85.32017544 | AL57: 75.09649123 | AM57: 67.97368421 | AN57: 65.54824561 | AO57: 56.52192982 | AP57: 44.0877193 | AQ57: 30.27192982 | AR57: 22.38157895 | AS57: 15.84210526 | AT57: 14.09210526 | AV57: 20.41666667 | AW57: 1.442982456 | AX57: 9.210526316 | AY57: 8.412280702 | AZ57: 27.84649123
A58: 4 | B58: 44 | C58: TRUJILLO | E58: LAREDO | F58: I-3 | G58: 00005238 | H58: CENTRO DE SALUD | I58: POROTO | J58: POROTO | K58: ='Por Provincias'!I68 -> 4713.680314 | L58: 427.6803138 | M58: 63.1080926 | N58: 65.80983356 | O58: 72.28257126 | P58: 76.88081117 | Q58: 73.42223073 | R58: 76.17677444 | S58: 85 | T58: 71 | U58: 80 | V58: 78 | W58: 79 | X58: 91 | Y58: 84 | Z58: 83 | AA58: 69 | AB58: 77 | AC58: 87 | AD58: 75 | AE58: 74 | AF58: 89 | AG58: 347 | AH58: 377 | AI58: 363 | AJ58: 334 | AK58: 327 | AL58: 300 | AM58: 276 | AN58: 212 | AO58: 159 | AP58: 161 | AQ58: 105 | AR58: 76 | AS58: 66 | AT58: 61 | AV58: 60 | AW58: 6 | AX58: 24 | AY58: 21 | AZ58: 124
A59: 5 | B59: 45 | C59: TRUJILLO | E59: LAREDO | F59: I-2 | G59: 00005241 | H59: PUESTO DE SALUD | I59: SIMBAL | J59: SIMBAL | K59: ='Por Provincias'!I73 -> 5458.464703 | L59: 483.4647025 | M59: 71.33958293 | N59: 74.39372489 | O59: 81.71073273 | P59: 86.90874306 | Q59: 82.99904343 | R59: 86.11287545 | S59: 80 | T59: 98 | U59: 83 | V59: 89 | W59: 91 | X59: 93 | Y59: 83 | Z59: 68 | AA59: 105 | AB59: 71 | AC59: 92 | AD59: 78 | AE59: 78 | AF59: 76 | AG59: 400 | AH59: 465 | AI59: 397 | AJ59: 411 | AK59: 343 | AL59: 324 | AM59: 323 | AN59: 261 | AO59: 215 | AP59: 235 | AQ59: 133 | AR59: 105 | AS59: 90 | AT59: 88 | AV59: 125 | AW59: 7 | AX59: 53 | AY59: 42 | AZ59: 85
D60: 7 | K60: =SUM(M60:AT60) -> 44011.49455 | L60: 3960.494548 | M60: =SUM(M61:M66) -> 586.4264396 | N60: =SUM(N61:N66) -> 610.8656973 | O60: 668.8333652 | P60: 710.6200497 | Q60: 679.4551368 | R60: 704.2938588 | S60: 790 | T60: 870 | U60: 866 | V60: 851 | W60: 846 | X60: 784 | Y60: 819 | Z60: 748 | AA60: 735 | AB60: 711 | AC60: 688 | AD60: 749 | AE60: 660 | AF60: 656 | AG60: 3325 | AH60: 4098 | AI60: 3621 | AJ60: 3441 | AK60: 3113 | AL60: 2612 | AM60: 2189 | AN60: 1926 | AO60: 1548 | AP60: 1150 | AQ60: 887 | AR60: 618 | AS60: 395 | AT60: 355 | AV60: 809 | AW60: 65 | AX60: 359 | AY60: 307 | AZ60: 1130
A61: 1 | B61: =+B59+1 -> 46 | C61: TRUJILLO | E61: MOCHE | F61: II-1 | G61: 00007152 | H61: HOSPITAL | I61: ALTO MOCHE-WALTER CRUZ VILCA | J61: MOCHE | K61: ='Por Provincias'!I61 -> 12094.31613 | L61: 725 | M61: 109 | N61: 113 | O61: 122 | P61: 129 | Q61: 124 | R61: 128 | S61: 224.2580645 | T61: 246.9677419 | U61: 245.8322581 | V61: 241.5741935 | W61: 240.1548387 | X61: 222.5548387 | Y61: 232.4903226 | Z61: 212.3354839 | AA61: 208.6451613 | AB61: 201.8322581 | AC61: 195.3032258 | AD61: 212.6193548 | AE61: 187.3548387 | AF61: 186.2193548 | AG61: 943.8709677 | AH61: 1163.303226 | AI61: 1027.896774 | AJ61: 976.8 | AK61: 883.6903226 | AL61: 741.4709677 | AM61: 621.3935484 | AN61: 546.7354839 | AO61: 439.4322581 | AP61: 326.4516129 | AQ61: 251.7935484 | AR61: 175.4322581 | AS61: 112.1290323 | AT61: 100.7741935 | AV61: 229.6516129 | AW61: 18.4516129 | AX61: 101.9096774 | AY61: 87.1483871 | AZ61: 320.7741935
A62: =+A61+1 -> 2 | B62: 47 | C62: TRUJILLO | E62: MOCHE | F62: I-4 | G62: 00005234 | H62: CENTRO DE SALUD CON CAMAS DE INTERNAMIENTO | I62: SANTA LUCIA DE MOCHE | J62: MOCHE | K62: ='Por Provincias'!I62 -> 14028.0014 | L62: 1366.717524 | M62: 201.6715133 | N62: 210.3053377 | O62: 230.989956 | P62: 245.6843314 | Q62: 234.6319112 | R62: 243.4344748 | S62: 249.7419355 | T62: 275.0322581 | U62: 273.7677419 | V62: 269.0258065 | W62: 267.4451613 | X62: 247.8451613 | Y62: 258.9096774 | Z62: 236.4645161 | AA62: 232.3548387 | AB62: 224.7677419 | AC62: 217.4967742 | AD62: 236.7806452 | AE62: 208.6451613 | AF62: 207.3806452 | AG62: 1051.129032 | AH62: 1295.496774 | AI62: 1144.703226 | AJ62: 1087.8 | AK62: 984.1096774 | AL62: 825.7290323 | AM62: 692.0064516 | AN62: 608.8645161 | AO62: 489.3677419 | AP62: 363.5483871 | AQ62: 280.4064516 | AR62: 195.3677419 | AS62: 124.8709677 | AT62: 112.2258065 | AV62: 255.7483871 | AW62: 20.5483871 | AX62: 113.4903226 | AY62: 97.0516129 | AZ62: 357.2258065
A63: 3 | B63: 48 | C63: TRUJILLO | E63: MOCHE | F63: I-2 | G63: 00005235 | H63: PUESTO DE SALUD | I63: ALTO MOCHE | J63: MOCHE | K63: ='Por Provincias'!I63 -> 8468.792147 | L63: 613.6282763 | M63: 90.54639372 | N63: 94.42280467 | O63: 103.7097762 | P63: 110.3072508 | Q63: 105.3449397 | R63: 109.2971112 | S63: 154.9419355 | T63: 170.6322581 | U63: 169.8477419 | V63: 166.9058065 | W63: 165.9251613 | X63: 153.7651613 | Y63: 160.6296774 | Z63: 146.7045161 | AA63: 144.1548387 | AB63: 139.4477419 | AC63: 134.9367742 | AD63: 146.9006452 | AE63: 129.4451613 | AF63: 128.6606452 | AG63: 652.1290323 | AH63: 803.7367742 | AI63: 710.1832258 | AJ63: 674.88 | AK63: 610.5496774 | AL63: 512.2890323 | AM63: 429.3264516 | AN63: 377.7445161 | AO63: 303.6077419 | AP63: 225.5483871 | AQ63: 173.9664516 | AR63: 121.2077419 | AS63: 77.47096774 | AT63: 69.62580645 | AV63: 158.6683871 | AW63: 12.7483871 | AX63: 70.41032258 | AY63: 60.2116129 | AZ63: 221.6258065
A64: 4 | B64: 49 | C64: TRUJILLO | E64: MOCHE | F64: I-2 | G64: 00005236 | H64: PUESTO DE SALUD | I64: ELIO JACOBO CAFFO | J64: MOCHE | K64: ='Por Provincias'!I64 -> 2913.450097 | L64: 381.1933231 | M64: 56.24851731 | N64: 58.65659078 | O64: 64.42577004 | P64: 68.52420126 | Q64: 65.44155347 | R64: 67.89669026 | S64: 49.9483871 | T64: 55.00645161 | U64: 54.75354839 | V64: 53.80516129 | W64: 53.48903226 | X64: 49.56903226 | Y64: 51.78193548 | Z64: 47.29290323 | AA64: 46.47096774 | AB64: 44.95354839 | AC64: 43.49935484 | AD64: 47.35612903 | AE64: 41.72903226 | AF64: 41.47612903 | AG64: 210.2258065 | AH64: 259.0993548 | AI64: 228.9406452 | AJ64: 217.56 | AK64: 196.8219355 | AL64: 165.1458065 | AM64: 138.4012903 | AN64: 121.7729032 | AO64: 97.87354839 | AP64: 72.70967742 | AQ64: 56.08129032 | AR64: 39.07354839 | AS64: 24.97419355 | AT64: 22.44516129 | AV64: 51.14967742 | AW64: 4.109677419 | AX64: 22.69806452 | AY64: 19.41032258 | AZ64: 71.44516129
A65: 5 | B65: 50 | C65: TRUJILLO | E65: MOCHE | F65: I-2 | G65: 00005237 | H65: PUESTO DE SALUD | I65: SAN PEDRO - DELICIAS | J65: MOCHE | K65: ='Por Provincias'!I65 -> 5100.37862 | L65: 604.3308781 | M65: 89.17447867 | N65: 92.99215611 | O65: 102.1384159 | P65: 108.6359288 | Q65: 103.7488043 | R65: 107.6410943 | S65: 88.68387097 | T65: 97.66451613 | U65: 97.21548387 | V65: 95.5316129 | W65: 94.97032258 | X65: 88.01032258 | Y65: 91.93935484 | Z65: 83.96903226 | AA65: 82.50967742 | AB65: 79.81548387 | AC65: 77.23354839 | AD65: 84.08129032 | AE65: 74.09032258 | AF65: 73.64129032 | AG65: 373.2580645 | AH65: 460.0335484 | AI65: 406.4864516 | AJ65: 386.28 | AK65: 349.4593548 | AL65: 293.2180645 | AM65: 245.7329032 | AN65: 216.2090323 | AO65: 173.7754839 | AP65: 129.0967742 | AQ65: 99.57290323 | AR65: 69.37548387 | AS65: 44.34193548 | AT65: 39.8516129 | AV65: 90.81677419 | AW65: 7.296774194 | AX65: 40.30064516 | AY65: 34.46322581 | AZ65: 126.8516129
A66: 6 | B66: 51 | C66: TRUJILLO | E66: MOCHE | F66: I-1 | G66: 00007151 | H66: PUESTO DE SALUD | I66: CURVA DE SUN | J66: MOCHE | K66: ='Por Provincias'!I66 -> 1406.556159 | L66: 269.6245456 | M66: 39.78553664 | N66: 41.48880811 | O66: 45.5694471 | P66: 48.46833748 | Q66: 46.28792807 | R66: 48.02448823 | S66: 22.42580645 | T66: 24.69677419 | U66: 24.58322581 | V66: 24.15741935 | W66: 24.01548387 | X66: 22.25548387 | Y66: 23.24903226 | Z66: 21.23354839 | AA66: 20.86451613 | AB66: 20.18322581 | AC66: 19.53032258 | AD66: 21.26193548 | AE66: 18.73548387 | AF66: 18.62193548 | AG66: 94.38709677 | AH66: 116.3303226 | AI66: 102.7896774 | AJ66: 97.68 | AK66: 88.36903226 | AL66: 74.14709677 | AM66: 62.13935484 | AN66: 54.67354839 | AO66: 43.94322581 | AP66: 32.64516129 | AQ66: 25.17935484 | AR66: 17.54322581 | AS66: 11.21290323 | AT66: 10.07741935 | AV66: 22.96516129 | AW66: 1.84516129 | AX66: 10.19096774 | AY66: 8.71483871 | AZ66: 32.07741935
D67: 8 | K67: =SUM(M67:AT67) -> 19681.59853 | L67: 1574.598527 | M67: =SUM(M68:M69) -> 235.5046872 | N67: =SUM(N68:N69) -> 244.7952937 | O67: 265.2830496 | P67: 281.1815573 | Q67: 269.2492826 | R67: 278.5846566 | S67: 356 | T67: 363 | U67: 381 | V67: 337 | W67: 350 | X67: 354 | Y67: 367 | Z67: 388 | AA67: 308 | AB67: 354 | AC67: 326 | AD67: 349 | AE67: 335 | AF67: 372 | AG67: 1638 | AH67: 1935 | AI67: 1633 | AJ67: 1512 | AK67: 1321 | AL67: 1151 | AM67: 982 | AN67: 793 | AO67: 692 | AP67: 485 | AQ67: 395 | AR67: 293 | AS67: 204 | AT67: 133 | AV67: 457 | AW67: 31 | AX67: 181 | AY67: 181 | AZ67: 532
A68: 1 | B68: =+B66+1 -> 52 | C68: TRUJILLO | E68: SALAVERRY | F68: I-4 | G68: 00005239 | H68: CENTRO DE SALUD | I68: SALAVERRY | J68: SALAVERRY | K68: ='Por Provincias'!I70 -> 15113.8224 | L68: 1212 | M68: 182 | N68: 189 | O68: 204 | P68: 216 | Q68: 207 | R68: 214 | S68: 273.3224044 | T68: 278.6967213 | U68: 292.5163934 | V68: 258.7349727 | W68: 268.715847 | X68: 271.7868852 | Y68: 281.7677596 | Z68: 297.8907104 | AA68: 236.4699454 | AB68: 271.7868852 | AC68: 250.2896175 | AD68: 267.9480874 | AE68: 257.1994536 | AF68: 285.6065574 | AG68: 1257.590164 | AH68: 1485.614754 | AI68: 1253.751366 | AJ68: 1160.852459 | AK68: 1014.210383 | AL68: 883.6912568 | AM68: 753.9398907 | AN68: 608.8333333 | AO68: 531.2896175 | AP68: 372.363388 | AQ68: 303.2650273 | AR68: 224.9535519 | AS68: 156.6229508 | AT68: 102.1120219 | AV68: 350.8661202 | AW68: 23.80054645 | AX68: 138.9644809 | AY68: 138.9644809 | AZ68: 408.4480874
A69: 2 | B69: =+B68+1 -> 53 | C69: TRUJILLO | E69: SALAVERRY | F69: I-2 | G69: 00005240 | H69: PUESTO DE SALUD | I69: AURORA DIAZ | J69: SALAVERRY | K69: ='Por Provincias'!I71 -> 4567.776123 | L69: 362.5985269 | M69: 53.5046872 | N69: 55.79529367 | O69: 61.28304955 | P69: 65.1815573 | Q69: 62.24928257 | R69: 64.58465659 | S69: 82.67759563 | T69: 84.30327869 | U69: 88.48360656 | V69: 78.26502732 | W69: 81.28415301 | X69: 82.21311475 | Y69: 85.23224044 | Z69: 90.10928962 | AA69: 71.53005464 | AB69: 82.21311475 | AC69: 75.71038251 | AD69: 81.05191257 | AE69: 77.80054645 | AF69: 86.39344262 | AG69: 380.4098361 | AH69: 449.3852459 | AI69: 379.2486339 | AJ69: 351.147541 | AK69: 306.7896175 | AL69: 267.3087432 | AM69: 228.0601093 | AN69: 184.1666667 | AO69: 160.7103825 | AP69: 112.636612 | AQ69: 91.73497268 | AR69: 68.04644809 | AS69: 47.37704918 | AT69: 30.88797814 | AV69: 106.1338798 | AW69: 7.199453552 | AX69: 42.03551913 | AY69: 42.03551913 | AZ69: 123.5519126
D70: 9 | K70: =SUM(M70:AT70) -> 78903.66558 | L70: 5939.665583 | M70: =SUM(M71:M75) -> 858.1549646 | N70: =SUM(N71:N75) -> 935.7627702 | O70: 1020.113067 | P70: 1060.696384 | Q70: 1023.915056 | R70: 1041.02334 | S70: 1265 | T70: 1285 | U70: 1349 | V70: 1364 | W70: 1306 | X70: 1188 | Y70: 1274 | Z70: 1234 | AA70: 1144 | AB70: 1179 | AC70: 1206 | AD70: 1216 | AE70: 1215 | AF70: 1211 | AG70: 5773 | AH70: 6657 | AI70: 6332 | AJ70: 5711 | AK70: 5755 | AL70: 5305 | AM70: 4555 | AN70: 3859 | AO70: 3335 | AP70: 2803 | AQ70: 2151 | AR70: 1554 | AS70: 958 | AT70: 780 | AV70: 1050 | AW70: 78 | AX70: 429 | AY70: 438 | AZ70: 1466
A71: 1 | B71: =+B69+1 -> 54 | C71: TRUJILLO | E71: VICTOR LARCO HERRERA | F71: II-1 | G71: 00005243 | H71: HOSPITAL | I71: VISTA ALEGRE | J71: VICTOR LARCO HERRERA | K71: ='Por Provincias'!I75 -> 27985.20858 | L71: 1886 | M71: 260 | N71: 312 | O71: 335 | P71: 332 | Q71: 328 | R71: 319 | S71: 452.4902534 | T71: 459.6442495 | U71: 482.537037 | V71: 487.9025341 | W71: 467.1559454 | X71: 424.9473684 | Y71: 455.7095517 | Z71: 441.4015595 | AA71: 409.208577 | AB71: 421.7280702 | AC71: 431.3859649 | AD71: 434.962963 | AE71: 434.6052632 | AF71: 433.1744639 | AG71: 2065.000975 | AH71: 2381.207602 | AI71: 2264.955166 | AJ71: 2042.823587 | AK71: 2058.562378 | AL71: 1897.597466 | AM71: 1629.322612 | AN71: 1380.363548 | AO71: 1192.92885 | AP71: 1002.632554 | AQ71: 769.4122807 | AR71: 555.8654971 | AS71: 342.6764133 | AT71: 279.005848 | AV71: 375.5847953 | AW71: 27.9005848 | AX71: 153.4532164 | AY71: 156.6725146 | AZ71: 524.3879142
A72: =+A71+1 -> 2 | B72: 55 | C72: TRUJILLO | E72: VICTOR LARCO HERRERA | F72: I-3 | G72: 00005242 | H72: CENTRO DE SALUD | I72: VICTOR LARCO HERRERA | J72: VICTOR LARCO HERRERA | K72: ='Por Provincias'!I76 -> 18711.75642 | L72: =+SUM(M72:R72) -> 1004.118998 | M72: 148.1668261 | N72: 154.510044 | O72: 169.7069064 | P72: 180.5027741 | Q72: 172.3826287 | R72: 178.8498183 | S72: 307.002924 | T72: 311.8567251 | U72: 327.3888889 | V72: 331.0292398 | W72: 316.9532164 | X72: 288.3157895 | Y72: 309.1871345 | Z72: 299.4795322 | AA72: 277.6374269 | AB72: 286.1315789 | AC72: 292.6842105 | AD72: 295.1111111 | AE72: 294.8684211 | AF72: 293.8976608 | AG72: 1401.049708 | AH72: 1615.587719 | AI72: 1536.71345 | AJ72: 1386.002924 | AK72: 1396.681287 | AL72: 1287.47076 | AM72: 1105.453216 | AN72: 936.5409357 | AO72: 809.371345 | AP72: 680.2602339 | AQ72: 522.0263158 | AR72: 377.1403509 | AS72: 232.497076 | AT72: 189.2982456 | AV72: 254.8245614 | AW72: 18.92982456 | AX72: 104.1140351 | AY72: 106.2982456 | AZ72: 355.7836257
A73: 3 | B73: 56 | C73: TRUJILLO | E73: VICTOR LARCO HERRERA | F73: I-3 | G73: 00005245 | H73: CENTRO DE SALUD | I73: LIBERACION SOCIAL | J73: VICTOR LARCO HERRERA | K73: ='Por Provincias'!I77 -> 16214.42394 | L73: 1422.501913 | M73: 209.9030036 | N73: 218.889229 | O73: 240.4181175 | P73: 255.7122632 | Q73: 244.2087239 | R73: 253.3705759 | S73: 256.4522417 | T73: 260.5068226 | U73: 273.4814815 | V73: 276.5224172 | W73: 264.7641326 | X73: 240.8421053 | Y73: 258.2768031 | Z73: 250.1676413 | AA73: 231.9220273 | AB73: 239.0175439 | AC73: 244.4912281 | AD73: 246.5185185 | AE73: 246.3157895 | AF73: 245.5048733 | AG73: 1170.354776 | AH73: 1349.567251 | AI73: 1283.680312 | AJ73: 1157.785575 | AK73: 1166.705653 | AL73: 1075.477583 | AM73: 923.4307992 | AN73: 782.331384 | AO73: 676.1013645 | AP73: 568.2495127 | AQ73: 436.0701754 | AR73: 315.0409357 | AS73: 194.214425 | AT73: 158.128655 | AV73: 212.8654971 | AW73: 15.8128655 | AX73: 86.97076023 | AY73: 88.79532164 | AZ73: 297.2007797
A74: 4 | B74: 57 | C74: TRUJILLO | E74: VICTOR LARCO HERRERA | F74: I-2 | G74: 00005244 | H74: PUESTO DE SALUD | I74: BUENOS AIRES SUR | J74: VICTOR LARCO HERRERA | K74: ='Por Provincias'!I78 -> 9346.434109 | L74: 1097.092979 | M74: 161.8859767 | N74: 168.8165296 | O74: 185.4205089 | P74: 197.2159939 | Q74: 188.3439832 | R74: 195.4099866 | S74: 143.0214425 | T74: 145.2826511 | U74: 152.5185185 | V74: 154.214425 | W74: 147.6569201 | X74: 134.3157895 | Y74: 144.0389864 | Z74: 139.5165692 | AA74: 129.3411306 | AB74: 133.2982456 | AC74: 136.3508772 | AD74: 137.4814815 | AE74: 137.3684211 | AF74: 136.9161793 | AG74: 652.6978558 | AH74: 752.6432749 | AI74: 715.8986355 | AJ74: 645.6881092 | AK74: 650.662768 | AL74: 599.785575 | AM74: 514.9902534 | AN74: 436.3001949 | AO74: 377.0565302 | AP74: 316.9083821 | AQ74: 243.1929825 | AR74: 175.6959064 | AS74: 108.3118908 | AT74: 88.1871345 | AV74: 118.7134503 | AW74: 8.81871345 | AX74: 48.50292398 | AY74: 49.52046784 | AZ74: 165.7465887
A75: 5 | B75: 58 | C75: TRUJILLO | E75: VICTOR LARCO HERRERA | F75: I-2 | G75: 00005246 | H75: PUESTO DE SALUD | I75: HUAMAN | J75: VICTOR LARCO HERRERA | K75: ='Por Provincias'!I79 -> 6645.842531 | L75: 529.9516931 | M75: 78.19915822 | N75: 81.54696767 | O75: 89.56753396 | P75: 95.26535297 | Q75: 90.97972068 | R75: 94.39295963 | S75: 106.0331384 | T75: 107.7095517 | U75: 113.0740741 | V75: 114.331384 | W75: 109.4697856 | X75: 99.57894737 | Y75: 106.7875244 | Z75: 103.4346979 | AA75: 95.89083821 | AB75: 98.8245614 | AC75: 101.0877193 | AD75: 101.9259259 | AE75: 101.8421053 | AF75: 101.5068226 | AG75: 483.8966862 | AH75: 557.994152 | AI75: 530.7524366 | AJ75: 478.6998051 | AK75: 482.3879142 | AL75: 444.668616 | AM75: 381.8031189 | AN75: 323.4639376 | AO75: 279.5419103 | AP75: 234.9493177 | AQ75: 180.2982456 | AR75: 130.2573099 | AS75: 80.30019493 | AT75: 65.38011696 | AV75: 88.01169591 | AW75: 6.538011696 | AX75: 35.95906433 | AY75: 36.71345029 | AZ75: 122.8810916
C76: ASCOPE | D76: 4 | K76: =SUM(M76:AT76) -> 135270.5537 | L76: 11402.97915 | M76: =+M77+M82+M88+M92 -> 1760.945104 | N76: =+N77+N82+N88+N92 -> 1721.498384 | O76: 1913.330544 | P76: 2025.869311 | Q76: 1933.440867 | R76: 2047.894945 | S76: 2129.402895 | T76: 2172.814805 | U76: 2301.677502 | V76: 2157.520761 | W76: 2173.39512 | X76: 2137.0933 | Y76: 2231.101075 | Z76: 2295.826468 | AA76: 2104.551861 | AB76: 2179.136062 | AC76: 2176.1244 | AD76: 2125.116625 | AE76: 1981.975434 | AF76: 1975.399007 | AG76: 9754.395284 | AH76: 10270.74888 | AI76: 9076.796773 | AJ76: 9085.3732 | AK76: 8721.902977 | AL76: 8345.483291 | AM76: 7899.825227 | AN76: 7920.652936 | AO76: 6782.468982 | AP76: 5231.159387 | AQ76: 3799.120512 | AR76: 2816.516873 | AS76: 2057.505211 | AT76: 1964.489661 | AV76: 1987.0933 | AW76: 129.5764268 | AX76: 879.3290321 | AY76: 724.3173696 | AZ76: 2324.215054
D77: 1 | K77: =SUM(M77:AT77) -> 40488.65051 | L77: 3510.650513 | M77: =SUM(M78:M81) -> 552.8089469 | N77: =SUM(N78:N81) -> 529.804287 | O77: 592.195713 | P77: 632.2795899 | Q77: 589.0587139 | R77: 614.5032619 | S77: 627 | T77: 606 | U77: 635 | V77: 613 | W77: 600 | X77: 616 | Y77: 622 | Z77: 653 | AA77: 581 | AB77: 634 | AC77: 577 | AD77: 609 | AE77: 574 | AF77: 575 | AG77: 2772 | AH77: 2944 | AI77: 2607 | AJ77: 2641 | AK77: 2542 | AL77: 2550 | AM77: 2455 | AN77: 2600 | AO77: 2198 | AP77: 1654 | AQ77: 1247 | AR77: 920 | AS77: 709 | AT77: 617 | AV77: 501 | AW77: 39 | AX77: 238 | AY77: 176 | AZ77: 528
A78: 1 | B78: =+B75+1 -> 59 | C78: ASCOPE | E78: ASCOPE | F78: II-1 | G78: 00005263 | H78: HOSPITAL | I78: ASCOPE "ROSA SANCHEZ DE SANTILLAN" | J78: ASCOPE | K78: ='Por Provincias'!I82 -> 9102.035415 | L78: 826.0354147 | M78: 130.0726934 | N78: 124.6598322 | O78: 139.3401678 | P78: 148.7716682 | Q78: 138.6020503 | R78: 144.5890028 | S78: 137 | T78: 125 | U78: 134 | V78: 156 | W78: 134 | X78: 146 | Y78: 143 | Z78: 145 | AA78: 122 | AB78: 139 | AC78: 134 | AD78: 115 | AE78: 138 | AF78: 138 | AG78: 546 | AH78: 611 | AI78: 596 | AJ78: 603 | AK78: 609 | AL78: 596 | AM78: 517 | AN78: 562 | AO78: 498 | AP78: 409 | AQ78: 322 | AR78: 211 | AS78: 133 | AT78: 157 | AV78: 112 | AW78: 11 | AX78: 52 | AY78: 33 | AZ78: 168
A79: 2 | B79: =+B78+1 -> 60 | C79: ASCOPE | E79: ASCOPE | F79: I-3 | G79: 00007631 | H79: CENTRO DE SALUD | I79: CASA GRANDE | J79: CASA GRANDE | K79: ='Por Provincias'!I100 -> 22306.28911 | L79: 1839.806151 | M79: 289.7073625 | N79: 277.6514445 | O79: 310.3485555 | P79: 331.3550792 | Q79: 308.7045666 | R79: 322.0391426 | S79: 349.4034091 | T79: 342.9857955 | U79: 357.2471591 | V79: 325.8721591 | W79: 332.2897727 | X79: 335.1420455 | Y79: 341.5596591 | Z79: 362.2386364 | AA79: 327.2982955 | AB79: 352.96875 | AC79: 315.8892045 | AD79: 352.2556818 | AE79: 310.8977273 | AF79: 311.6107955 | AG79: 1587.289773 | AH79: 1663.588068 | AI79: 1433.980114 | AJ79: 1453.232955 | AK79: 1378.360795 | AL79: 1393.335227 | AM79: 1381.926136 | AN79: 1453.232955 | AO79: 1212.215909 | AP79: 887.7698864 | AQ79: 659.5880682 | AR79: 505.5653409 | AS79: 410.7272727 | AT79: 328.0113636 | AV79: 277.3835227 | AW79: 19.96590909 | AX79: 132.6306818 | AY79: 101.96875 | AZ79: 256.7045455
A80: 3 | B80: =+B79+1 -> 61 | C80: ASCOPE | E80: ASCOPE | F80: I-3 | G80: 00005275 | H80: CENTRO DE SALUD | I80: ROMA "3 DE OCTUBRE" | J80: CASA GRANDE | K80: ='Por Provincias'!I101 -> 6926.249359 | L80: 647.6868593 | M80: 101.9888164 | N80: 97.74464119 | O80: 109.2553588 | P80: 116.6505126 | Q80: 108.6766076 | R80: 113.3709226 | S80: 107.1875 | T80: 105.21875 | U80: 109.59375 | V80: 99.96875 | W80: 101.9375 | X80: 102.8125 | Y80: 104.78125 | Z80: 111.125 | AA80: 100.40625 | AB80: 108.28125 | AC80: 96.90625 | AD80: 108.0625 | AE80: 95.375 | AF80: 95.59375 | AG80: 486.9375 | AH80: 510.34375 | AI80: 439.90625 | AJ80: 445.8125 | AK80: 422.84375 | AL80: 427.4375 | AM80: 423.9375 | AN80: 445.8125 | AO80: 371.875 | AP80: 272.34375 | AQ80: 202.34375 | AR80: 155.09375 | AS80: 126 | AT80: 100.625 | AV80: 85.09375 | AW80: 6.125 | AX80: 40.6875 | AY80: 31.28125 | AZ80: 78.75
A81: 4 | B81: =+B80+1 -> 62 | C81: ASCOPE | E81: ASCOPE | F81: I-2 | G81: 00005274 | H81: PUESTO DE SALUD | I81: MOCAN | J81: CASA GRANDE | K81: ='Por Provincias'!I102 -> 2154.076633 | L81: 197.1220876 | M81: 31.04007456 | N81: 29.74836906 | O81: 33.25163094 | P81: 35.50232992 | Q81: 33.07548928 | R81: 34.50419385 | S81: 33.40909091 | T81: 32.79545455 | U81: 34.15909091 | V81: 31.15909091 | W81: 31.77272727 | X81: 32.04545455 | Y81: 32.65909091 | Z81: 34.63636364 | AA81: 31.29545455 | AB81: 33.75 | AC81: 30.20454545 | AD81: 33.68181818 | AE81: 29.72727273 | AF81: 29.79545455 | AG81: 151.7727273 | AH81: 159.0681818 | AI81: 137.1136364 | AJ81: 138.9545455 | AK81: 131.7954545 | AL81: 133.2272727 | AM81: 132.1363636 | AN81: 138.9545455 | AO81: 115.9090909 | AP81: 84.88636364 | AQ81: 63.06818182 | AR81: 48.34090909 | AS81: 39.27272727 | AT81: 31.36363636 | AV81: 26.52272727 | AW81: 1.909090909 | AX81: 12.68181818 | AY81: 9.75 | AZ81: 24.54545455
D82: 2 | K82: =SUM(M82:AT82) -> 40618.57648 | L82: 2189.001971 | M82: =SUM(M83:M87) -> 336.0504165 | N82: =SUM(N83:N87) -> 338.0696792 | O82: 360.7592488 | P82: 388.9103177 | Q82: 374.569478 | R82: 390.6428304 | S82: 614.4028946 | T82: 653.8148053 | U82: 700.6775018 | V82: 664.5207607 | W82: 643.3951196 | X82: 601.0933 | Y82: 666.101075 | Z82: 627.8264678 | AA82: 631.5518607 | AB82: 664.1360625 | AC82: 652.1244 | AD82: 620.116625 | AE82: 621.9754339 | AF82: 600.3990071 | AG82: 3125.395284 | AH82: 3232.748882 | AI82: 2820.796773 | AJ82: 2735.3732 | AK82: 2631.902977 | AL82: 2511.483291 | AM82: 2565.825227 | AN82: 2547.652936 | AO82: 2252.468982 | AP82: 1744.159387 | AQ82: 1132.120512 | AR82: 873.5168732 | AS82: 629.5052107 | AT82: 664.4896607 | AV82: 599.0933 | AW82: 42.57642678 | AX82: 244.3290321 | AY82: 219.3173696 | AZ82: 662.2150536
A83: 1 | B83: =+B81+1 -> 63 | C83: ASCOPE | E83: CHICAMA | F83: I-4 | G83: 00005264 | H83: CENTRO DE SALUD CON CAMAS DE INTERNAMIENTO | I83: MATERNO CHICAMA | J83: CHICAMA | K83: ='Por Provincias'!I84 -> 11840.32961 | L83: 807.2618826 | M83: 127.1164958 | N83: 121.8266542 | O83: 136.1733458 | P83: 145.3904939 | Q83: 135.4520037 | R83: 141.3028891 | S83: 185.5776892 | T83: 193.0278884 | U83: 205.8964143 | V83: 201.1553785 | W83: 182.8685259 | X83: 172.7091633 | Y83: 199.8007968 | Z83: 169.3227092 | AA83: 192.3505976 | AB83: 199.123506 | AC83: 197.7689243 | AD83: 187.6095618 | AE83: 179.4820717 | AF83: 177.4501992 | AG83: 925.1792829 | AH83: 950.2390438 | AI83: 831.7131474 | AJ83: 802.5896414 | AK83: 759.9203187 | AL83: 712.5099602 | AM83: 728.7649402 | AN83: 711.8326693 | AO83: 612.2709163 | AP83: 464.6215139 | AQ83: 305.4581673 | AR83: 241.7928287 | AS83: 173.3864542 | AT83: 168.6454183 | AV83: 195.7370518 | AW83: 16.25498008 | AX83: 75.85657371 | AY83: 77.21115538 | AZ83: 261.4342629
A84: 2 | B84: =+B83+1 -> 64 | C84: ASCOPE | E84: CHICAMA | F84: I-2 | G84: 00005265 | H84: PUESTO DE SALUD | I84: ALTO PERU | J84: CHICAMA | K84: ='Por Provincias'!I85 -> 5517.932271 | L84: 261 | M84: 43 | N84: 54 | O84: 41 | P84: 47 | Q84: 34 | R84: 42 | S84: 88.42231076 | T84: 91.97211155 | U84: 98.10358566 | V84: 95.84462151 | W84: 87.1314741 | X84: 82.29083665 | Y84: 95.19920319 | Z84: 80.67729084 | AA84: 91.64940239 | AB84: 94.87649402 | AC84: 94.2310757 | AD84: 89.39043825 | AE84: 85.51792829 | AF84: 84.5498008 | AG84: 440.8207171 | AH84: 452.7609562 | AI84: 396.2868526 | AJ84: 382.4103586 | AK84: 362.0796813 | AL84: 339.4900398 | AM84: 347.2350598 | AN84: 339.1673307 | AO84: 291.7290837 | AP84: 221.3784861 | AQ84: 145.5418327 | AR84: 115.2071713 | AS84: 82.61354582 | AT84: 80.35458167 | AV84: 93.26294821 | AW84: 7.74501992 | AX84: 36.14342629 | AY84: 36.78884462 | AZ84: 124.5657371
A85: 3 | B85: =+B84+1 -> 65 | C85: ASCOPE | E85: CHICAMA | F85: I-2 | G85: 00005272 | H85: PUESTO DE SALUD | I85: SANTIAGO DE CAO | J85: SANTIAGO DE CAO | K85: ='Por Provincias'!I97 -> 5395.505338 | L85: 125 | M85: 21 | N85: 19 | O85: 21 | P85: 22 | Q85: 21 | R85: 21 | S85: 75.72953737 | T85: 85.7366548 | U85: 92.49822064 | V85: 86.5480427 | W85: 85.7366548 | X85: 80.59786477 | Y85: 86.27758007 | Z85: 86.5480427 | AA85: 76.8113879 | AB85: 81.13879004 | AC85: 80.0569395 | AD85: 76.54092527 | AE85: 80.0569395 | AF85: 75.72953737 | AG85: 400.8256228 | AH85: 430.3060498 | AI85: 379.4590747 | AJ85: 367.2882562 | AK85: 362.1494662 | AL85: 347.2740214 | AM85: 367.5587189 | AN85: 373.5088968 | AO85: 339.1601423 | AP85: 263.9715302 | AQ85: 167.4163701 | AR85: 127.3879004 | AS85: 90.33451957 | AT85: 103.8576512 | AV85: 70.86120996 | AW85: 4.327402135 | AX85: 29.75088968 | AY85: 24.07117438 | AZ85: 64.6405694
A86: 4 | B86: =+B85+1 -> 66 | C86: ASCOPE | E86: CHICAMA | F86: I-2 | G86: 00005273 | H86: PUESTO DE SALUD | I86: SANTA ROSA DE CARTAVIO | J86: SANTIAGO DE CAO | K86: ='Por Provincias'!I98 -> 14956.49466 | L86: 740 | M86: 105 | N86: 101 | O86: 122 | P86: 131 | Q86: 140 | R86: 141 | S86: 204.2704626 | T86: 231.2633452 | U86: 249.5017794 | V86: 233.4519573 | W86: 231.2633452 | X86: 217.4021352 | Y86: 232.7224199 | Z86: 233.4519573 | AA86: 207.1886121 | AB86: 218.86121 | AC86: 215.9430605 | AD86: 206.4590747 | AE86: 215.9430605 | AF86: 204.2704626 | AG86: 1081.174377 | AH86: 1160.69395 | AI86: 1023.540925 | AJ86: 990.7117438 | AK86: 976.8505338 | AL86: 936.7259786 | AM86: 991.4412811 | AN86: 1007.491103 | AO86: 914.8398577 | AP86: 712.0284698 | AQ86: 451.5836299 | AR86: 343.6120996 | AS86: 243.6654804 | AT86: 280.1423488 | AV86: 191.13879 | AW86: 11.67259786 | AX86: 80.24911032 | AY86: 64.92882562 | AZ86: 174.3594306
A87: 5 | B87: =+B86+1 -> 67 | C87: ASCOPE | E87: CHICAMA | F87: I-1 | G87: 00005276 | H87: PUESTO DE SALUD | I87: LLAGUEN | J87: SINSICAP | K87: =SUM(M87:AS87) -> 2876.824937 | L87: 255.7400881 | M87: 39.9339207 | N87: 42.24302496 | O87: 40.58590308 | P87: 43.51982379 | Q87: 44.1174743 | R87: 45.33994126 | S87: 60.40289462 | T87: 51.81480534 | U87: 54.67750177 | V87: 47.5207607 | W87: 56.39511962 | X87: 48.09329998 | Y87: 52.10107498 | Z87: 57.82646784 | AA87: 63.55186069 | AB87: 70.13606247 | AC87: 64.12439998 | AD87: 60.11662498 | AE87: 60.97543391 | AF87: 58.39900712 | AG87: 277.3952838 | AH87: 238.7488821 | AI87: 189.7967731 | AJ87: 192.3731999 | AK87: 170.9029767 | AL87: 175.483291 | AM87: 130.8252267 | AN87: 115.6529357 | AO87: 94.46898211 | AP87: 82.15938747 | AQ87: 62.12051248 | AR87: 45.5168732 | AS87: 39.5052107 | AT87: 31.4896607 | AV87: 48.09329998 | AW87: 2.576426785 | AX87: 22.32903213 | AY87: 16.31736964 | AZ87: 37.21505356
D88: 3 | K88: =SUM(M88:AT88) -> 15447.50095 | L88: 756.5009492 | M88: =SUM(M89:M91) -> 93.1276794 | N88: =SUM(N89:N91) -> 107.082013 | O88: =SUM(O89:O91) -> 125.917987 | P88: =SUM(P89:P91) -> 113.7399814 | Q88: =SUM(Q89:Q91) -> 139.7753961 | R88: 176.8578924 | S88: 234 | T88: 271 | U88: 259 | V88: 260 | W88: 250 | X88: 234 | Y88: 224 | Z88: 238 | AA88: 240 | AB88: 221 | AC88: 219 | AD88: 224 | AE88: 227 | AF88: 219 | AG88: 996 | AH88: 1136 | AI88: 1033 | AJ88: 1067 | AK88: 1070 | AL88: 1033 | AM88: 1047 | AN88: 1042 | AO88: 896 | AP88: 698 | AQ88: 504 | AR88: 356 | AS88: 247 | AT88: 246 | AV88: 206 | AW88: 16 | AX88: 82 | AY88: 56 | AZ88: 207
A89: 1 | B89: =+B87+1 -> 68 | C89: ASCOPE | E89: CHOCOPE | F89: I-3 | G89: 00005266 | H89: CENTRO DE SALUD | I89: CHOCOPE | J89: CHOCOPE | K89: ='Por Provincias'!I87 -> 10154.40741 | L89: 480.9259259 | M89: 54 | N89: 65 | O89: 74 | P89: 70 | Q89: 90 | R89: 127.9259259 | S89: 160.5185185 | T89: 172.7407407 | U89: 171.1111111 | V89: 177.6296296 | W89: 162.962963 | X89: 146.6666667 | Y89: 140.1481481 | Z89: 161.3333333 | AA89: 161.3333333 | AB89: 150.7407407 | AC89: 145.037037 | AD89: 141.7777778 | AE89: 145.8518519 | AF89: 140.1481481 | AG89: 654.2962963 | AH89: 742.2962963 | AI89: 673.8518519 | AJ89: 695.037037 | AK89: 704 | AL89: 693.4074074 | AM89: 702.3703704 | AN89: 699.9259259 | AO89: 587.4814815 | AP89: 452.2222222 | AQ89: 322.6666667 | AR89: 239.5555556 | AS89: 157.2592593 | AT89: 171.1111111 | AV89: 118.1481481 | AW89: 9.777777778 | AX89: 48.07407407 | AY89: 35.85185185 | AZ89: 145.8518519
A90: 2 | B90: =+B89+1 -> 69 | C90: ASCOPE | E90: CHOCOPE | F90: I-2 | G90: 00005267 | H90: PUESTO DE SALUD | I90: MOLINOS DE CAJANLEQUE | J90: CHOCOPE | K90: ='Por Provincias'!I88 -> 2314.518519 | L90: 116 | M90: 14 | N90: 18 | O90: 25 | P90: 15 | Q90: 23 | R90: 21 | S90: 36.48148148 | T90: 39.25925926 | U90: 38.88888889 | V90: 40.37037037 | W90: 37.03703704 | X90: 33.33333333 | Y90: 31.85185185 | Z90: 36.66666667 | AA90: 36.66666667 | AB90: 34.25925926 | AC90: 32.96296296 | AD90: 32.22222222 | AE90: 33.14814815 | AF90: 31.85185185 | AG90: 148.7037037 | AH90: 168.7037037 | AI90: 153.1481481 | AJ90: 157.962963 | AK90: 160 | AL90: 157.5925926 | AM90: 159.6296296 | AN90: 159.0740741 | AO90: 133.5185185 | AP90: 102.7777778 | AQ90: 73.33333333 | AR90: 54.44444444 | AS90: 35.74074074 | AT90: 38.88888889 | AV90: 26.85185185 | AW90: 2.222222222 | AX90: 10.92592593 | AY90: 8.148148148 | AZ90: 33.14814815
A91: 3 | B91: =+B90+1 -> 70 | C91: ASCOPE | E91: CHOCOPE | F91: I-2 | G91: 00005268 | H91: PUESTO DE SALUD | I91: MAGDALENA DE CAO | J91: MAGDALENA DE CAO | K91: ='Por Provincias'!I90 -> 2978.575023 | L91: 159.5750233 | M91: 25.1276794 | N91: 24.08201305 | O91: 26.91798695 | P91: 28.73998136 | Q91: 26.77539609 | R91: 27.93196645 | S91: 37 | T91: 59 | U91: 49 | V91: 42 | W91: 50 | X91: 54 | Y91: 52 | Z91: 40 | AA91: 42 | AB91: 36 | AC91: 41 | AD91: 50 | AE91: 48 | AF91: 47 | AG91: 193 | AH91: 225 | AI91: 206 | AJ91: 214 | AK91: 206 | AL91: 182 | AM91: 185 | AN91: 183 | AO91: 175 | AP91: 143 | AQ91: 108 | AR91: 62 | AS91: 54 | AT91: 36 | AV91: 61 | AW91: 4 | AX91: 23 | AY91: 12 | AZ91: 28
D92: 4 | K92: =SUM(M92:AT92) -> 38715.82572 | L92: 4946.825722 | M92: =SUM(M93:M95) -> 778.9580615 | N92: =SUM(N93:N95) -> 746.5424045 | O92: 834.4575955 | P92: 890.9394222 | Q92: 830.0372787 | R92: 865.8909599 | S92: 654 | T92: 642 | U92: 707 | V92: 620 | W92: 680 | X92: 686 | Y92: 719 | Z92: 777 | AA92: 652 | AB92: 660 | AC92: 728 | AD92: 672 | AE92: 559 | AF92: 581 | AG92: 2861 | AH92: 2958 | AI92: 2616 | AJ92: 2642 | AK92: 2478 | AL92: 2251 | AM92: 1832 | AN92: 1731 | AO92: 1436 | AP92: 1135 | AQ92: 916 | AR92: 667 | AS92: 472 | AT92: 437 | AV92: 681 | AW92: 32 | AX92: 315 | AY92: 273 | AZ92: 927
A93: 1 | B93: =+B91+1 -> 71 | C93: ASCOPE | E93: PAIJAN | F93: I-4 | G93: 00005269 | H93: CENTRO DE SALUD CON CAMAS DE INTERNAMIENTO | I93: PAIJAN | J93: PAIJAN | K93: ='Por Provincias'!I92 -> 26655.23601 | L93: 3491.87698 | M93: 549.8527493 | N93: 526.971109 | O93: 589.028891 | P93: 628.8984157 | Q93: 585.9086673 | R93: 611.2171482 | S93: 445.9959432 | T93: 448.6612576 | U93: 474.4259635 | V93: 415.7890467 | W93: 484.198783 | X93: 472.6490872 | Y93: 477.979716 | Z93: 547.2778905 | AA93: 456.6572008 | AB93: 461.0993915 | AC93: 491.306288 | AD93: 477.979716 | AE93: 382.9168357 | AF93: 410.4584178 | AG93: 1964.336714 | AH93: 2020.308316 | AI93: 1803.529412 | AJ93: 1831.070994 | AK93: 1661.37931 | AL93: 1535.221095 | AM93: 1212.718053 | AN93: 1177.180527 | AO93: 1025.257606 | AP93: 783.6024341 | AQ93: 625.4604462 | AR93: 443.3306288 | AS93: 321.6146045 | AT93: 310.9533469 | AV93: 492.1947262 | AW93: 23.09939148 | AX93: 216.7789047 | AY93: 193.6795132 | AZ93: 678.7667343
A94: 2 | B94: =+B93+1 -> 72 | C94: ASCOPE | E94: PAIJAN | F94: I-2 | G94: 00005270 | H94: PUESTO DE SALUD | I94: MACABI BAJO | J94: PAIJAN | K94: ='Por Provincias'!I93 -> 3349.818979 | L94: 441.1780056 | M94: 69.47064306 | N94: 66.57968313 | O94: 74.42031687 | P94: 79.45759553 | Q94: 74.02609506 | R94: 77.22367195 | S94: 56.0040568 | T94: 56.33874239 | U94: 59.57403651 | V94: 52.21095335 | W94: 60.80121704 | X94: 59.35091278 | Y94: 60.02028398 | Z94: 68.72210953 | AA94: 57.34279919 | AB94: 57.90060852 | AC94: 61.69371197 | AD94: 60.02028398 | AE94: 48.0831643 | AF94: 51.54158215 | AG94: 246.663286 | AH94: 253.6916836 | AI94: 226.4705882 | AJ94: 229.9290061 | AK94: 208.6206897 | AL94: 192.7789047 | AM94: 152.2819473 | AN94: 147.8194726 | AO94: 128.7423935 | AP94: 98.39756592 | AQ94: 78.53955375 | AR94: 55.6693712 | AS94: 40.38539554 | AT94: 39.04665314 | AV94: 61.80527383 | AW94: 2.900608519 | AX94: 27.22109533 | AY94: 24.32048682 | AZ94: 85.23326572
A95: 3 | B95: =+B94+1 -> 73 | C95: ASCOPE | E95: PAIJAN | F95: I-3 | G95: 00005271 | H95: CENTRO DE SALUD CON CAMAS DE INTERNAMIENTO | I95: RAZURI | J95: RAZURI | K95: ='Por Provincias'!I95 -> 8710.770736 | L95: 1013.770736 | M95: 159.6346692 | N95: 152.9916123 | O95: 171.0083877 | P95: 182.583411 | Q95: 170.1025163 | R95: 177.4501398 | S95: 152 | T95: 137 | U95: 173 | V95: 152 | W95: 135 | X95: 154 | Y95: 181 | Z95: 161 | AA95: 138 | AB95: 141 | AC95: 175 | AD95: 134 | AE95: 128 | AF95: 119 | AG95: 650 | AH95: 684 | AI95: 586 | AJ95: 581 | AK95: 608 | AL95: 523 | AM95: 467 | AN95: 406 | AO95: 282 | AP95: 253 | AQ95: 212 | AR95: 168 | AS95: 110 | AT95: 87 | AV95: 127 | AW95: 6 | AX95: 71 | AY95: 55 | AZ95: 163
C96: BOLIVAR | D96: 2 | K96: =SUM(M96:AT96) -> 18948.82332 | L96: 2371.82332 | M96: =+M97+M103 -> 380.3533592 | N96: =+N97+N103 -> 391.9439599 | O96: 385.8969638 | P96: 391.939115 | Q96: 383.2950581 | R96: 438.3948643 | S96: 327 | T96: 354 | U96: 345 | V96: 383 | W96: 364 | X96: 416 | Y96: 421 | Z96: 410 | AA96: 397 | AB96: 418 | AC96: 431 | AD96: 505 | AE96: 433 | AF96: 356 | AG96: 1601 | AH96: 1354 | AI96: 1045 | AJ96: 1076 | AK96: 936 | AL96: 910 | AM96: 904 | AN96: 836 | AO96: 680 | AP96: 491 | AQ96: 420 | AR96: 326 | AS96: 225 | AT96: =+AT97+AT103 -> 213 | AV96: 429 | AW96: 30 | AX96: 175 | AY96: 159 | AZ96: 510
D97: 1 | K97: =SUM(M97:AT97) -> 11695.86499 | L97: 1289.864987 | M97: =SUM(M98:M102) -> 198.2700258 | N97: =SUM(N98:N102) -> 211.2981266 | O97: 212.4386305 | P97: 214.1682817 | Q97: 215.1075581 | R97: 238.5823643 | S97: 193 | T97: 208 | U97: 198 | V97: 233 | W97: 228 | X97: 256 | Y97: 269 | Z97: 257 | AA97: 252 | AB97: 249 | AC97: 254 | AD97: 326 | AE97: 278 | AF97: 218 | AG97: 945 | AH97: 795 | AI97: 636 | AJ97: 706 | AK97: 607 | AL97: 585 | AM97: 619 | AN97: 544 | AO97: 451 | AP97: 327 | AQ97: 286 | AR97: 214 | AS97: 139 | AT97: =SUM(AT98:AT102) -> 133 | AV97: 225 | AW97: 14 | AX97: 97 | AY97: 84 | AZ97: 285
A98: 1 | B98: =+B95+1 -> 74 | C98: BOLIVAR | E98: BOLIVAR NORTE | F98: II-1 | G98: 00005366 | H98: HOSPITAL | I98: BOLIVAR | J98: BOLIVAR | K98: 5149.0625 | L98: 635.0625 | M98: 106.875 | N98: 106.03125 | O98: 101.8125 | P98: 104.34375 | Q98: 98.71875 | R98: 117.28125 | S98: 95 | T98: 87 | U98: 83 | V98: 110 | W98: 113 | X98: 127 | Y98: 125 | Z98: 132 | AA98: 116 | AB98: 115 | AC98: 115 | AD98: 144 | AE98: 119 | AF98: 111 | AG98: 476 | AH98: 368 | AI98: 265 | AJ98: 290 | AK98: 245 | AL98: 220 | AM98: 256 | AN98: 227 | AO98: 188 | AP98: 118 | AQ98: 123 | AR98: 85 | AS98: 61 | AT98: 64 | AV98: 114 | AW98: 5 | AX98: 46 | AY98: 47 | AZ98: 158 | BA98: ='Por Provincias'!AX105 -> 158
A99: 2 | B99: =+B98+1 -> 75 | C99: BOLIVAR | E99: BOLIVAR NORTE | F99: I-2 | G99: 00005371 | H99: PUESTO DE SALUD | I99: LONGOTEA | J99: LONGOTEA | K99: 645.4883721 | L99: 84.8372093 | M99: 10.3255814 | N99: 13.39534884 | O99: 16.74418605 | P99: 15.34883721 | Q99: 14.23255814 | R99: 14.79069767 | S99: 8.093023256 | T99: 12.8372093 | U99: 11.1627907 | V99: 12 | W99: 10.88372093 | X99: 12.55813953 | Y99: 13.95348837 | Z99: 12.8372093 | AA99: 10.88372093 | AB99: 10.3255814 | AC99: 12.55813953 | AD99: 15.06976744 | AE99: 11.72093023 | AF99: 9.76744186 | AG99: 42.41860465 | AH99: 41.58139535 | AI99: 35.1627907 | AJ99: 39.62790698 | AK99: 37.39534884 | AL99: 37.95348837 | AM99: 37.95348837 | AN99: 31.53488372 | AO99: 29.58139535 | AP99: 23.1627907 | AQ99: 17.02325581 | AR99: 14.79069767 | AS99: 7.813953488 | AT99: 8.372093023 | AV99: 12.55813953 | AW99: 1.11627907 | AX99: 5.023255814 | AY99: 5.302325581 | AZ99: 11.1627907
A100: 3 | B100: =+B99+1 -> 76 | C100: BOLIVAR | E100: BOLIVAR NORTE | F100: I-3 | G100: 00005372 | H100: CENTRO DE SALUD | I100: PUSAC | J100: LONGOTEA | K100: 1748.348837 | L100: 300 | M100: 37 | N100: 45 | O100: 53 | P100: 50 | Q100: 57 | R100: 58 | S100: 20.90697674 | T100: 33.1627907 | U100: 28.8372093 | V100: 31 | W100: 28.11627907 | X100: 32.44186047 | Y100: 36.04651163 | Z100: 33.1627907 | AA100: 28.11627907 | AB100: 26.6744186 | AC100: 32.44186047 | AD100: 38.93023256 | AE100: 30.27906977 | AF100: 25.23255814 | AG100: 109.5813953 | AH100: 107.4186047 | AI100: 90.8372093 | AJ100: 102.372093 | AK100: 96.60465116 | AL100: 98.04651163 | AM100: 98.04651163 | AN100: 81.46511628 | AO100: 76.41860465 | AP100: 59.8372093 | AQ100: 43.97674419 | AR100: 38.20930233 | AS100: 20.18604651 | AT100: 21.62790698 | AV100: 32.44186047 | AW100: 2.88372093 | AX100: 12.97674419 | AY100: 13.69767442 | AZ100: 28.8372093
A101: 4 | B101: =+B100+1 -> 77 | C101: BOLIVAR | E101: BOLIVAR NORTE | F101: I-1 | G101: 00005373 | H101: PUESTO DE SALUD | I101: UCHUMARCA | J101: UCHUMARCA | K101: 2612 | L101: 121 | M101: 19 | N101: 22 | O101: 17 | P101: 20 | Q101: 22 | R101: 21 | S101: 43 | T101: 51 | U101: 47 | V101: 49 | W101: 64 | X101: 53 | Y101: 62 | Z101: 62 | AA101: 63 | AB101: 61 | AC101: 64 | AD101: 88 | AE101: 84 | AF101: 48 | AG101: 203 | AH101: 198 | AI101: 149 | AJ101: 168 | AK101: 150 | AL101: 147 | AM101: 158 | AN101: 134 | AO101: 102 | AP101: 82 | AQ101: 68 | AR101: 56 | AS101: 37 | AT101: 30 | AV101: 37 | AW101: 2 | AX101: 20 | AY101: 9 | AZ101: 42
A102: 5 | B102: =+B101+1 -> 78 | C102: BOLIVAR | E102: BOLIVAR NORTE | F102: I-2 | G102: 00005374 | H102: PUESTO DE SALUD | I102: UCUNCHA | J102: UCUNCHA | K102: 1407.965278 | L102: 148.9652778 | M102: 25.06944444 | N102: 24.87152778 | O102: 23.88194444 | P102: 24.47569444 | Q102: 23.15625 | R102: 27.51041667 | S102: 26 | T102: 24 | U102: 28 | V102: 31 | W102: 12 | X102: 31 | Y102: 32 | Z102: 17 | AA102: 34 | AB102: 36 | AC102: 30 | AD102: 40 | AE102: 33 | AF102: 24 | AG102: 114 | AH102: 80 | AI102: 96 | AJ102: 106 | AK102: 78 | AL102: 82 | AM102: 69 | AN102: 70 | AO102: 55 | AP102: 44 | AQ102: 34 | AR102: 20 | AS102: 13 | AT102: 9 | AV102: 29 | AW102: 3 | AX102: 13 | AY102: 9 | AZ102: 45
D103: 2 | K103: =SUM(M103:AT103) -> 7252.958333 | L103: 1081.958333 | M103: =SUM(M104:M106) -> 182.0833333 | N103: =SUM(N104:N106) -> 180.6458333 | O103: 173.4583333 | P103: 177.7708333 | Q103: 168.1875 | R103: 199.8125 | S103: 134 | T103: 146 | U103: 147 | V103: 150 | W103: 136 | X103: 160 | Y103: 152 | Z103: 153 | AA103: 145 | AB103: 169 | AC103: 177 | AD103: 179 | AE103: 155 | AF103: 138 | AG103: 656 | AH103: 559 | AI103: 409 | AJ103: 370 | AK103: 329 | AL103: 325 | AM103: 285 | AN103: 292 | AO103: 229 | AP103: 164 | AQ103: 134 | AR103: 112 | AS103: 86 | AT103: 80 | AV103: 204 | AW103: 16 | AX103: 78 | AY103: 75 | AZ103: 225
A104: 1 | B104: =+B102+1 -> 79 | C104: BOLIVAR | E104: BOLIVAR SUR | F104: I-3 | G104: 00005368 | H104: CENTRO DE SALUD | I104: CALEMAR | J104: BAMBAMARCA | K104: 1927.77809 | L104: 282.25 | M104: 47.5 | N104: 47.125 | O104: 45.25 | P104: 46.375 | Q104: 43.875 | R104: 52.125 | S104: 38.85393258 | T104: 42.26966292 | U104: 43.12359551 | V104: 42.26966292 | W104: 39.70786517 | X104: 34.58426966 | Y104: 42.26966292 | Z104: 46.11235955 | AA104: 42.26966292 | AB104: 46.53932584 | AC104: 49.1011236 | AD104: 51.23595506 | AE104: 43.97752809 | AF104: 35.43820225 | AG104: 191.7078652 | AH104: 162.247191 | AI104: 105.4606742 | AJ104: 103.3258427 | AK104: 83.68539326 | AL104: 84.11235955 | AM104: 78.98876404 | AN104: 69.59550562 | AO104: 52.51685393 | AP104: 40.56179775 | AQ104: 34.15730337 | AR104: 22.62921348 | AS104: 18.78651685 | AT104: 18.78651685 | AV104: 59.34831461 | AW104: 4.696629213 | AX104: 22.20224719 | AY104: 22.20224719 | AZ104: 73.01123596
A105: 2 | B105: =+B104+1 -> 80 | C105: BOLIVAR | E105: BOLIVAR SUR | F105: I-2 | G105: 00005367 | H105: PUESTO DE SALUD | I105: BAMBAMARCA | J105: BAMBAMARCA | K105: 2702.40941 | L105: 493.9375 | M105: 83.125 | N105: 82.46875 | O105: 79.1875 | P105: 81.15625 | Q105: 76.78125 | R105: 91.21875 | S105: 52.14606742 | T105: 56.73033708 | U105: 57.87640449 | V105: 56.73033708 | W105: 53.29213483 | X105: 46.41573034 | Y105: 56.73033708 | Z105: 61.88764045 | AA105: 56.73033708 | AB105: 62.46067416 | AC105: 65.8988764 | AD105: 68.76404494 | AE105: 59.02247191 | AF105: 47.56179775 | AG105: 257.2921348 | AH105: 217.752809 | AI105: 141.5393258 | AJ105: 138.6741573 | AK105: 112.3146067 | AL105: 112.8876404 | AM105: 106.011236 | AN105: 93.40449438 | AO105: 70.48314607 | AP105: 54.43820225 | AQ105: 45.84269663 | AR105: 30.37078652 | AS105: 25.21348315 | AT105: 25.21348315 | AV105: 79.65168539 | AW105: 6.303370787 | AX105: 29.79775281 | AY105: 29.79775281 | AZ105: 97.98876404
A106: 3 | B106: =+B105+1 -> 81 | C106: BOLIVAR | E106: BOLIVAR SUR | F106: I-2 | G106: 00005369 | H106: PUESTO DE SALUD | I106: CONDORMARCA | J106: CONDORMARCA | K106: 2542.770833 | L106: 305.7708333 | M106: 51.45833333 | N106: 51.05208333 | O106: 49.02083333 | P106: 50.23958333 | Q106: 47.53125 | R106: 56.46875 | S106: 43 | T106: 47 | U106: 46 | V106: 51 | W106: 43 | X106: 79 | Y106: 53 | Z106: 45 | AA106: 46 | AB106: 60 | AC106: 62 | AD106: 59 | AE106: 52 | AF106: 55 | AG106: 207 | AH106: 179 | AI106: 162 | AJ106: 128 | AK106: 133 | AL106: 128 | AM106: 100 | AN106: 129 | AO106: 106 | AP106: 69 | AQ106: 54 | AR106: 59 | AS106: 42 | AT106: 36 | AV106: 65 | AW106: 5 | AX106: 26 | AY106: 23 | AZ106: 54
C107: CHEPEN | D107: 2 | K107: =SUM(M107:AT107) -> 95098.10157 | L107: 8762.10157 | M107: =+M108+M110+M114 -> 1428.499538 | N107: =+N108+N110+N114 -> 1380.716528 | O107: 1441.43952 | P107: 1535.00554 | Q107: 1425.508772 | R107: 1550.931671 | S107: 1426 | T107: 1457 | U107: 1515 | V107: 1531 | W107: 1532 | X107: 1557 | Y107: 1562 | Z107: 1541 | AA107: 1541 | AB107: 1628 | AC107: 1601 | AD107: 1712 | AE107: 1469 | AF107: 1365 | AG107: 7043 | AH107: 7656 | AI107: 6703 | AJ107: 6429 | AK107: 6208 | AL107: 6149 | AM107: 5557 | AN107: 5007 | AO107: 4175 | AP107: 3234 | AQ107: 2359 | AR107: 1830 | AS107: 1280 | AT107: =+AT108+AT110+AT114 -> 1269 | AV107: 1697 | AW107: 99 | AX107: 732 | AY107: 638 | AZ107: 1789
K108: =SUM(M108:AT108) -> 50850.02666 | L108: 4899.527239 | M108: =+M109 -> 798.2566944 | N108: =+N109 -> 771.6103416 | O108: 805.6269621 | P108: 858.9196676 | Q108: 797.122807 | R108: 867.9907664 | S108: 726.8891482 | T108: 765.5892649 | U108: 795.8763127 | V108: 775.6849475 | W108: 774.0023337 | X108: 807.6546091 | Y108: 782.4154026 | Z108: 789.1458576 | AA108: 784.9393232 | AB108: 818.5915986 | AC108: 828.6872812 | AD108: 874.117853 | AE108: 741.1913652 | AF108: 695.7607935 | AG108: 3663.050175 | AH108: 3974.333722 | AI108: 3499.836639 | AJ108: 3372.7993 | AK108: 3228.935823 | AL108: 3308.859977 | AM108: 3069.928821 | AN108: 2810.806301 | AO108: 2375.850642 | AP108: 1833.207701 | AQ108: 1314.121354 | AR108: 1026.394399 | AS108: 737.8261377 | AT108: 774.0023337 | AV108: 840.4655776 | AW108: 47.95449242 | AX108: 333.9988331 | AY108: 327.2683781 | AZ108: 1017.98133
A109: 1 | B109: =+B106+1 -> 82 | C109: CHEPEN | E109: NO ESTA ASIGNADO A MICRORED | F109: II-1 | G109: 00005299 | H109: HOSPITAL DE APOYO | I109: CHEPEN | J109: CHEPEN | K109: 50076.02432 | L109: 4899.527239 | M109: 798.2566944 | N109: 771.6103416 | O109: 805.6269621 | P109: 858.9196676 | Q109: 797.122807 | R109: 867.9907664 | S109: 726.8891482 | T109: 765.5892649 | U109: 795.8763127 | V109: 775.6849475 | W109: 774.0023337 | X109: 807.6546091 | Y109: 782.4154026 | Z109: 789.1458576 | AA109: 784.9393232 | AB109: 818.5915986 | AC109: 828.6872812 | AD109: 874.117853 | AE109: 741.1913652 | AF109: 695.7607935 | AG109: 3663.050175 | AH109: 3974.333722 | AI109: 3499.836639 | AJ109: 3372.7993 | AK109: 3228.935823 | AL109: 3308.859977 | AM109: 3069.928821 | AN109: 2810.806301 | AO109: 2375.850642 | AP109: 1833.207701 | AQ109: 1314.121354 | AR109: 1026.394399 | AS109: 737.8261377 | AT109: 774.0023337 | AV109: 840.4655776 | AW109: 47.95449242 | AX109: 333.9988331 | AY109: 327.2683781 | AZ109: 1017.98133
D110: 1 | K110: =SUM(M110:AT110) -> 30115.84223 | L110: 3008.341644 | M110: =SUM(M111:M113) -> 490.1348107 | N110: =SUM(N111:N113) -> 473.7737765 | O110: 494.6602031 | P110: 527.3822715 | Q110: 489.4385965 | R110: 532.9519852 | S110: 496.1108518 | T110: 479.4107351 | U110: 495.1236873 | V110: 525.3150525 | W110: 529.9976663 | X110: 524.3453909 | Y110: 507.5845974 | Z110: 506.8541424 | AA110: 508.0606768 | AB110: 531.4084014 | AC110: 503.3127188 | AD110: 540.882147 | AE110: 496.8086348 | AF110: 452.2392065 | AG110: 2316.949825 | AH110: 2546.666278 | AI110: 2179.163361 | AJ110: 2059.2007 | AK110: 1925.064177 | AL110: 1885.140023 | AM110: 1675.071179 | AN110: 1470.193699 | AO110: 1169.149358 | AP110: 907.7922987 | AQ110: 653.8786464 | AR110: 510.6056009 | AS110: 364.1738623 | AT110: 346.9976663 | AV110: 667.5344224 | AW110: 43.04550758 | AX110: 311.0011669 | AY110: 224.7316219 | AZ110: 556.0186698
A111: 1 | B111: =+B109+1 -> 83 | C111: CHEPEN | E111: SAN MARTIN DE PORRAS | F111: I-2 | G111: 00005300 | H111: PUESTO DE SALUD | I111: CHEQUEN | J111: CHEPEN | K111: 9814.212058 | L111: 1292.709141 | M111: 210.6149584 | N111: 203.5844875 | O111: 212.5595568 | P111: 226.6204986 | Q111: 210.3157895 | R111: 229.0138504 | S111: 137.1108518 | T111: 144.4107351 | U111: 150.1236873 | V111: 146.3150525 | W111: 145.9976663 | X111: 152.3453909 | Y111: 147.5845974 | Z111: 148.8541424 | AA111: 148.0606768 | AB111: 154.4084014 | AC111: 156.3127188 | AD111: 164.882147 | AE111: 139.8086348 | AF111: 131.2392065 | AG111: 690.949825 | AH111: 749.6662777 | AI111: 660.1633606 | AJ111: 636.2007001 | AK111: 609.0641774 | AL111: 624.1400233 | AM111: 579.0711785 | AN111: 530.1936989 | AO111: 448.1493582 | AP111: 345.7922987 | AQ111: 247.8786464 | AR111: 193.6056009 | AS111: 139.1738623 | AT111: 145.9976663 | AV111: 158.5344224 | AW111: 9.045507585 | AX111: 63.00116686 | AY111: 61.73162194 | AZ111: 192.0186698
A112: 2 | B112: =+B111+1 -> 84 | C112: CHEPEN | E112: SAN MARTIN DE PORRAS | F112: I-3 | G112: 00005301 | H112: CENTRO DE SALUD | I112: PACANGA | J112: PACANGA | K112: 4747.247713 | L112: 414.943675 | M112: 67.60480148 | N112: 65.34810711 | O112: 68.22899354 | P112: 72.74238227 | Q112: 67.50877193 | R112: 73.51061865 | S112: 85.27315914 | T112: 79.57244656 | U112: 81.94774347 | V112: 90.02375297 | W112: 91.21140143 | X112: 88.36104513 | Y112: 85.51068884 | Z112: 85.03562945 | AA112: 85.51068884 | AB112: 89.54869359 | AC112: 82.42280285 | AD112: 89.3111639 | AE112: 84.79809976 | AF112: 76.24703088 | AG112: 386.2232779 | AH112: 426.8408551 | AI112: 360.807601 | AJ112: 338.0047506 | AK112: 312.5890736 | AL112: 299.5249406 | AM112: 260.3325416 | AN112: 223.2779097 | AO112: 171.2589074 | AP112: 133.4916865 | AQ112: 96.43705463 | AR112: 75.29691211 | AS112: 53.44418052 | AT112: 47.74346793 | AV112: 120.9026128 | AW112: 8.076009501 | AX112: 58.90736342 | AY112: 38.71733967 | AZ112: 86.4608076
A113: 3 | B113: =+B112+1 -> 85 | C113: CHEPEN | E113: SAN MARTIN DE PORRAS | F113: I-3 | G113: 00005302 | H113: CENTRO DE SALUD | I113: PACANGUILLA | J113: PACANGA | K113: 15207.38479 | L113: 1300.688827 | M113: 211.9150508 | N113: 204.8411819 | O113: 213.8716528 | P113: 228.0193906 | Q113: 211.6140351 | R113: 230.4275162 | S113: 273.7268409 | T113: 255.4275534 | U113: 263.0522565 | V113: 288.976247 | W113: 292.7885986 | X113: 283.6389549 | Y113: 274.4893112 | Z113: 272.9643705 | AA113: 274.4893112 | AB113: 287.4513064 | AC113: 264.5771971 | AD113: 286.6888361 | AE113: 272.2019002 | AF113: 244.7529691 | AG113: 1239.776722 | AH113: 1370.159145 | AI113: 1158.192399 | AJ113: 1084.995249 | AK113: 1003.410926 | AL113: 961.4750594 | AM113: 835.6674584 | AN113: 716.7220903 | AO113: 549.7410926 | AP113: 428.5083135 | AQ113: 309.5629454 | AR113: 241.7030879 | AS113: 171.5558195 | AT113: 153.2565321 | AV113: 388.0973872 | AW113: 25.9239905 | AX113: 189.0926366 | AY113: 124.2826603 | AZ113: 277.5391924
D114: 2 | K114: =SUM(M114:AT114) -> 14132.23269 | L114: 854.232687 | M114: =SUM(M115:M117) -> 140.1080332 | N114: =SUM(N115:N117) -> 135.33241 | O114: 141.1523546 | P114: 148.7036011 | Q114: 138.9473684 | R114: 149.9889197 | S114: 203 | T114: 212 | U114: 224 | V114: 230 | W114: 228 | X114: 225 | Y114: 272 | Z114: 245 | AA114: 248 | AB114: 278 | AC114: 269 | AD114: 297 | AE114: 231 | AF114: 217 | AG114: 1063 | AH114: 1135 | AI114: 1024 | AJ114: 997 | AK114: 1054 | AL114: 955 | AM114: 812 | AN114: 726 | AO114: 630 | AP114: 493 | AQ114: 391 | AR114: 293 | AS114: 178 | AT114: 148 | AV114: 189 | AW114: 8 | AX114: 87 | AY114: 86 | AZ114: 215
A115: 1 | B115: =+B113+1 -> 86 | C115: CHEPEN | E115: SANTA ROSA DE LIMA | F115: I-3 | G115: 00005303 | H115: CENTRO DE SALUD CON CAMAS DE INTERNAMIENTO | I115: PUEBLO NUEVO | J115: PUEBLO NUEVO | K115: 8013.557051 | L115: 510.6999077 | M115: 83.20590951 | N115: 80.42843952 | O115: 83.97414589 | P115: 89.52908587 | Q115: 83.0877193 | R115: 90.47460757 | S115: 116 | T115: 121.1428571 | U115: 128 | V115: 131.4285714 | W115: 130.2857143 | X115: 128.5714286 | Y115: 155.4285714 | Z115: 140 | AA115: 141.7142857 | AB115: 158.8571429 | AC115: 153.7142857 | AD115: 169.7142857 | AE115: 132 | AF115: 124 | AG115: 607.4285714 | AH115: 648.5714286 | AI115: 585.1428571 | AJ115: 569.7142857 | AK115: 602.2857143 | AL115: 545.7142857 | AM115: 464 | AN115: 414.8571429 | AO115: 360 | AP115: 281.7142857 | AQ115: 223.4285714 | AR115: 167.4285714 | AS115: 101.7142857 | AT115: 84.57142857 | AV115: 108 | AW115: 4.571428571 | AX115: 49.71428571 | AY115: 49.14285714 | AZ115: 122.8571429
A116: 2 | B116: =+B115+1 -> 87 | C116: CHEPEN | E116: SANTA ROSA DE LIMA | F116: I-2 | G116: 00005305 | H116: PUESTO DE SALUD | I116: SANTA ROSA | J116: PUEBLO NUEVO | K116: 3717.389163 | L116: 160 | M116: 27 | N116: 26 | O116: 27 | P116: 27 | Q116: 26 | R116: 27 | S116: 55 | T116: 57.43842365 | U116: 60.68965517 | V116: 62.31527094 | W116: 61.77339901 | X116: 60.96059113 | Y116: 73.69458128 | Z116: 66.37931034 | AA116: 67.19211823 | AB116: 75.32019704 | AC116: 72.8817734 | AD116: 80.4679803 | AE116: 62.5862069 | AF116: 58.79310345 | AG116: 288.0049261 | AH116: 307.5123153 | AI116: 277.4384236 | AJ116: 270.1231527 | AK116: 285.5665025 | AL116: 258.7438424 | AM116: 220 | AN116: 196.6995074 | AO116: 170.6896552 | AP116: 133.5714286 | AQ116: 105.9359606 | AR116: 79.38423645 | AS116: 48.22660099 | AT116: 40.09852217 | AV116: 51.20689655 | AW116: 2.167487685 | AX116: 23.57142857 | AY116: 23.30049261 | AZ116: 58.25123153
A117: 3 | B117: =+B116+1 -> 88 | C117: CHEPEN | E117: SANTA ROSA DE LIMA | F117: I-2 | G117: 00005304 | H117: PUESTO DE SALUD | I117: SAN IDELFONSO | J117: PUEBLO NUEVO | K117: 2253.286474 | L117: 183.5327793 | M117: 29.90212373 | N117: 28.90397045 | O117: 30.17820868 | P117: 32.17451524 | Q117: 29.85964912 | R117: 32.5143121 | S117: 32 | T117: 33.41871921 | U117: 35.31034483 | V117: 36.25615764 | W117: 35.9408867 | X117: 35.4679803 | Y117: 42.87684729 | Z117: 38.62068966 | AA117: 39.09359606 | AB117: 43.8226601 | AC117: 42.40394089 | AD117: 46.81773399 | AE117: 36.4137931 | AF117: 34.20689655 | AG117: 167.5665025 | AH117: 178.9162562 | AI117: 161.4187192 | AJ117: 157.1625616 | AK117: 166.1477833 | AL117: 150.5418719 | AM117: 128 | AN117: 114.4433498 | AO117: 99.31034483 | AP117: 77.71428571 | AQ117: 61.63546798 | AR117: 46.18719212 | AS117: 28.0591133 | AT117: 23.33004926 | AV117: 29.79310345 | AW117: 1.261083744 | AX117: 13.71428571 | AY117: 13.55665025 | AZ117: 33.89162562
C118: GRAN CHIMU | D118: 4 | K118: =SUM(M118:AT118) -> 32242.32306 | L118: 2667.323064 | M118: =+M119+M122+M126+M135 -> 507.3420428 | N118: =+N119+N122+N126+N135 -> 451.0688836 | O118: 429.5358955 | P118: 445.9619952 | Q118: 419.0840808 | R118: 414.3301663 | S118: 520 | T118: 562 | U118: 549 | V118: 527 | W118: 578 | X118: 603 | Y118: 615 | Z118: 587 | AA118: 648 | AB118: 642 | AC118: 641 | AD118: 585 | AE118: 563 | AF118: 498 | AG118: 2586 | AH118: 2561 | AI118: 2218 | AJ118: 2071 | AK118: 1876 | AL118: 1955 | AM118: 1618 | AN118: 1509 | AO118: 1367 | AP118: 1156 | AQ118: 818 | AR118: 617 | AS118: 521 | AT118: =+AT119+AT122+AT126+AT135 -> 584 | AV118: 557 | AW118: 32 | AX118: 236 | AY118: 218 | AZ118: 685
D119: 1 | K119: =SUM(M119:AT119) -> 11768.93448 | L119: 711.9952494 | M119: =SUM(M120:M121) -> 135.3444181 | N119: =SUM(N120:N121) -> 120.4513064 | O119: 114.4418052 | P119: 119.4061758 | Q119: 111.567696 | R119: 110.783848 | S119: 173.9005525 | T119: 202.4088398 | U119: 191.0055249 | V119: 164.6353591 | W119: 189.5801105 | X119: 187.441989 | Y119: 202.4088398 | Z119: 195.281768 | AA119: 203.8342541 | AB119: 225.9281768 | AC119: 192.4309392 | AD119: 183.878453 | AE119: 206.6850829 | AF119: 191.718232 | AG119: 977.121547 | AH119: 997.0773481 | AI119: 898.7237569 | AJ119: 831.7292818 | AK119: 736.2265193 | AL119: 793.2430939 | AM119: 618.6298343 | AN119: 570.878453 | AO119: 531.679558 | AP119: 466.8232044 | AQ119: 302.9005525 | AR119: 240.1823204 | AS119: 189.5801105 | AT119: =SUM(AT120:AT121) -> 191.0055249 | AV119: 151.0939227 | AW119: 7.839779006 | AX119: 66.28176796 | AY119: 57.72928177 | AZ119: 235.1933702
A120: 1 | B120: =+B117+1 -> 89 | C120: GRAN CHIMU | E120: CASCAS | F120: II-1 | G120: 00005277 | H120: HOSPITAL | I120: CASCAS | J120: CASCAS | K120: 10262.66682 | L120: 660.2137767 | M120: 125.5011876 | N120: 111.6912114 | O120: 106.1187648 | P120: 110.7220903 | Q120: 103.4536817 | R120: 102.7268409 | S120: 153.679558 | T120: 178.8729282 | U120: 168.7955801 | V120: 145.4917127 | W120: 167.5359116 | X120: 165.6464088 | Y120: 178.8729282 | Z120: 172.5745856 | AA120: 180.1325967 | AB120: 199.6574586 | AC120: 170.0552486 | AD120: 162.4972376 | AE120: 182.6519337 | AF120: 169.4254144 | AG120: 863.5027624 | AH120: 881.1381215 | AI120: 794.2209945 | AJ120: 735.0165746 | AK120: 650.6187845 | AL120: 701.0055249 | AM120: 546.6961326 | AN120: 504.4972376 | AO120: 469.8563536 | AP120: 412.5414365 | AQ120: 267.679558 | AR120: 212.2541436 | AS120: 167.5359116 | AT120: 168.7955801 | AV120: 133.5248619 | AW120: 6.928176796 | AX120: 58.57458564 | AY120: 51.01657459 | AZ120: 207.8453039
A121: 2 | B121: =+B120+1 -> 90 | C121: GRAN CHIMU | E121: CASCAS | F121: I-2 | G121: 00005279 | H121: PUESTO DE SALUD | I121: PUNTA MORENO | J121: CASCAS | K121: 1315.262136 | L121: 51.78147268 | M121: 9.843230404 | N121: 8.760095012 | O121: 8.32304038 | P121: 8.684085511 | Q121: 8.114014252 | R121: 8.057007126 | S121: 20.22099448 | T121: 23.5359116 | U121: 22.20994475 | V121: 19.14364641 | W121: 22.0441989 | X121: 21.79558011 | Y121: 23.5359116 | Z121: 22.70718232 | AA121: 23.70165746 | AB121: 26.27071823 | AC121: 22.37569061 | AD121: 21.38121547 | AE121: 24.03314917 | AF121: 22.29281768 | AG121: 113.6187845 | AH121: 115.9392265 | AI121: 104.5027624 | AJ121: 96.71270718 | AK121: 85.60773481 | AL121: 92.23756906 | AM121: 71.93370166 | AN121: 66.38121547 | AO121: 61.82320442 | AP121: 54.28176796 | AQ121: 35.22099448 | AR121: 27.9281768 | AS121: 22.0441989 | AT121: 22.20994475 | AV121: 17.56906077 | AW121: 0.9116022099 | AX121: 7.70718232 | AY121: 6.712707182 | AZ121: 27.3480663
D122: 2 | K122: =SUM(M122:AT122) -> 2325.869604 | L122: 198.6078385 | M122: =SUM(M123:M125) -> 37.75371021 | N122: =SUM(N123:N125) -> 33.59934442 | O122: 31.92302138 | P122: 33.30780998 | Q122: 31.12130166 | R122: 30.90265083 | S122: 31.04912401 | T122: 34.44280316 | U122: 39.25352113 | V122: 36.66678117 | W122: 41.59292339 | X122: 47.94228787 | Y122: 43.9034696 | Z122: 32.17863277 | AA122: 51.44520783 | AB122: 39.87598763 | AC122: 50.48883545 | AD122: 39.14428032 | AE122: 34.85194091 | AF122: 26.98144967 | AG122: 148.6839574 | AH122: 173.0261079 | AI122: 143.8495362 | AJ122: 138.0649261 | AK122: 129.3184473 | AL122: 142.1954655 | AM122: 136.1861903 | AN122: 128.3445551 | AO122: 107.5166609 | AP122: 98.84541395 | AQ122: 74.69288904 | AR122: 61.98282377 | AS122: 42.23806252 | AT122: 52.49948471 | AV122: 43.18309859 | AW122: 2.477499141 | AX122: 13.24596359 | AY122: 19.45104775 | AZ122: 59.06733081
A123: 1 | B123: =+B121+1 -> 91 | C123: GRAN CHIMU | E123: COMPIN | F123: I-2 | G123: 00005286 | H123: PUESTO DE SALUD | I123: COMPIN | J123: MARMOT | K123: 999.9380685 | L123: 110.0356295 | M123: 20.91686461 | N123: 18.6152019 | O123: 17.68646081 | P123: 18.45368171 | Q123: 17.24228029 | R123: 17.12114014 | S123: 13.6097561 | T123: 14.04878049 | U123: 18 | V123: 14.92682927 | W123: 17.12195122 | X123: 18.87804878 | Y123: 16.68292683 | Z123: 11.85365854 | AA123: 21.51219512 | AB123: 16.24390244 | AC123: 20.63414634 | AD123: 15.80487805 | AE123: 13.6097561 | AF123: 11.85365854 | AG123: 57.95121951 | AH123: 73.31707317 | AI123: 60.14634146 | AJ123: 57.51219512 | AK123: 57.51219512 | AL123: 64.09756098 | AM123: 61.02439024 | AN123: 58.82926829 | AO123: 47.85365854 | AP123: 44.7804878 | AQ123: 34.24390244 | AR123: 28.97560976 | AS123: 18.87804878 | AT123: 22.82926829 | AV123: 18 | AW123: 0.8780487805 | AX123: 4.829268293 | AY123: 8.780487805 | AZ123: 28.97560976
A124: 2 | B124: =+B123+1 -> 92 | C124: GRAN CHIMU | E124: COMPIN | F124: I-1 | G124: 00005285 | H124: PUESTO DE SALUD | I124: CORMOT | J124: MARMOT | K124: 610.6409768 | L124: 17.37268409 | M124: 3.3024038 | N124: 2.939011876 | O124: 2.792380048 | P124: 2.913510689 | Q124: 2.722251781 | R124: 2.703125891 | S124: 9.073170732 | T124: 9.365853659 | U124: 12 | V124: 9.951219512 | W124: 11.41463415 | X124: 12.58536585 | Y124: 11.12195122 | Z124: 7.902439024 | AA124: 14.34146341 | AB124: 10.82926829 | AC124: 13.75609756 | AD124: 10.53658537 | AE124: 9.073170732 | AF124: 7.902439024 | AG124: 38.63414634 | AH124: 48.87804878 | AI124: 40.09756098 | AJ124: 38.34146341 | AK124: 38.34146341 | AL124: 42.73170732 | AM124: 40.68292683 | AN124: 39.2195122 | AO124: 31.90243902 | AP124: 29.85365854 | AQ124: 22.82926829 | AR124: 19.31707317 | AS124: 12.58536585 | AT124: 15.2195122 | AV124: 12 | AW124: 0.5853658537 | AX124: 3.219512195 | AY124: 5.853658537 | AZ124: 19.31707317
A125: 3 | B125: =+B124+1 -> 93 | C125: GRAN CHIMU | E125: COMPIN | F125: I-1 | G125: 00009814 | H125: PUESTO DE SALUD | I125: HUAYO | J125: LUCMA | K125: 662.7910742 | L125: 71.19952494 | M125: 13.53444181 | N125: 12.04513064 | O125: 11.44418052 | P125: 11.94061758 | Q125: 11.1567696 | R125: 11.0783848 | S125: 8.366197183 | T125: 11.02816901 | U125: 9.253521127 | V125: 11.78873239 | W125: 13.05633803 | X125: 16.47887324 | Y125: 16.09859155 | Z125: 12.42253521 | AA125: 15.5915493 | AB125: 12.8028169 | AC125: 16.09859155 | AD125: 12.8028169 | AE125: 12.16901408 | AF125: 7.225352113 | AG125: 52.09859155 | AH125: 50.83098592 | AI125: 43.6056338 | AJ125: 42.21126761 | AK125: 33.46478873 | AL125: 35.36619718 | AM125: 34.47887324 | AN125: 30.29577465 | AO125: 27.76056338 | AP125: 24.21126761 | AQ125: 17.61971831 | AR125: 13.69014085 | AS125: 10.77464789 | AT125: 14.45070423 | AV125: 13.18309859 | AW125: 1.014084507 | AX125: 5.197183099 | AY125: 4.816901408 | AZ125: 10.77464789
D126: 3 | K126: =SUM(M126:AT126) -> 10403.88958 | L126: 826.0127316 | M126: =SUM(M127:M134) -> 157.324152 | N126: =SUM(N127:N134) -> 139.5664751 | O126: 133.5748219 | P126: 137.1624276 | Q126: 130.5558195 | R126: 127.8290356 | S126: 145.6970301 | T126: 174.7172193 | U126: 160.740954 | V126: 165.8056441 | W126: 185.9886428 | X126: 209.6157232 | Y126: 211.6337984 | Z126: 181.6713358 | AA126: 212.960059 | AB126: 199.2736799 | AC126: 211.6969918 | AD126: 182.2167876 | AE126: 183.3312397 | AF126: 142.1146895 | AG126: 824.4100645 | AH126: 828.9085201 | AI126: 725.0794015 | AJ126: 684.9183669 | AK126: 586.598746 | AL126: 625.0344945 | AM126: 542.4534365 | AN126: 492.830884 | AO126: 450.5942002 | AP126: 393.5409625 | AQ126: 273.8915884 | AR126: 214.5474306 | AS126: 169.0261384 | AT126: 198.5788228 | AV126: 173.5014219 | AW126: 11.27553622 | AX126: 70.37646007 | AY126: 66.07715551 | AZ126: 197.733311
A127: 1 | B127: =+B125+1 -> 94 | C127: GRAN CHIMU | E127: EL MOLINO | F127: I-3 | G127: 00005280 | H127: CENTRO DE SALUD | I127: EL MOLINO | J127: CASCAS | K127: 3766.513812 | L127: 313 | M127: 60 | N127: 53 | O127: 50 | P127: 53 | Q127: 49 | R127: 48 | S127: 55.27071823 | T127: 64.33149171 | U127: 60.70718232 | V127: 52.32596685 | W127: 60.25414365 | X127: 59.57458564 | Y127: 64.33149171 | Z127: 62.06629834 | AA127: 64.78453039 | AB127: 71.80662983 | AC127: 61.16022099 | AD127: 58.44198895 | AE127: 65.69060773 | AF127: 60.93370166 | AG127: 310.558011 | AH127: 316.9005525 | AI127: 285.640884 | AJ127: 264.3480663 | AK127: 233.9944751 | AL127: 252.1160221 | AM127: 196.6187845 | AN127: 181.441989 | AO127: 168.9834254 | AP127: 148.3701657 | AQ127: 96.27071823 | AR127: 76.33701657 | AS127: 60.25414365 | AT127: 60.70718232 | AV127: 48.02209945 | AW127: 2.491712707 | AX127: 21.06629834 | AY127: 18.3480663 | AZ127: 74.75138122
A128: 2 | B128: =+B127+1 -> 95 | C128: GRAN CHIMU | E128: EL MOLINO | F128: I-2 | G128: 00005278 | H128: PUESTO DE SALUD | I128: SAN FELIPE | J128: CASCAS | K128: 997.7520111 | L128: 71.19952494 | M128: 13.53444181 | N128: 12.04513064 | O128: 11.44418052 | P128: 11.94061758 | Q128: 11.1567696 | R128: 11.0783848 | S128: 14.82872928 | T128: 17.25966851 | U128: 16.28729282 | V128: 14.03867403 | W128: 16.16574586 | X128: 15.98342541 | Y128: 17.25966851 | Z128: 16.6519337 | AA128: 17.38121547 | AB128: 19.26519337 | AC128: 16.40883978 | AD128: 15.67955801 | AE128: 17.62430939 | AF128: 16.3480663 | AG128: 83.32044199 | AH128: 85.02209945 | AI128: 76.63535912 | AJ128: 70.92265193 | AK128: 62.77900552 | AL128: 67.64088398 | AM128: 52.75138122 | AN128: 48.67955801 | AO128: 45.33701657 | AP128: 39.80662983 | AQ128: 25.82872928 | AR128: 20.48066298 | AS128: 16.16574586 | AT128: 16.28729282 | AV128: 12.8839779 | AW128: 0.6685082873 | AX128: 5.651933702 | AY128: 4.922651934 | AZ128: 20.05524862
A129: 3 | B129: 96 | C129: GRAN CHIMU | E129: EL MOLINO | F129: I-3 | G129: 00005281 | H129: CENTRO DE SALUD | I129: LUCMA | J129: LUCMA | K129: 2666.120772 | L129: 168.2897862 | M129: 31.99049881 | N129: 28.47030879 | O129: 27.04988124 | P129: 28.22327791 | Q129: 26.37054632 | R129: 26.18527316 | S129: 35.32394366 | T129: 46.56338028 | U129: 39.07042254 | V129: 49.77464789 | W129: 55.12676056 | X129: 69.57746479 | Y129: 67.97183099 | Z129: 52.45070423 | AA129: 65.83098592 | AB129: 54.05633803 | AC129: 67.97183099 | AD129: 54.05633803 | AE129: 51.38028169 | AF129: 30.50704225 | AG129: 219.971831 | AH129: 214.6197183 | AI129: 184.1126761 | AJ129: 178.2253521 | AK129: 141.2957746 | AL129: 149.3239437 | AM129: 145.5774648 | AN129: 127.915493 | AO129: 117.2112676 | AP129: 102.2253521 | AQ129: 74.3943662 | AR129: 57.8028169 | AS129: 45.49295775 | AT129: 61.01408451 | AV129: 55.66197183 | AW129: 4.281690141 | AX129: 21.94366197 | AY129: 20.33802817 | AZ129: 45.49295775
A130: 4 | B130: 97 | C130: GRAN CHIMU | E130: EL MOLINO | F130: I-1 | G130: 00005283 | H130: PUESTO DE SALUD | I130: CHUQUILLANQUI | J130: LUCMA | K130: 839.7887324 | L130: 51 | M130: 9 | N130: 8 | O130: 9 | P130: 8 | Q130: 8 | R130: 9 | S130: 11.15492958 | T130: 14.70422535 | U130: 12.33802817 | V130: 15.71830986 | W130: 17.4084507 | X130: 21.97183099 | Y130: 21.46478873 | Z130: 16.56338028 | AA130: 20.78873239 | AB130: 17.07042254 | AC130: 21.46478873 | AD130: 17.07042254 | AE130: 16.22535211 | AF130: 9.633802817 | AG130: 69.46478873 | AH130: 67.77464789 | AI130: 58.14084507 | AJ130: 56.28169014 | AK130: 44.61971831 | AL130: 47.15492958 | AM130: 45.97183099 | AN130: 40.3943662 | AO130: 37.01408451 | AP130: 32.28169014 | AQ130: 23.49295775 | AR130: 18.25352113 | AS130: 14.36619718 | AT130: 19.26760563 | AV130: 17.57746479 | AW130: 1.352112676 | AX130: 6.929577465 | AY130: 6.422535211 | AZ130: 14.36619718
A131: 5 | B131: 98 | C131: GRAN CHIMU | E131: EL MOLINO | F131: I-1 | G131: 00005282 | H131: PUESTO DE SALUD | I131: LA BANDA | J131: LUCMA | K131: 275.8749456 | L131: 12.94536817 | M131: 2.460807601 | N131: 2.190023753 | O131: 2.080760095 | P131: 2.171021378 | Q131: 2.028503563 | R131: 2.014251781 | S131: 3.718309859 | T131: 4.901408451 | U131: 4.112676056 | V131: 5.23943662 | W131: 5.802816901 | X131: 7.323943662 | Y131: 7.154929577 | Z131: 5.521126761 | AA131: 6.929577465 | AB131: 5.690140845 | AC131: 7.154929577 | AD131: 5.690140845 | AE131: 5.408450704 | AF131: 3.211267606 | AG131: 23.15492958 | AH131: 22.5915493 | AI131: 19.38028169 | AJ131: 18.76056338 | AK131: 14.87323944 | AL131: 15.71830986 | AM131: 15.32394366 | AN131: 13.46478873 | AO131: 12.33802817 | AP131: 10.76056338 | AQ131: 7.830985915 | AR131: 6.084507042 | AS131: 4.788732394 | AT131: 6.422535211 | AV131: 5.85915493 | AW131: 0.4507042254 | AX131: 2.309859155 | AY131: 2.14084507 | AZ131: 4.788732394
A132: 6 | B132: 99 | C132: GRAN CHIMU | E132: EL MOLINO | F132: I-2 | G132: 00016831 | H132: PUESTO DE SALUD | I132: HUANCAY | J132: MARMOT | K132: 621.8292683 | L132: 78 | M132: 15 | N132: 14 | O132: 12 | P132: 12 | Q132: 13 | R132: 12 | S132: 8.317073171 | T132: 8.585365854 | U132: 11 | V132: 9.12195122 | W132: 10.46341463 | X132: 11.53658537 | Y132: 10.19512195 | Z132: 7.243902439 | AA132: 13.14634146 | AB132: 9.926829268 | AC132: 12.6097561 | AD132: 9.658536585 | AE132: 8.317073171 | AF132: 7.243902439 | AG132: 35.41463415 | AH132: 44.80487805 | AI132: 36.75609756 | AJ132: 35.14634146 | AK132: 35.14634146 | AL132: 39.17073171 | AM132: 37.29268293 | AN132: 35.95121951 | AO132: 29.24390244 | AP132: 27.36585366 | AQ132: 20.92682927 | AR132: 17.70731707 | AS132: 11.53658537 | AT132: 13.95121951 | AV132: 11 | AW132: 0.5365853659 | AX132: 2.951219512 | AY132: 5.365853659 | AZ132: 17.70731707
A133: 7 | B133: 100 | C133: GRAN CHIMU | E133: EL MOLINO | F133: I-2 | G133: 00016937 | H133: PUESTO DE SALUD | I133: RECUAYCITO | J133: LUCMA | K133: 631.8591549 | L133: 106 | M133: 21 | N133: 18 | O133: 17 | P133: 18 | Q133: 16 | R133: 16 | S133: 7.436619718 | T133: 9.802816901 | U133: 8.225352113 | V133: 10.47887324 | W133: 11.6056338 | X133: 14.64788732 | Y133: 14.30985915 | Z133: 11.04225352 | AA133: 13.85915493 | AB133: 11.38028169 | AC133: 14.30985915 | AD133: 11.38028169 | AE133: 10.81690141 | AF133: 6.422535211 | AG133: 46.30985915 | AH133: 45.18309859 | AI133: 38.76056338 | AJ133: 37.52112676 | AK133: 29.74647887 | AL133: 31.43661972 | AM133: 30.64788732 | AN133: 26.92957746 | AO133: 24.67605634 | AP133: 21.52112676 | AQ133: 15.66197183 | AR133: 12.16901408 | AS133: 9.577464789 | AT133: 12.84507042 | AV133: 11.71830986 | AW133: 0.9014084507 | AX133: 4.61971831 | AY133: 4.281690141 | AZ133: 9.577464789
A134: 8 | B134: 101 | C134: GRAN CHIMU | E134: EL MOLINO | F134: I-1 | G134: 00005284 | H134: PUESTO DE SALUD | I134: SIMBRON | J134: SAYAPULLO | K134: 405.5720642 | L134: 25.57805226 | M134: 4.3384038 | N134: 3.861011876 | O134: 5 | P134: 3.827510689 | Q134: 5 | R134: 3.551125891 | S134: 9.646706587 | T134: 8.568862275 | U134: 9 | V134: 9.107784431 | W134: 9.161676647 | X134: 9 | Y134: 8.946107784 | Z134: 10.13173653 | AA134: 10.23952096 | AB134: 10.07784431 | AC134: 10.61676647 | AD134: 10.23952096 | AE134: 7.868263473 | AF134: 7.814371257 | AG134: 36.21556886 | AH134: 32.01197605 | AI134: 25.65269461 | AJ134: 23.71257485 | AK134: 24.14371257 | AL134: 22.47305389 | AM134: 18.26946108 | AN134: 18.05389222 | AO134: 15.79041916 | AP134: 11.20958084 | AQ134: 9.48502994 | AR134: 5.71257485 | AS134: 6.844311377 | AT134: 8.083832335 | AV134: 10.77844311 | AW134: 0.5928143713 | AX134: 4.904191617 | AY134: 4.25748503 | AZ134: 10.99401198
D135: 4 | K135: =SUM(M135:AT135) -> 7743.6294 | L135: 930.7072447 | M135: =SUM(M136:M138) -> 176.9197625 | N135: =SUM(N136:N138) -> 157.4517577 | O135: 149.596247 | P135: 156.0855819 | Q135: 145.8392637 | R135: 144.8146318 | S135: 169.3532934 | T135: 150.4311377 | U135: 158 | V135: 159.8922156 | W135: 160.8383234 | X135: 158 | Y135: 157.0538922 | Z135: 177.8682635 | AA135: 179.760479 | AB135: 176.9221557 | AC135: 186.3832335 | AD135: 179.760479 | AE135: 138.1317365 | AF135: 137.1856287 | AG135: 635.7844311 | AH135: 561.988024 | AI135: 450.3473054 | AJ135: 416.2874251 | AK135: 423.8562874 | AL135: 394.5269461 | AM135: 320.7305389 | AN135: 316.9461078 | AO135: 277.2095808 | AP135: 196.7904192 | AQ135: 166.5149701 | AR135: 100.2874251 | AS135: 120.1556886 | AT135: 141.9161677 | AV135: 189.2215569 | AW135: 10.40718563 | AX135: 86.09580838 | AY135: 74.74251497 | AZ135: 193.005988
A136: 1 | B136: =+B134+1 -> 102 | C136: GRAN CHIMU | E136: SAYAPULLO | F136: I-3 | G136: 00005287 | H136: CENTRO DE SALUD | I136: SAYAPULLO | J136: SAYAPULLO | K136: =SUM(M136:AS136) -> 3817.568848 | L136: =+SUM(M136:R136) -> 524.2874109 | M136: 99.66270784 | N136: 88.695962 | O136: 84.27078385 | P136: 87.9263658 | Q136: 82.1543943 | R136: 81.57719715 | S136: 83.60479042 | T136: 74.26347305 | U136: 78 | V136: 78.93413174 | W136: 79.4011976 | X136: 78 | Y136: 77.53293413 | Z136: 87.80838323 | AA136: 88.74251497 | AB136: 87.34131737 | AC136: 92.01197605 | AD136: 88.74251497 | AE136: 68.19161677 | AF136: 67.7245509 | AG136: 313.8682635 | AH136: 277.4371257 | AI136: 222.3233533 | AJ136: 205.508982 | AK136: 209.245509 | AL136: 194.7664671 | AM136: 158.3353293 | AN136: 156.4670659 | AO136: 136.8502994 | AP136: 97.1497006 | AQ136: 82.20359281 | AR136: 49.50898204 | AS136: 59.31736527 | AT136: 70.05988024 | AV136: 93.41317365 | AW136: 5.137724551 | AX136: 42.50299401 | AY136: 36.89820359 | AZ136: 95.28143713
A137: 2 | B137: =+B136+1 -> 103 | C137: GRAN CHIMU | E137: SAYAPULLO | F137: I-2 | G137: 00005288 | H137: PUESTO DE SALUD | I137: EL PORVENIR | J137: SAYAPULLO | K137: 1774.436916 | L137: 212.2393112 | M137: 40.34494062 | N137: 35.90543943 | O137: 34.11406176 | P137: 35.59389549 | Q137: 33.25731591 | R137: 33.02365796 | S137: 39.65868263 | T137: 35.22754491 | U137: 37 | V137: 37.44311377 | W137: 37.66467066 | X137: 37 | Y137: 36.77844311 | Z137: 41.65269461 | AA137: 42.09580838 | AB137: 41.43113772 | AC137: 43.64670659 | AD137: 42.09580838 | AE137: 32.34730539 | AF137: 32.1257485 | AG137: 148.8862275 | AH137: 131.6047904 | AI137: 105.4610778 | AJ137: 97.48502994 | AK137: 99.25748503 | AL137: 92.38922156 | AM137: 75.10778443 | AN137: 74.22155689 | AO137: 64.91616766 | AP137: 46.08383234 | AQ137: 38.99401198 | AR137: 23.48502994 | AS137: 28.13772455 | AT137: 33.23353293 | AV137: 44.31137725 | AW137: 2.437125749 | AX137: 20.16167665 | AY137: 17.50299401 | AZ137: 45.19760479
A138: 3 | B138: =+B137+1 -> 104 | C138: GRAN CHIMU | E138: SAYAPULLO | F138: I-2 | G138: 00006962 | H138: PUESTO DE SALUD | I138: LA COLPA | J138: SAYAPULLO | K138: 2009.707469 | L138: 194.1805226 | M138: 36.91211401 | N138: 32.85035629 | O138: 31.21140143 | P138: 32.56532067 | Q138: 30.42755344 | R138: 30.21377672 | S138: 46.08982036 | T138: 40.94011976 | U138: 43 | V138: 43.51497006 | W138: 43.77245509 | X138: 43 | Y138: 42.74251497 | Z138: 48.40718563 | AA138: 48.92215569 | AB138: 48.1497006 | AC138: 50.7245509 | AD138: 48.92215569 | AE138: 37.59281437 | AF138: 37.33532934 | AG138: 173.0299401 | AH138: 152.9461078 | AI138: 122.5628743 | AJ138: 113.2934132 | AK138: 115.3532934 | AL138: 107.3712575 | AM138: 87.28742515 | AN138: 86.25748503 | AO138: 75.44311377 | AP138: 53.55688623 | AQ138: 45.31736527 | AR138: 27.29341317 | AS138: 32.7005988 | AT138: 38.62275449 | AV138: 51.49700599 | AW138: 2.832335329 | AX138: 23.43113772 | AY138: 20.34131737 | AZ138: 52.52694611
C139: JULCAN | D139: 3 | K139: =SUM(M139:AT139) -> 37954.92105 | L139: 3515.921053 | M139: =+M140+M146+M149+M157 -> 660 | N139: =+N140+N146+N149+N157 -> 605.5 | O139: 556.7631579 | P139: 561.6052632 | Q139: 549 | R139: 583.0526316 | S139: 626 | T139: 708 | U139: 679 | V139: 624 | W139: 649 | X139: 678 | Y139: 790 | Z139: 785 | AA139: 733 | AB139: 808 | AC139: 889 | AD139: 785 | AE139: 756 | AF139: 660 | AG139: 3296 | AH139: 3341 | AI139: 2536 | AJ139: 2460 | AK139: 2133 | AL139: 2133 | AM139: 1931 | AN139: 1643 | AO139: 1203 | AP139: 1029 | AQ139: 867 | AR139: 699 | AS139: 532 | AT139: =+AT140+AT146+AT149+AT157 -> 466 | AV139: 773 | AW139: 35 | AX139: 329 | AY139: 305 | AZ139: 1030
D140: 1 | K140: =SUM(M140:AT140) -> 7478.25 | L140: 661.25 | M140: =SUM(M141:M145) -> 124.3571429 | N140: =SUM(N141:N145) -> 114.1785714 | O140: 104.6071429 | P140: 105.6785714 | Q140: 103 | R140: 109.4285714 | S140: 103 | T140: 114 | U140: 106 | V140: 110 | W140: 126 | X140: 124 | Y140: 149 | Z140: 171 | AA140: 146 | AB140: 148 | AC140: 173 | AD140: 150 | AE140: 148 | AF140: 131 | AG140: 622 | AH140: 731 | AI140: 525 | AJ140: 500 | AK140: 464 | AL140: 416 | AM140: 372 | AN140: 361 | AO140: 228 | AP140: 173 | AQ140: 168 | AR140: 137 | AS140: 112 | AT140: =SUM(AT141:AT145) -> 109 | AV140: 164 | AW140: 5 | AX140: 62 | AY140: 63 | AZ140: 225
A141: 1 | B141: =+B138+1 -> 105 | C141: JULCAN | E141: CALAMARCA | F141: I-4 | G141: 00005308 | H141: CENTRO DE SALUD CON CAMAS DE INTERNAMIENTO | I141: CALAMARCA | J141: CALAMARCA | K141: 2711.956811 | L141: 186.5921053 | M141: 35.21428571 | N141: 32.10714286 | O141: 29.4906015 | P141: 29.81766917 | Q141: 29 | R141: 30.96240602 | S141: 38.77647059 | T141: 42.91764706 | U141: 39.90588235 | V141: 41.41176471 | W141: 47.43529412 | X141: 46.68235294 | Y141: 56.09411765 | Z141: 64.37647059 | AA141: 54.96470588 | AB141: 55.71764706 | AC141: 65.12941176 | AD141: 56.47058824 | AE141: 55.71764706 | AF141: 49.31764706 | AG141: 234.1647059 | AH141: 275.2 | AI141: 197.6470588 | AJ141: 188.2352941 | AK141: 174.6823529 | AL141: 156.6117647 | AM141: 140.0470588 | AN141: 135.9058824 | AO141: 85.83529412 | AP141: 65.12941176 | AQ141: 63.24705882 | AR141: 51.57647059 | AS141: 42.16470588 | AT141: 41.03529412 | AV141: 61.74117647 | AW141: 1.882352941 | AX141: 23.34117647 | AY141: 23.71764706 | AZ141: 84.70588235
A142: 2 | B142: =+B141+1 -> 106 | C142: JULCAN | E142: CALAMARCA | F142: I-3 | G142: 00005309 | H142: CENTRO DE SALUD | I142: SICCHAL | J142: CALAMARCA | K142: 2375.276471 | L142: 244.5 | M142: 46.14285714 | N142: 42.07142857 | O142: 38.64285714 | P142: 39.07142857 | Q142: 38 | R142: 40.57142857 | S142: 32.71764706 | T142: 36.21176471 | U142: 33.67058824 | V142: 34.94117647 | W142: 40.02352941 | X142: 39.38823529 | Y142: 47.32941176 | Z142: 54.31764706 | AA142: 46.37647059 | AB142: 47.01176471 | AC142: 54.95294118 | AD142: 47.64705882 | AE142: 47.01176471 | AF142: 41.61176471 | AG142: 197.5764706 | AH142: 232.2 | AI142: 166.7647059 | AJ142: 158.8235294 | AK142: 147.3882353 | AL142: 132.1411765 | AM142: 118.1647059 | AN142: 114.6705882 | AO142: 72.42352941 | AP142: 54.95294118 | AQ142: 53.36470588 | AR142: 43.51764706 | AS142: 35.57647059 | AT142: 34.62352941 | AV142: 52.09411765 | AW142: 1.588235294 | AX142: 19.69411765 | AY142: 20.01176471 | AZ142: 71.47058824
A143: 3 | B143: =+B142+1 -> 107 | C143: JULCAN | E143: CALAMARCA | F143: I-2 | G143: 00007247 | H143: PUESTO DE SALUD | I143: BARRO NEGRO | J143: CALAMARCA | K143: 668.2393189 | L143: 115.8157895 | M143: 21.85714286 | N143: 19.92857143 | O143: 18.30451128 | P143: 18.5075188 | Q143: 18 | R143: 19.21804511 | S143: 8.482352941 | T143: 9.388235294 | U143: 8.729411765 | V143: 9.058823529 | W143: 10.37647059 | X143: 10.21176471 | Y143: 12.27058824 | Z143: 14.08235294 | AA143: 12.02352941 | AB143: 12.18823529 | AC143: 14.24705882 | AD143: 12.35294118 | AE143: 12.18823529 | AF143: 10.78823529 | AG143: 51.22352941 | AH143: 60.2 | AI143: 43.23529412 | AJ143: 41.17647059 | AK143: 38.21176471 | AL143: 34.25882353 | AM143: 30.63529412 | AN143: 29.72941176 | AO143: 18.77647059 | AP143: 14.24705882 | AQ143: 13.83529412 | AR143: 11.28235294 | AS143: 9.223529412 | AT143: 8.976470588 | AV143: 13.50588235 | AW143: 0.4117647059 | AX143: 5.105882353 | AY143: 5.188235294 | AZ143: 18.52941176
A144: 4 | B144: =+B143+1 -> 108 | C144: JULCAN | E144: CALAMARCA | F144: I-1 | G144: 00007248 | H144: PUESTO DE SALUD | I144: CHAZKA | J144: CALAMARCA | K144: 760.2588235 | L144: 50 | M144: 9 | N144: 9 | O144: 8 | P144: 8 | Q144: 8 | R144: 8 | S144: 10.90588235 | T144: 12.07058824 | U144: 11.22352941 | V144: 11.64705882 | W144: 13.34117647 | X144: 13.12941176 | Y144: 15.77647059 | Z144: 18.10588235 | AA144: 15.45882353 | AB144: 15.67058824 | AC144: 18.31764706 | AD144: 15.88235294 | AE144: 15.67058824 | AF144: 13.87058824 | AG144: 65.85882353 | AH144: 77.4 | AI144: 55.58823529 | AJ144: 52.94117647 | AK144: 49.12941176 | AL144: 44.04705882 | AM144: 39.38823529 | AN144: 38.22352941 | AO144: 24.14117647 | AP144: 18.31764706 | AQ144: 17.78823529 | AR144: 14.50588235 | AS144: 11.85882353 | AT144: 11.54117647 | AV144: 17.36470588 | AW144: 0.5294117647 | AX144: 6.564705882 | AY144: 6.670588235 | AZ144: 23.82352941
A145: 5 | B145: =+B144+1 -> 109 | C145: JULCAN | E145: CALAMARCA | F145: I-1 | G145: 00016424 | H145: PUESTO DE SALUD | I145: HUAGAL | J145: CALAMARCA | K145: 853.5185759 | L145: 64.34210526 | M145: 12.14285714 | N145: 11.07142857 | O145: 10.16917293 | P145: 10.28195489 | Q145: 10 | R145: 10.67669173 | S145: 12.11764706 | T145: 13.41176471 | U145: 12.47058824 | V145: 12.94117647 | W145: 14.82352941 | X145: 14.58823529 | Y145: 17.52941176 | Z145: 20.11764706 | AA145: 17.17647059 | AB145: 17.41176471 | AC145: 20.35294118 | AD145: 17.64705882 | AE145: 17.41176471 | AF145: 15.41176471 | AG145: 73.17647059 | AH145: 86 | AI145: 61.76470588 | AJ145: 58.82352941 | AK145: 54.58823529 | AL145: 48.94117647 | AM145: 43.76470588 | AN145: 42.47058824 | AO145: 26.82352941 | AP145: 20.35294118 | AQ145: 19.76470588 | AR145: 16.11764706 | AS145: 13.17647059 | AT145: 12.82352941 | AV145: 19.29411765 | AW145: 0.5882352941 | AX145: 7.294117647 | AY145: 7.411764706 | AZ145: 26.47058824
K146: =SUM(M146:AT146) -> 6993.770614 | L146: 701.3289474 | M146: =SUM(M147:M148) -> 132.3571429 | N146: =SUM(N147:N148) -> 120.6785714 | O146: 110.843985 | P146: 112.0733083 | Q146: 109 | R146: 116.3759398 | S146: 145.9166667 | T146: 164.8 | U146: 138.1916667 | V146: 107.2916667 | W146: 120.1666667 | X146: 117.5916667 | Y146: 158.7916667 | Z146: 144.2 | AA146: 146.775 | AB146: 157.9333333 | AC146: 156.2166667 | AD146: 164.8 | AE146: 147.6333333 | AF146: 130.4666667 | AG146: 675.5083333 | AH146: 604.2666667 | AI146: 466.075 | AJ146: 461.7833333 | AK146: 354.4916667 | AL146: 385.3916667 | AM146: 310.7166667 | AN146: 285.825 | AO146: 206.8583333 | AP146: 162.225 | AQ146: 128.75 | AR146: 102.1416667 | AS146: 90.125 | AT146: 57.50833333 | AV146: 171.6666667 | AW146: 8.583333333 | AX146: 70.38333333 | AY146: 60.08333333 | AZ146: 216.3
A147: 1 | B147: =+B145+1 -> 110 | C147: JULCAN | E147: No pertenece a ninguna MR | F147: I-3 | G147: 00005310 | H147: CENTRO DE SALUD | I147: CARABAMBA | J147: CARABAMBA | K147: 6352.857018 | L147: 662.7236842 | M147: 125.0714286 | N147: 114.0357143 | O147: 104.7424812 | P147: 105.9041353 | Q147: 103 | R147: 109.9699248 | S147: 133.1666667 | T147: 150.4 | U147: 126.1166667 | V147: 97.91666667 | W147: 109.6666667 | X147: 107.3166667 | Y147: 144.9166667 | Z147: 131.6 | AA147: 133.95 | AB147: 144.1333333 | AC147: 142.5666667 | AD147: 150.4 | AE147: 134.7333333 | AF147: 119.0666667 | AG147: 616.4833333 | AH147: 551.4666667 | AI147: 425.35 | AJ147: 421.4333333 | AK147: 323.5166667 | AL147: 351.7166667 | AM147: 283.5666667 | AN147: 260.85 | AO147: 188.7833333 | AP147: 148.05 | AQ147: 117.5 | AR147: 93.21666667 | AS147: 82.25 | AT147: 52.48333333 | AV147: 156.6666667 | AW147: 7.833333333 | AX147: 64.23333333 | AY147: 54.83333333 | AZ147: 197.4
A148: 2 | B148: =+B147+1 -> 111 | C148: JULCAN | E148: No pertenece a ninguna MR | F148: I-1 | G148: 00005311 | H148: PUESTO DE SALUD | I148: SAN JOSE DE SALO BAJO | J148: CARABAMBA | K148: 583.4052632 | L148: 38.60526316 | M148: 7.285714286 | N148: 6.642857143 | O148: 6.101503759 | P148: 6.169172932 | Q148: 6 | R148: 6.406015038 | S148: 12.75 | T148: 14.4 | U148: 12.075 | V148: 9.375 | W148: 10.5 | X148: 10.275 | Y148: 13.875 | Z148: 12.6 | AA148: 12.825 | AB148: 13.8 | AC148: 13.65 | AD148: 14.4 | AE148: 12.9 | AF148: 11.4 | AG148: 59.025 | AH148: 52.8 | AI148: 40.725 | AJ148: 40.35 | AK148: 30.975 | AL148: 33.675 | AM148: 27.15 | AN148: 24.975 | AO148: 18.075 | AP148: 14.175 | AQ148: 11.25 | AR148: 8.925 | AS148: 7.875 | AT148: 5.025 | AV148: 15 | AW148: 0.75 | AX148: 6.15 | AY148: 5.25 | AZ148: 18.9
D149: 2 | K149: =SUM(M149:AT149) -> 7169.460526 | L149: 688.4605263 | M149: =SUM(M150:M156) -> 129.9285714 | N149: =SUM(N150:N156) -> 118.4642857 | O149: 108.8101504 | P149: 110.0169173 | Q149: 107 | R149: 114.2406015 | S149: 135 | T149: 141 | U149: 147 | V149: 157 | W149: 163 | X149: 155 | Y149: 169 | Z149: 172 | AA149: 166 | AB149: 186 | AC149: 182 | AD149: 169 | AE149: 172 | AF149: 147 | AG149: 696 | AH149: 589 | AI149: 438 | AJ149: 446 | AK149: 370 | AL149: 366 | AM149: 318 | AN149: 260 | AO149: 197 | AP149: 160 | AQ149: 136 | AR149: 95 | AS149: 80 | AT149: 69 | AV149: 130 | AW149: 4 | AX149: 55 | AY149: 59 | AZ149: 173
A150: 1 | B150: =+B148+1 -> 112 | C150: JULCAN | E150: HUASO | F150: I-4 | G150: 00005312 | H150: CENTRO DE SALUD CON CAMAS DE INTERNAMIENTO | I150: HUASO | J150: HUASO | K150: 1282.945582 | L150: 135.1184211 | M150: 25.5 | N150: 23.25 | O150: 21.35526316 | P150: 21.59210526 | Q150: 21 | R150: 22.42105263 | S150: 24.16666667 | T150: 25.24074074 | U150: 26.31481481 | V150: 28.10493827 | W150: 29.17901235 | X150: 27.74691358 | Y150: 30.25308642 | Z150: 30.79012346 | AA150: 29.71604938 | AB150: 33.2962963 | AC150: 32.58024691 | AD150: 30.25308642 | AE150: 30.79012346 | AF150: 26.31481481 | AG150: 124.5925926 | AH150: 105.4382716 | AI150: 78.40740741 | AJ150: 79.83950617 | AK150: 66.2345679 | AL150: 65.51851852 | AM150: 56.92592593 | AN150: 46.54320988 | AO150: 35.2654321 | AP150: 28.64197531 | AQ150: 24.34567901 | AR150: 17.00617284 | AS150: 14.32098765 | AT150: 12.35185185 | AV150: 23.27160494 | AW150: 0.7160493827 | AX150: 9.845679012 | AY150: 10.5617284 | AZ150: 30.9691358
A151: 2 | B151: =+B150+1 -> 113 | C151: JULCAN | E151: HUASO | F151: I-3 | G151: 00006771 | H151: CENTRO DE SALUD | I151: CANRAZ | J151: HUASO | K151: 1422.938921 | L151: 77.21052632 | M151: 14.57142857 | N151: 13.28571429 | O151: 12.20300752 | P151: 12.33834586 | Q151: 12 | R151: 12.81203008 | S151: 28.33333333 | T151: 29.59259259 | U151: 30.85185185 | V151: 32.95061728 | W151: 34.20987654 | X151: 32.5308642 | Y151: 35.4691358 | Z151: 36.09876543 | AA151: 34.83950617 | AB151: 39.03703704 | AC151: 38.19753086 | AD151: 35.4691358 | AE151: 36.09876543 | AF151: 30.85185185 | AG151: 146.0740741 | AH151: 123.617284 | AI151: 91.92592593 | AJ151: 93.60493827 | AK151: 77.65432099 | AL151: 76.81481481 | AM151: 66.74074074 | AN151: 54.56790123 | AO151: 41.34567901 | AP151: 33.58024691 | AQ151: 28.54320988 | AR151: 19.9382716 | AS151: 16.79012346 | AT151: 14.48148148 | AV151: 27.28395062 | AW151: 0.8395061728 | AX151: 11.54320988 | AY151: 12.38271605 | AZ151: 36.30864198
A152: 3 | B152: 114 | C152: JULCAN | E152: HUASO | F152: I-2 | G152: 00006772 | H152: PUESTO DE SALUD | I152: LA VEGA | J152: HUASO | K152: 709.5194932 | L152: 115.8157895 | M152: 21.85714286 | N152: 19.92857143 | O152: 18.30451128 | P152: 18.5075188 | Q152: 18 | R152: 19.21804511 | S152: 12.5 | T152: 13.05555556 | U152: 13.61111111 | V152: 14.53703704 | W152: 15.09259259 | X152: 14.35185185 | Y152: 15.64814815 | Z152: 15.92592593 | AA152: 15.37037037 | AB152: 17.22222222 | AC152: 16.85185185 | AD152: 15.64814815 | AE152: 15.92592593 | AF152: 13.61111111 | AG152: 64.44444444 | AH152: 54.53703704 | AI152: 40.55555556 | AJ152: 41.2962963 | AK152: 34.25925926 | AL152: 33.88888889 | AM152: 29.44444444 | AN152: 24.07407407 | AO152: 18.24074074 | AP152: 14.81481481 | AQ152: 12.59259259 | AR152: 8.796296296 | AS152: 7.407407407 | AT152: 6.388888889 | AV152: 12.03703704 | AW152: 0.3703703704 | AX152: 5.092592593 | AY152: 5.462962963 | AZ152: 16.01851852
A153: 4 | B153: 115 | C153: JULCAN | E153: HUASO | F153: I-2 | G153: 00006770 | H153: PUESTO DE SALUD | I153: CHINCHINVARA | J153: HUASO | K153: 934.1325536 | L153: 102.9473684 | M153: 19.42857143 | N153: 17.71428571 | O153: 16.27067669 | P153: 16.45112782 | Q153: 16 | R153: 17.08270677 | S153: 17.5 | T153: 18.27777778 | U153: 19.05555556 | V153: 20.35185185 | W153: 21.12962963 | X153: 20.09259259 | Y153: 21.90740741 | Z153: 22.2962963 | AA153: 21.51851852 | AB153: 24.11111111 | AC153: 23.59259259 | AD153: 21.90740741 | AE153: 22.2962963 | AF153: 19.05555556 | AG153: 90.22222222 | AH153: 76.35185185 | AI153: 56.77777778 | AJ153: 57.81481481 | AK153: 47.96296296 | AL153: 47.44444444 | AM153: 41.22222222 | AN153: 33.7037037 | AO153: 25.53703704 | AP153: 20.74074074 | AQ153: 17.62962963 | AR153: 12.31481481 | AS153: 10.37037037 | AT153: 8.944444444 | AV153: 16.85185185 | AW153: 0.5185185185 | AX153: 7.12962963 | AY153: 7.648148148 | AZ153: 22.42592593
A154: 5 | B154: 116 | C154: JULCAN | E154: HUASO | F154: I-2 | G154: 00005313 | H154: PUESTO DE SALUD | I154: PARASIVE | J154: HUASO | K154: 907.4207277 | L154: 115.8157895 | M154: 21.85714286 | N154: 19.92857143 | O154: 18.30451128 | P154: 18.5075188 | Q154: 18 | R154: 19.21804511 | S154: 16.66666667 | T154: 17.40740741 | U154: 18.14814815 | V154: 19.38271605 | W154: 20.12345679 | X154: 19.13580247 | Y154: 20.86419753 | Z154: 21.2345679 | AA154: 20.49382716 | AB154: 22.96296296 | AC154: 22.4691358 | AD154: 20.86419753 | AE154: 21.2345679 | AF154: 18.14814815 | AG154: 85.92592593 | AH154: 72.71604938 | AI154: 54.07407407 | AJ154: 55.0617284 | AK154: 45.67901235 | AL154: 45.18518519 | AM154: 39.25925926 | AN154: 32.09876543 | AO154: 24.32098765 | AP154: 19.75308642 | AQ154: 16.79012346 | AR154: 11.72839506 | AS154: 9.87654321 | AT154: 8.518518519 | AV154: 16.04938272 | AW154: 0.4938271605 | AX154: 6.790123457 | AY154: 7.283950617 | AZ154: 21.35802469
A155: 6 | B155: 117 | C155: JULCAN | E155: HUASO | F155: I-1 | G155: 00016422 | H155: PUESTO DE SALUD | I155: LA UNION | J155: HUASO | K155: 566.0168941 | L155: 51.47368421 | M155: 9.714285714 | N155: 8.857142857 | O155: 8.135338346 | P155: 8.22556391 | Q155: 8 | R155: 8.541353383 | S155: 10.83333333 | T155: 11.31481481 | U155: 11.7962963 | V155: 12.59876543 | W155: 13.08024691 | X155: 12.4382716 | Y155: 13.5617284 | Z155: 13.80246914 | AA155: 13.32098765 | AB155: 14.92592593 | AC155: 14.60493827 | AD155: 13.5617284 | AE155: 13.80246914 | AF155: 11.7962963 | AG155: 55.85185185 | AH155: 47.2654321 | AI155: 35.14814815 | AJ155: 35.79012346 | AK155: 29.69135802 | AL155: 29.37037037 | AM155: 25.51851852 | AN155: 20.86419753 | AO155: 15.80864198 | AP155: 12.83950617 | AQ155: 10.91358025 | AR155: 7.62345679 | AS155: 6.419753086 | AT155: 5.537037037 | AV155: 10.43209877 | AW155: 0.3209876543 | AX155: 4.413580247 | AY155: 4.734567901 | AZ155: 13.88271605
A156: 7 | B156: 118 | C156: JULCAN | E156: HUASO | F156: I-2 | G156: 00005335 | H156: PUESTO DE SALUD | I156: UNINGAMBAL | J156: HUASO | K156: 1277.486355 | L156: 90.07894737 | M156: 17 | N156: 15.5 | O156: 14.23684211 | P156: 14.39473684 | Q156: 14 | R156: 14.94736842 | S156: 25 | T156: 26.11111111 | U156: 27.22222222 | V156: 29.07407407 | W156: 30.18518519 | X156: 28.7037037 | Y156: 31.2962963 | Z156: 31.85185185 | AA156: 30.74074074 | AB156: 34.44444444 | AC156: 33.7037037 | AD156: 31.2962963 | AE156: 31.85185185 | AF156: 27.22222222 | AG156: 128.8888889 | AH156: 109.0740741 | AI156: 81.11111111 | AJ156: 82.59259259 | AK156: 68.51851852 | AL156: 67.77777778 | AM156: 58.88888889 | AN156: 48.14814815 | AO156: 36.48148148 | AP156: 29.62962963 | AQ156: 25.18518519 | AR156: 17.59259259 | AS156: 14.81481481 | AT156: 12.77777778 | AV156: 24.07407407 | AW156: 0.7407407407 | AX156: 10.18518519 | AY156: 10.92592593 | AZ156: 32.03703704
D157: 3 | K157: =SUM(M157:AT157) -> 16313.43991 | L157: 1464.881579 | M157: =SUM(M158:M165) -> 273.3571429 | N157: =SUM(N158:N165) -> 252.1785714 | O157: 232.5018797 | P157: 233.8364662 | Q157: 230 | R157: 243.0075188 | S157: 242.0833333 | T157: 288.2 | U157: 287.8083333 | V157: 249.7083333 | W157: 239.8333333 | X157: 281.4083333 | Y157: 313.2083333 | Z157: 297.8 | AA157: 274.225 | AB157: 316.0666667 | AC157: 377.7833333 | AD157: 301.2 | AE157: 288.3666667 | AF157: 251.5333333 | AG157: 1302.491667 | AH157: 1416.733333 | AI157: 1106.925 | AJ157: 1052.216667 | AK157: 944.5083333 | AL157: 965.6083333 | AM157: 930.2833333 | AN157: 736.175 | AO157: 571.1416667 | AP157: 533.775 | AQ157: 434.25 | AR157: 364.8583333 | AS157: 249.875 | AT157: 230.4916667 | AV157: 307.3333333 | AW157: 17.41666667 | AX157: 141.6166667 | AY157: 122.9166667 | AZ157: 415.7
A158: 1 | B158: =+B156+1 -> 119 | C158: JULCAN | E158: JULCAN | F158: II-1 | G158: 00005306 | H158: HOSPITAL | I158: JULCAN | J158: JULCAN | K158: 7190.460805 | L158: 791.4078947 | M158: 149.3571429 | N158: 136.1785714 | O158: 125.0808271 | P158: 126.4680451 | Q158: 123 | R158: 131.3233083 | S158: 102.6560847 | T158: 122.9047619 | U158: 124.7883598 | V158: 109.2486772 | W158: 103.5978836 | X158: 123.3756614 | Y158: 135.1481481 | Z158: 129.026455 | AA158: 117.7248677 | AB158: 136.5608466 | AC158: 165.7566138 | AD158: 129.026455 | AE158: 124.3174603 | AF158: 108.3068783 | AG158: 560.8412698 | AH158: 620.1746032 | AI158: 485.026455 | AJ158: 459.5978836 | AK158: 417.2169312 | AL158: 424.7513228 | AM158: 413.9206349 | AN158: 324.4497354 | AO158: 252.8730159 | AP158: 238.7460317 | AQ158: 194.4814815 | AR158: 163.8730159 | AS158: 110.6613757 | AT158: 104.0687831 | AV158: 131.3809524 | AW158: 7.534391534 | AX158: 61.21693122 | AY158: 53.21164021 | AZ158: 178.9417989
